Workbook

Sheet Eingabe
A4: =IF(Hilfe!B1=YEAR(TODAY()),"Fondsdepot versus Fondspolice","Version ist ungültig!") -> Fondsdepot versus Fondspolice
A6: Eingaben
A8: Gesamt-Bruttoeinkommen p. a. | C8: 30000 | E8: Familienstand
A9: Laufzeit in Jahren | C9: =Hilfe!B54 -> 36 | E9: erwartete Rendite (BVI) p. a.
A10: =IF(Hilfe!B3=1,"monatlicher Beitrag",IF(Hilfe!B3=2,"jährlicher Beitrag","Einmalbeitrag")) -> monatlicher Beitrag | C10: 250 | E10: Art der Anlage
A11: Zahlweise | E11: Dachfondskosten (TER abzgl. Æ Fondskosten) | G11: 0
A12: Wechsel
A13: Art der Fondspolice
A15: Optionen / Detaileingaben
C17: Aktienfonds | E17: Mischfonds | G17: Rentenfonds / VVW
A18: Depotaufteilung zu Beginn | C18: 1 | E18: 0 | G18: =IF(1-C18-E18<0,"Achtung!",1-C18-E18) -> 0
C20: Aktienfonds | E20: Mischfonds | G20: Rentenfonds / VVW
A21: Ausgabeaufschlag | C21: 0.05 | E21: 0.04 | G21: 0.03
A22: Wechselgebühr | C22: 0.025 | E22: 0.02 | G22: 0.015
G23: (VVW=Vermögensverwaltung)
C24: Pauschalgebühr p.a. | E24: Volumenabhängig p.a.
A25: Depotgebühren / Service-Fee p. a. (Bank / Vermögensverwaltung) | C25: 39 | E25: 0
C27: Freibetrag p.a. | E27: Abschmelzen p.a. um | G27: =IF(C28/Hilfe!B9>801,"Achtung: Freibetrag ist zu hoch!","") -> 
A28: Sparer-Pauschbetrag/Freibetrag | C28: 0 | E28: 0
A29: (ledig 801€ / verh. 1602 €)
C30: Ablaufleistung FLV
A31: Individuelle Vorgabe | C31: 0 | E31: =IF(C31>0,"ACHTUNG: Eine individuelle Ablaufleistung wurde vorgegeben!","") -> 
B32: (Eingabe 0 € bedeutet, es wird mit Standardwerten gerechnet)
A33: Berechnung
A35: Die folgenden Berechnungen wurden auf Basis Ihrer Angaben und den Einstellungen im Reiter "Wechsel" unter Berücksichtigung aller Kosten, Steuern sowie des Solidaritätszuschlags erstellt.
A37: Auszahlung bei einer Fonds-Direktanlage (Veränderung in (%) durch Vorabpauschale im Vergleich zum aktuellen Basiszins ) | E37: Auszahlung bei einer Fondspolice (Veränderung in (%) im Vergleich zur Fonds-Direktanlage mit aktuellem Basiszins)
B38: Vorabpauschale mit
A39: ="mit aktuellem Basiszins ("&'Berechnung Ratierlich heute%'!M1*100&"%)" -> mit aktuellem Basiszins (0%) | C39: =Hilfe!F20 -> 260994.0668 | E39: Nach Abgeltungsteuer | G39: =Hilfe!G45 -> 275961.4667 | H39: =G39/$C$39-1 -> 0.05734766359
A40: ="mit simulierten Basiszins ("&'Berechnung Ratierlich 2%'!M1*100&"%)" -> mit simulierten Basiszins (2%) | C40: =Hilfe!F21 -> 238385.5559 | D40: =C40/$C$39-1 -> -0.08662461622 | E40: Halbeinkünfteverfahren | G40: =Hilfe!G46 -> 287480.5069 | H40: 0.1014829206
A41: ="mit simulierten Basiszins ("&'Berechnung Ratierlich 4%'!M1*100&"%)" -> mit simulierten Basiszins (4%) | C41: =Hilfe!F22 -> 217926.9156 | D41: =C41/$C$39-1 -> -0.1650119934 | E41: Teilentnahmen (über 20 J.) | G41: =Hilfe!G47 -> 295698.3972 | H41: 0.132969806
E42: Mit Steuerfrei Konzept | G42: =Hilfe!G48 -> 324497.5 | H42: 0.2433137044
A43: ="Bei den Berechnungen wurden "&Wechsel!I31&" Wechsel berücksichtigt!" -> Bei den Berechnungen wurden 3 Wechsel berücksichtigt!
B44: =IF(Wechsel!I31=Wechsel!C6,"","ACHTUNG: Durch Rundungen konnten nur "&Wechsel!I31&" Wechsel berücksichtigt werden!") -> 
A47: Im Folgenden ist die Fonds-Direktanlage im Depot (mit verschiedenen Basiszinssätzen als Annahme) und die Fondspolice (mit verschiedenen Entnahme-Besteuerungen) grafisch nach Kosten und Steuer gegenüber gestellt:
A48: Rückkaufswerte nach Kosten und Steuer
A67: Der Gesetzgeber besteuert nicht ausschüttende (thesaurierende) und teilausschüttende Fonds ähnlich. Aus diesem Grund muss der Anleger - unabhängig vom gewählten Fondstyp - immer einen Mindestbetrag vom Fondsanteilswert versteuern - die sogenannte Vorabpauschale. Entwickelt sich ein Fonds im Laufe des Jahres negativ, ist keine Vorabpauschale fällig, d.h. sie kann nie negativ werden. Ist die Ausschüttung kleiner als die Vorabpauschale, muss trotzdem mindestens die Vorabpauschale versteuert werden.
A68: Um die Vorabpauschale zu ermitteln, legt das Bundesministerium der Finanzen jedes Jahr den maßgeblichen Zinssatz (Basiszins) im Bundessteuerblatt fest. Der Basiszins leitet sich aus langfristigen Renditen öffentlicher Anleihen ab. Dies bedeutet: Wenn die Zinsen steigen, steigt der Basiszins und somit auch die jährliche Vorabpauschale. Dies ist für eine langfristige Prognose wichtig, da man mit moderat steigenden Zinsen rechnen sollte. Für eine langfristige Prognose wird deshalb auch ein Basiszins in Höhe von 2% und 4% dargestellt.
A70: Sicherungsmechanismen und Renditeerwartung
A72: Neben der Renditebetrachtung ist zusätzlich zu beachten, wie wahrscheinlich es ist, eine entsprechende Rendite zu erwirtschaften.
A73: ="Um die Renditevorgabe von "&Hilfe!E3*100&"% p. a. einordnen zu können, wurden zum Vergleich "&"alle monatlichen Verläufe des Deutschen Aktienindex (DAX®) in dem Zeitraum 30.10.1959 bis 30.12."&Hilfe!B1-1&" berechnet. In der folgenden Tabelle sind der schlechteste und der beste und zusätzlich der Mittelwert über alle Verläufe aufgeführt. " -> Um die Renditevorgabe von 6% p. a. einordnen zu können, wurden zum Vergleich alle monatlichen Verläufe des Deutschen Aktienindex (DAX®) in dem Zeitraum 30.10.1959 bis 30.12.2021 berechnet. In der folgenden Tabelle sind der schlechteste und der beste und zusätzlich der Mittelwert über alle Verläufe aufgeführt.
B74: Historische DAX®-Verläufe (Rendite ohne Kosten / Steuer)
B75: Bester Verlauf | D75: =Hilfe!F106 -> 0.08831392286
B76: Schlechtester Verlauf | D76: =Hilfe!D106 -> 0.05427398977
B77: Mittelwert aller Verläufe | D77: =Hilfe!E106 -> 0.07338133142
B78: Anzahl mögl. Verläufe | D78: =Hilfe!G106 -> 314
B79: Laufzeit | D79: =Hilfe!C106 -> 36
A83: 1. Rebalancing
A84: An der Börse kommt es immer wieder vor, dass sich Märkte unterschiedlich entwickeln. Um von diesem Effekt zu profitieren, kann ein sogenanntes Rebalancing vereinbart werden. Aus Märkten - die sich sehr gut entwickeln - wird ein Teil entnommen und in Märkte investiert, die Aufholpotential haben.
A100: 2. Sicherungsbausteine
A101: Ein weiterer Sicherungsmechanismus - der in der Fondspolice genutzt werden kann - ist die Sicherung im Deckungsstock der Versicherungsgesellschaft. Dieser bietet die Garantie eines festen Wertes, kann sich also nicht negativ entwickeln. Die Alternative im Direktanlage-Depot - Geldmarkt- und Rentenfonds - mussten in Krisenzeiten teilweise zweistellige Verluste hinnehmen. Die sicher Anlage kann bei einer Einmalanlage genutzt werden, um nach und nach in den Aktienmarkt zu investieren - und nicht auf einmal. Dieses sogenannte Anlaufmanagement bewirkt, dass der Zeitpunkt des Einstiegs nicht mehr ganz so relevant ist. Genauso kann es natürlich auch für ein Ablaufmanagement genutzt werden - zur Sicherung der Gewinne!
A138: Fazit
A139: Die Sicherungsmechanismen wirken nicht renditemindernd wie einer festen Beitragsgarantie - ganz im Gegenteil: Die Renditechancen werden eher erhöht.
A140: In der jetzigen Niedrigzinsphase ist eine Beitragsgarantie sehr teuer. Dies zeigt die schematische Darstellung:
B142: Übersicht - Garantie versus Sicherheit
B143: Beitragssumme | E143: =Hilfe!E29 -> 108000
B144: Garantiepolice (ca. 2%) | E144: =ROUND(IF(Hilfe!B3=1,FV(2%/Hilfe!B4,Eingabe!C9*Hilfe!B4,-'Berechnung Ratierlich heute%'!C11/12),'Berechnung EB heute%'!C11*(1+2%)^Hilfe!B54)/100,0)*100 -> 150500
B146: ="Ohne Garantie (Mittelwert: ca. "&FIXED(D77*100,2)&"%)" -> Ohne Garantie (Mittelwert: ca. 7,34%) | E146: =ROUND(IF(Hilfe!B3=1,FV(D77/Hilfe!B4,Eingabe!C9*Hilfe!B4,-'Berechnung Ratierlich heute%'!C11/12),'Berechnung EB heute%'!C11*(1+D77)^Hilfe!B54)/100,0)*100 -> 503200
B147: Kosten Garantie (im Mittel) | E147: =E146-E144 -> 352700
A149: ="Gegenüber des Mittelwertes der Vergangenheit hätte der Vertrag mit Garantie ca. "&FIXED(E147,0)&" € weniger erwirtschaftet ohne dass die Garantie überhaupt benötigt worden wäre! Dies bedeutet: Im Mittel hätte es "&FIXED(E147,0)&" € gekostet, eine Beitragssumme von "&FIXED(E143,0)&" € Beitrag zu sichern." -> Gegenüber des Mittelwertes der Vergangenheit hätte der Vertrag mit Garantie ca. 352.700 € weniger erwirtschaftet ohne dass die Garantie überhaupt benötigt worden wäre! Dies bedeutet: Im Mittel hätte es 352.700 € gekostet, eine Beitragssumme von 108.000 € Beitrag zu sichern.
A150: Sicherungsmechanismen können das Verlustrisiko von Fonds deutlich minimieren und die Renditeerwartung erhöhen. Sie stehen kosten- und steueroptimiert nur bei Fondspolicen zur Verfügung.
F152: ="Stand: 1/"&Hilfe!B1&"" -> Stand: 1/2022
A153: Quelle: Eigene Berechnungen auf Basis Ihrer Angaben und der gesetzlichen / steuerrechtlichen Daten.
A154: Für die Richtigkeit der Angaben kann keine Gewähr übernommen werden, denn Programm- und Berechnungsfehler sind trotz sorgfältigstem Vorgehen nicht ausgeschlossen.

Sheet Steuer
A4: =IF(Hilfe!B1=YEAR(TODAY()),"Steuerübersicht der Fonds-Direktanlage","Version ist ungültig!") -> Steuerübersicht der Fonds-Direktanlage
A6: Bei der Fonds-Direktanlage fällt jedes Jahr die sogenannte Vorabpauschale an (der Freibetrag wird dagegen gerechnet). Diese bezieht sich auf den Basiszins.
A8: ="Vorabpauschale bei dem diesjährigen Basiszins von "&FIXED('Berechnung Ratierlich heute%'!M1,4)*100&"% p.a.." -> Vorabpauschale bei dem diesjährigen Basiszins von 0% p.a..
A25: Gesamtsteuerbelastung
A42: ="Vorabpauschale bei dem diesjährigen Basiszins von "&FIXED('Berechnung Ratierlich heute%'!M1,4)*100&"% p.a. und mit 2% p.a. und 4% p.a..." -> Vorabpauschale bei dem diesjährigen Basiszins von 0% p.a. und mit 2% p.a. und 4% p.a...

Sheet Wechsel
A4: =IF(Hilfe!B1=YEAR(TODAY()),"Fondswechseleingaben","Version ist ungültig!") -> Fondswechseleingaben
A6: Wechselanzahl | C6: =MIN(Hilfe!B18-1,C8) -> 3 | D6: Ablaufmanagement | E6: =C11/C6 -> 0.3333333333
A7: Jahresabstand | C7: =ROUNDUP(C8/(C6+1),0) -> 9
A8: Laufzeit | C8: =Eingabe!C9 -> 36
A10: Wechsel im Jahr | B10: Wechselanzahl | C10: Aktienfonds | D10: Mischfonds | E10: Rentenfonds / Vermögens-verwaltung
A11: 0 | B11: 0 | C11: =Eingabe!C18 -> 1 | D11: =Eingabe!E18 -> 0 | E11: =1-C11-D11 -> 0 | I11: =IF(A12=A11,0,1) -> 1
A12: =IF($C$7*B12>=$C$8,A11,$C$7*B12) -> 9 | B12: 1 | C12: =IF($C$6=0,0,MAX(C11-$E$6,0)) -> 0.6666666667 | D12: =IF($C$6=0,0,MAX(D11-$E$6,0)) -> 0 | E12: =1-C12-D12 -> 0.3333333333 | F12: =IF(C12+D12+E12=1,IF(A12<A11,"ACHTUNG!, Wechsel im Jahr muss immer größer oder gleich dem Wechsel des Vorjahres sein!",""),"ACHTUNG: Es muss immer 100% investiert werden!") ->  | I12: =IF(A13=A12,0,1) -> 1
A13: =IF($C$7*B13>=$C$8,A12,$C$7*B13) -> 18 | B13: 2 | C13: =IF($C$6=0,0,MAX(C12-$E$6,0)) -> 0.3333333333 | D13: 0 | E13: 0.6666666667 | F13: =IF(C13+D13+E13=1,IF(A13<A12,"ACHTUNG!, Wechsel im Jahr muss immer größer oder gleich dem Wechsel des Vorjahres sein!",""),"ACHTUNG: Es muss immer 100% investiert werden!") ->  | I13: 1
A14: =IF($C$7*B14>=$C$8,A13,$C$7*B14) -> 27 | B14: 3 | C14: 1.110223025e-16 | D14: 0 | E14: 1 | I14: 0
A15: =IF($C$7*B15>=$C$8,A14,$C$7*B15) -> 27 | B15: 4 | C15: 0 | D15: 0 | E15: 1 | I15: 0
A16: 27 | B16: 5 | C16: 0 | D16: 0 | E16: 1 | I16: 0
A17: 27 | B17: 6 | C17: 0 | D17: 0 | E17: 1 | I17: 0
A18: 27 | B18: 7 | C18: 0 | D18: 0 | E18: 1 | I18: 0
A19: 27 | B19: 8 | C19: 0 | D19: 0 | E19: 1 | I19: 0
A20: =IF($C$7*B20>=$C$8,A19,$C$7*B20) -> 27 | B20: 9 | C20: 0 | D20: 0 | E20: 1 | I20: 0
A21: 27 | B21: 10 | C21: 0 | D21: 0 | E21: 1 | I21: 0
A22: 27 | B22: 11 | C22: 0 | D22: 0 | E22: 1 | I22: 0
A23: 27 | B23: 12 | C23: 0 | D23: 0 | E23: 1 | I23: 0
A24: 27 | B24: 13 | C24: 0 | D24: 0 | E24: 1 | I24: 0
A25: 27 | B25: 14 | C25: 0 | D25: 0 | E25: 1 | I25: 0
A26: 27 | B26: 15 | C26: 0 | D26: 0 | E26: 1 | I26: 0
A27: 27 | B27: 16 | C27: 0 | D27: 0 | E27: 1 | I27: 0
A28: 27 | B28: 17 | C28: 0 | D28: 0 | E28: 1 | I28: 0
A29: 27 | B29: 18 | C29: 0 | D29: 0 | E29: 1 | I29: 0
A30: 27 | B30: 19 | C30: 0 | D30: 0 | E30: 1 | I30: 0
A31: 27 | B31: 20 | C31: 0 | D31: 0 | E31: 1 | I31: =SUM(I11:I30) -> 3
A32: 0 | B32: 21 | C32: 0 | D32: 0 | E32: 0

Sheet Grafik (hidden)
A1: Basiszins
A2: ='Berechnung Ratierlich heute%'!M1 -> 0 | B2: =Eingabe!C39 -> 260994.0668 | C2: =B7 -> 287480.5069
A3: ='Berechnung Ratierlich 2%'!M1 -> 0.02 | B3: =Eingabe!C40 -> 238385.5559 | C3: =C2 -> 287480.5069
A4: ='Berechnung Ratierlich 4%'!M1 -> 0.04 | B4: =Eingabe!C41 -> 217926.9156 | C4: =C3 -> 287480.5069
C5: 287480.5069
A6: Abgeltungsteuer | B6: =Eingabe!G39 -> 275961.4667 | C6: 287480.5069
A7: Halbeinkünfteverfahren | B7: =Eingabe!G40 -> 287480.5069 | C7: 287480.5069
A8: =Eingabe!E41 -> Teilentnahmen (über 20 J.) | B8: =Eingabe!G41 -> 295698.3972 | C8: 287480.5069
A9: Steuerfrei Konzept | B9: =Eingabe!G42 -> 324497.5 | C9: 287480.5069
A11: Minimale Achsenbeschriftung | B11: =ROUND((MIN(B2:B9)-MIN(B2:B9)/10)/100,0)*100 -> 196100

Sheet Hilfe (hidden)
A1: Jahr | B1: 2022 | D1: Rendite | I1: Beitrag p.a. | K1: 100 | M1: Zins=ZINS(Laufzeit*12;-Beitrag;0;Ablaufleistung)*12 | S1: Ablauf=ZW(Zins/12; Laufzeit*12;-Beitrag;) | AT1: Zins=ZINS(Laufzeit*12;-Beitrag;0;Ablaufleistung)*12
D2: 0.03 | E2: 4 | I2: Laufzeit | J2: Ablaufleistung ratierlich (Allcase) | Q2: Ablaufleistung EB (Allcase) | X2: Rendite ratierlich (Allcase) | AE2: Rendite EB (Allcase) | AL2: Ablaufleistung (Favorites) | AT2: Rendite EB (Favorites)
A3: Zahlweise | B3: 1 | D3: 0.04 | E3: =(E2+2)/100 -> 0.06 | J3: 0.03 | K3: 0.04 | L3: 0.05 | M3: 0.06 | N3: 0.07 | O3: 0.08 | P3: 0.09 | Q3: 0.03 | R3: 0.04 | S3: 0.05 | T3: 0.06 | U3: 0.07 | V3: 0.08 | W3: 0.09 | X3: 0.03 | Y3: 0.04 | Z3: 0.05 | AA3: 0.06 | AB3: 0.07 | AC3: 0.08 | AD3: 0.09 | AE3: 0.03 | AF3: 0.04 | AG3: 0.05 | AH3: 0.06 | AI3: 0.07 | AJ3: 0.08 | AK3: 0.09 | AL3: Jahre | AM3: 0.03 | AN3: 0.04 | AO3: 0.05 | AP3: 0.06 | AQ3: 0.07 | AR3: 0.08 | AS3: 0.09 | AT3: 0.03 | AU3: 0.04 | AV3: 0.05 | AW3: 0.06 | AX3: 0.07 | AY3: 0.08 | AZ3: 0.09
A4: monatlich | B4: =IF(B3=1,12,IF(B3=2,1,0)) -> 12 | D4: 0.05 | I4: 12 | J4: 15032 | K4: 15974 | L4: 16985 | M4: 18068 | N4: 19229 | O4: 20471 | P4: 21805 | Q4: 142576 | R4: 160168 | S4: 179714 | T4: 201430 | U4: 225678 | V4: 252523 | W4: 282234 | X4: =RATE($I4*12,-100,0,J4)*12 -> 0.00715945945 | Y4: =RATE($I4*12,-100,0,K4)*12 -> 0.0171272892 | Z4: 0.02700764966 | AA4: 0.03678368653 | AB4: 0.0464652742 | AC4: 0.0560352654 | AD4: 0.06553447087 | AE4: =(Q4/100000)^(1/$I4)-1 -> 0.02999994661 | AF4: =(R4/100000)^(1/$I4)-1 -> 0.04003505904 | AG4: =(S4/100000)^(1/$I4)-1 -> 0.05006252432 | AH4: =(T4/100000)^(1/$I4)-1 -> 0.06009229848 | AI4: =(U4/100000)^(1/$I4)-1 -> 0.07018149068 | AJ4: =(V4/100000)^(1/$I4)-1 -> 0.08025199826 | AK4: =(W4/100000)^(1/$I4)-1 -> 0.09031196387 | AL4: 12 | AM4: 15087 | AN4: 16038 | AO4: 17059 | AP4: 18153 | AQ4: 19325 | AR4: 20583 | AS4: 21932 | AT4: =RATE($AL4*12,-100,0,AM4)*12 -> 0.007763718454 | AU4: =RATE($AL4*12,-100,0,AN4)*12 -> 0.01777655698 | AV4: 0.02770085727 | AW4: 0.03751907647 | AX4: 0.04723248042 | AY4: 0.05686222293 | AZ4: 0.06640089181
A5: jährlich | D5: 0.06 | I5: 13 | J5: 16647 | K5: 17786 | L5: 19014 | M5: 20341 | N5: 21771 | O5: 23312 | P5: 24976 | Q5: 147774 | R5: 167624 | S5: 189892 | T5: 214978 | U5: 243133 | V5: 274602 | W5: 309809 | X5: =RATE($I5*12,-100,0,J5)*12 -> 0.009954379895 | Y5: =RATE($I5*12,-100,0,K5)*12 -> 0.01989168117 | Z5: =RATE($I5*12,-100,0,L5)*12 -> 0.0297205567 | AA5: =RATE($I5*12,-100,0,M5)*12 -> 0.03946508921 | AB5: =RATE($I5*12,-100,0,N5)*12 -> 0.04910018059 | AC5: =RATE($I5*12,-100,0,O5)*12 -> 0.05862936688 | AD5: =RATE($I5*12,-100,0,P5)*12 -> 0.06807455751 | AE5: =(Q5/100000)^(1/$I5)-1 -> 0.03049526892 | AF5: =(R5/100000)^(1/$I5)-1 -> 0.040534851 | AG5: =(S5/100000)^(1/$I5)-1 -> 0.05056660111 | AH5: =(T5/100000)^(1/$I5)-1 -> 0.06064187796 | AI5: =(U5/100000)^(1/$I5)-1 -> 0.07073081275 | AJ5: =(V5/100000)^(1/$I5)-1 -> 0.08080274283 | AK5: =(W5/100000)^(1/$I5)-1 -> 0.09087870462 | AL5: 13 | AM5: 16546 | AN5: 17684 | AO5: 18913 | AP5: 20239 | AQ5: 21671 | AR5: 23217 | AS5: 24887 | AT5: =RATE($AL5*12,-100,0,AM5)*12 -> 0.009030453657 | AU5: =RATE($AL5*12,-100,0,AN5)*12 -> 0.01903595497 | AV5: =RATE($AL5*12,-100,0,AO5)*12 -> 0.02894339191 | AW5: =RATE($AL5*12,-100,0,AP5)*12 -> 0.03874518569 | AX5: =RATE($AL5*12,-100,0,AQ5)*12 -> 0.04845270099 | AY5: =RATE($AL5*12,-100,0,AR5)*12 -> 0.05806497094 | AZ5: =RATE($AL5*12,-100,0,AS5)*12 -> 0.06758935183
A6: Einmalbeitrag | D6: 0.07 | I6: 14 | J6: 18192 | K6: 19544 | L6: 21008 | M6: 22600 | N6: 24330 | O6: 26208 | P6: 28250 | Q6: 153163 | R6: 175428 | S6: 200649 | T6: 229439 | U6: 261942 | V6: 298615 | W6: 340195 | X6: =RATE($I6*12,-100,0,J6)*12 -> 0.0112957 | Y6: =RATE($I6*12,-100,0,K6)*12 -> 0.02123316241 | Z6: =RATE($I6*12,-100,0,L6)*12 -> 0.03103745536 | AA6: =RATE($I6*12,-100,0,M6)*12 -> 0.04075273532 | AB6: =RATE($I6*12,-100,0,N6)*12 -> 0.05037328985 | AC6: =RATE($I6*12,-100,0,O6)*12 -> 0.05989127137 | AD6: =RATE($I6*12,-100,0,P6)*12 -> 0.06932432286 | AE6: 0.0309207381 | AF6: 0.04096382301 | AG6: 0.05099982286 | AH6: 0.0611137588 | AI6: 0.0712030379 | AJ6: 0.08127595206 | AK6: 0.0913914977 | AL6: 14 | AM6: 18038 | AN6: 19383 | AO6: 20846 | AP6: 22435 | AQ6: 24163 | AR6: 26042 | AS6: 28085 | AT6: 0.01010280123 | AU6: 0.02009730509 | AV6: 0.02999636681 | AW6: 0.03978679556 | AX6: 0.04948265737 | AY6: 0.05908466053 | AZ6: 0.06859376956
D7: 0.08 | I7: 15 | J7: 19919 | K7: 21511 | L7: 23257 | M7: 25163 | N7: 27246 | O7: 29530 | P7: 32026 | Q7: 158749 | R7: 183598 | S7: 212124 | T7: 244876 | U7: 282208 | V7: 324880 | W7: 373565 | X7: =RATE($I7*12,-100,0,J7)*12 -> 0.01336565155 | Y7: =RATE($I7*12,-100,0,K7)*12 -> 0.02323749436 | Z7: =RATE($I7*12,-100,0,L7)*12 -> 0.03303561938 | AA7: =RATE($I7*12,-100,0,M7)*12 -> 0.04271493369 | AB7: =RATE($I7*12,-100,0,N7)*12 -> 0.05228922357 | AC7: =RATE($I7*12,-100,0,O7)*12 -> 0.06179092914 | AD7: =RATE($I7*12,-100,0,P7)*12 -> 0.07118928702 | AE7: 0.03128982576 | AF7: 0.04133675233 | AG7: 0.05141133291 | AH7: 0.06152383035 | AI7: 0.07161295368 | AJ7: 0.08172001398 | AK7: 0.09183684359 | AL7: 15 | AM7: 19563 | AN7: 21137 | AO7: 22860 | AP7: 24746 | AQ7: 26810 | AR7: 29071 | AS7: 31546 | AT7: 0.01101712534 | AU7: 0.02100530352 | AV7: 0.03089231723 | AW7: 0.04067832929 | AX7: 0.05036269232 | AY7: 0.05995613075 | AZ7: 0.06945318388
A8: Familienstand | D8: 0.09 | I8: 16 | J8: 21648 | K8: 23509 | L8: 25554 | M8: 27808 | N8: 30291 | O8: 33027 | P8: 36044 | Q8: 164540 | R8: 192149 | S8: 224257 | T8: 261354 | U8: 304071 | V8: 353473 | W8: 410212 | X8: 0.01479511523 | Y8: 0.02465494335 | Z8: 0.03439469234 | AA8: 0.04404478264 | AB8: 0.05359997733 | AC8: 0.06306361957 | AD8: 0.07244335041 | AE8: 0.0316133848 | AF8: 0.0416633473 | AG8: 0.05177204976 | AH8: 0.06188337618 | AI8: 0.0719781608 | AJ8: 0.08211213013 | AK8: 0.09222728769 | AL8: 16 | AM8: 21123 | AN8: 22949 | AO8: 24960 | AP8: 27178 | AQ8: 29622 | AR8: 32318 | AS8: 35291 | AT8: 0.01181301364 | AU8: 0.02179702974 | AV8: 0.03167098051 | AW8: 0.0414495976 | AX8: 0.05112421755 | AY8: 0.06070652811 | AZ8: 0.07019440501
A9: nicht verheiratet | B9: 1 | I9: 17 | J9: 23439 | K9: 25588 | L9: 27972 | M9: 30619 | N9: 33553 | O9: 36809 | P9: 40421 | Q9: 170544 | R9: 201109 | S9: 237086 | T9: 278943 | U9: 327766 | V9: 384586 | W9: 450457 | X9: 0.01606189124 | Y9: 0.02586762603 | Z9: 0.03558153819 | AA9: 0.04521029105 | AB9: 0.05473710843 | AC9: 0.0641740224 | AD9: 0.07351828303 | AE9: 0.03189958533 | AF9: 0.0419548779 | AG9: 0.05209095955 | AH9: 0.06220121096 | AI9: 0.07232711635 | AJ9: 0.08245881292 | AK9: 0.09257232726 | AL9: 17 | AM9: 22718 | AN9: 24819 | AO9: 27150 | AP9: 29737 | AQ9: 32610 | AR9: 35800 | AS9: 39344 | AT9: 0.01250796828 | AU9: 0.02248476109 | AV9: 0.03235510261 | AW9: 0.04212191519 | AX9: 0.05179159054 | AY9: 0.06136268844 | AZ9: 0.07084150181
A10: verheiratet | D10: Art der Fondspolice | I10: 18 | J10: 25285 | K10: 27757 | L10: 30522 | M10: 33605 | N10: 37046 | O10: 40895 | P10: 45194 | Q10: 176769 | R10: 210584 | S10: 250650 | T10: 297718 | U10: 353311 | V10: 418440 | W10: 494655 | X10: 0.01715324464 | Y10: 0.02693701221 | Z10: 0.03664181462 | AA10: 0.04623551048 | AB10: 0.05572844443 | AC10: 0.06514088831 | AD10: 0.07445873202 | AE10: 0.03215467413 | AF10: 0.04224081419 | AG10: 0.05237477161 | AH10: 0.06248426042 | AI10: 0.07263799256 | AJ10: 0.08276741464 | AK10: 0.09287969151 | AL10: 18 | AM10: 24350 | AN10: 26750 | AO10: 29432 | AP10: 32430 | AQ10: 35783 | AR10: 39533 | AS10: 43729 | AT10: 0.01312529529 | AU10: 0.02309196259 | AV10: 0.03295434054 | AW10: 0.04271404701 | AX10: 0.05237552067 | AY10: 0.06193856092 | AZ10: 0.07140810787
D11: Fondspolice für die mittelfristige Anlage | F11: 2 | I11: 19 | J11: 27195 | K11: 30024 | L11: 33200 | M11: 36772 | N11: 40794 | O11: 45314 | P11: 50407 | Q11: 183221 | R11: 220508 | S11: 264993 | T11: 317891 | U11: 380850 | V11: 455278 | W11: 543193 | X11: 0.01812906801 | Y11: 0.02790012623 | Z11: 0.0375623226 | AA11: 0.0471315754 | AB11: 0.05661657381 | AC11: 0.06599849834 | AD11: 0.0753017662 | AE11: 0.03238290034 | AF11: 0.04249736469 | AG11: 0.05262939785 | AH11: 0.06276121452 | AI11: 0.07291668205 | AJ11: 0.08304409855 | AK11: 0.09315513238 | AL11: 19 | AM11: 26017 | AN11: 28743 | AO11: 31811 | AP11: 35264 | AQ11: 39154 | AR11: 43536 | AS11: 48476 | AT11: 0.01366612627 | AU11: 0.02362850508 | AV11: 0.03348676958 | AW11: 0.0432392892 | AX11: 0.05289402584 | AY11: 0.06244957387 | AZ11: 0.07191302774
A12: Anlageart | D12: Fondspolice für die Altersversorgung | I12: 20 | J12: 28979 | K12: 32170 | L12: 35781 | M12: 39867 | N12: 44498 | O12: 49748 | P12: 55729 | Q12: 189911 | R12: 230901 | S12: 280159 | T12: 339463 | U12: 410538 | V12: 495362 | W12: 596498 | X12: 0.01838076505 | Y12: 0.02813530736 | Z12: 0.03779129169 | AA12: 0.04734560105 | AB12: 0.05681162558 | AC12: 0.06618961406 | AD12: 0.07552121196 | AE12: 0.03258902797 | AF12: 0.04272861234 | AG12: 0.05285903643 | AH12: 0.06301556159 | AI12: 0.0731678859 | AJ12: 0.0832934928 | AK12: 0.09340347445 | AL12: 20 | AM12: 27723 | AN12: 30802 | AO12: 34291 | AP12: 38247 | AQ12: 42735 | AR12: 47828 | AS12: 53611 | AT12: 0.01415483117 | AU12: 0.02411198139 | AV12: 0.03396252529 | AW12: 0.04370962277 | AX12: 0.05335659985 | AY12: 0.0629049274 | AZ12: 0.0723595886
A13: individuell | B13: 1 | D13: Basiszins | E13: 0 | I13: 21 | J13: 31005 | K13: 34614 | L13: 38727 | M13: 43415 | N13: 48763 | O13: 54892 | P13: 61902 | Q13: 196846 | R13: 241786 | S13: 296195 | T13: 362500 | U13: 442543 | V13: 538979 | W13: 655037 | X13: 0.01919203559 | Y13: 0.02892337855 | Z13: 0.03855828433 | AA13: 0.04809435527 | AB13: 0.05753716593 | AC13: 0.0669250589 | AD13: 0.07623418797 | AE13: 0.03277574127 | AF13: 0.04293832352 | AG13: 0.05306719051 | AH13: 0.06324589536 | AI13: 0.07339553533 | AJ13: 0.0835195569 | AK13: 0.09362845489 | AL13: 21 | AM13: 29467 | AN13: 32927 | AO13: 36876 | AP13: 41385 | AQ13: 46538 | AR13: 52430 | AS13: 59169 | AT13: 0.01459264196 | AU13: 0.02454396839 | AV13: 0.03438942114 | AW13: 0.04412940373 | AX13: 0.0537697608 | AY13: 0.06331322849 | AZ13: 0.07276134544
A14: gemanagt | B14: =B13-1 -> 0 | I14: 22 | J14: 33098 | K14: 37164 | L14: 41825 | M14: 47180 | N14: 53350 | O14: 60461 | P14: 68635 | Q14: 204086 | R14: 253185 | S14: 313268 | T14: 387104 | U14: 477046 | V14: 586439 | W14: 719325 | X14: 0.01992201632 | Y14: 0.02963677809 | Z14: 0.03924525944 | AA14: 0.04876437174 | AB14: 0.05821510995 | AC14: 0.0675936447 | AD14: 0.07687273352 | AE14: 0.03295741802 | AF14: 0.04312916878 | AG14: 0.05327466486 | AH14: 0.06345578737 | AI14: 0.07360283124 | AJ14: 0.08372531982 | AK14: 0.09383330691 | AL14: 22 | AM14: 31250 | AN14: 35121 | AO14: 39571 | AP14: 44689 | AQ14: 50579 | AR14: 57365 | AS14: 65184 | AT14: 0.01498747275 | AU14: 0.02493427331 | AV14: 0.03477565203 | AW14: 0.04451140057 | AX14: 0.05414423611 | AY14: 0.06368201603 | AZ14: 0.07312355416
I15: 23 | J15: 35259 | K15: 39819 | L15: 45086 | M15: 51181 | N15: 58266 | O15: 66472 | P15: 75975 | Q15: 211647 | R15: 265124 | S15: 331369 | T15: 413380 | U15: 514243 | V15: 638083 | W15: 789926 | X15: 0.02057939141 | Y15: 0.03027445898 | Z15: 0.03986915805 | AA15: 0.04937539116 | AB15: 0.05882743358 | AC15: 0.06818457788 | AD15: 0.0774440915 | AE15: 0.03313493808 | AF15: 0.04330389314 | AG15: 0.05347020121 | AH15: 0.06364769344 | AI15: 0.07379249618 | AJ15: 0.08391358572 | AK15: 0.09402059081 | AL15: 23 | AM15: 33074 | AN15: 37387 | AO15: 42380 | AP15: 48165 | AQ15: 54872 | AR15: 62656 | AS15: 71693 | AT15: 0.01534812212 | AU15: 0.02529021251 | AV15: 0.03512544378 | AW15: 0.04485605208 | AX15: 0.05448389131 | AY15: 0.06401535622 | AZ15: 0.07345103377
A16: Kosten Helvetia Management | B16: 0.0084 | C16: Mehrkosten Direktanlage bei Management: | G16: =(Eingabe!G11-Hilfe!B16)*B14 -> 0 | I16: 24 | J16: 37495 | K16: 42591 | L16: 48520 | M16: 55452 | N16: 63542 | O16: 72978 | P16: 83995 | Q16: 219490 | R16: 277627 | S16: 350518 | T16: 441442 | U16: 554342 | V16: 694277 | W16: 867461 | X16: 0.02118415916 | Y16: 0.03086096567 | Z16: 0.04044022954 | AA16: 0.04995897626 | AB16: 0.05939089941 | AC16: 0.06872630307 | AD16: 0.07797207558 | AE16: 0.03329806023 | AF16: 0.04346424158 | AG16: 0.0536497381 | AH16: 0.06382388148 | AI16: 0.07396651556 | AJ16: 0.08408632407 | AK16: 0.09419253688 | AL16: 24 | AM16: 34939 | AN16: 39727 | AO16: 45309 | AP16: 51823 | AQ16: 59433 | AR16: 68329 | AS16: 78737 | AT16: 0.01567669337 | AU16: 0.02561539326 | AV16: 0.03544555096 | AW16: 0.04516989651 | AX16: 0.05479357682 | AY16: 0.06431828922 | AZ16: 0.07374873972
I17: 25 | J17: 39805 | K17: 45482 | L17: 52141 | M17: 59988 | N17: 69197 | O17: 80016 | P17: 92732 | Q17: 227625 | R17: 290722 | S17: 370775 | T17: 471412 | U17: 597572 | V17: 755423 | W17: 952609 | X17: 0.02173560913 | Y17: 0.03139712786 | Z17: 0.04097112156 | AA17: 0.05048937915 | AB17: 0.05990389393 | AC17: 0.06922142705 | AD17: 0.07844363277 | AE17: 0.03344840271 | AF17: 0.04361212424 | AG17: 0.05381510122 | AH17: 0.06398627395 | AI17: 0.074126941 | AJ17: 0.08424544954 | AK17: 0.09435086924 | AL17: 25 | AM17: 36846 | AN17: 42143 | AO17: 48362 | AP17: 55673 | AQ17: 64277 | AR17: 74412 | AS17: 86360 | AT17: 0.01597741242 | AU17: 0.02591287708 | AV17: 0.03573790051 | AW17: 0.04545737368 | AX17: 0.05507520772 | AY17: 0.06459502597 | AZ17: 0.07402042748
A18: Wechsel | B18: 4 | C18: Ausgabe | I18: 26 | J18: 41908 | K18: 48159 | L18: 55569 | M18: 64334 | N18: 74700 | O18: 86968 | P18: 101500 | Q18: 236063 | R18: 304475 | S18: 392206 | T18: 503419 | U18: 644176 | V18: 821959 | W18: 1046120 | X18: 0.02176447722 | Y18: 0.03141248434 | Z18: 0.0410047699 | AA18: 0.05050725607 | AB18: 0.05991104114 | AC18: 0.06921810361 | AD18: 0.07843339021 | AE18: 0.03358745087 | AF18: 0.04375396904 | AG18: 0.0539681098 | AH18: 0.06413638389 | AI18: 0.07427522283 | AJ18: 0.08439259794 | AK18: 0.09449724638 | AL18: 26 | AM18: 38797 | AN18: 44637 | AO18: 51545 | AP18: 59725 | AQ18: 69424 | AR18: 80935 | AS18: 94609 | AT18: 0.0162556121 | AU18: 0.02618528619 | AV18: 0.03600686521 | AW18: 0.04572151069 | AX18: 0.05533453301 | AY18: 0.06484898716 | AZ18: 0.07426886172
A19: 0 | D19: Ratierlich | E19: EB | F19: Ausgabe | I19: 27 | J19: 44352 | K19: 51283 | L19: 59558 | M19: 69405 | N19: 81131 | O19: 95111 | P19: 111866 | Q19: 244815 | R19: 318999 | S19: 414878 | T19: 537603 | U19: 694417 | V19: 894358 | W19: 1148814 | X19: 0.02224079345 | Y19: 0.03188759983 | Z19: 0.0414770267 | AA19: 0.05096410103 | AB19: 0.06034903608 | AC19: 0.06963790539 | AD19: 0.07887163385 | AE19: 0.03371640439 | AF19: 0.0438999187 | AG19: 0.05411001843 | AH19: 0.06427567589 | AI19: 0.07441267682 | AJ19: 0.08452898352 | AK19: 0.09463292794 | AL19: 27 | AM19: 40791 | AN19: 47213 | AO19: 54863 | AP19: 63989 | AQ19: 74891 | AR19: 87930 | AS19: 103536 | AT19: 0.01651028681 | AU19: 0.02643770658 | AV19: 0.03625446428 | AW19: 0.04596438869 | AX19: 0.05557244363 | AY19: 0.06508288572 | AZ19: 0.07449711538
A20: 1 | C20: ="Basiszins "&'Berechnung Ratierlich heute%'!M1*100&" %" -> Basiszins 0 % | D20: ='Berechnung Ratierlich heute%'!Q6 -> 260994.0668 | E20: ='Berechnung EB heute%'!Q6 -> 0 | F20: =IF($B$3=3,E20,D20) -> 260994.0668 | I20: 28 | J20: 46878 | K20: 54554 | L20: 63762 | M20: 74789 | N20: 88017 | O20: 103927 | P20: 123145 | Q20: 253893 | R20: 334219 | S20: 438863 | T20: 574109 | U20: 748580 | V20: 973138 | W20: 1261592 | X20: 0.0226819997 | Y20: 0.03234098576 | Z20: 0.04191722114 | AA20: 0.05138329931 | AB20: 0.0607487204 | AC20: 0.0700308564 | AD20: 0.07925945189 | AE20: 0.03383638252 | AF20: 0.04403581637 | AG20: 0.05424201497 | AH20: 0.06440508649 | AI20: 0.07454051148 | AJ20: 0.0846558027 | AK20: 0.09475902238 | AL20: 28 | AM20: 42831 | AN20: 49872 | AO20: 58322 | AP20: 68477 | AQ20: 80700 | AR20: 95429 | AS20: 113197 | AT20: 0.01674743941 | AU20: 0.02667005371 | AV20: 0.03648338604 | AW20: 0.04618919764 | AX20: 0.05579290598 | AY20: 0.06529765491 | AZ20: 0.07470758034
A21: 2 | C21: ="Basiszins "&'Berechnung Ratierlich 2%'!M1*100&" %" -> Basiszins 2 % | D21: ='Berechnung Ratierlich 2%'!Q6 -> 238385.5559 | E21: ='Berechnung EB 2%'!Q6 -> -16.66051257 | F21: =IF($B$3=3,E21,D21) -> 238385.5559 | I21: 29 | J21: 49489 | K21: 57966 | L21: 68184 | M21: 80502 | N21: 95393 | O21: 113497 | P21: 135460 | Q21: 263308 | R21: 350166 | S21: 464236 | T21: 613098 | U21: 806971 | V21: 1058860 | W21: 1385446 | X21: 0.02309209464 | Y21: 0.03276014208 | Z21: 0.04232107025 | AA21: 0.05176685811 | AB21: 0.06111630732 | AC21: 0.0704109391 | AD21: 0.07962044386 | AE21: 0.03394815002 | AF21: 0.04416244274 | AG21: 0.05436503084 | AH21: 0.06452582918 | AI21: 0.07465969999 | AJ21: 0.08477398167 | AK21: 0.09487656148 | AL21: 29 | AM21: 44917 | AN21: 52618 | AO21: 61928 | AP21: 73200 | AQ21: 86870 | AR21: 103471 | AS21: 123652 | AT21: 0.01696728555 | AU21: 0.02688613606 | AV21: 0.03669563116 | AW21: 0.04639722612 | AX21: 0.05599617658 | AY21: 0.06549685269 | AZ21: 0.07490201804
A22: 3 | C22: ="Basiszins "&'Berechnung Ratierlich 4%'!M1*100&" %" -> Basiszins 4 % | D22: ='Berechnung Ratierlich 4%'!Q6 -> 217926.9156 | E22: ='Berechnung EB 4%'!Q6 -> -33.57081207 | F22: 217926.9156 | I22: 30 | J22: 52208 | K22: 61534 | L22: 72835 | M22: 86571 | N22: 103325 | O22: 123843 | P22: 148882 | Q22: 273075 | R22: 366876 | S22: 491079 | T22: 654737 | U22: 869919 | V22: 1152137 | W22: 1521463 | X22: 0.02349734636 | Y22: 0.03315707065 | Z22: 0.04269251273 | AA22: 0.05212323364 | AB22: 0.06147104741 | AC22: 0.07076023096 | AD22: 0.07994908838 | AE22: 0.03405283924 | AF22: 0.04428084059 | AG22: 0.05448007706 | AH22: 0.06463865241 | AI22: 0.07477105191 | AJ22: 0.08488441612 | AK22: 0.09498636978 | AL22: 30 | AM22: 47050 | AN22: 55454 | AO22: 65687 | AP22: 78170 | AQ22: 93425 | AR22: 112093 | AS22: 134966 | AT22: 0.01717158693 | AU22: 0.02708774056 | AV22: 0.03689270441 | AW22: 0.04659001853 | AX22: 0.05618501036 | AY22: 0.06568097412 | AZ22: 0.0750820157
A23: 4 | I23: 31 | J23: 55019 | K23: 65246 | L23: 77728 | M23: 93024 | N23: 111842 | O23: 135019 | P23: 163546 | Q23: 283205 | R23: 384385 | S23: 519475 | T23: 699206 | U23: 937780 | V23: 1253634 | W23: 1670837 | X23: 0.02387458264 | Y23: 0.03351701125 | Z23: 0.04303594535 | AA23: 0.05245832748 | AB23: 0.06180697398 | AC23: 0.07107896347 | AD23: 0.08025959651 | AE23: 0.03415086735 | AF23: 0.04439175181 | AG23: 0.05458777041 | AH23: 0.06474430859 | AI23: 0.07487533098 | AJ23: 0.08498782111 | AK23: 0.09508917655 | AL23: 31 | AM23: 49231 | AN23: 58381 | AO23: 69605 | AP23: 83401 | AQ23: 100388 | AR23: 121338 | AS23: 147210 | AT23: 0.01736184879 | AU23: 0.02727434976 | AV23: 0.03707575329 | AW23: 0.0467698235 | AX23: 0.05636031543 | AY23: 0.06585207643 | AZ23: 0.07524918941
A24: 5 | C24: Ablaufleistung FLV | I24: 32 | J24: 57517 | K24: 68613 | L24: 82261 | M24: 99094 | N24: 120010 | O24: 145933 | P24: 178067 | Q24: 293712 | R24: 402731 | S24: 549516 | T24: 746699 | U24: 1010938 | V24: 1364076 | W24: 1834880 | X24: 0.02383268219 | Y24: 0.03346065972 | Z24: 0.04297168791 | AA24: 0.05237910763 | AB24: 0.06173553904 | AC24: 0.07100165536 | AD24: 0.08017181063 | AE24: 0.03424291108 | AF24: 0.04449585448 | AG24: 0.05468892515 | AH24: 0.06484353636 | AI24: 0.0749732105 | AJ24: 0.08508486339 | AK24: 0.09518563715 | AL24: 32 | AM24: 51461 | AN24: 61404 | AO24: 73690 | AP24: 88905 | AQ24: 107785 | AR24: 131252 | AS24: 160460 | AT24: 0.01753936581 | AU24: 0.02744939625 | AV24: 0.03724709706 | AW24: 0.04693689391 | AX24: 0.05652371691 | AY24: 0.0660117888 | AZ24: 0.07540466872
A25: 6 | C25: Ratierlich Allcase | E25: =IF(Eingabe!C31>0,Eingabe!C31,FV(C31/B4,Eingabe!C9*B4,-Eingabe!C10)) -> 324497.5 | I25: 33 | J25: 60498 | K25: 72613 | L25: 87630 | M25: 106322 | N25: 129708 | O25: 158866 | P25: 195298 | Q25: 304674 | R25: 421955 | S25: 581297 | T25: 797419 | U25: 1089807 | V25: 1484250 | W25: 2015032 | X25: 0.02417364786 | Y25: 0.03378129543 | Z25: 0.04327804059 | AA25: 0.05268691877 | AB25: 0.06203685626 | AC25: 0.07128205465 | AD25: 0.08043564665 | AE25: 0.03433609069 | AF25: 0.04459383579 | AG25: 0.05478410897 | AH25: 0.06493680232 | AI25: 0.0750652798 | AJ25: 0.08517608402 | AK25: 0.09527631269 | AL25: 33 | AM25: 53742 | AN25: 64525 | AO25: 77949 | AP25: 94698 | AQ25: 115643 | AR25: 141881 | AS25: 174798 | AT25: 0.01770629072 | AU25: 0.02761295742 | AV25: 0.03740771545 | AW25: 0.0470933963 | AX25: 0.0566763187 | AY25: 0.06616037933 | AZ25: 0.0755494144
A26: 7 | C26: Ratierlich Favorites | E26: =IF(Eingabe!C31>0,Eingabe!C31,FV(G31/B4,Eingabe!C9*B4,-Eingabe!C10)) -> 284907.5 | I26: 34 | J26: 63575 | K26: 76788 | L26: 93277 | M26: 114014 | N26: 140081 | O26: 172840 | P26: 214155 | Q26: 316139 | R26: 442098 | S26: 614917 | T26: 851588 | U26: 1174831 | V26: 1615016 | W26: 2212876 | X26: 0.02448931744 | Y26: 0.03408351585 | Z26: 0.04356303395 | AA26: 0.05298045127 | AB26: 0.06231120812 | AC26: 0.07154148239 | AD26: 0.080694469 | AE26: 0.03443283226 | AF26: 0.04468615639 | AG26: 0.05487375005 | AH26: 0.06502472972 | AI26: 0.07515199383 | AJ26: 0.08526203996 | AK26: 0.09536172435 | AL26: 34 | AM26: 56075 | AN26: 67748 | AO26: 82388 | AP26: 100795 | AQ26: 123991 | AR26: 153279 | AS26: 190315 | AT26: 0.01786337318 | AU26: 0.0277667279 | AV26: 0.03755771701 | AW26: 0.04724018374 | AX26: 0.05681921227 | AY26: 0.06629962036 | AZ26: 0.07568482215
A27: 8 | C27: EB | E27: =IF(Eingabe!C31>0,Eingabe!C31,Eingabe!C10*(1+E31)^Eingabe!C9) -> 2428.0525 | I27: 35 | J27: 66754 | K27: 81137 | L27: 99218 | M27: 122185 | N27: 151192 | O27: 187966 | P27: 234801 | Q27: 328036 | R27: 463204 | S27: 650484 | T27: 909438 | U27: 1266491 | V27: 1757305 | W27: 2430149 | X27: 0.02478448168 | Y27: 0.03436367353 | Z27: 0.04382949149 | AA27: 0.05325506939 | AB27: 0.0625663316 | AC27: 0.07178814535 | AD27: 0.08094905179 | AE27: 0.03452410518 | AF27: 0.04477330098 | AG27: 0.05495839381 | AH27: 0.06510768211 | AI27: 0.07523382324 | AJ27: 0.08534312919 | AK27: 0.09544231135 | AL27: 35 | AM27: 58460 | AN27: 71076 | AO27: 87016 | AP27: 107211 | AQ27: 132859 | AR27: 165500 | AS27: 207108 | AT27: 0.01801039535 | AU27: 0.02791131088 | AV27: 0.03769884857 | AW27: 0.04737769534 | AX27: 0.05695307222 | AY27: 0.06642990082 | AZ27: 0.07581172861
A28: 9 | C28: Ablaufleistung | E28: =IF(B3=3,E27,IF(F11=1,E26,E25)) -> 324497.5 | I28: 36 | J28: 69534 | K28: 85034 | L28: 104692 | M28: 129799 | N28: 161785 | O28: 202602 | P28: 255106 | Q28: 340382 | R28: 485320 | S28: 688111 | T28: 971221 | U28: 1365306 | V28: 1912134 | W28: 2668759 | X28: 0.02470958338 | Y28: 0.03427922706 | Z28: 0.04374965293 | AA28: 0.05316116987 | AB28: 0.0624694522 | AC28: 0.07167862238 | AD28: 0.0808462807 | AE28: 0.03461042368 | AF28: 0.04485575369 | AG28: 0.05503846034 | AH28: 0.06518612759 | AI28: 0.0753111935 | AJ28: 0.08541977899 | AK28: 0.09551847094 | AL28: 36 | AM28: 60899 | AN28: 74511 | AO28: 91840 | AP28: 113963 | AQ28: 142280 | AR28: 178604 | AS28: 225280 | AT28: 0.01814897238 | AU28: 0.02804657614 | AV28: 0.03783132794 | AW28: 0.04750687148 | AX28: 0.05707887398 | AY28: 0.06655215068 | AZ28: 0.07593052464
A29: 10 | C29: Beitragssumme | E29: =IF(B3=3,Eingabe!C10,Hilfe!B4*Eingabe!C10*Eingabe!C9) -> 108000 | I29: 37 | J29: 72920 | K29: 89739 | L29: 111283 | M29: 138952 | N29: 174458 | O29: 220232 | P29: 279453 | Q29: 353195 | R29: 508494 | S29: 727916 | T29: 1037204 | U29: 1471833 | V29: 2080608 | W29: 2930801 | X29: 0.02499143397 | Y29: 0.03454328704 | Z29: 0.0440194902 | AA29: 0.05341693905 | AB29: 0.06270899166 | AC29: 0.07192380732 | AD29: 0.08107718595 | AE29: 0.03469226859 | AF29: 0.04493386968 | AG29: 0.05511426253 | AH29: 0.06526041441 | AI29: 0.07538442995 | AJ29: 0.08549234195 | AK29: 0.09559055409 | AL29: 37 | AM29: 63393 | AN29: 78059 | AO29: 96869 | AP29: 121069 | AQ29: 152288 | AR29: 192654 | AS29: 244945 | AT29: 0.01827963136 | AU29: 0.02817489297 | AV29: 0.03795622337 | AW29: 0.04762856111 | AX29: 0.05719715989 | AY29: 0.06666688907 | AZ29: 0.07604204556
A30: 11 | C30: Rendite FLV | I30: 38 | J30: 76046 | K30: 94188 | L30: 117644 | M30: 147950 | N30: 187138 | O30: 238209 | P30: 304690 | Q30: 366491 | R30: 532776 | S30: 770026 | T30: 1107673 | U30: 1586675 | V30: 2263929 | W30: 3218576 | X30: 0.02503278895 | Y30: 0.03458052159 | Z30: 0.04406847387 | AA30: 0.0534608238 | AB30: 0.06274740299 | AC30: 0.07198146285 | AD30: 0.08113419005 | AE30: 0.03476986238 | AF30: 0.04500795417 | AG30: 0.05518616704 | AH30: 0.06533087804 | AI30: 0.07545387549 | AJ30: 0.08556112964 | AK30: 0.09565887853 | AL30: 38 | AM30: 65943 | AN30: 81722 | AO30: 102111 | AP30: 128547 | AQ30: 162919 | AR30: 207720 | AS30: 266226 | AT30: 0.01840285067 | AU30: 0.02829581986 | AV30: 0.03807384814 | AW30: 0.0477431911 | AX30: 0.05730841373 | AY30: 0.06677506987 | AZ30: 0.07614695227
A31: 12 | C31: =VLOOKUP(E3,C33:D39,2,FALSE) -> 0.05316116987 | E31: =VLOOKUP(E3,E33:F39,2,FALSE) -> 0.06518612759 | G31: =VLOOKUP(E3,G33:H39,2,FALSE) -> 0.04750687148 | I31: 39 | J31: 79280 | K31: 98828 | L31: 124350 | M31: 157520 | N31: 200767 | O31: 257672 | P31: 332427 | Q31: 380289 | R31: 558219 | S31: 814574 | T31: 1182931 | U31: 1710481 | V31: 2463406 | W31: 3534611 | X31: 0.02508571438 | Y31: 0.0346283129 | Z31: 0.04413075161 | AA31: 0.05351872524 | AB31: 0.06280516055 | AC31: 0.07205220623 | AD31: 0.08122304341 | AE31: 0.03484358516 | AF31: 0.04507831473 | AG31: 0.05525445288 | AH31: 0.06539776117 | AI31: 0.07551981672 | AJ31: 0.08562643569 | AK31: 0.09572373017 | AL31: 39 | AM31: 68551 | AN31: 85504 | AO31: 107576 | AP31: 136416 | AQ31: 174213 | AR31: 223874 | AS31: 289256 | AT31: 0.01851973682 | AU31: 0.02841010146 | AV31: 0.03818517743 | AW31: 0.04785119565 | AX31: 0.05741348509 | AY31: 0.06687696392 | AZ31: 0.07624580989
A32: 13 | C32: Rendite Ratierlich | E32: Rendite EB | G32: Rendite Favorites | I32: 40 | J32: 82630 | K32: 103711 | L32: 131422 | M32: 167710 | N32: 215524 | O32: 278797 | P32: 362772 | Q32: 394608 | R32: 584879 | S32: 861701 | T32: 1263305 | U32: 1843950 | V32: 2680462 | W32: 3881682 | X32: 0.025150594 | Y32: 0.034702265 | Z32: 0.04420476303 | AA32: 0.05359085376 | AB32: 0.06289723786 | AC32: 0.07214027226 | AD32: 0.08132477495 | AE32: 0.03491372632 | AF32: 0.04514524904 | AG32: 0.05531938311 | AH32: 0.06546136283 | AI32: 0.07558250245 | AJ32: 0.0856885093 | AK32: 0.09578537262 | AL32: 40 | AM32: 71218 | AN32: 89409 | AO32: 113274 | AP32: 144698 | AQ32: 186211 | AR32: 241195 | AS32: 314179 | AT32: 0.01863055811 | AU32: 0.02851832135 | AV32: 0.03829086809 | AW32: 0.04795352588 | AX32: 0.05751277959 | AY32: 0.06697314051 | AZ32: 0.07633912657
A33: 14 | C33: 0.03 | D33: =VLOOKUP(Eingabe!$C$9,$I$4:$AK$52,16,FALSE) -> 0.02470958338 | E33: 0.03 | F33: =VLOOKUP(Eingabe!$C$9,$I$4:$AK$52,23,FALSE) -> 0.03461042368 | G33: 0.03 | H33: =VLOOKUP($B$54,$AL$4:$AZ$52,9,FALSE) -> 0.01814897238 | I33: 41 | J33: 86744 | K33: 109692 | L33: 140027 | M33: 180073 | N33: 233377 | O33: 304381 | P33: 399556 | Q33: 409467 | R33: 612814 | S33: 911557 | T33: 1349143 | U33: 1987836 | V33: 2916647 | W33: 4262836 | X33: 0.02553729539 | Y33: 0.0351054662 | Z33: 0.04460173717 | AA33: 0.05398363918 | AB33: 0.0633032321 | AC33: 0.07254280547 | AD33: 0.08173746615 | AE33: 0.03498050262 | AF33: 0.0452089948 | AG33: 0.05538121968 | AH33: 0.06552192339 | AI33: 0.07564216542 | AJ33: 0.08574759208 | AK33: 0.09584403239 | AL33: 41 | AM33: 73945 | AN33: 93440 | AO33: 119212 | AP33: 153414 | AQ33: 198956 | AR33: 259768 | AS33: 341150 | AT33: 0.01873557107 | AU33: 0.02862049713 | AV33: 0.0383903561 | AW33: 0.04805043064 | AX33: 0.05760657694 | AY33: 0.06706413557 | AZ33: 0.0764272694
A34: 15 | C34: 0.04 | D34: =VLOOKUP(Eingabe!$C$9,$I$4:$AK$52,17,FALSE) -> 0.03427922706 | E34: 0.04 | F34: =VLOOKUP(Eingabe!$C$9,$I$4:$AK$52,24,FALSE) -> 0.04485575369 | G34: 0.04 | H34: =VLOOKUP($B$54,$AL$4:$AZ$52,10,FALSE) -> 0.02804657614 | I34: 42 | J34: 91007 | K34: 115952 | L34: 149122 | M34: 193262 | N34: 252613 | O34: 332357 | P34: 439950 | Q34: 424887 | R34: 642084 | S34: 964300 | T34: 1440815 | U34: 2142953 | V34: 3173646 | W34: 4681421 | X34: 0.02589945012 | Y34: 0.03548287063 | Z34: 0.04497403291 | AA34: 0.0543517767 | AB34: 0.06368404047 | AC34: 0.0729357244 | AD34: 0.08212496673 | AE34: 0.03504418911 | AF34: 0.04526973843 | AG34: 0.05544017884 | AH34: 0.06557963061 | AI34: 0.0756990307 | AJ34: 0.08580388803 | AK34: 0.09589992597 | AL34: 42 | AM34: 76734 | AN34: 97603 | AO34: 125403 | AP34: 162586 | AQ34: 212495 | AR34: 279682 | AS34: 370336 | AT34: 0.01883557153 | AU34: 0.02871789931 | AV34: 0.03848502776 | AW34: 0.04814214467 | AX34: 0.05769538094 | AY34: 0.06715015172 | AZ34: 0.07651051918
A35: 16 | C35: 0.05 | D35: =VLOOKUP(Eingabe!$C$9,$I$4:$AK$52,18,FALSE) -> 0.04374965293 | E35: 0.05 | F35: =VLOOKUP(Eingabe!$C$9,$I$4:$AK$52,25,FALSE) -> 0.05503846034 | G35: 0.05 | H35: =VLOOKUP($B$54,$AL$4:$AZ$52,11,FALSE) -> 0.03783132794 | I35: 43 | J35: 95424 | K35: 122505 | L35: 158734 | M35: 207385 | N35: 273340 | O35: 362800 | P35: 484314 | Q35: 440889 | R35: 672755 | S35: 1020096 | T35: 1538719 | U35: 2310178 | V35: 3453293 | W35: 5141112 | X35: 0.02623904048 | Y35: 0.03583705 | Z35: 0.04532356965 | AA35: 0.05470617631 | AB35: 0.06404194383 | AC35: 0.07330534512 | AD35: 0.08248981139 | AE35: 0.03510498822 | AF35: 0.04532776735 | AG35: 0.05549642938 | AH35: 0.06563470568 | AI35: 0.07575329438 | AJ35: 0.08585758768 | AK35: 0.09595323964 | AL35: 43 | AM35: 79585 | AN35: 101901 | AO35: 131857 | AP35: 172239 | AQ35: 226878 | AR35: 301034 | AS35: 401921 | AT35: 0.01893017491 | AU35: 0.02881033828 | AV35: 0.03857499028 | AW35: 0.04822929108 | AX35: 0.05777964026 | AY35: 0.06723158565 | AZ35: 0.07658941846
A36: 17 | C36: 0.06 | D36: =VLOOKUP(Eingabe!$C$9,$I$4:$AK$52,19,FALSE) -> 0.05316116987 | E36: 0.06 | F36: =VLOOKUP(Eingabe!$C$9,$I$4:$AK$52,26,FALSE) -> 0.06518612759 | G36: 0.06 | H36: =VLOOKUP($B$54,$AL$4:$AZ$52,12,FALSE) -> 0.04750687148 | I36: 44 | J36: 100000 | K36: 129364 | L36: 168890 | M36: 222511 | N36: 295671 | O36: 395920 | P36: 533025 | Q36: 457495 | R36: 704892 | S36: 1079123 | T36: 1643279 | U36: 2490454 | V36: 3757585 | W36: 5645946 | X36: 0.02655778555 | Y36: 0.0361697766 | Z36: 0.04565178066 | AA36: 0.05504777382 | AB36: 0.06437858332 | AC36: 0.07365300669 | AD36: 0.08283310992 | AE36: 0.03516309578 | AF36: 0.0453831923 | AG36: 0.05555018258 | AH36: 0.06568732983 | AI36: 0.07580511002 | AJ36: 0.08590887387 | AK36: 0.09600414895 | AL36: 44 | AM36: 82501 | AN36: 106339 | AO36: 138584 | AP36: 182397 | AQ36: 242158 | AR36: 323930 | AS36: 436102 | AT36: 0.01902058375 | AU36: 0.02889839494 | AV36: 0.03866026868 | AW36: 0.04831195499 | AX36: 0.05785972902 | AY36: 0.06730898836 | AZ36: 0.07666426592
A37: 18 | C37: 0.07 | D37: =VLOOKUP(Eingabe!$C$9,$I$4:$AK$52,20,FALSE) -> 0.0624694522 | E37: 0.07 | F37: =VLOOKUP(Eingabe!$C$9,$I$4:$AK$52,27,FALSE) -> 0.0753111935 | G37: 0.07 | H37: =VLOOKUP($B$54,$AL$4:$AZ$52,13,FALSE) -> 0.05707887398 | I37: 45 | J37: 104789 | K37: 136543 | L37: 179624 | M37: 238657 | N37: 319854 | O37: 431961 | P37: 586524 | Q37: 474727 | R37: 738566 | S37: 1141568 | T37: 1754945 | U37: 2684801 | V37: 4088694 | W37: 6200356 | X37: 0.02687462483 | Y37: 0.03648276813 | Z37: 0.04596106686 | AA37: 0.05536963221 | AB37: 0.06470786663 | AC37: 0.07398114923 | AD37: 0.0831574258 | AE37: 0.03521864991 | AF37: 0.04543621454 | AG37: 0.0556015997 | AH37: 0.06573762933 | AI37: 0.07585465237 | AJ37: 0.08595790573 | AK37: 0.09605281189 | AL37: 45 | AM37: 85482 | AN37: 110921 | AO37: 145597 | AP37: 193087 | AQ37: 258389 | AR37: 348479 | AS37: 473091 | AT37: 0.01910638758 | AU37: 0.02898217836 | AV37: 0.03874155485 | AW37: 0.04839055888 | AX37: 0.05793569008 | AY37: 0.06738239635 | AZ37: 0.07673526055
A38: 19 | C38: 0.08 | D38: =VLOOKUP(Eingabe!$C$9,$I$4:$AK$52,21,FALSE) -> 0.07167862238 | E38: 0.08 | F38: =VLOOKUP(Eingabe!$C$9,$I$4:$AK$52,28,FALSE) -> 0.08541977899 | G38: 0.08 | H38: =VLOOKUP($B$54,$AL$4:$AZ$52,14,FALSE) -> 0.06655215068 | I38: 46 | J38: 109759 | K38: 144059 | L38: 190969 | M38: 255893 | N38: 345966 | O38: 471181 | P38: 645280 | Q38: 492610 | R38: 773850 | S38: 1207628 | T38: 1874202 | U38: 2894317 | V38: 4448982 | W38: 6809210 | X38: 0.027174944 | Y38: 0.03677813468 | Z38: 0.04625296084 | AA38: 0.05567348961 | AB38: 0.06502269589 | AC38: 0.07429133616 | AD38: 0.08346416572 | AE38: 0.03527188005 | AF38: 0.04548697305 | AG38: 0.05565081272 | AH38: 0.0657857805 | AI38: 0.07590206535 | AJ38: 0.08600482113 | AK38: 0.09609937188 | AL38: 46 | AM38: 88531 | AN38: 115652 | AO38: 152907 | AP38: 204337 | AQ38: 275631 | AR38: 374802 | AS38: 513120 | AT38: 0.01918858851 | AU38: 0.02906208487 | AV38: 0.03881885231 | AW38: 0.04846540241 | AX38: 0.05800791143 | AY38: 0.06745222953 | AZ38: 0.07680275264
A39: 20 | C39: 0.09 | D39: =VLOOKUP(Eingabe!$C$9,$I$4:$AK$52,22,FALSE) -> 0.0808462807 | E39: 0.09 | F39: =VLOOKUP(Eingabe!$C$9,$I$4:$AK$52,29,FALSE) -> 0.09551847094 | G39: 0.09 | H39: =VLOOKUP($B$54,$AL$4:$AZ$52,15,FALSE) -> 0.07593052464 | I39: 47 | J39: 114910 | K39: 151925 | L39: 202974 | M39: 274289 | N39: 374113 | O39: 513854 | P39: 709802 | Q39: 511168 | R39: 810822 | S39: 1277512 | T39: 2001566 | U39: 3120186 | V39: 4841021 | W39: 7477856 | X39: 0.02745784969 | Y39: 0.03705663188 | Z39: 0.04653106165 | AA39: 0.0559603483 | AB39: 0.06532008946 | AC39: 0.0745845908 | AD39: 0.0837543768 | AE39: 0.03532290565 | AF39: 0.04553563853 | AG39: 0.05569795578 | AH39: 0.06583191769 | AI39: 0.07594748348 | AJ39: 0.08604975683 | AK39: 0.09614396677 | AL39: 47 | AM39: 91648 | AN39: 120536 | AO39: 160528 | AP39: 216176 | AQ39: 293948 | AR39: 403026 | AS39: 556437 | AT39: 0.01926677407 | AU39: 0.02913812397 | AV39: 0.03889273015 | AW39: 0.04853668659 | AX39: 0.05807675466 | AY39: 0.06751864017 | AZ39: 0.07686688533
I40: 48 | J40: 120251 | K40: 160160 | L40: 215754 | M40: 293929 | N40: 404460 | O40: 560291 | P40: 780665 | Q40: 530426 | R40: 849561 | S40: 1351443 | T40: 2137587 | U40: 3363685 | V40: 5267610 | W40: 8212164 | X40: 0.02772541813 | Y40: 0.03732013973 | Z40: 0.04680731947 | AA40: 0.05623213782 | AB40: 0.06560186023 | AC40: 0.07486256864 | AD40: 0.08402964547 | AE40: 0.03537184285 | AF40: 0.04558229378 | AG40: 0.05574318365 | AH40: 0.0658761531 | AI40: 0.07599103401 | AJ40: 0.08609283909 | AK40: 0.09618671296 | AL40: 48 | AM40: 94835 | AN40: 125579 | AO40: 168472 | AP40: 228635 | AQ40: 313406 | AR40: 433289 | AS40: 603314 | AT40: 0.01934140907 | AU40: 0.0292108467 | AV40: 0.03896316304 | AW40: 0.04860466913 | AX40: 0.05814234052 | AY40: 0.0675819079 | AZ40: 0.0769279798
I41: 49 | J41: 125788 | K41: 168780 | L41: 229266 | M41: 314996 | N41: 437174 | O41: 610818 | P41: 858483 | Q41: 550410 | R41: 890153 | S41: 1429654 | T41: 2282854 | U41: 3626189 | V41: 5731792 | W41: 9018584 | X41: 0.02797853492 | Y41: 0.03756953262 | Z41: 0.04706873428 | AA41: 0.05649910103 | AB41: 0.06586884108 | AC41: 0.07512612344 | AD41: 0.08429077704 | AE41: 0.03541880262 | AF41: 0.04562709823 | AG41: 0.05578659041 | AH41: 0.0659186074 | AI41: 0.07603282294 | AJ41: 0.08613417274 | AK41: 0.09622772755 | AL41: 49 | AM41: 98094 | AN41: 130786 | AO41: 176753 | AP41: 241747 | AQ41: 334076 | AR41: 465738 | AS41: 654043 | AT41: 0.01941287956 | AU41: 0.02928041316 | AV41: 0.03903043197 | AW41: 0.04866962886 | AX41: 0.05820487618 | AY41: 0.06764221984 | AZ41: 0.07698621052
A42: Steuerberechnung der Fondspolice | I42: 50 | J42: 131527 | K42: 177802 | L42: 243552 | M42: 337546 | N42: 472437 | O42: 665793 | P42: 943936 | Q42: 571149 | R42: 932686 | S42: 1512394 | T42: 2437996 | U42: 3909182 | V42: 6236882 | W42: 9904196 | X42: 0.02821798389 | Y42: 0.03780568531 | Z42: 0.04731642442 | AA42: 0.05675691869 | AB42: 0.06612197308 | AC42: 0.07537622649 | AD42: 0.08453873556 | AE42: 0.03546396197 | AF42: 0.04567014628 | AG42: 0.05582830107 | AH42: 0.06595939036 | AI42: 0.07607295852 | AJ42: 0.08617386939 | AK42: 0.0962671096 | AL42: 50 | AM42: 101427 | AN42: 136162 | AO42: 185385 | AP42: 255545 | AQ42: 356034 | AR42: 500531 | AS42: 708941 | AT42: 0.01948150586 | AU42: 0.02934693807 | AV42: 0.03909468714 | AW42: 0.04873161131 | AX42: 0.05826459851 | AY42: 0.0676997724 | AZ42: 0.07704178087
A43: Teilfreistellung | B43: 0.15 | C43: Freistellungsauftrag | E43: ='Berechnung Ratierlich heute%'!P6 -> 0 | I43: 51 | J43: 137478 | K43: 187247 | L43: 258658 | M43: 361630 | N43: 510457 | O43: 725619 | P43: 1037790 | Q43: 592671 | R43: 977253 | S43: 1599924 | T43: 2603684 | U43: 4214262 | V43: 6786484 | W43: 10876778 | X43: 0.02844539321 | Y43: 0.03802993513 | Z43: 0.0475515787 | AA43: 0.0570018367 | AB43: 0.06636276122 | AC43: 0.07561426198 | AD43: 0.08477488404 | AE43: 0.03550740605 | AF43: 0.04571154356 | AG43: 0.05586839688 | AH43: 0.06599859634 | AI43: 0.07611153068 | AJ43: 0.08621202031 | AK43: 0.09630495684 | AL43: 51 | AM43: 104834 | AN43: 141713 | AO43: 194383 | AP43: 270065 | AQ43: 379361 | AR43: 537838 | AS43: 768350 | AT43: 0.01954690827 | AU43: 0.02941072526 | AV43: 0.03915613696 | AW43: 0.04879081841 | AX43: 0.05832173624 | AY43: 0.06775477375 | AZ43: 0.07709483811
A44: Art | B44: zu versteuern | D44: Nach Teilfreistellung | F44: Steuer | G44: Ablauf | I44: 52 | J44: 143645 | K44: 197132 | L44: 274630 | M44: 387351 | N44: 551443 | O44: 790713 | P44: 1140854 | Q44: 615004 | R44: 1023951 | S44: 1692522 | T44: 2780634 | U44: 4543155 | V44: 7384521 | W44: 11944870 | X44: 0.02866077558 | Y44: 0.03824269402 | Z44: 0.04777497332 | AA44: 0.05723466581 | AB44: 0.06659174226 | AC44: 0.07584069836 | AD44: 0.08499965337 | AE44: 0.03554918123 | AF44: 0.04575137832 | AG44: 0.05590697826 | AH44: 0.06603630845 | AI44: 0.07614863871 | AJ44: 0.08624871469 | AK44: 0.09634135571 | AL44: 52 | AM44: 108318 | AN44: 147443 | AO44: 203763 | AP44: 285346 | AQ44: 404140 | AR44: 577840 | AS44: 832640 | AT44: 0.01960971551 | AU44: 0.02947157749 | AV44: 0.03921502243 | AW44: 0.04884754291 | AX44: 0.05837628693 | AY44: 0.06780735054 | AZ44: 0.0771455196
A45: Abgeltungsteuer | B45: =E28-E29 -> 216497.5 | D45: =B45*(1-B43) -> 184022.875 | F45: =D45*'Berechnung Ratierlich heute%'!M2 -> 48536.03328 | G45: =E28-F45 -> 275961.4667 | I45: 53 | J45: 150040 | K45: 207550 | L45: 291520 | M45: 414821 | N45: 595629 | O45: 861548 | P45: 1254046 | Q45: 638181 | R45: 1072882 | S45: 1790481 | T45: 2969613 | U45: 4897718 | V45: 8035261 | W45: 13117851 | X45: 0.02886584822 | Y45: 0.03845482743 | Z45: 0.04798765069 | AA45: 0.05745629043 | AB45: 0.06680984653 | AC45: 0.07605660282 | AD45: 0.08521410405 | AE45: 0.03558945657 | AF45: 0.0457897396 | AG45: 0.05594412457 | AH45: 0.0660726206 | AI45: 0.07618435699 | AJ45: 0.08628403299 | AK45: 0.09637638708 | AL45: 53 | AM45: 111881 | AN45: 153360 | AO45: 213541 | AP45: 301428 | AQ45: 430464 | AR45: 620731 | AS45: 902213 | AT45: 0.01967015053 | AU45: 0.029530125 | AV45: 0.03927146396 | AW45: 0.04890193914 | AX45: 0.05842857345 | AY45: 0.06785762292 | AZ45: 0.07719400034
A46: Halbeinkünfteverfahren | B46: =B45 -> 216497.5 | D46: =D45 -> 184022.875 | F46: =steuer(B9,Eingabe!C8+Hilfe!D46/2)-steuer(B9,Eingabe!C8) -> 37016.99306 | G46: =$E$28-F46 -> 287480.5069 | I46: 54 | J46: 156669 | K46: 218493 | L46: 309453 | M46: 444155 | N46: 643260 | O46: 938618 | P46: 1378344 | Q46: 662231 | R46: 1124153 | S46: 1894112 | T46: 3171437 | U46: 5279956 | V46: 8743349 | W46: 14406023 | X46: 0.02906083946 | Y46: 0.03866111555 | Z46: 0.04819657826 | AA46: 0.05766724103 | AB46: 0.06701761737 | AC46: 0.07626235297 | AD46: 0.08541861545 | AE46: 0.03562822876 | AF46: 0.04582671175 | AG46: 0.05597992084 | AH46: 0.0661075984 | AI46: 0.07621876753 | AJ46: 0.08631805207 | AK46: 0.09641012879 | AL46: 54 | AM46: 115523 | AN46: 159469 | AO46: 223734 | AP46: 318351 | AQ46: 458427 | AR46: 666721 | AS46: 977503 | AT46: 0.01972785107 | AU46: 0.02958628536 | AV46: 0.03932561753 | AW46: 0.04895397256 | AX46: 0.05847859438 | AY46: 0.06790578157 | AZ46: 0.07724040982
A47: HEV mit 20 Teilentnahmen | B47: =B46 -> 216497.5 | D47: =D46 -> 184022.875 | F47: =(steuer(B9,Eingabe!C8+Hilfe!D46/(20*2))-steuer(B9,Eingabe!C8))*20 -> 28799.1028 | G47: =$E$28-F47 -> 295698.3972 | I47: 55 | J47: 163539 | K47: 229952 | L47: 328499 | M47: 475479 | N47: 694602 | O47: 1022469 | P47: 1514830 | Q47: 687190 | R47: 1177875 | S47: 2003742 | T47: 3386980 | U47: 5692027 | V47: 9513839 | W47: 15820696 | X47: 0.02924615884 | Y47: 0.03885746811 | Z47: 0.04840205136 | AA47: 0.0578682165 | AB47: 0.06721565928 | AC47: 0.07645856804 | AD47: 0.08561373555 | AE47: 0.03566566559 | AF47: 0.04586235451 | AG47: 0.05601442573 | AH47: 0.06614131922 | AI47: 0.07625193324 | AJ47: 0.08635084227 | AK47: 0.09644264779 | AL47: 55 | AM47: 119248 | AN47: 165776 | AO47: 234360 | AP47: 336161 | AQ47: 488133 | AR47: 716033 | AS47: 1058979 | AT47: 0.01978357561 | AU47: 0.02964015617 | AV47: 0.03937765786 | AW47: 0.04900394318 | AX47: 0.05852658661 | AY47: 0.06795191838 | AZ47: 0.07728485372
A48: Steuerfrei Konzept | B48: =B47 -> 216497.5 | D48: 0 | F48: 0 | G48: =$E$28-F48 -> 324497.5 | I48: 56 | J48: 170662 | K48: 241955 | L48: 348651 | M48: 508938 | N48: 749960 | O48: 1113725 | P48: 1664745 | Q48: 713089 | R48: 1234166 | S48: 2119720 | T48: 3617175 | U48: 6136261 | V48: 10352229 | W48: 17374295 | X48: 0.02942300638 | Y48: 0.03904495746 | Z48: 0.04859833003 | AA48: 0.0580603644 | AB48: 0.06740512263 | AC48: 0.07664644972 | AD48: 0.08580071127 | AE48: 0.03570174887 | AF48: 0.04589675099 | AG48: 0.05604772326 | AH48: 0.06617385185 | AI48: 0.07628392535 | AJ48: 0.0863824663 | AK48: 0.09647401191 | AL48: 56 | AM48: 123056 | AN48: 172288 | AO48: 245435 | AP48: 354903 | AQ48: 519689 | AR48: 768907 | AS48: 1147151 | AT48: 0.01983695372 | AU48: 0.02969196533 | AV48: 0.03942743873 | AW48: 0.04905185666 | AX48: 0.05857258593 | AY48: 0.06799615255 | AZ48: 0.07732748335
I49: 57 | J49: 178047 | K49: 254525 | L49: 369970 | M49: 544671 | N49: 809639 | O49: 1213024 | P49: 1829382 | Q49: 739966 | R49: 1293149 | S49: 2242413 | T49: 3863017 | U49: 6615169 | V49: 11264505 | W49: 19080461 | X49: 0.02959187309 | Y49: 0.03922385168 | Z49: 0.04878577288 | AA49: 0.05824394201 | AB49: 0.06758626867 | AC49: 0.07682619911 | AD49: 0.08597967869 | AE49: 0.03573661421 | AF49: 0.0459299677 | AG49: 0.05607987089 | AH49: 0.066205253 | AI49: 0.07631480661 | AJ49: 0.08641298901 | AK49: 0.09650427933 | AL49: 57 | AM49: 126949 | AN49: 179010 | AO49: 256981 | AP49: 374626 | AQ49: 553212 | AR49: 825601 | AS49: 1242568 | AT49: 0.01988816107 | AU49: 0.02974156655 | AV49: 0.03947540597 | AW49: 0.04909784623 | AX49: 0.05861678493 | AY49: 0.06803861285 | AZ49: 0.07736837777
I50: 58 | J50: 185701 | K50: 267688 | L50: 392520 | M50: 582830 | N50: 873971 | O50: 1321067 | P50: 2010179 | Q50: 767858 | R50: 1354952 | S50: 2372209 | T50: 4125570 | U50: 7131455 | V50: 12257178 | W50: 20954177 | X50: 0.02975287563 | Y50: 0.03939462541 | Z50: 0.04896471533 | AA50: 0.05841938664 | AB50: 0.06775947932 | AC50: 0.07699818782 | AD50: 0.08615104861 | AE50: 0.03577032447 | AF50: 0.0459620546 | AG50: 0.05611092106 | AH50: 0.06623558247 | AI50: 0.07634462735 | AJ50: 0.08644246603 | AK50: 0.09653350698 | AL50: 58 | AM50: 130930 | AN50: 185951 | AO50: 269016 | AP50: 395382 | AQ50: 588823 | AR50: 886390 | AS50: 1345825 | AT50: 0.01993756856 | AU50: 0.0297894175 | AV50: 0.03952145719 | AW50: 0.0491420597 | AX50: 0.05865921647 | AY50: 0.06807937265 | AZ50: 0.07740763054
I51: 59 | J51: 193636 | K51: 281473 | L51: 416375 | M51: 623580 | N51: 943322 | O51: 1438629 | P51: 2208723 | Q51: 796801 | R51: 1419711 | S51: 2509520 | T51: 4405970 | U51: 7688039 | V51: 13337331 | W51: 23011897 | X51: 0.02990682301 | Y51: 0.03955788427 | Z51: 0.04913586655 | AA51: 0.05858721938 | AB51: 0.06792532701 | AC51: 0.07716297392 | AD51: 0.08631529612 | AE51: 0.03580288532 | AF51: 0.04599308312 | AG51: 0.05614093459 | AH51: 0.0662648944 | AI51: 0.07637344764 | AJ51: 0.08647094694 | AK51: 0.09656174756 | AL51: 59 | AM51: 135000 | AN51: 193118 | AO51: 281561 | AP51: 417225 | AQ51: 626652 | AR51: 951571 | AS51: 1457567 | AT51: 0.01998505772 | AU51: 0.02983558607 | AV51: 0.03956572547 | AW51: 0.04918458615 | AX51: 0.05869997703 | AY51: 0.06811855531 | AZ51: 0.07744534617
I52: 60 | J52: 201870 | K52: 295906 | L52: 441606 | M52: 667094 | N52: 1018074 | O52: 1566530 | P52: 2426730 | Q52: 826836 | R52: 1487565 | S52: 2654780 | T52: 4705431 | U52: 8288064 | V52: 14512675 | W52: 25271692 | X52: 0.03005513726 | Y52: 0.03971380903 | Z52: 0.04929946413 | AA52: 0.05874780981 | AB52: 0.06808405413 | AC52: 0.0773207388 | AD52: 0.08647262849 | AE52: 0.03583438364 | AF52: 0.04602307692 | AG52: 0.05616995513 | AH52: 0.06629324224 | AI52: 0.07640131156 | AJ52: 0.08649848353 | AK52: 0.09658905105 | AL52: 60 | AM52: 139162 | AN52: 200516 | AO52: 294639 | AP52: 440211 | AQ52: 666839 | AR52: 1021459 | AS52: 1578490 | AT52: 0.02003093787 | AU52: 0.02987984868 | AV52: 0.03960842319 | AW52: 0.04922546562 | AX52: 0.05873922074 | AY52: 0.06815619598 | AZ52: 0.07748159209
A53: Laufzeit | B53: 25
A54: 12 | B54: =B53+11 -> 36
A55: 13 | C55: DAX Werte bis 2020 | I55: Basiszins
A56: 14 | C56: Laufzeit | D56: Min | E56: Mittelwert | F56: Max | G56: Anzahl Perioden | I56: 2018 | J56: 0.0087
A57: 15 | C57: 12 | D57: 0.01066156645 | E57: 0.05743910694 | F57: 0.124648753 | G57: 602 | I57: 2019 | J57: 0.0052
A58: 16 | C58: 13 | D58: 0.01141734891 | E58: 0.05761069076 | F58: 0.1230823515 | G58: 590 | I58: 2020 | J58: 0.0007
A59: 17 | C59: 14 | D59: 0.01012269743 | E59: 0.0578556611 | F59: 0.1209840128 | G59: 578 | I59: 2021 | J59: 0 | K59: (Hinweis: eigentlich: -0,45%)
A60: 18 | C60: 15 | D60: 0.009028353661 | E60: 0.05845068166 | F60: 0.1164145885 | G60: 566 | I60: 2022 | J60: 0 | K60: (Hinweis: eigentlich: -0,05%)
A61: 19 | C61: 16 | D61: 0.01030249751 | E61: 0.05930448281 | F61: 0.1123285792 | G61: 554
A62: 20 | C62: 17 | D62: 0.0118188156 | E62: 0.06016231868 | F62: 0.1125809867 | G62: 542
A63: 21 | C63: 18 | D63: 0.01103349886 | E63: 0.06103098924 | F63: 0.1125549532 | G63: 530
A64: 22 | C64: 19 | D64: 0.01128200364 | E64: 0.06190858269 | F64: 0.1146716243 | G64: 518
A65: 23 | C65: 20 | D65: 0.01171671396 | E65: 0.06273160527 | F65: 0.1154900348 | G65: 506
A66: 24 | C66: 21 | D66: 0.01196419647 | E66: 0.06362113876 | F66: 0.1157265055 | G66: 494
A67: 25 | C67: 22 | D67: 0.01109280733 | E67: 0.06467557524 | F67: 0.1148931134 | G67: 482
A68: 26 | C68: 23 | D68: 0.01064474798 | E68: 0.0658703495 | F68: 0.112934786 | G68: 470
A69: 27 | C69: 24 | D69: 0.01404296289 | E69: 0.06714434679 | F69: 0.1108562459 | G69: 458
A70: 28 | C70: 25 | D70: 0.01863220402 | E70: 0.0683795815 | F70: 0.1089021746 | G70: 446
A71: 29 | C71: 26 | D71: 0.0266911873 | E71: 0.0695015431 | F71: 0.1067955856 | G71: 434
A72: 30 | C72: 27 | D72: 0.03926315805 | E72: 0.07032000141 | F72: 0.1050981208 | G72: 422
A73: 31 | C73: 28 | D73: 0.04709812639 | E73: 0.07086975979 | F73: 0.1036554417 | G73: 410
A74: 32 | C74: 29 | D74: 0.04834848027 | E74: 0.07130239 | F74: 0.1019561101 | G74: 398
A75: 33 | C75: 30 | D75: 0.05156658958 | E75: 0.07166459794 | F75: 0.09958851868 | G75: 386
A76: 34 | C76: 31 | D76: 0.05441426805 | E76: 0.07191128551 | F76: 0.09756280072 | G76: 374
A77: 35 | C77: 32 | D77: 0.05315271503 | E77: 0.07215698128 | F77: 0.09558940077 | G77: 362
A78: 36 | C78: 33 | D78: 0.05233088136 | E78: 0.07246536006 | F78: 0.09326252846 | G78: 350
A79: 37 | C79: 34 | D79: 0.05349495527 | E79: 0.07279094087 | F79: 0.09109330903 | G79: 338
A80: 38 | C80: 35 | D80: 0.05482742869 | E80: 0.07306670295 | F80: 0.08948433068 | G80: 326
A81: 39 | C81: 36 | D81: 0.05427398977 | E81: 0.07338133142 | F81: 0.08831392286 | G81: 314
A82: 40 | C82: 37 | D82: 0.05594827742 | E82: 0.07371213842 | F82: 0.08670591444 | G82: 302
A83: 41 | C83: 38 | D83: 0.06049676429 | E83: 0.07393571651 | F83: 0.08500098995 | G83: 290
A84: 42 | C84: 39 | D84: 0.06676598991 | E84: 0.07390524753 | F84: 0.08343976304 | G84: 278
A85: 43 | C85: 40 | D85: 0.0674803285 | E85: 0.07359318657 | F85: 0.08221025786 | G85: 266
A86: 44 | C86: 41 | D86: 0.06680188107 | E86: 0.07299002831 | F86: 0.08061831882 | G86: 254
A87: 45 | C87: 42 | D87: 0.06586122816 | E87: 0.07211261181 | F87: 0.07895309691 | G87: 242
A88: 46 | C88: 43 | D88: 0.06492318942 | E88: 0.07113435083 | F88: 0.07691167118 | G88: 230
A89: 47 | C89: 44 | D89: 0.0642564324 | E89: 0.0702567146 | F89: 0.07523788886 | G89: 218
A90: 48 | C90: 45 | D90: 0.06338421514 | E90: 0.06954872217 | F90: 0.07517566157 | G90: 206
A91: 49 | C91: 46 | D91: 0.06229670108 | E91: 0.06905635224 | F91: 0.07461991933 | G91: 194
A92: 50 | C92: 47 | D92: 0.06161038296 | E92: 0.06881439523 | F92: 0.07395353915 | G92: 182
A93: 51 | C93: 48 | D93: 0.06319017543 | E93: 0.06859379722 | F93: 0.07332265943 | G93: 170
A94: 52 | C94: 49 | D94: 0.06369050038 | E94: 0.06818335751 | F94: 0.07254075411 | G94: 158
A95: 53 | C95: 50 | D95: 0.06301522952 | E95: 0.06775267587 | F95: 0.07180926822 | G95: 146
A96: 54 | C96: 51 | D96: 0.06255564144 | E96: 0.06735706279 | F96: 0.07122756966 | G96: 134
A97: 55 | C97: 52 | D97: 0.06172380953 | E97: 0.06699477468 | F97: 0.07058201237 | G97: 122
A98: 56 | C98: 53 | D98: 0.06091987542 | E98: 0.06680831233 | F98: 0.07001894983 | G98: 110
A99: 57 | C99: 54 | D99: 0.06056254867 | E99: 0.06689082035 | F99: 0.06935720244 | G99: 98
A100: 58 | C100: 55 | D100: 0.0624224638 | E100: 0.06697088209 | F100: 0.06877868033 | G100: 86
A101: 59 | C101: 56 | D101: 0.06380301591 | E101: 0.0668743771 | F101: 0.06838120015 | G101: 74
A102: 60 | C102: 57 | D102: 0.06415946419 | E102: 0.06669976594 | F102: 0.06776790989 | G102: 62
C103: 58 | D103: 0.06530764056 | E103: 0.06644608485 | F103: 0.06710008218 | G103: 50
C104: 59 | D104: 0.06571007077 | E104: 0.06594865491 | F104: 0.06658817785 | G104: 38
C105: 60 | D105: 0.06496028096 | E105: 0.0653106031 | F105: 0.066028009 | G105: 26
C106: =B54 -> 36 | D106: =VLOOKUP(C106,C57:G105,2,FALSE) -> 0.05427398977 | E106: =VLOOKUP(C106,C57:G105,3,FALSE) -> 0.07338133142 | F106: =VLOOKUP(C106,C57:G105,4,FALSE) -> 0.08831392286 | G106: =VLOOKUP(C106,C57:G105,5,FALSE) -> 314

Sheet Berechnung Ratierlich heute% (hidden)
A1: Rendite | B1: =Hilfe!E3-Hilfe!G16 -> 0.06 | F1: Ausgabeaufschlag | L1: Basiszins | M1: =Hilfe!E13 -> 0
A2: Beitrag p.a. | B2: =Eingabe!C10*Hilfe!B4 -> 3000 | G2: Aktienfonds | H2: Mischfonds | I2: Rentenfonds / VVW | L2: Abgeltungssteuer | M2: =25%*1.055 -> 0.26375
A3: Laufzeit | B3: =Eingabe!C9 -> 36 | F3: Ausgabeaufschlag | G3: =Eingabe!C21 -> 0.05 | H3: =Eingabe!E21 -> 0.04 | I3: =Eingabe!G21 -> 0.03
F4: Wechselgebühr | G4: =Eingabe!C22 -> 0.025 | H4: =Eingabe!E22 -> 0.02 | I4: =Eingabe!G22 -> 0.015 | J4: Ausgabe
F5: Freistellung | G5: 0.3 | H5: 0.15 | I5: 0 | J5: Jahr | K5: Jahresabschluss | L5: Beitragssumme | M5: zu versteuern % | N5: Steuer | O5: kumulierte Vorabpauschale | P5: Freistellungsauftrag | Q5: Auszahlung
J6: =B3 -> 36 | K6: =MAX(VLOOKUP(J6,A11:AD70,20,FALSE),0) -> 291716.4868 | L6: =MAX(VLOOKUP(J6,A11:AD70,13,FALSE),0) -> 175233.3777 | M6: =VLOOKUP(J6,A11:AD70,14,FALSE) -> 1 | N6: =(K6-L6)*M6 -> 116483.1091 | O6: =VLOOKUP(J6,A11:AD70,12,FALSE) -> 0 | P6: =VLOOKUP(J6,A11:AD70,16,FALSE) -> 0 | Q6: =K6-(N6-P6-O6)*M2 -> 260994.0668
A9: Jahr | B9: Ausgabeaufschlag | C9: Beitrag | D9: Vermögen Jahresanfang | E9: Rendite | F9: Gesamtvermögen | G9: Wechsel | H9: Anteil Aktienfonds | I9: Anteil Mischfonds | J9: Rentenfonds / VVW | K9: Vorabpauschale | L9: kumulierte Vorabpauschale | M9: Beitragssumme | N9: zu versteuern | O9: Wechselbesteuerunganteil | P9: Freistellungsauftrag | Q9: Steuer | R9: Wechselkosten | S9: Depotkosten | T9: Jahresabschluss
A10: 0 | H10: =Eingabe!C18 -> 1 | I10: =Eingabe!E18 -> 0 | J10: =Eingabe!G18 -> 0
A11: 1 | B11: =$G$3*H10+$H$3*I10+$I$3*J10 -> 0.05 | C11: =IF($B$3>=A11,$B$2,0)/(1+B11) -> 2857.142857 | D11: =C11 -> 2857.142857 | E11: =C11*$B$1 -> 171.4285714 | F11: =C11+E11 -> 3028.571429 | G11: =VLOOKUP(A11,Wechsel!$A$11:$E$31,1) -> 0 | H11: =IF(G11>0,VLOOKUP(A11,Wechsel!$A$11:$E$31,3),H10) -> 1 | I11: =IF(G11>0,VLOOKUP(A11,Wechsel!$A$11:$E$31,4),I10) -> 0 | J11: =IF(G11>0,VLOOKUP(A11,Wechsel!$A$11:$E$31,5),J10) -> 0 | K11: =D11*$M$1*0.7*0.7*$M$2*H11+D11*$M$1*0.85*0.7*$M$2*I11+D11*$M$1*0.7*$M$2*J11 -> 0 | L11: =K11+L10 -> 0 | M11: =C11 -> 2857.142857 | N11: =1-(H11*$G$5+I11*$H$5+J11*$I$5) -> 0.7 | O11: =IF(G11>0,(F11-M11)*N11,0) -> 0 | P11: =MAX(Eingabe!C28,0) -> 0 | Q11: =MAX(0,K11+O11*$M$2-P11-IF(G11>0,-(L10+K11),0)) -> 0 | R11: =MAX(IF(G11>0,(H11*$G$4+I11*$H$4+J11*$I$4)*F11,0),0) -> 0 | S11: =Eingabe!$C$25+Eingabe!$E$25*'Berechnung Ratierlich heute%'!F11 -> 39 | T11: =F11-Q11-R11-S11 -> 2989.571429
A12: 2 | B12: =$G$3*H11+$H$3*I11+$I$3*J11 -> 0.05 | C12: 2857.142857 | D12: =MAX(IF(A12>$B$3,0,T11),0) -> 2989.571429 | E12: =(C12+D12)*$B$1 -> 350.8028571 | F12: =IF(A12>$B$3,0,C12+E12+D12) -> 6197.517143 | G12: =IF(VLOOKUP(A12,Wechsel!$A$11:$E$31,1)=A12,VLOOKUP(A12,Wechsel!$A$11:$E$31,1),0) -> 0 | H12: =IF(G12>0,VLOOKUP(A12,Wechsel!$A$11:$E$31,3),H11) -> 1 | I12: =IF(G12>0,VLOOKUP(A12,Wechsel!$A$11:$E$31,4),I11) -> 0 | J12: =IF(G12>0,VLOOKUP(A12,Wechsel!$A$11:$E$31,5),J11) -> 0 | K12: =D12*$M$1*0.7*0.7*$M$2*H12+D12*$M$1*0.85*0.7*$M$2*I12+D12*$M$1*0.7*$M$2*J12 -> 0 | L12: =IF(G11>0,K12,K12+L11) -> 0 | M12: =IF(A12>$B$3,0,IF(G11>0,T11,C12+M11)) -> 5714.285714 | N12: =1-(H12*$G$5+I12*$H$5+J12*$I$5) -> 0.7 | O12: =IF(G12>0,(F12-M12)*N11,0) -> 0 | P12: =MAX(P11-Eingabe!$E$28,0) -> 0 | Q12: =MAX(0,K12+O12*$M$2-P12-IF(G12>0,-(L11+K12),0)) -> 0 | R12: =MAX(IF(G12>0,(H12*$G$4+I12*$H$4+J12*$I$4)*(F12-Q12),0),0) -> 0 | S12: =Eingabe!$C$25+Eingabe!$E$25*'Berechnung Ratierlich heute%'!F12 -> 39 | T12: =F12-Q12-R12-S12 -> 6158.517143
A13: 3 | B13: 0.05 | C13: 2857.142857 | D13: 6158.517143 | E13: 540.9396 | F13: 9556.5996 | G13: =IF(VLOOKUP(A13,Wechsel!$A$11:$E$31,1)=A13,VLOOKUP(A13,Wechsel!$A$11:$E$31,1),0) -> 0 | H13: =IF(G13>0,VLOOKUP(A13,Wechsel!$A$11:$E$31,3),H12) -> 1 | I13: =IF(G13>0,VLOOKUP(A13,Wechsel!$A$11:$E$31,4),I12) -> 0 | J13: =IF(G13>0,VLOOKUP(A13,Wechsel!$A$11:$E$31,5),J12) -> 0 | K13: =D13*$M$1*0.7*0.7*$M$2*H13+D13*$M$1*0.85*0.7*$M$2*I13+D13*$M$1*0.7*$M$2*J13 -> 0 | L13: =IF(G12>0,K13,K13+L12) -> 0 | M13: 8571.428571 | N13: 0.7 | O13: =IF(G13>0,(F13-M13)*N12,0) -> 0 | P13: =MAX(P12-Eingabe!$E$28,0) -> 0 | Q13: =MAX(0,K13+O13*$M$2-P13-IF(G13>0,-(L12+K13),0)) -> 0 | R13: 0 | S13: =Eingabe!$C$25+Eingabe!$E$25*'Berechnung Ratierlich heute%'!F13 -> 39 | T13: 9517.5996
A14: 4 | B14: 0.05 | C14: 2857.142857 | D14: 9517.5996 | E14: 742.4845474 | F14: 13117.227 | G14: =IF(VLOOKUP(A14,Wechsel!$A$11:$E$31,1)=A14,VLOOKUP(A14,Wechsel!$A$11:$E$31,1),0) -> 0 | H14: =IF(G14>0,VLOOKUP(A14,Wechsel!$A$11:$E$31,3),H13) -> 1 | I14: =IF(G14>0,VLOOKUP(A14,Wechsel!$A$11:$E$31,4),I13) -> 0 | J14: =IF(G14>0,VLOOKUP(A14,Wechsel!$A$11:$E$31,5),J13) -> 0 | K14: 0 | L14: 0 | M14: 11428.57143 | N14: 0.7 | O14: 0 | P14: =MAX(P13-Eingabe!$E$28,0) -> 0 | Q14: 0 | R14: 0 | S14: =Eingabe!$C$25+Eingabe!$E$25*'Berechnung Ratierlich heute%'!F14 -> 39 | T14: 13078.227
A15: 5 | B15: 0.05 | C15: 2857.142857 | D15: 13078.227 | E15: 956.1221917 | F15: 16891.49205 | G15: =IF(VLOOKUP(A15,Wechsel!$A$11:$E$31,1)=A15,VLOOKUP(A15,Wechsel!$A$11:$E$31,1),0) -> 0 | H15: =IF(G15>0,VLOOKUP(A15,Wechsel!$A$11:$E$31,3),H14) -> 1 | I15: =IF(G15>0,VLOOKUP(A15,Wechsel!$A$11:$E$31,4),I14) -> 0 | J15: =IF(G15>0,VLOOKUP(A15,Wechsel!$A$11:$E$31,5),J14) -> 0 | K15: 0 | L15: 0 | M15: 14285.71429 | N15: 0.7 | O15: 0 | P15: =MAX(P14-Eingabe!$E$28,0) -> 0 | Q15: 0 | R15: 0 | S15: =Eingabe!$C$25+Eingabe!$E$25*'Berechnung Ratierlich heute%'!F15 -> 39 | T15: 16852.49205
A16: 6 | B16: 0.05 | C16: 2857.142857 | D16: 16852.49205 | E16: 1182.578095 | F16: 20892.21301 | G16: =IF(VLOOKUP(A16,Wechsel!$A$11:$E$31,1)=A16,VLOOKUP(A16,Wechsel!$A$11:$E$31,1),0) -> 0 | H16: =IF(G16>0,VLOOKUP(A16,Wechsel!$A$11:$E$31,3),H15) -> 1 | I16: =IF(G16>0,VLOOKUP(A16,Wechsel!$A$11:$E$31,4),I15) -> 0 | J16: =IF(G16>0,VLOOKUP(A16,Wechsel!$A$11:$E$31,5),J15) -> 0 | K16: 0 | L16: 0 | M16: 17142.85714 | N16: 0.7 | O16: 0 | P16: =MAX(P15-Eingabe!$E$28,0) -> 0 | Q16: 0 | R16: 0 | S16: =Eingabe!$C$25+Eingabe!$E$25*'Berechnung Ratierlich heute%'!F16 -> 39 | T16: 20853.21301
A17: 7 | B17: 0.05 | C17: 2857.142857 | D17: 20853.21301 | E17: 1422.621352 | F17: 25132.97721 | G17: =IF(VLOOKUP(A17,Wechsel!$A$11:$E$31,1)=A17,VLOOKUP(A17,Wechsel!$A$11:$E$31,1),0) -> 0 | H17: =IF(G17>0,VLOOKUP(A17,Wechsel!$A$11:$E$31,3),H16) -> 1 | I17: =IF(G17>0,VLOOKUP(A17,Wechsel!$A$11:$E$31,4),I16) -> 0 | J17: =IF(G17>0,VLOOKUP(A17,Wechsel!$A$11:$E$31,5),J16) -> 0 | K17: 0 | L17: 0 | M17: 20000 | N17: 0.7 | O17: 0 | P17: =MAX(P16-Eingabe!$E$28,0) -> 0 | Q17: 0 | R17: 0 | S17: =Eingabe!$C$25+Eingabe!$E$25*'Berechnung Ratierlich heute%'!F17 -> 39 | T17: 25093.97721
A18: 8 | B18: 0.05 | C18: 2857.142857 | D18: 25093.97721 | E18: 1677.067204 | F18: 29628.18728 | G18: =IF(VLOOKUP(A18,Wechsel!$A$11:$E$31,1)=A18,VLOOKUP(A18,Wechsel!$A$11:$E$31,1),0) -> 0 | H18: =IF(G18>0,VLOOKUP(A18,Wechsel!$A$11:$E$31,3),H17) -> 1 | I18: =IF(G18>0,VLOOKUP(A18,Wechsel!$A$11:$E$31,4),I17) -> 0 | J18: =IF(G18>0,VLOOKUP(A18,Wechsel!$A$11:$E$31,5),J17) -> 0 | K18: 0 | L18: 0 | M18: 22857.14286 | N18: 0.7 | O18: 0 | P18: =MAX(P17-Eingabe!$E$28,0) -> 0 | Q18: 0 | R18: 0 | S18: =Eingabe!$C$25+Eingabe!$E$25*'Berechnung Ratierlich heute%'!F18 -> 39 | T18: 29589.18728
A19: 9 | B19: 0.05 | C19: 2857.142857 | D19: 29589.18728 | E19: 1946.779808 | F19: 34393.10994 | G19: =IF(VLOOKUP(A19,Wechsel!$A$11:$E$31,1)=A19,VLOOKUP(A19,Wechsel!$A$11:$E$31,1),0) -> 9 | H19: =IF(G19>0,VLOOKUP(A19,Wechsel!$A$11:$E$31,3),H18) -> 0.6666666667 | I19: =IF(G19>0,VLOOKUP(A19,Wechsel!$A$11:$E$31,4),I18) -> 0 | J19: =IF(G19>0,VLOOKUP(A19,Wechsel!$A$11:$E$31,5),J18) -> 0.3333333333 | K19: 0 | L19: 0 | M19: 25714.28571 | N19: 0.8 | O19: 6075.176958 | P19: =MAX(P18-Eingabe!$E$28,0) -> 0 | Q19: 1602.327923 | R19: =MAX(IF(G19>0,(H19*$G$4+I19*$H$4+J19*$I$4)*(F19-Q19),0),0) -> 710.4669437 | S19: =Eingabe!$C$25+Eingabe!$E$25*'Berechnung Ratierlich heute%'!F19 -> 39 | T19: =F19-Q19-R19-S19 -> 32041.31507
A20: 10 | B20: 0.04333333333 | C20: 2875.399361 | D20: 32041.31507 | E20: 2095.002866 | F20: 37011.7173 | G20: =IF(VLOOKUP(A20,Wechsel!$A$11:$E$31,1)=A20,VLOOKUP(A20,Wechsel!$A$11:$E$31,1),0) -> 0 | H20: =IF(G20>0,VLOOKUP(A20,Wechsel!$A$11:$E$31,3),H19) -> 0.6666666667 | I20: =IF(G20>0,VLOOKUP(A20,Wechsel!$A$11:$E$31,4),I19) -> 0 | J20: =IF(G20>0,VLOOKUP(A20,Wechsel!$A$11:$E$31,5),J19) -> 0.3333333333 | K20: 0 | L20: 0 | M20: 32041.31507 | N20: 0.8 | O20: 0 | P20: =MAX(P19-Eingabe!$E$28,0) -> 0 | Q20: 0 | R20: =MAX(IF(G20>0,(H20*$G$4+I20*$H$4+J20*$I$4)*(F20-Q20),0),0) -> 0 | S20: =Eingabe!$C$25+Eingabe!$E$25*'Berechnung Ratierlich heute%'!F20 -> 39 | T20: 36972.7173
A21: 11 | B21: 0.04333333333 | C21: 2875.399361 | D21: 36972.7173 | E21: 2390.887 | F21: 42239.00366 | G21: =IF(VLOOKUP(A21,Wechsel!$A$11:$E$31,1)=A21,VLOOKUP(A21,Wechsel!$A$11:$E$31,1),0) -> 0 | H21: =IF(G21>0,VLOOKUP(A21,Wechsel!$A$11:$E$31,3),H20) -> 0.6666666667 | I21: =IF(G21>0,VLOOKUP(A21,Wechsel!$A$11:$E$31,4),I20) -> 0 | J21: =IF(G21>0,VLOOKUP(A21,Wechsel!$A$11:$E$31,5),J20) -> 0.3333333333 | K21: 0 | L21: 0 | M21: 34916.71444 | N21: 0.8 | O21: 0 | P21: =MAX(P20-Eingabe!$E$28,0) -> 0 | Q21: 0 | R21: 0 | S21: =Eingabe!$C$25+Eingabe!$E$25*'Berechnung Ratierlich heute%'!F21 -> 39 | T21: 42200.00366
A22: 12 | B22: 0.04333333333 | C22: 2875.399361 | D22: 42200.00366 | E22: 2704.524181 | F22: 47779.9272 | G22: =IF(VLOOKUP(A22,Wechsel!$A$11:$E$31,1)=A22,VLOOKUP(A22,Wechsel!$A$11:$E$31,1),0) -> 0 | H22: =IF(G22>0,VLOOKUP(A22,Wechsel!$A$11:$E$31,3),H21) -> 0.6666666667 | I22: =IF(G22>0,VLOOKUP(A22,Wechsel!$A$11:$E$31,4),I21) -> 0 | J22: =IF(G22>0,VLOOKUP(A22,Wechsel!$A$11:$E$31,5),J21) -> 0.3333333333 | K22: 0 | L22: 0 | M22: 37792.1138 | N22: 0.8 | O22: 0 | P22: =MAX(P21-Eingabe!$E$28,0) -> 0 | Q22: 0 | R22: 0 | S22: =Eingabe!$C$25+Eingabe!$E$25*'Berechnung Ratierlich heute%'!F22 -> 39 | T22: 47740.9272
A23: 13 | B23: 0.04333333333 | C23: 2875.399361 | D23: 47740.9272 | E23: 3036.979594 | F23: 53653.30616 | G23: =IF(VLOOKUP(A23,Wechsel!$A$11:$E$31,1)=A23,VLOOKUP(A23,Wechsel!$A$11:$E$31,1),0) -> 0 | H23: =IF(G23>0,VLOOKUP(A23,Wechsel!$A$11:$E$31,3),H22) -> 0.6666666667 | I23: =IF(G23>0,VLOOKUP(A23,Wechsel!$A$11:$E$31,4),I22) -> 0 | J23: =IF(G23>0,VLOOKUP(A23,Wechsel!$A$11:$E$31,5),J22) -> 0.3333333333 | K23: 0 | L23: 0 | M23: 40667.51316 | N23: 0.8 | O23: 0 | P23: =MAX(P22-Eingabe!$E$28,0) -> 0 | Q23: 0 | R23: 0 | S23: =Eingabe!$C$25+Eingabe!$E$25*'Berechnung Ratierlich heute%'!F23 -> 39 | T23: 53614.30616
A24: 14 | B24: 0.04333333333 | C24: 2875.399361 | D24: 53614.30616 | E24: 3389.382331 | F24: 59879.08785 | G24: =IF(VLOOKUP(A24,Wechsel!$A$11:$E$31,1)=A24,VLOOKUP(A24,Wechsel!$A$11:$E$31,1),0) -> 0 | H24: =IF(G24>0,VLOOKUP(A24,Wechsel!$A$11:$E$31,3),H23) -> 0.6666666667 | I24: =IF(G24>0,VLOOKUP(A24,Wechsel!$A$11:$E$31,4),I23) -> 0 | J24: =IF(G24>0,VLOOKUP(A24,Wechsel!$A$11:$E$31,5),J23) -> 0.3333333333 | K24: 0 | L24: 0 | M24: 43542.91252 | N24: 0.8 | O24: 0 | P24: =MAX(P23-Eingabe!$E$28,0) -> 0 | Q24: 0 | R24: 0 | S24: =Eingabe!$C$25+Eingabe!$E$25*'Berechnung Ratierlich heute%'!F24 -> 39 | T24: 59840.08785
A25: 15 | B25: 0.04333333333 | C25: 2875.399361 | D25: 59840.08785 | E25: 3762.929233 | F25: 66478.41645 | G25: =IF(VLOOKUP(A25,Wechsel!$A$11:$E$31,1)=A25,VLOOKUP(A25,Wechsel!$A$11:$E$31,1),0) -> 0 | H25: =IF(G25>0,VLOOKUP(A25,Wechsel!$A$11:$E$31,3),H24) -> 0.6666666667 | I25: =IF(G25>0,VLOOKUP(A25,Wechsel!$A$11:$E$31,4),I24) -> 0 | J25: =IF(G25>0,VLOOKUP(A25,Wechsel!$A$11:$E$31,5),J24) -> 0.3333333333 | K25: 0 | L25: 0 | M25: 46418.31188 | N25: 0.8 | O25: 0 | P25: =MAX(P24-Eingabe!$E$28,0) -> 0 | Q25: 0 | R25: 0 | S25: =Eingabe!$C$25+Eingabe!$E$25*'Berechnung Ratierlich heute%'!F25 -> 39 | T25: 66439.41645
A26: 16 | B26: 0.04333333333 | C26: 2875.399361 | D26: 66439.41645 | E26: 4158.888948 | F26: 73473.70475 | G26: =IF(VLOOKUP(A26,Wechsel!$A$11:$E$31,1)=A26,VLOOKUP(A26,Wechsel!$A$11:$E$31,1),0) -> 0 | H26: =IF(G26>0,VLOOKUP(A26,Wechsel!$A$11:$E$31,3),H25) -> 0.6666666667 | I26: =IF(G26>0,VLOOKUP(A26,Wechsel!$A$11:$E$31,4),I25) -> 0 | J26: =IF(G26>0,VLOOKUP(A26,Wechsel!$A$11:$E$31,5),J25) -> 0.3333333333 | K26: 0 | L26: 0 | M26: 49293.71124 | N26: 0.8 | O26: 0 | P26: =MAX(P25-Eingabe!$E$28,0) -> 0 | Q26: 0 | R26: 0 | S26: =Eingabe!$C$25+Eingabe!$E$25*'Berechnung Ratierlich heute%'!F26 -> 39 | T26: 73434.70475
A27: 17 | B27: 0.04333333333 | C27: 2875.399361 | D27: 73434.70475 | E27: 4578.606247 | F27: 80888.71036 | G27: =IF(VLOOKUP(A27,Wechsel!$A$11:$E$31,1)=A27,VLOOKUP(A27,Wechsel!$A$11:$E$31,1),0) -> 0 | H27: =IF(G27>0,VLOOKUP(A27,Wechsel!$A$11:$E$31,3),H26) -> 0.6666666667 | I27: =IF(G27>0,VLOOKUP(A27,Wechsel!$A$11:$E$31,4),I26) -> 0 | J27: =IF(G27>0,VLOOKUP(A27,Wechsel!$A$11:$E$31,5),J26) -> 0.3333333333 | K27: 0 | L27: 0 | M27: 52169.1106 | N27: 0.8 | O27: 0 | P27: =MAX(P26-Eingabe!$E$28,0) -> 0 | Q27: 0 | R27: 0 | S27: =Eingabe!$C$25+Eingabe!$E$25*'Berechnung Ratierlich heute%'!F27 -> 39 | T27: 80849.71036
A28: 18 | B28: 0.04333333333 | C28: 2875.399361 | D28: 80849.71036 | E28: 5023.506583 | F28: 88748.61631 | G28: =IF(VLOOKUP(A28,Wechsel!$A$11:$E$31,1)=A28,VLOOKUP(A28,Wechsel!$A$11:$E$31,1),0) -> 18 | H28: =IF(G28>0,VLOOKUP(A28,Wechsel!$A$11:$E$31,3),H27) -> 0.3333333333 | I28: =IF(G28>0,VLOOKUP(A28,Wechsel!$A$11:$E$31,4),I27) -> 0 | J28: =IF(G28>0,VLOOKUP(A28,Wechsel!$A$11:$E$31,5),J27) -> 0.6666666667 | K28: 0 | L28: 0 | M28: 55044.50996 | N28: 0.9 | O28: 26963.28508 | P28: =MAX(P27-Eingabe!$E$28,0) -> 0 | Q28: 7111.566439 | R28: 1496.679248 | S28: =Eingabe!$C$25+Eingabe!$E$25*'Berechnung Ratierlich heute%'!F28 -> 39 | T28: 80101.37062
A29: 19 | B29: 0.03666666667 | C29: 2893.890675 | D29: 80101.37062 | E29: 4979.715678 | F29: 87974.97697 | G29: =IF(VLOOKUP(A29,Wechsel!$A$11:$E$31,1)=A29,VLOOKUP(A29,Wechsel!$A$11:$E$31,1),0) -> 0 | H29: =IF(G29>0,VLOOKUP(A29,Wechsel!$A$11:$E$31,3),H28) -> 0.3333333333 | I29: =IF(G29>0,VLOOKUP(A29,Wechsel!$A$11:$E$31,4),I28) -> 0 | J29: =IF(G29>0,VLOOKUP(A29,Wechsel!$A$11:$E$31,5),J28) -> 0.6666666667 | K29: 0 | L29: 0 | M29: 80101.37062 | N29: 0.9 | O29: 0 | P29: =MAX(P28-Eingabe!$E$28,0) -> 0 | Q29: 0 | R29: 0 | S29: =Eingabe!$C$25+Eingabe!$E$25*'Berechnung Ratierlich heute%'!F29 -> 39 | T29: 87935.97697
A30: 20 | B30: 0.03666666667 | C30: 2893.890675 | D30: 87935.97697 | E30: 5449.792059 | F30: 96279.65971 | G30: =IF(VLOOKUP(A30,Wechsel!$A$11:$E$31,1)=A30,VLOOKUP(A30,Wechsel!$A$11:$E$31,1),0) -> 0 | H30: =IF(G30>0,VLOOKUP(A30,Wechsel!$A$11:$E$31,3),H29) -> 0.3333333333 | I30: =IF(G30>0,VLOOKUP(A30,Wechsel!$A$11:$E$31,4),I29) -> 0 | J30: =IF(G30>0,VLOOKUP(A30,Wechsel!$A$11:$E$31,5),J29) -> 0.6666666667 | K30: 0 | L30: 0 | M30: 82995.2613 | N30: 0.9 | O30: 0 | P30: =MAX(P29-Eingabe!$E$28,0) -> 0 | Q30: 0 | R30: 0 | S30: =Eingabe!$C$25+Eingabe!$E$25*'Berechnung Ratierlich heute%'!F30 -> 39 | T30: 96240.65971
A31: 21 | B31: 0.03666666667 | C31: 2893.890675 | D31: 96240.65971 | E31: 5948.073023 | F31: 105082.6234 | G31: =IF(VLOOKUP(A31,Wechsel!$A$11:$E$31,1)=A31,VLOOKUP(A31,Wechsel!$A$11:$E$31,1),0) -> 0 | H31: =IF(G31>0,VLOOKUP(A31,Wechsel!$A$11:$E$31,3),H30) -> 0.3333333333 | I31: =IF(G31>0,VLOOKUP(A31,Wechsel!$A$11:$E$31,4),I30) -> 0 | J31: =IF(G31>0,VLOOKUP(A31,Wechsel!$A$11:$E$31,5),J30) -> 0.6666666667 | K31: 0 | L31: 0 | M31: 85889.15197 | N31: 0.9 | O31: 0 | P31: =MAX(P30-Eingabe!$E$28,0) -> 0 | Q31: 0 | R31: 0 | S31: =Eingabe!$C$25+Eingabe!$E$25*'Berechnung Ratierlich heute%'!F31 -> 39 | T31: 105043.6234
A32: 22 | B32: 0.03666666667 | C32: 2893.890675 | D32: 105043.6234 | E32: 6476.250845 | F32: 114413.7649 | G32: =IF(VLOOKUP(A32,Wechsel!$A$11:$E$31,1)=A32,VLOOKUP(A32,Wechsel!$A$11:$E$31,1),0) -> 0 | H32: =IF(G32>0,VLOOKUP(A32,Wechsel!$A$11:$E$31,3),H31) -> 0.3333333333 | I32: =IF(G32>0,VLOOKUP(A32,Wechsel!$A$11:$E$31,4),I31) -> 0 | J32: =IF(G32>0,VLOOKUP(A32,Wechsel!$A$11:$E$31,5),J31) -> 0.6666666667 | K32: 0 | L32: 0 | M32: 88783.04265 | N32: 0.9 | O32: 0 | P32: =MAX(P31-Eingabe!$E$28,0) -> 0 | Q32: 0 | R32: 0 | S32: =Eingabe!$C$25+Eingabe!$E$25*'Berechnung Ratierlich heute%'!F32 -> 39 | T32: 114374.7649
A33: 23 | B33: 0.03666666667 | C33: 2893.890675 | D33: 114374.7649 | E33: 7036.119336 | F33: 124304.7749 | G33: =IF(VLOOKUP(A33,Wechsel!$A$11:$E$31,1)=A33,VLOOKUP(A33,Wechsel!$A$11:$E$31,1),0) -> 0 | H33: =IF(G33>0,VLOOKUP(A33,Wechsel!$A$11:$E$31,3),H32) -> 0.3333333333 | I33: =IF(G33>0,VLOOKUP(A33,Wechsel!$A$11:$E$31,4),I32) -> 0 | J33: =IF(G33>0,VLOOKUP(A33,Wechsel!$A$11:$E$31,5),J32) -> 0.6666666667 | K33: 0 | L33: 0 | M33: 91676.93332 | N33: 0.9 | O33: 0 | P33: =MAX(P32-Eingabe!$E$28,0) -> 0 | Q33: =MAX(0,K33+O33*$M$2-P33-IF(G33>0,-(L32+K33),0)) -> 0 | R33: 0 | S33: =Eingabe!$C$25+Eingabe!$E$25*'Berechnung Ratierlich heute%'!F33 -> 39 | T33: 124265.7749
A34: 24 | B34: 0.03666666667 | C34: 2893.890675 | D34: 124265.7749 | E34: 7629.579937 | F34: 134789.2455 | G34: =IF(VLOOKUP(A34,Wechsel!$A$11:$E$31,1)=A34,VLOOKUP(A34,Wechsel!$A$11:$E$31,1),0) -> 0 | H34: =IF(G34>0,VLOOKUP(A34,Wechsel!$A$11:$E$31,3),H33) -> 0.3333333333 | I34: =IF(G34>0,VLOOKUP(A34,Wechsel!$A$11:$E$31,4),I33) -> 0 | J34: =IF(G34>0,VLOOKUP(A34,Wechsel!$A$11:$E$31,5),J33) -> 0.6666666667 | K34: 0 | L34: 0 | M34: 94570.824 | N34: 0.9 | O34: 0 | P34: =MAX(P33-Eingabe!$E$28,0) -> 0 | Q34: 0 | R34: 0 | S34: =Eingabe!$C$25+Eingabe!$E$25*'Berechnung Ratierlich heute%'!F34 -> 39 | T34: 134750.2455
A35: 25 | B35: 0.03666666667 | C35: 2893.890675 | D35: 134750.2455 | E35: 8258.648173 | F35: 145902.7844 | G35: =IF(VLOOKUP(A35,Wechsel!$A$11:$E$31,1)=A35,VLOOKUP(A35,Wechsel!$A$11:$E$31,1),0) -> 0 | H35: =IF(G35>0,VLOOKUP(A35,Wechsel!$A$11:$E$31,3),H34) -> 0.3333333333 | I35: =IF(G35>0,VLOOKUP(A35,Wechsel!$A$11:$E$31,4),I34) -> 0 | J35: =IF(G35>0,VLOOKUP(A35,Wechsel!$A$11:$E$31,5),J34) -> 0.6666666667 | K35: 0 | L35: 0 | M35: 97464.71467 | N35: 0.9 | O35: 0 | P35: =MAX(P34-Eingabe!$E$28,0) -> 0 | Q35: 0 | R35: 0 | S35: =Eingabe!$C$25+Eingabe!$E$25*'Berechnung Ratierlich heute%'!F35 -> 39 | T35: 145863.7844
A36: 26 | B36: 0.03666666667 | C36: 2893.890675 | D36: 145863.7844 | E36: 8925.460504 | F36: 157683.1356 | G36: =IF(VLOOKUP(A36,Wechsel!$A$11:$E$31,1)=A36,VLOOKUP(A36,Wechsel!$A$11:$E$31,1),0) -> 0 | H36: =IF(G36>0,VLOOKUP(A36,Wechsel!$A$11:$E$31,3),H35) -> 0.3333333333 | I36: =IF(G36>0,VLOOKUP(A36,Wechsel!$A$11:$E$31,4),I35) -> 0 | J36: =IF(G36>0,VLOOKUP(A36,Wechsel!$A$11:$E$31,5),J35) -> 0.6666666667 | K36: 0 | L36: 0 | M36: 100358.6053 | N36: 0.9 | O36: 0 | P36: =MAX(P35-Eingabe!$E$28,0) -> 0 | Q36: 0 | R36: 0 | S36: =Eingabe!$C$25+Eingabe!$E$25*'Berechnung Ratierlich heute%'!F36 -> 39 | T36: 157644.1356
A37: 27 | B37: 0.03666666667 | C37: 2893.890675 | D37: 157644.1356 | E37: 9632.281575 | F37: 170170.3078 | G37: =IF(VLOOKUP(A37,Wechsel!$A$11:$E$31,1)=A37,VLOOKUP(A37,Wechsel!$A$11:$E$31,1),0) -> 27 | H37: =IF(G37>0,VLOOKUP(A37,Wechsel!$A$11:$E$31,3),H36) -> 0 | I37: =IF(G37>0,VLOOKUP(A37,Wechsel!$A$11:$E$31,4),I36) -> 0 | J37: =IF(G37>0,VLOOKUP(A37,Wechsel!$A$11:$E$31,5),J36) -> 1 | K37: 0 | L37: 0 | M37: 103252.496 | N37: 1 | O37: 60226.03063 | P37: =MAX(P36-Eingabe!$E$28,0) -> 0 | Q37: 15884.61558 | R37: 2314.285384 | S37: =Eingabe!$C$25+Eingabe!$E$25*'Berechnung Ratierlich heute%'!F37 -> 39 | T37: 151932.4069
A38: 28 | B38: 0.03 | C38: 2912.621359 | D38: 151932.4069 | E38: 9290.701694 | F38: 164135.7299 | G38: =IF(VLOOKUP(A38,Wechsel!$A$11:$E$31,1)=A38,VLOOKUP(A38,Wechsel!$A$11:$E$31,1),0) -> 0 | H38: =IF(G38>0,VLOOKUP(A38,Wechsel!$A$11:$E$31,3),H37) -> 0 | I38: =IF(G38>0,VLOOKUP(A38,Wechsel!$A$11:$E$31,4),I37) -> 0 | J38: =IF(G38>0,VLOOKUP(A38,Wechsel!$A$11:$E$31,5),J37) -> 1 | K38: 0 | L38: 0 | M38: 151932.4069 | N38: 1 | O38: 0 | P38: =MAX(P37-Eingabe!$E$28,0) -> 0 | Q38: 0 | R38: 0 | S38: =Eingabe!$C$25+Eingabe!$E$25*'Berechnung Ratierlich heute%'!F38 -> 39 | T38: 164096.7299
A39: 29 | B39: 0.03 | C39: 2912.621359 | D39: 164096.7299 | E39: 10020.56108 | F39: 177029.9124 | G39: =IF(VLOOKUP(A39,Wechsel!$A$11:$E$31,1)=A39,VLOOKUP(A39,Wechsel!$A$11:$E$31,1),0) -> 0 | H39: =IF(G39>0,VLOOKUP(A39,Wechsel!$A$11:$E$31,3),H38) -> 0 | I39: =IF(G39>0,VLOOKUP(A39,Wechsel!$A$11:$E$31,4),I38) -> 0 | J39: =IF(G39>0,VLOOKUP(A39,Wechsel!$A$11:$E$31,5),J38) -> 1 | K39: 0 | L39: 0 | M39: 154845.0282 | N39: =1-(H39*$G$5+I39*$H$5+J39*$I$5) -> 1 | O39: 0 | P39: =MAX(P38-Eingabe!$E$28,0) -> 0 | Q39: 0 | R39: 0 | S39: =Eingabe!$C$25+Eingabe!$E$25*'Berechnung Ratierlich heute%'!F39 -> 39 | T39: 176990.9124
A40: 30 | B40: 0.03 | C40: 2912.621359 | D40: 176990.9124 | E40: 10794.21202 | F40: 190697.7457 | G40: =IF(VLOOKUP(A40,Wechsel!$A$11:$E$31,1)=A40,VLOOKUP(A40,Wechsel!$A$11:$E$31,1),0) -> 0 | H40: =IF(G40>0,VLOOKUP(A40,Wechsel!$A$11:$E$31,3),H39) -> 0 | I40: =IF(G40>0,VLOOKUP(A40,Wechsel!$A$11:$E$31,4),I39) -> 0 | J40: =IF(G40>0,VLOOKUP(A40,Wechsel!$A$11:$E$31,5),J39) -> 1 | K40: 0 | L40: 0 | M40: 157757.6496 | N40: 1 | O40: 0 | P40: =MAX(P39-Eingabe!$E$28,0) -> 0 | Q40: 0 | R40: 0 | S40: =Eingabe!$C$25+Eingabe!$E$25*'Berechnung Ratierlich heute%'!F40 -> 39 | T40: 190658.7457
A41: 31 | B41: 0.03 | C41: 2912.621359 | D41: 190658.7457 | E41: 11614.28203 | F41: 205185.6491 | G41: =IF(VLOOKUP(A41,Wechsel!$A$11:$E$31,1)=A41,VLOOKUP(A41,Wechsel!$A$11:$E$31,1),0) -> 0 | H41: =IF(G41>0,VLOOKUP(A41,Wechsel!$A$11:$E$31,3),H40) -> 0 | I41: =IF(G41>0,VLOOKUP(A41,Wechsel!$A$11:$E$31,4),I40) -> 0 | J41: =IF(G41>0,VLOOKUP(A41,Wechsel!$A$11:$E$31,5),J40) -> 1 | K41: 0 | L41: 0 | M41: 160670.2709 | N41: 1 | O41: 0 | P41: =MAX(P40-Eingabe!$E$28,0) -> 0 | Q41: 0 | R41: 0 | S41: =Eingabe!$C$25+Eingabe!$E$25*'Berechnung Ratierlich heute%'!F41 -> 39 | T41: 205146.6491
A42: 32 | B42: 0.03 | C42: 2912.621359 | D42: 205146.6491 | E42: 12483.55623 | F42: 220542.8267 | G42: =IF(VLOOKUP(A42,Wechsel!$A$11:$E$31,1)=A42,VLOOKUP(A42,Wechsel!$A$11:$E$31,1),0) -> 0 | H42: =IF(G42>0,VLOOKUP(A42,Wechsel!$A$11:$E$31,3),H41) -> 0 | I42: =IF(G42>0,VLOOKUP(A42,Wechsel!$A$11:$E$31,4),I41) -> 0 | J42: =IF(G42>0,VLOOKUP(A42,Wechsel!$A$11:$E$31,5),J41) -> 1 | K42: 0 | L42: 0 | M42: 163582.8923 | N42: 1 | O42: 0 | P42: =MAX(P41-Eingabe!$E$28,0) -> 0 | Q42: 0 | R42: 0 | S42: =Eingabe!$C$25+Eingabe!$E$25*'Berechnung Ratierlich heute%'!F42 -> 39 | T42: 220503.8267
A43: 33 | B43: 0.03 | C43: =IF($B$3>=A43,$B$2,0)/(1+B43) -> 2912.621359 | D43: 220503.8267 | E43: 13404.98688 | F43: 236821.435 | G43: =IF(VLOOKUP(A43,Wechsel!$A$11:$E$31,1)=A43,VLOOKUP(A43,Wechsel!$A$11:$E$31,1),0) -> 0 | H43: =IF(G43>0,VLOOKUP(A43,Wechsel!$A$11:$E$31,3),H42) -> 0 | I43: =IF(G43>0,VLOOKUP(A43,Wechsel!$A$11:$E$31,4),I42) -> 0 | J43: =IF(G43>0,VLOOKUP(A43,Wechsel!$A$11:$E$31,5),J42) -> 1 | K43: 0 | L43: 0 | M43: 166495.5137 | N43: 1 | O43: 0 | P43: =MAX(P42-Eingabe!$E$28,0) -> 0 | Q43: 0 | R43: 0 | S43: =Eingabe!$C$25+Eingabe!$E$25*'Berechnung Ratierlich heute%'!F43 -> 39 | T43: 236782.435
A44: 34 | B44: 0.03 | C44: 2912.621359 | D44: =MAX(IF(A44>$B$3,0,T43),0) -> 236782.435 | E44: =(C44+D44)*$B$1 -> 14381.70338 | F44: =IF(A44>$B$3,0,C44+E44+D44) -> 254076.7597 | G44: =IF(VLOOKUP(A44,Wechsel!$A$11:$E$31,1)=A44,VLOOKUP(A44,Wechsel!$A$11:$E$31,1),0) -> 0 | H44: =IF(G44>0,VLOOKUP(A44,Wechsel!$A$11:$E$31,3),H43) -> 0 | I44: =IF(G44>0,VLOOKUP(A44,Wechsel!$A$11:$E$31,4),I43) -> 0 | J44: =IF(G44>0,VLOOKUP(A44,Wechsel!$A$11:$E$31,5),J43) -> 1 | K44: 0 | L44: 0 | M44: =IF(A44>$B$3,0,IF(G43>0,T43,C44+M43)) -> 169408.135 | N44: 1 | O44: 0 | P44: =MAX(P43-Eingabe!$E$28,0) -> 0 | Q44: 0 | R44: 0 | S44: =Eingabe!$C$25+Eingabe!$E$25*'Berechnung Ratierlich heute%'!F44 -> 39 | T44: 254037.7597
A45: 35 | B45: 0.03 | C45: 2912.621359 | D45: 254037.7597 | E45: 15417.02286 | F45: 272367.4039 | G45: =IF(VLOOKUP(A45,Wechsel!$A$11:$E$31,1)=A45,VLOOKUP(A45,Wechsel!$A$11:$E$31,1),0) -> 0 | H45: =IF(G45>0,VLOOKUP(A45,Wechsel!$A$11:$E$31,3),H44) -> 0 | I45: =IF(G45>0,VLOOKUP(A45,Wechsel!$A$11:$E$31,4),I44) -> 0 | J45: =IF(G45>0,VLOOKUP(A45,Wechsel!$A$11:$E$31,5),J44) -> 1 | K45: 0 | L45: 0 | M45: 172320.7564 | N45: 1 | O45: 0 | P45: =MAX(P44-Eingabe!$E$28,0) -> 0 | Q45: 0 | R45: 0 | S45: =Eingabe!$C$25+Eingabe!$E$25*'Berechnung Ratierlich heute%'!F45 -> 39 | T45: 272328.4039
A46: 36 | B46: 0.03 | C46: 2912.621359 | D46: 272328.4039 | E46: 16514.46152 | F46: 291755.4868 | G46: =IF(VLOOKUP(A46,Wechsel!$A$11:$E$31,1)=A46,VLOOKUP(A46,Wechsel!$A$11:$E$31,1),0) -> 0 | H46: =IF(G46>0,VLOOKUP(A46,Wechsel!$A$11:$E$31,3),H45) -> 0 | I46: =IF(G46>0,VLOOKUP(A46,Wechsel!$A$11:$E$31,4),I45) -> 0 | J46: =IF(G46>0,VLOOKUP(A46,Wechsel!$A$11:$E$31,5),J45) -> 1 | K46: 0 | L46: 0 | M46: 175233.3777 | N46: 1 | O46: 0 | P46: =MAX(P45-Eingabe!$E$28,0) -> 0 | Q46: 0 | R46: 0 | S46: =Eingabe!$C$25+Eingabe!$E$25*'Berechnung Ratierlich heute%'!F46 -> 39 | T46: 291716.4868
A47: 37 | B47: 0.03 | C47: 0 | D47: 0 | E47: 0 | F47: 0 | G47: =IF(VLOOKUP(A47,Wechsel!$A$11:$E$31,1)=A47,VLOOKUP(A47,Wechsel!$A$11:$E$31,1),0) -> 0 | H47: =IF(G47>0,VLOOKUP(A47,Wechsel!$A$11:$E$31,3),H46) -> 0 | I47: =IF(G47>0,VLOOKUP(A47,Wechsel!$A$11:$E$31,4),I46) -> 0 | J47: =IF(G47>0,VLOOKUP(A47,Wechsel!$A$11:$E$31,5),J46) -> 1 | K47: 0 | L47: 0 | M47: 0 | N47: 1 | O47: 0 | P47: =MAX(P46-Eingabe!$E$28,0) -> 0 | Q47: 0 | R47: 0 | S47: =Eingabe!$C$25+Eingabe!$E$25*'Berechnung Ratierlich heute%'!F47 -> 39 | T47: -39
A48: 38 | B48: 0.03 | C48: 0 | D48: 0 | E48: 0 | F48: 0 | G48: =IF(VLOOKUP(A48,Wechsel!$A$11:$E$31,1)=A48,VLOOKUP(A48,Wechsel!$A$11:$E$31,1),0) -> 0 | H48: =IF(G48>0,VLOOKUP(A48,Wechsel!$A$11:$E$31,3),H47) -> 0 | I48: =IF(G48>0,VLOOKUP(A48,Wechsel!$A$11:$E$31,4),I47) -> 0 | J48: =IF(G48>0,VLOOKUP(A48,Wechsel!$A$11:$E$31,5),J47) -> 1 | K48: 0 | L48: 0 | M48: 0 | N48: 1 | O48: 0 | P48: =MAX(P47-Eingabe!$E$28,0) -> 0 | Q48: 0 | R48: 0 | S48: =Eingabe!$C$25+Eingabe!$E$25*'Berechnung Ratierlich heute%'!F48 -> 39 | T48: -39
A49: 39 | B49: 0.03 | C49: 0 | D49: 0 | E49: 0 | F49: 0 | G49: =IF(VLOOKUP(A49,Wechsel!$A$11:$E$31,1)=A49,VLOOKUP(A49,Wechsel!$A$11:$E$31,1),0) -> 0 | H49: =IF(G49>0,VLOOKUP(A49,Wechsel!$A$11:$E$31,3),H48) -> 0 | I49: =IF(G49>0,VLOOKUP(A49,Wechsel!$A$11:$E$31,4),I48) -> 0 | J49: =IF(G49>0,VLOOKUP(A49,Wechsel!$A$11:$E$31,5),J48) -> 1 | K49: 0 | L49: 0 | M49: 0 | N49: 1 | O49: 0 | P49: =MAX(P48-Eingabe!$E$28,0) -> 0 | Q49: 0 | R49: 0 | S49: =Eingabe!$C$25+Eingabe!$E$25*'Berechnung Ratierlich heute%'!F49 -> 39 | T49: -39
A50: 40 | B50: 0.03 | C50: 0 | D50: 0 | E50: 0 | F50: 0 | G50: =IF(VLOOKUP(A50,Wechsel!$A$11:$E$31,1)=A50,VLOOKUP(A50,Wechsel!$A$11:$E$31,1),0) -> 0 | H50: =IF(G50>0,VLOOKUP(A50,Wechsel!$A$11:$E$31,3),H49) -> 0 | I50: =IF(G50>0,VLOOKUP(A50,Wechsel!$A$11:$E$31,4),I49) -> 0 | J50: =IF(G50>0,VLOOKUP(A50,Wechsel!$A$11:$E$31,5),J49) -> 1 | K50: 0 | L50: 0 | M50: 0 | N50: 1 | O50: 0 | P50: =MAX(P49-Eingabe!$E$28,0) -> 0 | Q50: 0 | R50: 0 | S50: =Eingabe!$C$25+Eingabe!$E$25*'Berechnung Ratierlich heute%'!F50 -> 39 | T50: -39
A51: 41 | B51: 0.03 | C51: 0 | D51: 0 | E51: 0 | F51: 0 | G51: =IF(VLOOKUP(A51,Wechsel!$A$11:$E$31,1)=A51,VLOOKUP(A51,Wechsel!$A$11:$E$31,1),0) -> 0 | H51: =IF(G51>0,VLOOKUP(A51,Wechsel!$A$11:$E$31,3),H50) -> 0 | I51: =IF(G51>0,VLOOKUP(A51,Wechsel!$A$11:$E$31,4),I50) -> 0 | J51: =IF(G51>0,VLOOKUP(A51,Wechsel!$A$11:$E$31,5),J50) -> 1 | K51: 0 | L51: 0 | M51: 0 | N51: 1 | O51: 0 | P51: =MAX(P50-Eingabe!$E$28,0) -> 0 | Q51: 0 | R51: 0 | S51: =Eingabe!$C$25+Eingabe!$E$25*'Berechnung Ratierlich heute%'!F51 -> 39 | T51: -39
A52: 42 | B52: 0.03 | C52: 0 | D52: 0 | E52: 0 | F52: 0 | G52: =IF(VLOOKUP(A52,Wechsel!$A$11:$E$31,1)=A52,VLOOKUP(A52,Wechsel!$A$11:$E$31,1),0) -> 0 | H52: =IF(G52>0,VLOOKUP(A52,Wechsel!$A$11:$E$31,3),H51) -> 0 | I52: =IF(G52>0,VLOOKUP(A52,Wechsel!$A$11:$E$31,4),I51) -> 0 | J52: =IF(G52>0,VLOOKUP(A52,Wechsel!$A$11:$E$31,5),J51) -> 1 | K52: 0 | L52: 0 | M52: 0 | N52: 1 | O52: 0 | P52: =MAX(P51-Eingabe!$E$28,0) -> 0 | Q52: 0 | R52: 0 | S52: =Eingabe!$C$25+Eingabe!$E$25*'Berechnung Ratierlich heute%'!F52 -> 39 | T52: -39
A53: 43 | B53: 0.03 | C53: 0 | D53: 0 | E53: 0 | F53: 0 | G53: =IF(VLOOKUP(A53,Wechsel!$A$11:$E$31,1)=A53,VLOOKUP(A53,Wechsel!$A$11:$E$31,1),0) -> 0 | H53: =IF(G53>0,VLOOKUP(A53,Wechsel!$A$11:$E$31,3),H52) -> 0 | I53: =IF(G53>0,VLOOKUP(A53,Wechsel!$A$11:$E$31,4),I52) -> 0 | J53: =IF(G53>0,VLOOKUP(A53,Wechsel!$A$11:$E$31,5),J52) -> 1 | K53: 0 | L53: 0 | M53: 0 | N53: 1 | O53: 0 | P53: =MAX(P52-Eingabe!$E$28,0) -> 0 | Q53: 0 | R53: 0 | S53: =Eingabe!$C$25+Eingabe!$E$25*'Berechnung Ratierlich heute%'!F53 -> 39 | T53: -39
A54: 44 | B54: 0.03 | C54: 0 | D54: 0 | E54: 0 | F54: 0 | G54: =IF(VLOOKUP(A54,Wechsel!$A$11:$E$31,1)=A54,VLOOKUP(A54,Wechsel!$A$11:$E$31,1),0) -> 0 | H54: =IF(G54>0,VLOOKUP(A54,Wechsel!$A$11:$E$31,3),H53) -> 0 | I54: =IF(G54>0,VLOOKUP(A54,Wechsel!$A$11:$E$31,4),I53) -> 0 | J54: =IF(G54>0,VLOOKUP(A54,Wechsel!$A$11:$E$31,5),J53) -> 1 | K54: 0 | L54: 0 | M54: 0 | N54: 1 | O54: 0 | P54: =MAX(P53-Eingabe!$E$28,0) -> 0 | Q54: 0 | R54: 0 | S54: =Eingabe!$C$25+Eingabe!$E$25*'Berechnung Ratierlich heute%'!F54 -> 39 | T54: -39
A55: 45 | B55: 0.03 | C55: 0 | D55: 0 | E55: 0 | F55: 0 | G55: =IF(VLOOKUP(A55,Wechsel!$A$11:$E$31,1)=A55,VLOOKUP(A55,Wechsel!$A$11:$E$31,1),0) -> 0 | H55: =IF(G55>0,VLOOKUP(A55,Wechsel!$A$11:$E$31,3),H54) -> 0 | I55: =IF(G55>0,VLOOKUP(A55,Wechsel!$A$11:$E$31,4),I54) -> 0 | J55: =IF(G55>0,VLOOKUP(A55,Wechsel!$A$11:$E$31,5),J54) -> 1 | K55: 0 | L55: 0 | M55: 0 | N55: 1 | O55: 0 | P55: =MAX(P54-Eingabe!$E$28,0) -> 0 | Q55: 0 | R55: 0 | S55: =Eingabe!$C$25+Eingabe!$E$25*'Berechnung Ratierlich heute%'!F55 -> 39 | T55: -39
A56: 46 | B56: 0.03 | C56: 0 | D56: 0 | E56: 0 | F56: 0 | G56: =IF(VLOOKUP(A56,Wechsel!$A$11:$E$31,1)=A56,VLOOKUP(A56,Wechsel!$A$11:$E$31,1),0) -> 0 | H56: =IF(G56>0,VLOOKUP(A56,Wechsel!$A$11:$E$31,3),H55) -> 0 | I56: =IF(G56>0,VLOOKUP(A56,Wechsel!$A$11:$E$31,4),I55) -> 0 | J56: =IF(G56>0,VLOOKUP(A56,Wechsel!$A$11:$E$31,5),J55) -> 1 | K56: 0 | L56: 0 | M56: 0 | N56: 1 | O56: 0 | P56: =MAX(P55-Eingabe!$E$28,0) -> 0 | Q56: 0 | R56: 0 | S56: =Eingabe!$C$25+Eingabe!$E$25*'Berechnung Ratierlich heute%'!F56 -> 39 | T56: -39
A57: 47 | B57: 0.03 | C57: 0 | D57: 0 | E57: 0 | F57: 0 | G57: =IF(VLOOKUP(A57,Wechsel!$A$11:$E$31,1)=A57,VLOOKUP(A57,Wechsel!$A$11:$E$31,1),0) -> 0 | H57: =IF(G57>0,VLOOKUP(A57,Wechsel!$A$11:$E$31,3),H56) -> 0 | I57: =IF(G57>0,VLOOKUP(A57,Wechsel!$A$11:$E$31,4),I56) -> 0 | J57: =IF(G57>0,VLOOKUP(A57,Wechsel!$A$11:$E$31,5),J56) -> 1 | K57: 0 | L57: 0 | M57: 0 | N57: 1 | O57: 0 | P57: =MAX(P56-Eingabe!$E$28,0) -> 0 | Q57: 0 | R57: 0 | S57: =Eingabe!$C$25+Eingabe!$E$25*'Berechnung Ratierlich heute%'!F57 -> 39 | T57: -39
A58: 48 | B58: 0.03 | C58: 0 | D58: 0 | E58: 0 | F58: 0 | G58: =IF(VLOOKUP(A58,Wechsel!$A$11:$E$31,1)=A58,VLOOKUP(A58,Wechsel!$A$11:$E$31,1),0) -> 0 | H58: =IF(G58>0,VLOOKUP(A58,Wechsel!$A$11:$E$31,3),H57) -> 0 | I58: =IF(G58>0,VLOOKUP(A58,Wechsel!$A$11:$E$31,4),I57) -> 0 | J58: =IF(G58>0,VLOOKUP(A58,Wechsel!$A$11:$E$31,5),J57) -> 1 | K58: 0 | L58: 0 | M58: 0 | N58: 1 | O58: 0 | P58: =MAX(P57-Eingabe!$E$28,0) -> 0 | Q58: 0 | R58: 0 | S58: =Eingabe!$C$25+Eingabe!$E$25*'Berechnung Ratierlich heute%'!F58 -> 39 | T58: -39
A59: 49 | B59: 0.03 | C59: 0 | D59: 0 | E59: 0 | F59: 0 | G59: =IF(VLOOKUP(A59,Wechsel!$A$11:$E$31,1)=A59,VLOOKUP(A59,Wechsel!$A$11:$E$31,1),0) -> 0 | H59: =IF(G59>0,VLOOKUP(A59,Wechsel!$A$11:$E$31,3),H58) -> 0 | I59: =IF(G59>0,VLOOKUP(A59,Wechsel!$A$11:$E$31,4),I58) -> 0 | J59: =IF(G59>0,VLOOKUP(A59,Wechsel!$A$11:$E$31,5),J58) -> 1 | K59: 0 | L59: 0 | M59: 0 | N59: 1 | O59: 0 | P59: =MAX(P58-Eingabe!$E$28,0) -> 0 | Q59: 0 | R59: 0 | S59: =Eingabe!$C$25+Eingabe!$E$25*'Berechnung Ratierlich heute%'!F59 -> 39 | T59: -39
A60: 50 | B60: 0.03 | C60: 0 | D60: 0 | E60: 0 | F60: 0 | G60: =IF(VLOOKUP(A60,Wechsel!$A$11:$E$31,1)=A60,VLOOKUP(A60,Wechsel!$A$11:$E$31,1),0) -> 0 | H60: =IF(G60>0,VLOOKUP(A60,Wechsel!$A$11:$E$31,3),H59) -> 0 | I60: =IF(G60>0,VLOOKUP(A60,Wechsel!$A$11:$E$31,4),I59) -> 0 | J60: =IF(G60>0,VLOOKUP(A60,Wechsel!$A$11:$E$31,5),J59) -> 1 | K60: 0 | L60: 0 | M60: 0 | N60: 1 | O60: 0 | P60: =MAX(P59-Eingabe!$E$28,0) -> 0 | Q60: 0 | R60: 0 | S60: =Eingabe!$C$25+Eingabe!$E$25*'Berechnung Ratierlich heute%'!F60 -> 39 | T60: -39
A61: 51 | B61: =$G$3*H60+$H$3*I60+$I$3*J60 -> 0.03 | C61: =IF($B$3>=A61,$B$2,0)/(1+B61) -> 0 | D61: =MAX(IF(A61>$B$3,0,T60),0) -> 0 | E61: =(C61+D61)*$B$1 -> 0 | F61: =IF(A61>$B$3,0,C61+E61+D61) -> 0 | G61: =IF(VLOOKUP(A61,Wechsel!$A$11:$E$31,1)=A61,VLOOKUP(A61,Wechsel!$A$11:$E$31,1),0) -> 0 | H61: =IF(G61>0,VLOOKUP(A61,Wechsel!$A$11:$E$31,3),H60) -> 0 | I61: =IF(G61>0,VLOOKUP(A61,Wechsel!$A$11:$E$31,4),I60) -> 0 | J61: =IF(G61>0,VLOOKUP(A61,Wechsel!$A$11:$E$31,5),J60) -> 1 | K61: =D61*$M$1*0.7*0.7*$M$2*H61+D61*$M$1*0.85*0.7*$M$2*I61+D61*$M$1*0.7*$M$2*J61 -> 0 | L61: =IF(G60>0,K61,K61+L60) -> 0 | M61: =IF(A61>$B$3,0,IF(G60>0,T60,C61+M60)) -> 0 | N61: =1-(H61*$G$5+I61*$H$5+J61*$I$5) -> 1 | O61: =IF(G61>0,(F61-M61)*N60,0) -> 0 | P61: =MAX(P60-Eingabe!$E$28,0) -> 0 | Q61: =MAX(0,K61+O61*$M$2-P61-IF(G61>0,-(L60+K61),0)) -> 0 | R61: =MAX(IF(G61>0,(H61*$G$4+I61*$H$4+J61*$I$4)*(F61-Q61),0),0) -> 0 | S61: =Eingabe!$C$25+Eingabe!$E$25*'Berechnung Ratierlich heute%'!F61 -> 39 | T61: =F61-Q61-R61-S61 -> -39
A62: 52 | B62: 0.03 | C62: 0 | D62: 0 | E62: 0 | F62: 0 | G62: =IF(VLOOKUP(A62,Wechsel!$A$11:$E$31,1)=A62,VLOOKUP(A62,Wechsel!$A$11:$E$31,1),0) -> 0 | H62: =IF(G62>0,VLOOKUP(A62,Wechsel!$A$11:$E$31,3),H61) -> 0 | I62: =IF(G62>0,VLOOKUP(A62,Wechsel!$A$11:$E$31,4),I61) -> 0 | J62: =IF(G62>0,VLOOKUP(A62,Wechsel!$A$11:$E$31,5),J61) -> 1 | K62: 0 | L62: 0 | M62: 0 | N62: 1 | O62: 0 | P62: =MAX(P61-Eingabe!$E$28,0) -> 0 | Q62: 0 | R62: 0 | S62: =Eingabe!$C$25+Eingabe!$E$25*'Berechnung Ratierlich heute%'!F62 -> 39 | T62: -39
A63: 53 | B63: 0.03 | C63: 0 | D63: 0 | E63: 0 | F63: 0 | G63: =IF(VLOOKUP(A63,Wechsel!$A$11:$E$31,1)=A63,VLOOKUP(A63,Wechsel!$A$11:$E$31,1),0) -> 0 | H63: =IF(G63>0,VLOOKUP(A63,Wechsel!$A$11:$E$31,3),H62) -> 0 | I63: =IF(G63>0,VLOOKUP(A63,Wechsel!$A$11:$E$31,4),I62) -> 0 | J63: =IF(G63>0,VLOOKUP(A63,Wechsel!$A$11:$E$31,5),J62) -> 1 | K63: 0 | L63: 0 | M63: 0 | N63: 1 | O63: 0 | P63: =MAX(P62-Eingabe!$E$28,0) -> 0 | Q63: 0 | R63: 0 | S63: =Eingabe!$C$25+Eingabe!$E$25*'Berechnung Ratierlich heute%'!F63 -> 39 | T63: -39
A64: 54 | B64: 0.03 | C64: 0 | D64: 0 | E64: 0 | F64: 0 | G64: =IF(VLOOKUP(A64,Wechsel!$A$11:$E$31,1)=A64,VLOOKUP(A64,Wechsel!$A$11:$E$31,1),0) -> 0 | H64: =IF(G64>0,VLOOKUP(A64,Wechsel!$A$11:$E$31,3),H63) -> 0 | I64: =IF(G64>0,VLOOKUP(A64,Wechsel!$A$11:$E$31,4),I63) -> 0 | J64: =IF(G64>0,VLOOKUP(A64,Wechsel!$A$11:$E$31,5),J63) -> 1 | K64: 0 | L64: 0 | M64: 0 | N64: 1 | O64: 0 | P64: =MAX(P63-Eingabe!$E$28,0) -> 0 | Q64: 0 | R64: 0 | S64: =Eingabe!$C$25+Eingabe!$E$25*'Berechnung Ratierlich heute%'!F64 -> 39 | T64: -39
A65: 55 | B65: 0.03 | C65: 0 | D65: 0 | E65: 0 | F65: 0 | G65: =IF(VLOOKUP(A65,Wechsel!$A$11:$E$31,1)=A65,VLOOKUP(A65,Wechsel!$A$11:$E$31,1),0) -> 0 | H65: =IF(G65>0,VLOOKUP(A65,Wechsel!$A$11:$E$31,3),H64) -> 0 | I65: =IF(G65>0,VLOOKUP(A65,Wechsel!$A$11:$E$31,4),I64) -> 0 | J65: =IF(G65>0,VLOOKUP(A65,Wechsel!$A$11:$E$31,5),J64) -> 1 | K65: 0 | L65: 0 | M65: 0 | N65: 1 | O65: 0 | P65: =MAX(P64-Eingabe!$E$28,0) -> 0 | Q65: 0 | R65: 0 | S65: =Eingabe!$C$25+Eingabe!$E$25*'Berechnung Ratierlich heute%'!F65 -> 39 | T65: -39
A66: 56 | B66: 0.03 | C66: 0 | D66: 0 | E66: 0 | F66: 0 | G66: =IF(VLOOKUP(A66,Wechsel!$A$11:$E$31,1)=A66,VLOOKUP(A66,Wechsel!$A$11:$E$31,1),0) -> 0 | H66: =IF(G66>0,VLOOKUP(A66,Wechsel!$A$11:$E$31,3),H65) -> 0 | I66: =IF(G66>0,VLOOKUP(A66,Wechsel!$A$11:$E$31,4),I65) -> 0 | J66: =IF(G66>0,VLOOKUP(A66,Wechsel!$A$11:$E$31,5),J65) -> 1 | K66: 0 | L66: 0 | M66: 0 | N66: 1 | O66: 0 | P66: =MAX(P65-Eingabe!$E$28,0) -> 0 | Q66: 0 | R66: 0 | S66: =Eingabe!$C$25+Eingabe!$E$25*'Berechnung Ratierlich heute%'!F66 -> 39 | T66: -39
A67: 57 | B67: 0.03 | C67: 0 | D67: 0 | E67: 0 | F67: 0 | G67: =IF(VLOOKUP(A67,Wechsel!$A$11:$E$31,1)=A67,VLOOKUP(A67,Wechsel!$A$11:$E$31,1),0) -> 0 | H67: =IF(G67>0,VLOOKUP(A67,Wechsel!$A$11:$E$31,3),H66) -> 0 | I67: =IF(G67>0,VLOOKUP(A67,Wechsel!$A$11:$E$31,4),I66) -> 0 | J67: =IF(G67>0,VLOOKUP(A67,Wechsel!$A$11:$E$31,5),J66) -> 1 | K67: 0 | L67: 0 | M67: 0 | N67: 1 | O67: 0 | P67: =MAX(P66-Eingabe!$E$28,0) -> 0 | Q67: 0 | R67: 0 | S67: =Eingabe!$C$25+Eingabe!$E$25*'Berechnung Ratierlich heute%'!F67 -> 39 | T67: -39
A68: 58 | B68: 0.03 | C68: 0 | D68: 0 | E68: 0 | F68: 0 | G68: =IF(VLOOKUP(A68,Wechsel!$A$11:$E$31,1)=A68,VLOOKUP(A68,Wechsel!$A$11:$E$31,1),0) -> 0 | H68: =IF(G68>0,VLOOKUP(A68,Wechsel!$A$11:$E$31,3),H67) -> 0 | I68: =IF(G68>0,VLOOKUP(A68,Wechsel!$A$11:$E$31,4),I67) -> 0 | J68: =IF(G68>0,VLOOKUP(A68,Wechsel!$A$11:$E$31,5),J67) -> 1 | K68: 0 | L68: 0 | M68: 0 | N68: 1 | O68: 0 | P68: =MAX(P67-Eingabe!$E$28,0) -> 0 | Q68: 0 | R68: 0 | S68: =Eingabe!$C$25+Eingabe!$E$25*'Berechnung Ratierlich heute%'!F68 -> 39 | T68: -39
A69: 59 | B69: 0.03 | C69: 0 | D69: 0 | E69: 0 | F69: 0 | G69: =IF(VLOOKUP(A69,Wechsel!$A$11:$E$31,1)=A69,VLOOKUP(A69,Wechsel!$A$11:$E$31,1),0) -> 0 | H69: =IF(G69>0,VLOOKUP(A69,Wechsel!$A$11:$E$31,3),H68) -> 0 | I69: =IF(G69>0,VLOOKUP(A69,Wechsel!$A$11:$E$31,4),I68) -> 0 | J69: =IF(G69>0,VLOOKUP(A69,Wechsel!$A$11:$E$31,5),J68) -> 1 | K69: 0 | L69: 0 | M69: 0 | N69: 1 | O69: 0 | P69: =MAX(P68-Eingabe!$E$28,0) -> 0 | Q69: 0 | R69: 0 | S69: =Eingabe!$C$25+Eingabe!$E$25*'Berechnung Ratierlich heute%'!F69 -> 39 | T69: -39
A70: 60 | B70: 0.03 | C70: 0 | D70: 0 | E70: 0 | F70: 0 | G70: =IF(VLOOKUP(A70,Wechsel!$A$11:$E$31,1)=A70,VLOOKUP(A70,Wechsel!$A$11:$E$31,1),0) -> 0 | H70: =IF(G70>0,VLOOKUP(A70,Wechsel!$A$11:$E$31,3),H69) -> 0 | I70: =IF(G70>0,VLOOKUP(A70,Wechsel!$A$11:$E$31,4),I69) -> 0 | J70: =IF(G70>0,VLOOKUP(A70,Wechsel!$A$11:$E$31,5),J69) -> 1 | K70: 0 | L70: 0 | M70: 0 | N70: 1 | O70: 0 | P70: =MAX(P69-Eingabe!$E$28,0) -> 0 | Q70: 0 | R70: 0 | S70: =Eingabe!$C$25+Eingabe!$E$25*'Berechnung Ratierlich heute%'!F70 -> 39 | T70: -39

Sheet Berechnung EB heute% (hidden)
A1: Rendite | B1: =Hilfe!E3-Hilfe!G16 -> 0.06 | F1: Ausgabeaufschlag | L1: Basiszins | M1: =Hilfe!E13 -> 0
A2: Beitrag EB | B2: =Eingabe!C10 -> 250 | G2: Aktienfonds | H2: Mischfonds | I2: Rentenfonds / VVW | L2: Abgeltungssteuer | M2: ='Berechnung Ratierlich heute%'!M2 -> 0.26375
A3: Laufzeit | B3: =Eingabe!C9 -> 36 | F3: Ausgabeaufschlag | G3: =Eingabe!C21 -> 0.05 | H3: =Eingabe!E21 -> 0.04 | I3: =Eingabe!G21 -> 0.03
F4: Wechselgebühr | G4: =Eingabe!C22 -> 0.025 | H4: =Eingabe!E22 -> 0.02 | I4: =Eingabe!G22 -> 0.015 | J4: Ausgabe
F5: Freistellung | G5: 0.3 | H5: 0.15 | I5: 0 | J5: Jahr | K5: Jahresabschluss | L5: Beitragssumme | M5: zu versteuern% | N5: Steuer | O5: kumulierte Vorabpauschale | P5: Freistellungsauftrag | Q5: Auszahlung
J6: =B3 -> 36 | K6: =MAX(VLOOKUP(J6,A11:AD70,20,FALSE),0) -> 0 | L6: =MAX(VLOOKUP(J6,A11:AD70,13,FALSE),0) -> 0 | M6: =VLOOKUP(J6,A11:AD70,14,FALSE) -> 1 | N6: =(K6-L6)*M6 -> 0 | O6: =VLOOKUP(J6,A11:AD70,12,FALSE) -> 0 | P6: =VLOOKUP(J6,A11:AD70,16,FALSE) -> 0 | Q6: =K6-(N6-P6-O6)*M2 -> 0
A9: Jahr | B9: Ausgabeaufschlag | C9: Beitrag | D9: Vermögen Jahresanfang | E9: Rendite | F9: Gesamtvermögen | G9: Wechsel | H9: Anteil Aktienfonds | I9: Anteil Mischfonds | J9: Rentenfonds / VVW | K9: Vorabpauschale | L9: kumulierte Vorabpauschale | M9: Beitragssumme | N9: Freistellung | O9: Wechselbesteuerunganteil | P9: Freistellungsauftrag | Q9: Steuer | R9: Wechselkosten | S9: Depotkosten | T9: Jahresabschluss
A10: 0 | H10: =Eingabe!C18 -> 1 | I10: =Eingabe!E18 -> 0 | J10: =Eingabe!G18 -> 0
A11: 1 | B11: =$G$3*H10+$H$3*I10+$I$3*J10 -> 0.05 | C11: =IF($B$3>=A11,$B$2,0)/(1+B11) -> 238.0952381 | D11: =C11 -> 238.0952381 | E11: =C11*$B$1 -> 14.28571429 | F11: =C11+E11 -> 252.3809524 | G11: =VLOOKUP(A11,Wechsel!$A$11:$E$31,1) -> 0 | H11: =IF(G11>0,VLOOKUP(A11,Wechsel!$A$11:$E$31,3),H10) -> 1 | I11: =IF(G11>0,VLOOKUP(A11,Wechsel!$A$11:$E$31,4),I10) -> 0 | J11: =IF(G11>0,VLOOKUP(A11,Wechsel!$A$11:$E$31,5),J10) -> 0 | K11: =D11*$M$1*0.7*0.7*$M$2*H11+D11*$M$1*0.85*0.7*$M$2*I11+D11*$M$1*0.7*$M$2*J11 -> 0 | L11: =K11+L10 -> 0 | M11: =C11 -> 238.0952381 | N11: =1-(H11*$G$5+I11*$H$5+J11*$I$5) -> 0.7 | O11: =IF(G11>0,(F11-M11)*N11,0) -> 0 | P11: =MAX(Eingabe!C28,0) -> 0 | Q11: =MAX(0,K11+O11*$M$2-P11-IF(G11>0,-(L10+K11),0)) -> 0 | R11: =MAX(IF(G11>0,(H11*$G$4+I11*$H$4+J11*$I$4)*F11,0),0) -> 0 | S11: =Eingabe!$C$25+Eingabe!$E$25*'Berechnung EB heute%'!F11 -> 39 | T11: =F11-Q11-R11-S11 -> 213.3809524
A12: 2 | B12: =$G$3*H11+$H$3*I11+$I$3*J11 -> 0.05 | C12: 0 | D12: =IF(A12>$B$3,0,T11) -> 213.3809524 | E12: =(C12+D12)*$B$1 -> 12.80285714 | F12: =MAX(IF(A12>$B$3,0,C12+E12+D12),0) -> 226.1838095 | G12: =IF(VLOOKUP(A12,Wechsel!$A$11:$E$31,1)=A12,VLOOKUP(A12,Wechsel!$A$11:$E$31,1),0) -> 0 | H12: =IF(G12>0,VLOOKUP(A12,Wechsel!$A$11:$E$31,3),H11) -> 1 | I12: =IF(G12>0,VLOOKUP(A12,Wechsel!$A$11:$E$31,4),I11) -> 0 | J12: =IF(G12>0,VLOOKUP(A12,Wechsel!$A$11:$E$31,5),J11) -> 0 | K12: =D12*$M$1*0.7*0.7*$M$2*H12+D12*$M$1*0.85*0.7*$M$2*I12+D12*$M$1*0.7*$M$2*J12 -> 0 | L12: =IF(G11>0,K12,K12+L11) -> 0 | M12: =IF(A12>$B$3,0,IF(G11>0,T11,C12+M11)) -> 238.0952381 | N12: =1-(H12*$G$5+I12*$H$5+J12*$I$5) -> 0.7 | O12: =IF(G12>0,(F12-M12)*N11,0) -> 0 | P12: =MAX(P11-Eingabe!$E$28,0) -> 0 | Q12: =MAX(0,K12+O12*$M$2-P12-IF(G12>0,-(L11+K12),0)) -> 0 | R12: =MAX(IF(G12>0,(H12*$G$4+I12*$H$4+J12*$I$4)*(F12-Q12),0),0) -> 0 | S12: =Eingabe!$C$25+Eingabe!$E$25*'Berechnung EB heute%'!F12 -> 39 | T12: =F12-Q12-R12-S12 -> 187.1838095
A13: 3 | B13: 0.05 | C13: 0 | D13: 187.1838095 | E13: 11.23102857 | F13: =MAX(IF(A13>$B$3,0,C13+E13+D13),0) -> 198.4148381 | G13: =IF(VLOOKUP(A13,Wechsel!$A$11:$E$31,1)=A13,VLOOKUP(A13,Wechsel!$A$11:$E$31,1),0) -> 0 | H13: =IF(G13>0,VLOOKUP(A13,Wechsel!$A$11:$E$31,3),H12) -> 1 | I13: =IF(G13>0,VLOOKUP(A13,Wechsel!$A$11:$E$31,4),I12) -> 0 | J13: =IF(G13>0,VLOOKUP(A13,Wechsel!$A$11:$E$31,5),J12) -> 0 | K13: =D13*$M$1*0.7*0.7*$M$2*H13+D13*$M$1*0.85*0.7*$M$2*I13+D13*$M$1*0.7*$M$2*J13 -> 0 | L13: =IF(G12>0,K13,K13+L12) -> 0 | M13: 238.0952381 | N13: 0.7 | O13: =IF(G13>0,(F13-M13)*N12,0) -> 0 | P13: =MAX(P12-Eingabe!$E$28,0) -> 0 | Q13: 0 | R13: 0 | S13: =Eingabe!$C$25+Eingabe!$E$25*'Berechnung EB heute%'!F13 -> 39 | T13: 159.4148381
A14: 4 | B14: 0.05 | C14: 0 | D14: 159.4148381 | E14: 9.564890286 | F14: 168.9797284 | G14: =IF(VLOOKUP(A14,Wechsel!$A$11:$E$31,1)=A14,VLOOKUP(A14,Wechsel!$A$11:$E$31,1),0) -> 0 | H14: =IF(G14>0,VLOOKUP(A14,Wechsel!$A$11:$E$31,3),H13) -> 1 | I14: =IF(G14>0,VLOOKUP(A14,Wechsel!$A$11:$E$31,4),I13) -> 0 | J14: =IF(G14>0,VLOOKUP(A14,Wechsel!$A$11:$E$31,5),J13) -> 0 | K14: 0 | L14: 0 | M14: 238.0952381 | N14: 0.7 | O14: 0 | P14: =MAX(P13-Eingabe!$E$28,0) -> 0 | Q14: 0 | R14: 0 | S14: =Eingabe!$C$25+Eingabe!$E$25*'Berechnung EB heute%'!F14 -> 39 | T14: 129.9797284
A15: 5 | B15: 0.05 | C15: 0 | D15: 129.9797284 | E15: 7.798783703 | F15: 137.7785121 | G15: =IF(VLOOKUP(A15,Wechsel!$A$11:$E$31,1)=A15,VLOOKUP(A15,Wechsel!$A$11:$E$31,1),0) -> 0 | H15: =IF(G15>0,VLOOKUP(A15,Wechsel!$A$11:$E$31,3),H14) -> 1 | I15: =IF(G15>0,VLOOKUP(A15,Wechsel!$A$11:$E$31,4),I14) -> 0 | J15: =IF(G15>0,VLOOKUP(A15,Wechsel!$A$11:$E$31,5),J14) -> 0 | K15: 0 | L15: 0 | M15: 238.0952381 | N15: 0.7 | O15: 0 | P15: =MAX(P14-Eingabe!$E$28,0) -> 0 | Q15: 0 | R15: 0 | S15: =Eingabe!$C$25+Eingabe!$E$25*'Berechnung EB heute%'!F15 -> 39 | T15: 98.77851208
A16: 6 | B16: 0.05 | C16: 0 | D16: 98.77851208 | E16: 5.926710725 | F16: 104.7052228 | G16: =IF(VLOOKUP(A16,Wechsel!$A$11:$E$31,1)=A16,VLOOKUP(A16,Wechsel!$A$11:$E$31,1),0) -> 0 | H16: =IF(G16>0,VLOOKUP(A16,Wechsel!$A$11:$E$31,3),H15) -> 1 | I16: =IF(G16>0,VLOOKUP(A16,Wechsel!$A$11:$E$31,4),I15) -> 0 | J16: =IF(G16>0,VLOOKUP(A16,Wechsel!$A$11:$E$31,5),J15) -> 0 | K16: 0 | L16: 0 | M16: 238.0952381 | N16: 0.7 | O16: 0 | P16: =MAX(P15-Eingabe!$E$28,0) -> 0 | Q16: 0 | R16: 0 | S16: =Eingabe!$C$25+Eingabe!$E$25*'Berechnung EB heute%'!F16 -> 39 | T16: 65.70522281
A17: 7 | B17: 0.05 | C17: 0 | D17: 65.70522281 | E17: 3.942313369 | F17: 69.64753618 | G17: =IF(VLOOKUP(A17,Wechsel!$A$11:$E$31,1)=A17,VLOOKUP(A17,Wechsel!$A$11:$E$31,1),0) -> 0 | H17: =IF(G17>0,VLOOKUP(A17,Wechsel!$A$11:$E$31,3),H16) -> 1 | I17: =IF(G17>0,VLOOKUP(A17,Wechsel!$A$11:$E$31,4),I16) -> 0 | J17: =IF(G17>0,VLOOKUP(A17,Wechsel!$A$11:$E$31,5),J16) -> 0 | K17: 0 | L17: 0 | M17: 238.0952381 | N17: 0.7 | O17: 0 | P17: =MAX(P16-Eingabe!$E$28,0) -> 0 | Q17: 0 | R17: 0 | S17: =Eingabe!$C$25+Eingabe!$E$25*'Berechnung EB heute%'!F17 -> 39 | T17: 30.64753618
A18: 8 | B18: 0.05 | C18: 0 | D18: 30.64753618 | E18: 1.838852171 | F18: 32.48638835 | G18: =IF(VLOOKUP(A18,Wechsel!$A$11:$E$31,1)=A18,VLOOKUP(A18,Wechsel!$A$11:$E$31,1),0) -> 0 | H18: =IF(G18>0,VLOOKUP(A18,Wechsel!$A$11:$E$31,3),H17) -> 1 | I18: =IF(G18>0,VLOOKUP(A18,Wechsel!$A$11:$E$31,4),I17) -> 0 | J18: =IF(G18>0,VLOOKUP(A18,Wechsel!$A$11:$E$31,5),J17) -> 0 | K18: 0 | L18: 0 | M18: 238.0952381 | N18: 0.7 | O18: 0 | P18: =MAX(P17-Eingabe!$E$28,0) -> 0 | Q18: 0 | R18: 0 | S18: =Eingabe!$C$25+Eingabe!$E$25*'Berechnung EB heute%'!F18 -> 39 | T18: -6.513611652
A19: 9 | B19: 0.05 | C19: 0 | D19: -6.513611652 | E19: -0.3908166991 | F19: 0 | G19: =IF(VLOOKUP(A19,Wechsel!$A$11:$E$31,1)=A19,VLOOKUP(A19,Wechsel!$A$11:$E$31,1),0) -> 9 | H19: =IF(G19>0,VLOOKUP(A19,Wechsel!$A$11:$E$31,3),H18) -> 0.6666666667 | I19: =IF(G19>0,VLOOKUP(A19,Wechsel!$A$11:$E$31,4),I18) -> 0 | J19: =IF(G19>0,VLOOKUP(A19,Wechsel!$A$11:$E$31,5),J18) -> 0.3333333333 | K19: 0 | L19: 0 | M19: 238.0952381 | N19: 0.8 | O19: -166.6666667 | P19: =MAX(P18-Eingabe!$E$28,0) -> 0 | Q19: 0 | R19: =MAX(IF(G19>0,(H19*$G$4+I19*$H$4+J19*$I$4)*(F19-Q19),0),0) -> 0 | S19: =Eingabe!$C$25+Eingabe!$E$25*'Berechnung EB heute%'!F19 -> 39 | T19: -39
A20: 10 | B20: 0.04333333333 | C20: 0 | D20: -39 | E20: -2.34 | F20: 0 | G20: =IF(VLOOKUP(A20,Wechsel!$A$11:$E$31,1)=A20,VLOOKUP(A20,Wechsel!$A$11:$E$31,1),0) -> 0 | H20: =IF(G20>0,VLOOKUP(A20,Wechsel!$A$11:$E$31,3),H19) -> 0.6666666667 | I20: =IF(G20>0,VLOOKUP(A20,Wechsel!$A$11:$E$31,4),I19) -> 0 | J20: =IF(G20>0,VLOOKUP(A20,Wechsel!$A$11:$E$31,5),J19) -> 0.3333333333 | K20: 0 | L20: 0 | M20: -39 | N20: 0.8 | O20: 0 | P20: =MAX(P19-Eingabe!$E$28,0) -> 0 | Q20: 0 | R20: =MAX(IF(G20>0,(H20*$G$4+I20*$H$4+J20*$I$4)*(F20-Q20),0),0) -> 0 | S20: =Eingabe!$C$25+Eingabe!$E$25*'Berechnung EB heute%'!F20 -> 39 | T20: -39
A21: 11 | B21: 0.04333333333 | C21: 0 | D21: -39 | E21: -2.34 | F21: 0 | G21: =IF(VLOOKUP(A21,Wechsel!$A$11:$E$31,1)=A21,VLOOKUP(A21,Wechsel!$A$11:$E$31,1),0) -> 0 | H21: =IF(G21>0,VLOOKUP(A21,Wechsel!$A$11:$E$31,3),H20) -> 0.6666666667 | I21: =IF(G21>0,VLOOKUP(A21,Wechsel!$A$11:$E$31,4),I20) -> 0 | J21: =IF(G21>0,VLOOKUP(A21,Wechsel!$A$11:$E$31,5),J20) -> 0.3333333333 | K21: 0 | L21: 0 | M21: -39 | N21: 0.8 | O21: 0 | P21: =MAX(P20-Eingabe!$E$28,0) -> 0 | Q21: 0 | R21: 0 | S21: =Eingabe!$C$25+Eingabe!$E$25*'Berechnung EB heute%'!F21 -> 39 | T21: -39
A22: 12 | B22: 0.04333333333 | C22: 0 | D22: -39 | E22: -2.34 | F22: 0 | G22: =IF(VLOOKUP(A22,Wechsel!$A$11:$E$31,1)=A22,VLOOKUP(A22,Wechsel!$A$11:$E$31,1),0) -> 0 | H22: =IF(G22>0,VLOOKUP(A22,Wechsel!$A$11:$E$31,3),H21) -> 0.6666666667 | I22: =IF(G22>0,VLOOKUP(A22,Wechsel!$A$11:$E$31,4),I21) -> 0 | J22: =IF(G22>0,VLOOKUP(A22,Wechsel!$A$11:$E$31,5),J21) -> 0.3333333333 | K22: 0 | L22: 0 | M22: -39 | N22: 0.8 | O22: 0 | P22: =MAX(P21-Eingabe!$E$28,0) -> 0 | Q22: 0 | R22: 0 | S22: =Eingabe!$C$25+Eingabe!$E$25*'Berechnung EB heute%'!F22 -> 39 | T22: -39
A23: 13 | B23: 0.04333333333 | C23: 0 | D23: -39 | E23: -2.34 | F23: 0 | G23: =IF(VLOOKUP(A23,Wechsel!$A$11:$E$31,1)=A23,VLOOKUP(A23,Wechsel!$A$11:$E$31,1),0) -> 0 | H23: =IF(G23>0,VLOOKUP(A23,Wechsel!$A$11:$E$31,3),H22) -> 0.6666666667 | I23: =IF(G23>0,VLOOKUP(A23,Wechsel!$A$11:$E$31,4),I22) -> 0 | J23: =IF(G23>0,VLOOKUP(A23,Wechsel!$A$11:$E$31,5),J22) -> 0.3333333333 | K23: 0 | L23: 0 | M23: -39 | N23: 0.8 | O23: 0 | P23: =MAX(P22-Eingabe!$E$28,0) -> 0 | Q23: 0 | R23: 0 | S23: =Eingabe!$C$25+Eingabe!$E$25*'Berechnung EB heute%'!F23 -> 39 | T23: -39
A24: 14 | B24: 0.04333333333 | C24: 0 | D24: -39 | E24: -2.34 | F24: 0 | G24: =IF(VLOOKUP(A24,Wechsel!$A$11:$E$31,1)=A24,VLOOKUP(A24,Wechsel!$A$11:$E$31,1),0) -> 0 | H24: =IF(G24>0,VLOOKUP(A24,Wechsel!$A$11:$E$31,3),H23) -> 0.6666666667 | I24: =IF(G24>0,VLOOKUP(A24,Wechsel!$A$11:$E$31,4),I23) -> 0 | J24: =IF(G24>0,VLOOKUP(A24,Wechsel!$A$11:$E$31,5),J23) -> 0.3333333333 | K24: 0 | L24: 0 | M24: -39 | N24: 0.8 | O24: 0 | P24: =MAX(P23-Eingabe!$E$28,0) -> 0 | Q24: 0 | R24: 0 | S24: =Eingabe!$C$25+Eingabe!$E$25*'Berechnung EB heute%'!F24 -> 39 | T24: -39
A25: 15 | B25: 0.04333333333 | C25: 0 | D25: -39 | E25: -2.34 | F25: 0 | G25: =IF(VLOOKUP(A25,Wechsel!$A$11:$E$31,1)=A25,VLOOKUP(A25,Wechsel!$A$11:$E$31,1),0) -> 0 | H25: =IF(G25>0,VLOOKUP(A25,Wechsel!$A$11:$E$31,3),H24) -> 0.6666666667 | I25: =IF(G25>0,VLOOKUP(A25,Wechsel!$A$11:$E$31,4),I24) -> 0 | J25: =IF(G25>0,VLOOKUP(A25,Wechsel!$A$11:$E$31,5),J24) -> 0.3333333333 | K25: 0 | L25: 0 | M25: -39 | N25: 0.8 | O25: 0 | P25: =MAX(P24-Eingabe!$E$28,0) -> 0 | Q25: 0 | R25: 0 | S25: =Eingabe!$C$25+Eingabe!$E$25*'Berechnung EB heute%'!F25 -> 39 | T25: -39
A26: 16 | B26: 0.04333333333 | C26: 0 | D26: -39 | E26: -2.34 | F26: 0 | G26: =IF(VLOOKUP(A26,Wechsel!$A$11:$E$31,1)=A26,VLOOKUP(A26,Wechsel!$A$11:$E$31,1),0) -> 0 | H26: =IF(G26>0,VLOOKUP(A26,Wechsel!$A$11:$E$31,3),H25) -> 0.6666666667 | I26: =IF(G26>0,VLOOKUP(A26,Wechsel!$A$11:$E$31,4),I25) -> 0 | J26: =IF(G26>0,VLOOKUP(A26,Wechsel!$A$11:$E$31,5),J25) -> 0.3333333333 | K26: 0 | L26: 0 | M26: -39 | N26: 0.8 | O26: 0 | P26: =MAX(P25-Eingabe!$E$28,0) -> 0 | Q26: 0 | R26: 0 | S26: =Eingabe!$C$25+Eingabe!$E$25*'Berechnung EB heute%'!F26 -> 39 | T26: -39
A27: 17 | B27: 0.04333333333 | C27: 0 | D27: -39 | E27: -2.34 | F27: 0 | G27: =IF(VLOOKUP(A27,Wechsel!$A$11:$E$31,1)=A27,VLOOKUP(A27,Wechsel!$A$11:$E$31,1),0) -> 0 | H27: =IF(G27>0,VLOOKUP(A27,Wechsel!$A$11:$E$31,3),H26) -> 0.6666666667 | I27: =IF(G27>0,VLOOKUP(A27,Wechsel!$A$11:$E$31,4),I26) -> 0 | J27: =IF(G27>0,VLOOKUP(A27,Wechsel!$A$11:$E$31,5),J26) -> 0.3333333333 | K27: 0 | L27: 0 | M27: -39 | N27: 0.8 | O27: 0 | P27: =MAX(P26-Eingabe!$E$28,0) -> 0 | Q27: 0 | R27: 0 | S27: =Eingabe!$C$25+Eingabe!$E$25*'Berechnung EB heute%'!F27 -> 39 | T27: -39
A28: 18 | B28: 0.04333333333 | C28: 0 | D28: -39 | E28: -2.34 | F28: 0 | G28: =IF(VLOOKUP(A28,Wechsel!$A$11:$E$31,1)=A28,VLOOKUP(A28,Wechsel!$A$11:$E$31,1),0) -> 18 | H28: =IF(G28>0,VLOOKUP(A28,Wechsel!$A$11:$E$31,3),H27) -> 0.3333333333 | I28: =IF(G28>0,VLOOKUP(A28,Wechsel!$A$11:$E$31,4),I27) -> 0 | J28: =IF(G28>0,VLOOKUP(A28,Wechsel!$A$11:$E$31,5),J27) -> 0.6666666667 | K28: 0 | L28: 0 | M28: -39 | N28: 0.9 | O28: 31.2 | P28: =MAX(P27-Eingabe!$E$28,0) -> 0 | Q28: 8.229 | R28: 0 | S28: =Eingabe!$C$25+Eingabe!$E$25*'Berechnung EB heute%'!F28 -> 39 | T28: -47.229
A29: 19 | B29: 0.03666666667 | C29: 0 | D29: -47.229 | E29: -2.83374 | F29: 0 | G29: =IF(VLOOKUP(A29,Wechsel!$A$11:$E$31,1)=A29,VLOOKUP(A29,Wechsel!$A$11:$E$31,1),0) -> 0 | H29: =IF(G29>0,VLOOKUP(A29,Wechsel!$A$11:$E$31,3),H28) -> 0.3333333333 | I29: =IF(G29>0,VLOOKUP(A29,Wechsel!$A$11:$E$31,4),I28) -> 0 | J29: =IF(G29>0,VLOOKUP(A29,Wechsel!$A$11:$E$31,5),J28) -> 0.6666666667 | K29: 0 | L29: 0 | M29: -47.229 | N29: 0.9 | O29: 0 | P29: =MAX(P28-Eingabe!$E$28,0) -> 0 | Q29: 0 | R29: 0 | S29: =Eingabe!$C$25+Eingabe!$E$25*'Berechnung EB heute%'!F29 -> 39 | T29: -39
A30: 20 | B30: 0.03666666667 | C30: 0 | D30: -39 | E30: -2.34 | F30: 0 | G30: =IF(VLOOKUP(A30,Wechsel!$A$11:$E$31,1)=A30,VLOOKUP(A30,Wechsel!$A$11:$E$31,1),0) -> 0 | H30: =IF(G30>0,VLOOKUP(A30,Wechsel!$A$11:$E$31,3),H29) -> 0.3333333333 | I30: =IF(G30>0,VLOOKUP(A30,Wechsel!$A$11:$E$31,4),I29) -> 0 | J30: =IF(G30>0,VLOOKUP(A30,Wechsel!$A$11:$E$31,5),J29) -> 0.6666666667 | K30: 0 | L30: 0 | M30: -47.229 | N30: 0.9 | O30: 0 | P30: =MAX(P29-Eingabe!$E$28,0) -> 0 | Q30: 0 | R30: 0 | S30: =Eingabe!$C$25+Eingabe!$E$25*'Berechnung EB heute%'!F30 -> 39 | T30: -39
A31: 21 | B31: 0.03666666667 | C31: 0 | D31: -39 | E31: -2.34 | F31: 0 | G31: =IF(VLOOKUP(A31,Wechsel!$A$11:$E$31,1)=A31,VLOOKUP(A31,Wechsel!$A$11:$E$31,1),0) -> 0 | H31: =IF(G31>0,VLOOKUP(A31,Wechsel!$A$11:$E$31,3),H30) -> 0.3333333333 | I31: =IF(G31>0,VLOOKUP(A31,Wechsel!$A$11:$E$31,4),I30) -> 0 | J31: =IF(G31>0,VLOOKUP(A31,Wechsel!$A$11:$E$31,5),J30) -> 0.6666666667 | K31: 0 | L31: 0 | M31: -47.229 | N31: 0.9 | O31: 0 | P31: =MAX(P30-Eingabe!$E$28,0) -> 0 | Q31: 0 | R31: 0 | S31: =Eingabe!$C$25+Eingabe!$E$25*'Berechnung EB heute%'!F31 -> 39 | T31: -39
A32: 22 | B32: 0.03666666667 | C32: 0 | D32: -39 | E32: -2.34 | F32: 0 | G32: =IF(VLOOKUP(A32,Wechsel!$A$11:$E$31,1)=A32,VLOOKUP(A32,Wechsel!$A$11:$E$31,1),0) -> 0 | H32: =IF(G32>0,VLOOKUP(A32,Wechsel!$A$11:$E$31,3),H31) -> 0.3333333333 | I32: =IF(G32>0,VLOOKUP(A32,Wechsel!$A$11:$E$31,4),I31) -> 0 | J32: =IF(G32>0,VLOOKUP(A32,Wechsel!$A$11:$E$31,5),J31) -> 0.6666666667 | K32: 0 | L32: 0 | M32: -47.229 | N32: 0.9 | O32: 0 | P32: =MAX(P31-Eingabe!$E$28,0) -> 0 | Q32: 0 | R32: 0 | S32: =Eingabe!$C$25+Eingabe!$E$25*'Berechnung EB heute%'!F32 -> 39 | T32: -39
A33: 23 | B33: 0.03666666667 | C33: 0 | D33: -39 | E33: -2.34 | F33: 0 | G33: =IF(VLOOKUP(A33,Wechsel!$A$11:$E$31,1)=A33,VLOOKUP(A33,Wechsel!$A$11:$E$31,1),0) -> 0 | H33: =IF(G33>0,VLOOKUP(A33,Wechsel!$A$11:$E$31,3),H32) -> 0.3333333333 | I33: =IF(G33>0,VLOOKUP(A33,Wechsel!$A$11:$E$31,4),I32) -> 0 | J33: =IF(G33>0,VLOOKUP(A33,Wechsel!$A$11:$E$31,5),J32) -> 0.6666666667 | K33: 0 | L33: 0 | M33: -47.229 | N33: 0.9 | O33: 0 | P33: =MAX(P32-Eingabe!$E$28,0) -> 0 | Q33: 0 | R33: 0 | S33: =Eingabe!$C$25+Eingabe!$E$25*'Berechnung EB heute%'!F33 -> 39 | T33: -39
A34: 24 | B34: 0.03666666667 | C34: 0 | D34: -39 | E34: -2.34 | F34: 0 | G34: =IF(VLOOKUP(A34,Wechsel!$A$11:$E$31,1)=A34,VLOOKUP(A34,Wechsel!$A$11:$E$31,1),0) -> 0 | H34: =IF(G34>0,VLOOKUP(A34,Wechsel!$A$11:$E$31,3),H33) -> 0.3333333333 | I34: =IF(G34>0,VLOOKUP(A34,Wechsel!$A$11:$E$31,4),I33) -> 0 | J34: =IF(G34>0,VLOOKUP(A34,Wechsel!$A$11:$E$31,5),J33) -> 0.6666666667 | K34: 0 | L34: 0 | M34: -47.229 | N34: 0.9 | O34: 0 | P34: =MAX(P33-Eingabe!$E$28,0) -> 0 | Q34: 0 | R34: 0 | S34: =Eingabe!$C$25+Eingabe!$E$25*'Berechnung EB heute%'!F34 -> 39 | T34: -39
A35: 25 | B35: 0.03666666667 | C35: 0 | D35: -39 | E35: -2.34 | F35: 0 | G35: =IF(VLOOKUP(A35,Wechsel!$A$11:$E$31,1)=A35,VLOOKUP(A35,Wechsel!$A$11:$E$31,1),0) -> 0 | H35: =IF(G35>0,VLOOKUP(A35,Wechsel!$A$11:$E$31,3),H34) -> 0.3333333333 | I35: =IF(G35>0,VLOOKUP(A35,Wechsel!$A$11:$E$31,4),I34) -> 0 | J35: =IF(G35>0,VLOOKUP(A35,Wechsel!$A$11:$E$31,5),J34) -> 0.6666666667 | K35: 0 | L35: 0 | M35: -47.229 | N35: 0.9 | O35: 0 | P35: =MAX(P34-Eingabe!$E$28,0) -> 0 | Q35: 0 | R35: 0 | S35: =Eingabe!$C$25+Eingabe!$E$25*'Berechnung EB heute%'!F35 -> 39 | T35: -39
A36: 26 | B36: 0.03666666667 | C36: 0 | D36: -39 | E36: -2.34 | F36: 0 | G36: =IF(VLOOKUP(A36,Wechsel!$A$11:$E$31,1)=A36,VLOOKUP(A36,Wechsel!$A$11:$E$31,1),0) -> 0 | H36: =IF(G36>0,VLOOKUP(A36,Wechsel!$A$11:$E$31,3),H35) -> 0.3333333333 | I36: =IF(G36>0,VLOOKUP(A36,Wechsel!$A$11:$E$31,4),I35) -> 0 | J36: =IF(G36>0,VLOOKUP(A36,Wechsel!$A$11:$E$31,5),J35) -> 0.6666666667 | K36: 0 | L36: 0 | M36: -47.229 | N36: 0.9 | O36: 0 | P36: =MAX(P35-Eingabe!$E$28,0) -> 0 | Q36: 0 | R36: 0 | S36: =Eingabe!$C$25+Eingabe!$E$25*'Berechnung EB heute%'!F36 -> 39 | T36: -39
A37: 27 | B37: 0.03666666667 | C37: 0 | D37: -39 | E37: -2.34 | F37: 0 | G37: =IF(VLOOKUP(A37,Wechsel!$A$11:$E$31,1)=A37,VLOOKUP(A37,Wechsel!$A$11:$E$31,1),0) -> 27 | H37: =IF(G37>0,VLOOKUP(A37,Wechsel!$A$11:$E$31,3),H36) -> 0 | I37: =IF(G37>0,VLOOKUP(A37,Wechsel!$A$11:$E$31,4),I36) -> 0 | J37: =IF(G37>0,VLOOKUP(A37,Wechsel!$A$11:$E$31,5),J36) -> 1 | K37: 0 | L37: 0 | M37: -47.229 | N37: 1 | O37: 42.5061 | P37: =MAX(P36-Eingabe!$E$28,0) -> 0 | Q37: 11.21098388 | R37: 0 | S37: =Eingabe!$C$25+Eingabe!$E$25*'Berechnung EB heute%'!F37 -> 39 | T37: -50.21098387
A38: 28 | B38: 0.03 | C38: 0 | D38: -50.21098387 | E38: -3.012659032 | F38: 0 | G38: =IF(VLOOKUP(A38,Wechsel!$A$11:$E$31,1)=A38,VLOOKUP(A38,Wechsel!$A$11:$E$31,1),0) -> 0 | H38: =IF(G38>0,VLOOKUP(A38,Wechsel!$A$11:$E$31,3),H37) -> 0 | I38: =IF(G38>0,VLOOKUP(A38,Wechsel!$A$11:$E$31,4),I37) -> 0 | J38: =IF(G38>0,VLOOKUP(A38,Wechsel!$A$11:$E$31,5),J37) -> 1 | K38: 0 | L38: 0 | M38: -50.21098387 | N38: 1 | O38: 0 | P38: =MAX(P37-Eingabe!$E$28,0) -> 0 | Q38: 0 | R38: 0 | S38: =Eingabe!$C$25+Eingabe!$E$25*'Berechnung EB heute%'!F38 -> 39 | T38: -39
A39: 29 | B39: 0.03 | C39: 0 | D39: -39 | E39: -2.34 | F39: 0 | G39: =IF(VLOOKUP(A39,Wechsel!$A$11:$E$31,1)=A39,VLOOKUP(A39,Wechsel!$A$11:$E$31,1),0) -> 0 | H39: =IF(G39>0,VLOOKUP(A39,Wechsel!$A$11:$E$31,3),H38) -> 0 | I39: =IF(G39>0,VLOOKUP(A39,Wechsel!$A$11:$E$31,4),I38) -> 0 | J39: =IF(G39>0,VLOOKUP(A39,Wechsel!$A$11:$E$31,5),J38) -> 1 | K39: 0 | L39: 0 | M39: -50.21098387 | N39: =1-(H39*$G$5+I39*$H$5+J39*$I$5) -> 1 | O39: 0 | P39: =MAX(P38-Eingabe!$E$28,0) -> 0 | Q39: 0 | R39: 0 | S39: =Eingabe!$C$25+Eingabe!$E$25*'Berechnung EB heute%'!F39 -> 39 | T39: -39
A40: 30 | B40: 0.03 | C40: 0 | D40: -39 | E40: -2.34 | F40: 0 | G40: =IF(VLOOKUP(A40,Wechsel!$A$11:$E$31,1)=A40,VLOOKUP(A40,Wechsel!$A$11:$E$31,1),0) -> 0 | H40: =IF(G40>0,VLOOKUP(A40,Wechsel!$A$11:$E$31,3),H39) -> 0 | I40: =IF(G40>0,VLOOKUP(A40,Wechsel!$A$11:$E$31,4),I39) -> 0 | J40: =IF(G40>0,VLOOKUP(A40,Wechsel!$A$11:$E$31,5),J39) -> 1 | K40: 0 | L40: 0 | M40: -50.21098387 | N40: 1 | O40: 0 | P40: =MAX(P39-Eingabe!$E$28,0) -> 0 | Q40: 0 | R40: 0 | S40: =Eingabe!$C$25+Eingabe!$E$25*'Berechnung EB heute%'!F40 -> 39 | T40: -39
A41: 31 | B41: 0.03 | C41: 0 | D41: -39 | E41: -2.34 | F41: 0 | G41: =IF(VLOOKUP(A41,Wechsel!$A$11:$E$31,1)=A41,VLOOKUP(A41,Wechsel!$A$11:$E$31,1),0) -> 0 | H41: =IF(G41>0,VLOOKUP(A41,Wechsel!$A$11:$E$31,3),H40) -> 0 | I41: =IF(G41>0,VLOOKUP(A41,Wechsel!$A$11:$E$31,4),I40) -> 0 | J41: =IF(G41>0,VLOOKUP(A41,Wechsel!$A$11:$E$31,5),J40) -> 1 | K41: 0 | L41: 0 | M41: -50.21098387 | N41: 1 | O41: 0 | P41: =MAX(P40-Eingabe!$E$28,0) -> 0 | Q41: 0 | R41: 0 | S41: =Eingabe!$C$25+Eingabe!$E$25*'Berechnung EB heute%'!F41 -> 39 | T41: -39
A42: 32 | B42: 0.03 | C42: 0 | D42: -39 | E42: -2.34 | F42: 0 | G42: =IF(VLOOKUP(A42,Wechsel!$A$11:$E$31,1)=A42,VLOOKUP(A42,Wechsel!$A$11:$E$31,1),0) -> 0 | H42: =IF(G42>0,VLOOKUP(A42,Wechsel!$A$11:$E$31,3),H41) -> 0 | I42: =IF(G42>0,VLOOKUP(A42,Wechsel!$A$11:$E$31,4),I41) -> 0 | J42: =IF(G42>0,VLOOKUP(A42,Wechsel!$A$11:$E$31,5),J41) -> 1 | K42: 0 | L42: 0 | M42: -50.21098387 | N42: 1 | O42: 0 | P42: =MAX(P41-Eingabe!$E$28,0) -> 0 | Q42: 0 | R42: 0 | S42: =Eingabe!$C$25+Eingabe!$E$25*'Berechnung EB heute%'!F42 -> 39 | T42: -39
A43: 33 | B43: 0.03 | C43: 0 | D43: -39 | E43: -2.34 | F43: 0 | G43: =IF(VLOOKUP(A43,Wechsel!$A$11:$E$31,1)=A43,VLOOKUP(A43,Wechsel!$A$11:$E$31,1),0) -> 0 | H43: =IF(G43>0,VLOOKUP(A43,Wechsel!$A$11:$E$31,3),H42) -> 0 | I43: =IF(G43>0,VLOOKUP(A43,Wechsel!$A$11:$E$31,4),I42) -> 0 | J43: =IF(G43>0,VLOOKUP(A43,Wechsel!$A$11:$E$31,5),J42) -> 1 | K43: 0 | L43: 0 | M43: -50.21098387 | N43: 1 | O43: 0 | P43: =MAX(P42-Eingabe!$E$28,0) -> 0 | Q43: 0 | R43: 0 | S43: =Eingabe!$C$25+Eingabe!$E$25*'Berechnung EB heute%'!F43 -> 39 | T43: -39
A44: 34 | B44: 0.03 | C44: 0 | D44: =IF(A44>$B$3,0,T43) -> -39 | E44: =(C44+D44)*$B$1 -> -2.34 | F44: 0 | G44: =IF(VLOOKUP(A44,Wechsel!$A$11:$E$31,1)=A44,VLOOKUP(A44,Wechsel!$A$11:$E$31,1),0) -> 0 | H44: =IF(G44>0,VLOOKUP(A44,Wechsel!$A$11:$E$31,3),H43) -> 0 | I44: =IF(G44>0,VLOOKUP(A44,Wechsel!$A$11:$E$31,4),I43) -> 0 | J44: =IF(G44>0,VLOOKUP(A44,Wechsel!$A$11:$E$31,5),J43) -> 1 | K44: 0 | L44: 0 | M44: =IF(A44>$B$3,0,IF(G43>0,T43,C44+M43)) -> -50.21098387 | N44: 1 | O44: 0 | P44: =MAX(P43-Eingabe!$E$28,0) -> 0 | Q44: 0 | R44: 0 | S44: =Eingabe!$C$25+Eingabe!$E$25*'Berechnung EB heute%'!F44 -> 39 | T44: -39
A45: 35 | B45: 0.03 | C45: 0 | D45: -39 | E45: -2.34 | F45: 0 | G45: =IF(VLOOKUP(A45,Wechsel!$A$11:$E$31,1)=A45,VLOOKUP(A45,Wechsel!$A$11:$E$31,1),0) -> 0 | H45: =IF(G45>0,VLOOKUP(A45,Wechsel!$A$11:$E$31,3),H44) -> 0 | I45: =IF(G45>0,VLOOKUP(A45,Wechsel!$A$11:$E$31,4),I44) -> 0 | J45: =IF(G45>0,VLOOKUP(A45,Wechsel!$A$11:$E$31,5),J44) -> 1 | K45: 0 | L45: 0 | M45: -50.21098387 | N45: 1 | O45: 0 | P45: =MAX(P44-Eingabe!$E$28,0) -> 0 | Q45: 0 | R45: 0 | S45: =Eingabe!$C$25+Eingabe!$E$25*'Berechnung EB heute%'!F45 -> 39 | T45: -39
A46: 36 | B46: 0.03 | C46: 0 | D46: -39 | E46: -2.34 | F46: 0 | G46: =IF(VLOOKUP(A46,Wechsel!$A$11:$E$31,1)=A46,VLOOKUP(A46,Wechsel!$A$11:$E$31,1),0) -> 0 | H46: =IF(G46>0,VLOOKUP(A46,Wechsel!$A$11:$E$31,3),H45) -> 0 | I46: =IF(G46>0,VLOOKUP(A46,Wechsel!$A$11:$E$31,4),I45) -> 0 | J46: =IF(G46>0,VLOOKUP(A46,Wechsel!$A$11:$E$31,5),J45) -> 1 | K46: 0 | L46: 0 | M46: -50.21098387 | N46: 1 | O46: 0 | P46: =MAX(P45-Eingabe!$E$28,0) -> 0 | Q46: 0 | R46: 0 | S46: =Eingabe!$C$25+Eingabe!$E$25*'Berechnung EB heute%'!F46 -> 39 | T46: -39
A47: 37 | B47: 0.03 | C47: 0 | D47: 0 | E47: 0 | F47: 0 | G47: =IF(VLOOKUP(A47,Wechsel!$A$11:$E$31,1)=A47,VLOOKUP(A47,Wechsel!$A$11:$E$31,1),0) -> 0 | H47: =IF(G47>0,VLOOKUP(A47,Wechsel!$A$11:$E$31,3),H46) -> 0 | I47: =IF(G47>0,VLOOKUP(A47,Wechsel!$A$11:$E$31,4),I46) -> 0 | J47: =IF(G47>0,VLOOKUP(A47,Wechsel!$A$11:$E$31,5),J46) -> 1 | K47: 0 | L47: 0 | M47: 0 | N47: 1 | O47: 0 | P47: =MAX(P46-Eingabe!$E$28,0) -> 0 | Q47: 0 | R47: 0 | S47: =Eingabe!$C$25+Eingabe!$E$25*'Berechnung EB heute%'!F47 -> 39 | T47: -39
A48: 38 | B48: 0.03 | C48: 0 | D48: 0 | E48: 0 | F48: 0 | G48: =IF(VLOOKUP(A48,Wechsel!$A$11:$E$31,1)=A48,VLOOKUP(A48,Wechsel!$A$11:$E$31,1),0) -> 0 | H48: =IF(G48>0,VLOOKUP(A48,Wechsel!$A$11:$E$31,3),H47) -> 0 | I48: =IF(G48>0,VLOOKUP(A48,Wechsel!$A$11:$E$31,4),I47) -> 0 | J48: =IF(G48>0,VLOOKUP(A48,Wechsel!$A$11:$E$31,5),J47) -> 1 | K48: 0 | L48: 0 | M48: 0 | N48: 1 | O48: 0 | P48: =MAX(P47-Eingabe!$E$28,0) -> 0 | Q48: 0 | R48: 0 | S48: =Eingabe!$C$25+Eingabe!$E$25*'Berechnung EB heute%'!F48 -> 39 | T48: -39
A49: 39 | B49: 0.03 | C49: 0 | D49: 0 | E49: 0 | F49: 0 | G49: =IF(VLOOKUP(A49,Wechsel!$A$11:$E$31,1)=A49,VLOOKUP(A49,Wechsel!$A$11:$E$31,1),0) -> 0 | H49: =IF(G49>0,VLOOKUP(A49,Wechsel!$A$11:$E$31,3),H48) -> 0 | I49: =IF(G49>0,VLOOKUP(A49,Wechsel!$A$11:$E$31,4),I48) -> 0 | J49: =IF(G49>0,VLOOKUP(A49,Wechsel!$A$11:$E$31,5),J48) -> 1 | K49: 0 | L49: 0 | M49: 0 | N49: 1 | O49: 0 | P49: =MAX(P48-Eingabe!$E$28,0) -> 0 | Q49: 0 | R49: 0 | S49: =Eingabe!$C$25+Eingabe!$E$25*'Berechnung EB heute%'!F49 -> 39 | T49: -39
A50: 40 | B50: 0.03 | C50: 0 | D50: 0 | E50: 0 | F50: 0 | G50: =IF(VLOOKUP(A50,Wechsel!$A$11:$E$31,1)=A50,VLOOKUP(A50,Wechsel!$A$11:$E$31,1),0) -> 0 | H50: =IF(G50>0,VLOOKUP(A50,Wechsel!$A$11:$E$31,3),H49) -> 0 | I50: =IF(G50>0,VLOOKUP(A50,Wechsel!$A$11:$E$31,4),I49) -> 0 | J50: =IF(G50>0,VLOOKUP(A50,Wechsel!$A$11:$E$31,5),J49) -> 1 | K50: 0 | L50: 0 | M50: 0 | N50: 1 | O50: 0 | P50: =MAX(P49-Eingabe!$E$28,0) -> 0 | Q50: 0 | R50: 0 | S50: =Eingabe!$C$25+Eingabe!$E$25*'Berechnung EB heute%'!F50 -> 39 | T50: -39
A51: 41 | B51: 0.03 | C51: 0 | D51: 0 | E51: 0 | F51: 0 | G51: =IF(VLOOKUP(A51,Wechsel!$A$11:$E$31,1)=A51,VLOOKUP(A51,Wechsel!$A$11:$E$31,1),0) -> 0 | H51: =IF(G51>0,VLOOKUP(A51,Wechsel!$A$11:$E$31,3),H50) -> 0 | I51: =IF(G51>0,VLOOKUP(A51,Wechsel!$A$11:$E$31,4),I50) -> 0 | J51: =IF(G51>0,VLOOKUP(A51,Wechsel!$A$11:$E$31,5),J50) -> 1 | K51: 0 | L51: 0 | M51: 0 | N51: 1 | O51: 0 | P51: =MAX(P50-Eingabe!$E$28,0) -> 0 | Q51: 0 | R51: 0 | S51: =Eingabe!$C$25+Eingabe!$E$25*'Berechnung EB heute%'!F51 -> 39 | T51: -39
A52: 42 | B52: 0.03 | C52: 0 | D52: 0 | E52: 0 | F52: 0 | G52: =IF(VLOOKUP(A52,Wechsel!$A$11:$E$31,1)=A52,VLOOKUP(A52,Wechsel!$A$11:$E$31,1),0) -> 0 | H52: =IF(G52>0,VLOOKUP(A52,Wechsel!$A$11:$E$31,3),H51) -> 0 | I52: =IF(G52>0,VLOOKUP(A52,Wechsel!$A$11:$E$31,4),I51) -> 0 | J52: =IF(G52>0,VLOOKUP(A52,Wechsel!$A$11:$E$31,5),J51) -> 1 | K52: 0 | L52: 0 | M52: 0 | N52: 1 | O52: 0 | P52: =MAX(P51-Eingabe!$E$28,0) -> 0 | Q52: 0 | R52: 0 | S52: =Eingabe!$C$25+Eingabe!$E$25*'Berechnung EB heute%'!F52 -> 39 | T52: -39
A53: 43 | B53: 0.03 | C53: 0 | D53: 0 | E53: 0 | F53: 0 | G53: =IF(VLOOKUP(A53,Wechsel!$A$11:$E$31,1)=A53,VLOOKUP(A53,Wechsel!$A$11:$E$31,1),0) -> 0 | H53: =IF(G53>0,VLOOKUP(A53,Wechsel!$A$11:$E$31,3),H52) -> 0 | I53: =IF(G53>0,VLOOKUP(A53,Wechsel!$A$11:$E$31,4),I52) -> 0 | J53: =IF(G53>0,VLOOKUP(A53,Wechsel!$A$11:$E$31,5),J52) -> 1 | K53: 0 | L53: 0 | M53: 0 | N53: 1 | O53: 0 | P53: =MAX(P52-Eingabe!$E$28,0) -> 0 | Q53: 0 | R53: 0 | S53: =Eingabe!$C$25+Eingabe!$E$25*'Berechnung EB heute%'!F53 -> 39 | T53: -39
A54: 44 | B54: 0.03 | C54: 0 | D54: 0 | E54: 0 | F54: 0 | G54: =IF(VLOOKUP(A54,Wechsel!$A$11:$E$31,1)=A54,VLOOKUP(A54,Wechsel!$A$11:$E$31,1),0) -> 0 | H54: =IF(G54>0,VLOOKUP(A54,Wechsel!$A$11:$E$31,3),H53) -> 0 | I54: =IF(G54>0,VLOOKUP(A54,Wechsel!$A$11:$E$31,4),I53) -> 0 | J54: =IF(G54>0,VLOOKUP(A54,Wechsel!$A$11:$E$31,5),J53) -> 1 | K54: 0 | L54: 0 | M54: 0 | N54: 1 | O54: 0 | P54: =MAX(P53-Eingabe!$E$28,0) -> 0 | Q54: 0 | R54: 0 | S54: =Eingabe!$C$25+Eingabe!$E$25*'Berechnung EB heute%'!F54 -> 39 | T54: -39
A55: 45 | B55: 0.03 | C55: 0 | D55: 0 | E55: 0 | F55: 0 | G55: =IF(VLOOKUP(A55,Wechsel!$A$11:$E$31,1)=A55,VLOOKUP(A55,Wechsel!$A$11:$E$31,1),0) -> 0 | H55: =IF(G55>0,VLOOKUP(A55,Wechsel!$A$11:$E$31,3),H54) -> 0 | I55: =IF(G55>0,VLOOKUP(A55,Wechsel!$A$11:$E$31,4),I54) -> 0 | J55: =IF(G55>0,VLOOKUP(A55,Wechsel!$A$11:$E$31,5),J54) -> 1 | K55: 0 | L55: 0 | M55: 0 | N55: 1 | O55: 0 | P55: =MAX(P54-Eingabe!$E$28,0) -> 0 | Q55: 0 | R55: 0 | S55: =Eingabe!$C$25+Eingabe!$E$25*'Berechnung EB heute%'!F55 -> 39 | T55: -39
A56: 46 | B56: 0.03 | C56: 0 | D56: 0 | E56: 0 | F56: 0 | G56: =IF(VLOOKUP(A56,Wechsel!$A$11:$E$31,1)=A56,VLOOKUP(A56,Wechsel!$A$11:$E$31,1),0) -> 0 | H56: =IF(G56>0,VLOOKUP(A56,Wechsel!$A$11:$E$31,3),H55) -> 0 | I56: =IF(G56>0,VLOOKUP(A56,Wechsel!$A$11:$E$31,4),I55) -> 0 | J56: =IF(G56>0,VLOOKUP(A56,Wechsel!$A$11:$E$31,5),J55) -> 1 | K56: 0 | L56: 0 | M56: 0 | N56: 1 | O56: 0 | P56: =MAX(P55-Eingabe!$E$28,0) -> 0 | Q56: 0 | R56: 0 | S56: =Eingabe!$C$25+Eingabe!$E$25*'Berechnung EB heute%'!F56 -> 39 | T56: -39
A57: 47 | B57: 0.03 | C57: 0 | D57: 0 | E57: 0 | F57: 0 | G57: =IF(VLOOKUP(A57,Wechsel!$A$11:$E$31,1)=A57,VLOOKUP(A57,Wechsel!$A$11:$E$31,1),0) -> 0 | H57: =IF(G57>0,VLOOKUP(A57,Wechsel!$A$11:$E$31,3),H56) -> 0 | I57: =IF(G57>0,VLOOKUP(A57,Wechsel!$A$11:$E$31,4),I56) -> 0 | J57: =IF(G57>0,VLOOKUP(A57,Wechsel!$A$11:$E$31,5),J56) -> 1 | K57: 0 | L57: 0 | M57: 0 | N57: 1 | O57: 0 | P57: =MAX(P56-Eingabe!$E$28,0) -> 0 | Q57: 0 | R57: 0 | S57: =Eingabe!$C$25+Eingabe!$E$25*'Berechnung EB heute%'!F57 -> 39 | T57: -39
A58: 48 | B58: 0.03 | C58: 0 | D58: 0 | E58: 0 | F58: 0 | G58: =IF(VLOOKUP(A58,Wechsel!$A$11:$E$31,1)=A58,VLOOKUP(A58,Wechsel!$A$11:$E$31,1),0) -> 0 | H58: =IF(G58>0,VLOOKUP(A58,Wechsel!$A$11:$E$31,3),H57) -> 0 | I58: =IF(G58>0,VLOOKUP(A58,Wechsel!$A$11:$E$31,4),I57) -> 0 | J58: =IF(G58>0,VLOOKUP(A58,Wechsel!$A$11:$E$31,5),J57) -> 1 | K58: 0 | L58: 0 | M58: 0 | N58: 1 | O58: 0 | P58: =MAX(P57-Eingabe!$E$28,0) -> 0 | Q58: 0 | R58: 0 | S58: =Eingabe!$C$25+Eingabe!$E$25*'Berechnung EB heute%'!F58 -> 39 | T58: -39
A59: 49 | B59: 0.03 | C59: 0 | D59: 0 | E59: 0 | F59: 0 | G59: =IF(VLOOKUP(A59,Wechsel!$A$11:$E$31,1)=A59,VLOOKUP(A59,Wechsel!$A$11:$E$31,1),0) -> 0 | H59: =IF(G59>0,VLOOKUP(A59,Wechsel!$A$11:$E$31,3),H58) -> 0 | I59: =IF(G59>0,VLOOKUP(A59,Wechsel!$A$11:$E$31,4),I58) -> 0 | J59: =IF(G59>0,VLOOKUP(A59,Wechsel!$A$11:$E$31,5),J58) -> 1 | K59: 0 | L59: 0 | M59: 0 | N59: 1 | O59: 0 | P59: =MAX(P58-Eingabe!$E$28,0) -> 0 | Q59: 0 | R59: 0 | S59: =Eingabe!$C$25+Eingabe!$E$25*'Berechnung EB heute%'!F59 -> 39 | T59: -39
A60: 50 | B60: 0.03 | C60: 0 | D60: 0 | E60: 0 | F60: 0 | G60: =IF(VLOOKUP(A60,Wechsel!$A$11:$E$31,1)=A60,VLOOKUP(A60,Wechsel!$A$11:$E$31,1),0) -> 0 | H60: =IF(G60>0,VLOOKUP(A60,Wechsel!$A$11:$E$31,3),H59) -> 0 | I60: =IF(G60>0,VLOOKUP(A60,Wechsel!$A$11:$E$31,4),I59) -> 0 | J60: =IF(G60>0,VLOOKUP(A60,Wechsel!$A$11:$E$31,5),J59) -> 1 | K60: 0 | L60: 0 | M60: 0 | N60: 1 | O60: 0 | P60: =MAX(P59-Eingabe!$E$28,0) -> 0 | Q60: 0 | R60: 0 | S60: =Eingabe!$C$25+Eingabe!$E$25*'Berechnung EB heute%'!F60 -> 39 | T60: -39
A61: 51 | B61: =$G$3*H60+$H$3*I60+$I$3*J60 -> 0.03 | C61: 1 | D61: =IF(A61>$B$3,0,T60) -> 0 | E61: =(C61+D61)*$B$1 -> 0.06 | F61: =MAX(IF(A61>$B$3,0,C61+E61+D61),0) -> 0 | G61: =IF(VLOOKUP(A61,Wechsel!$A$11:$E$31,1)=A61,VLOOKUP(A61,Wechsel!$A$11:$E$31,1),0) -> 0 | H61: =IF(G61>0,VLOOKUP(A61,Wechsel!$A$11:$E$31,3),H60) -> 0 | I61: =IF(G61>0,VLOOKUP(A61,Wechsel!$A$11:$E$31,4),I60) -> 0 | J61: =IF(G61>0,VLOOKUP(A61,Wechsel!$A$11:$E$31,5),J60) -> 1 | K61: =D61*$M$1*0.7*0.7*$M$2*H61+D61*$M$1*0.85*0.7*$M$2*I61+D61*$M$1*0.7*$M$2*J61 -> 0 | L61: =IF(G60>0,K61,K61+L60) -> 0 | M61: =IF(A61>$B$3,0,IF(G60>0,T60,C61+M60)) -> 0 | N61: =1-(H61*$G$5+I61*$H$5+J61*$I$5) -> 1 | O61: =IF(G61>0,(F61-M61)*N60,0) -> 0 | P61: =MAX(P60-Eingabe!$E$28,0) -> 0 | Q61: =MAX(0,K61+O61*$M$2-P61-IF(G61>0,-(L60+K61),0)) -> 0 | R61: =MAX(IF(G61>0,(H61*$G$4+I61*$H$4+J61*$I$4)*(F61-Q61),0),0) -> 0 | S61: =Eingabe!$C$25+Eingabe!$E$25*'Berechnung EB heute%'!F61 -> 39 | T61: =F61-Q61-R61-S61 -> -39
A62: 52 | B62: 0.03 | C62: 2 | D62: 0 | E62: 0.12 | F62: 0 | G62: =IF(VLOOKUP(A62,Wechsel!$A$11:$E$31,1)=A62,VLOOKUP(A62,Wechsel!$A$11:$E$31,1),0) -> 0 | H62: =IF(G62>0,VLOOKUP(A62,Wechsel!$A$11:$E$31,3),H61) -> 0 | I62: =IF(G62>0,VLOOKUP(A62,Wechsel!$A$11:$E$31,4),I61) -> 0 | J62: =IF(G62>0,VLOOKUP(A62,Wechsel!$A$11:$E$31,5),J61) -> 1 | K62: 0 | L62: 0 | M62: 0 | N62: 1 | O62: 0 | P62: =MAX(P61-Eingabe!$E$28,0) -> 0 | Q62: 0 | R62: 0 | S62: =Eingabe!$C$25+Eingabe!$E$25*'Berechnung EB heute%'!F62 -> 39 | T62: -39
A63: 53 | B63: 0.03 | C63: 3 | D63: 0 | E63: 0.18 | F63: 0 | G63: =IF(VLOOKUP(A63,Wechsel!$A$11:$E$31,1)=A63,VLOOKUP(A63,Wechsel!$A$11:$E$31,1),0) -> 0 | H63: =IF(G63>0,VLOOKUP(A63,Wechsel!$A$11:$E$31,3),H62) -> 0 | I63: =IF(G63>0,VLOOKUP(A63,Wechsel!$A$11:$E$31,4),I62) -> 0 | J63: =IF(G63>0,VLOOKUP(A63,Wechsel!$A$11:$E$31,5),J62) -> 1 | K63: 0 | L63: 0 | M63: 0 | N63: 1 | O63: 0 | P63: =MAX(P62-Eingabe!$E$28,0) -> 0 | Q63: 0 | R63: 0 | S63: =Eingabe!$C$25+Eingabe!$E$25*'Berechnung EB heute%'!F63 -> 39 | T63: -39
A64: 54 | B64: 0.03 | C64: 4 | D64: 0 | E64: 0.24 | F64: 0 | G64: =IF(VLOOKUP(A64,Wechsel!$A$11:$E$31,1)=A64,VLOOKUP(A64,Wechsel!$A$11:$E$31,1),0) -> 0 | H64: =IF(G64>0,VLOOKUP(A64,Wechsel!$A$11:$E$31,3),H63) -> 0 | I64: =IF(G64>0,VLOOKUP(A64,Wechsel!$A$11:$E$31,4),I63) -> 0 | J64: =IF(G64>0,VLOOKUP(A64,Wechsel!$A$11:$E$31,5),J63) -> 1 | K64: 0 | L64: 0 | M64: 0 | N64: 1 | O64: 0 | P64: =MAX(P63-Eingabe!$E$28,0) -> 0 | Q64: 0 | R64: 0 | S64: =Eingabe!$C$25+Eingabe!$E$25*'Berechnung EB heute%'!F64 -> 39 | T64: -39
A65: 55 | B65: 0.03 | C65: 5 | D65: 0 | E65: 0.3 | F65: 0 | G65: =IF(VLOOKUP(A65,Wechsel!$A$11:$E$31,1)=A65,VLOOKUP(A65,Wechsel!$A$11:$E$31,1),0) -> 0 | H65: =IF(G65>0,VLOOKUP(A65,Wechsel!$A$11:$E$31,3),H64) -> 0 | I65: =IF(G65>0,VLOOKUP(A65,Wechsel!$A$11:$E$31,4),I64) -> 0 | J65: =IF(G65>0,VLOOKUP(A65,Wechsel!$A$11:$E$31,5),J64) -> 1 | K65: 0 | L65: 0 | M65: 0 | N65: 1 | O65: 0 | P65: =MAX(P64-Eingabe!$E$28,0) -> 0 | Q65: 0 | R65: 0 | S65: =Eingabe!$C$25+Eingabe!$E$25*'Berechnung EB heute%'!F65 -> 39 | T65: -39
A66: 56 | B66: 0.03 | C66: 6 | D66: 0 | E66: 0.36 | F66: 0 | G66: =IF(VLOOKUP(A66,Wechsel!$A$11:$E$31,1)=A66,VLOOKUP(A66,Wechsel!$A$11:$E$31,1),0) -> 0 | H66: =IF(G66>0,VLOOKUP(A66,Wechsel!$A$11:$E$31,3),H65) -> 0 | I66: =IF(G66>0,VLOOKUP(A66,Wechsel!$A$11:$E$31,4),I65) -> 0 | J66: =IF(G66>0,VLOOKUP(A66,Wechsel!$A$11:$E$31,5),J65) -> 1 | K66: 0 | L66: 0 | M66: 0 | N66: 1 | O66: 0 | P66: =MAX(P65-Eingabe!$E$28,0) -> 0 | Q66: 0 | R66: 0 | S66: =Eingabe!$C$25+Eingabe!$E$25*'Berechnung EB heute%'!F66 -> 39 | T66: -39
A67: 57 | B67: 0.03 | C67: 7 | D67: 0 | E67: 0.42 | F67: 0 | G67: =IF(VLOOKUP(A67,Wechsel!$A$11:$E$31,1)=A67,VLOOKUP(A67,Wechsel!$A$11:$E$31,1),0) -> 0 | H67: =IF(G67>0,VLOOKUP(A67,Wechsel!$A$11:$E$31,3),H66) -> 0 | I67: =IF(G67>0,VLOOKUP(A67,Wechsel!$A$11:$E$31,4),I66) -> 0 | J67: =IF(G67>0,VLOOKUP(A67,Wechsel!$A$11:$E$31,5),J66) -> 1 | K67: 0 | L67: 0 | M67: 0 | N67: 1 | O67: 0 | P67: =MAX(P66-Eingabe!$E$28,0) -> 0 | Q67: 0 | R67: 0 | S67: =Eingabe!$C$25+Eingabe!$E$25*'Berechnung EB heute%'!F67 -> 39 | T67: -39
A68: 58 | B68: 0.03 | C68: 8 | D68: 0 | E68: 0.48 | F68: 0 | G68: =IF(VLOOKUP(A68,Wechsel!$A$11:$E$31,1)=A68,VLOOKUP(A68,Wechsel!$A$11:$E$31,1),0) -> 0 | H68: =IF(G68>0,VLOOKUP(A68,Wechsel!$A$11:$E$31,3),H67) -> 0 | I68: =IF(G68>0,VLOOKUP(A68,Wechsel!$A$11:$E$31,4),I67) -> 0 | J68: =IF(G68>0,VLOOKUP(A68,Wechsel!$A$11:$E$31,5),J67) -> 1 | K68: 0 | L68: 0 | M68: 0 | N68: 1 | O68: 0 | P68: =MAX(P67-Eingabe!$E$28,0) -> 0 | Q68: 0 | R68: 0 | S68: =Eingabe!$C$25+Eingabe!$E$25*'Berechnung EB heute%'!F68 -> 39 | T68: -39
A69: 59 | B69: 0.03 | C69: 9 | D69: 0 | E69: 0.54 | F69: 0 | G69: =IF(VLOOKUP(A69,Wechsel!$A$11:$E$31,1)=A69,VLOOKUP(A69,Wechsel!$A$11:$E$31,1),0) -> 0 | H69: =IF(G69>0,VLOOKUP(A69,Wechsel!$A$11:$E$31,3),H68) -> 0 | I69: =IF(G69>0,VLOOKUP(A69,Wechsel!$A$11:$E$31,4),I68) -> 0 | J69: =IF(G69>0,VLOOKUP(A69,Wechsel!$A$11:$E$31,5),J68) -> 1 | K69: 0 | L69: 0 | M69: 0 | N69: 1 | O69: 0 | P69: =MAX(P68-Eingabe!$E$28,0) -> 0 | Q69: 0 | R69: 0 | S69: =Eingabe!$C$25+Eingabe!$E$25*'Berechnung EB heute%'!F69 -> 39 | T69: -39
A70: 60 | B70: 0.03 | C70: 10 | D70: 0 | E70: 0.6 | F70: 0 | G70: =IF(VLOOKUP(A70,Wechsel!$A$11:$E$31,1)=A70,VLOOKUP(A70,Wechsel!$A$11:$E$31,1),0) -> 0 | H70: =IF(G70>0,VLOOKUP(A70,Wechsel!$A$11:$E$31,3),H69) -> 0 | I70: =IF(G70>0,VLOOKUP(A70,Wechsel!$A$11:$E$31,4),I69) -> 0 | J70: =IF(G70>0,VLOOKUP(A70,Wechsel!$A$11:$E$31,5),J69) -> 1 | K70: 0 | L70: 0 | M70: 0 | N70: 1 | O70: 0 | P70: =MAX(P69-Eingabe!$E$28,0) -> 0 | Q70: 0 | R70: 0 | S70: =Eingabe!$C$25+Eingabe!$E$25*'Berechnung EB heute%'!F70 -> 39 | T70: -39

Sheet Steuerübersicht (hidden)
A1: Laufzeit | B1: Fonds | D1: Fonds | F1: Fonds
B2: Heute | D2: 0.02 | F2: 0.04
A3: 1 | B3: =MAX(0,IF(Hilfe!$B$3=3,'Berechnung EB heute%'!K11-'Berechnung EB heute%'!P11,'Berechnung Ratierlich heute%'!K11-'Berechnung Ratierlich heute%'!P11)) -> 0 | C3: =IF(Hilfe!$B$3=3,'Berechnung EB heute%'!Q11,'Berechnung Ratierlich heute%'!Q11) -> 0 | D3: =MAX(0,IF(Hilfe!$B$3=3,'Berechnung EB 2%'!K11-'Berechnung EB 2%'!P11,'Berechnung Ratierlich 2%'!K11-'Berechnung Ratierlich 2%'!P11)) -> 7.385 | E3: =IF(Hilfe!$B$3=3,'Berechnung EB 2%'!Q11,'Berechnung Ratierlich 2%'!Q11) -> 7.385 | F3: =MAX(0,IF(Hilfe!$B$3=3,'Berechnung EB 4%'!K11-'Berechnung EB 4%'!P11,'Berechnung Ratierlich 4%'!K11-'Berechnung Ratierlich 4%'!P11)) -> 14.77 | G3: =IF(Hilfe!$B$3=3,'Berechnung EB 4%'!Q11,'Berechnung Ratierlich 4%'!Q11) -> 14.77
A4: 2 | B4: =MAX(0,IF(Hilfe!$B$3=3,'Berechnung EB heute%'!K12-'Berechnung EB heute%'!P12,'Berechnung Ratierlich heute%'!K12-'Berechnung Ratierlich heute%'!P12)) -> 0 | C4: =IF(Hilfe!$B$3=3,'Berechnung EB heute%'!Q12,'Berechnung Ratierlich heute%'!Q12) -> 0 | D4: =MAX(0,IF(Hilfe!$B$3=3,'Berechnung EB 2%'!K12-'Berechnung EB 2%'!P12,'Berechnung Ratierlich 2%'!K12-'Berechnung Ratierlich 2%'!P12)) -> 7.708206371 | E4: =IF(Hilfe!$B$3=3,'Berechnung EB 2%'!Q12,'Berechnung Ratierlich 2%'!Q12) -> 7.708206371 | F4: =MAX(0,IF(Hilfe!$B$3=3,'Berechnung EB 4%'!K12-'Berechnung EB 4%'!P12,'Berechnung Ratierlich 4%'!K12-'Berechnung Ratierlich 4%'!P12)) -> 15.37823598 | G4: =IF(Hilfe!$B$3=3,'Berechnung EB 4%'!Q12,'Berechnung Ratierlich 4%'!Q12) -> 15.37823598
A5: 3 | B5: =MAX(0,IF(Hilfe!$B$3=3,'Berechnung EB heute%'!K13-'Berechnung EB heute%'!P13,'Berechnung Ratierlich heute%'!K13-'Berechnung Ratierlich heute%'!P13)) -> 0 | C5: =IF(Hilfe!$B$3=3,'Berechnung EB heute%'!Q13,'Berechnung Ratierlich heute%'!Q13) -> 0 | D5: =MAX(0,IF(Hilfe!$B$3=3,'Berechnung EB 2%'!K13-'Berechnung EB 2%'!P13,'Berechnung Ratierlich 2%'!K13-'Berechnung Ratierlich 2%'!P13)) -> 15.87806972 | E5: =IF(Hilfe!$B$3=3,'Berechnung EB 2%'!Q13,'Berechnung Ratierlich 2%'!Q13) -> 15.87806972 | F5: =MAX(0,IF(Hilfe!$B$3=3,'Berechnung EB 4%'!K13-'Berechnung EB 4%'!P13,'Berechnung Ratierlich 4%'!K13-'Berechnung Ratierlich 4%'!P13)) -> 31.67602185 | G5: =IF(Hilfe!$B$3=3,'Berechnung EB 4%'!Q13,'Berechnung Ratierlich 4%'!Q13) -> 31.67602185
A6: 4 | B6: =MAX(0,IF(Hilfe!$B$3=3,'Berechnung EB heute%'!K14-'Berechnung EB heute%'!P14,'Berechnung Ratierlich heute%'!K14-'Berechnung Ratierlich heute%'!P14)) -> 0 | C6: =IF(Hilfe!$B$3=3,'Berechnung EB heute%'!Q14,'Berechnung Ratierlich heute%'!Q14) -> 0 | D6: =MAX(0,IF(Hilfe!$B$3=3,'Berechnung EB 2%'!K14-'Berechnung EB 2%'!P14,'Berechnung Ratierlich 2%'!K14-'Berechnung Ratierlich 2%'!P14)) -> 24.51700781 | E6: =IF(Hilfe!$B$3=3,'Berechnung EB 2%'!Q14,'Berechnung Ratierlich 2%'!Q14) -> 24.51700781 | F6: =MAX(0,IF(Hilfe!$B$3=3,'Berechnung EB 4%'!K14-'Berechnung EB 4%'!P14,'Berechnung Ratierlich 4%'!K14-'Berechnung Ratierlich 4%'!P14)) -> 48.86742347 | G6: =IF(Hilfe!$B$3=3,'Berechnung EB 4%'!Q14,'Berechnung Ratierlich 4%'!Q14) -> 48.86742347
A7: 5 | B7: =MAX(0,IF(Hilfe!$B$3=3,'Berechnung EB heute%'!K15-'Berechnung EB heute%'!P15,'Berechnung Ratierlich heute%'!K15-'Berechnung Ratierlich heute%'!P15)) -> 0 | C7: =IF(Hilfe!$B$3=3,'Berechnung EB heute%'!Q15,'Berechnung Ratierlich heute%'!Q15) -> 0 | D7: =MAX(0,IF(Hilfe!$B$3=3,'Berechnung EB 2%'!K15-'Berechnung EB 2%'!P15,'Berechnung Ratierlich 2%'!K15-'Berechnung Ratierlich 2%'!P15)) -> 33.65195269 | E7: =IF(Hilfe!$B$3=3,'Berechnung EB 2%'!Q15,'Berechnung Ratierlich 2%'!Q15) -> 33.65195269 | F7: =MAX(0,IF(Hilfe!$B$3=3,'Berechnung EB 4%'!K15-'Berechnung EB 4%'!P15,'Berechnung Ratierlich 4%'!K15-'Berechnung Ratierlich 4%'!P15)) -> 67.00143823 | G7: =IF(Hilfe!$B$3=3,'Berechnung EB 4%'!Q15,'Berechnung Ratierlich 4%'!Q15) -> 67.00143823
A8: 6 | B8: =MAX(0,IF(Hilfe!$B$3=3,'Berechnung EB heute%'!K16-'Berechnung EB heute%'!P16,'Berechnung Ratierlich heute%'!K16-'Berechnung Ratierlich heute%'!P16)) -> 0 | C8: =IF(Hilfe!$B$3=3,'Berechnung EB heute%'!Q16,'Berechnung Ratierlich heute%'!Q16) -> 0 | D8: =MAX(0,IF(Hilfe!$B$3=3,'Berechnung EB 2%'!K16-'Berechnung EB 2%'!P16,'Berechnung Ratierlich 2%'!K16-'Berechnung Ratierlich 2%'!P16)) -> 43.31138272 | E8: =IF(Hilfe!$B$3=3,'Berechnung EB 2%'!Q16,'Berechnung Ratierlich 2%'!Q16) -> 43.31138272 | F8: =MAX(0,IF(Hilfe!$B$3=3,'Berechnung EB 4%'!K16-'Berechnung EB 4%'!P16,'Berechnung Ratierlich 4%'!K16-'Berechnung Ratierlich 4%'!P16)) -> 86.12975009 | G8: =IF(Hilfe!$B$3=3,'Berechnung EB 4%'!Q16,'Berechnung Ratierlich 4%'!Q16) -> 86.12975009
A9: 7 | B9: =MAX(0,IF(Hilfe!$B$3=3,'Berechnung EB heute%'!K17-'Berechnung EB heute%'!P17,'Berechnung Ratierlich heute%'!K17-'Berechnung Ratierlich heute%'!P17)) -> 0 | C9: =IF(Hilfe!$B$3=3,'Berechnung EB heute%'!Q17,'Berechnung Ratierlich heute%'!Q17) -> 0 | D9: =MAX(0,IF(Hilfe!$B$3=3,'Berechnung EB 2%'!K17-'Berechnung EB 2%'!P17,'Berechnung Ratierlich 2%'!K17-'Berechnung Ratierlich 2%'!P17)) -> 53.52541134 | E9: =IF(Hilfe!$B$3=3,'Berechnung EB 2%'!Q17,'Berechnung Ratierlich 2%'!Q17) -> 53.52541134 | F9: =MAX(0,IF(Hilfe!$B$3=3,'Berechnung EB 4%'!K17-'Berechnung EB 4%'!P17,'Berechnung Ratierlich 4%'!K17-'Berechnung Ratierlich 4%'!P17)) -> 106.3068769 | G9: =IF(Hilfe!$B$3=3,'Berechnung EB 4%'!Q17,'Berechnung Ratierlich 4%'!Q17) -> 106.3068769
A10: 8 | B10: =MAX(0,IF(Hilfe!$B$3=3,'Berechnung EB heute%'!K18-'Berechnung EB heute%'!P18,'Berechnung Ratierlich heute%'!K18-'Berechnung Ratierlich heute%'!P18)) -> 0 | C10: =IF(Hilfe!$B$3=3,'Berechnung EB heute%'!Q18,'Berechnung Ratierlich heute%'!Q18) -> 0 | D10: =MAX(0,IF(Hilfe!$B$3=3,'Berechnung EB 2%'!K18-'Berechnung EB 2%'!P18,'Berechnung Ratierlich 2%'!K18-'Berechnung Ratierlich 2%'!P18)) -> 64.32588096 | E10: =IF(Hilfe!$B$3=3,'Berechnung EB 2%'!Q18,'Berechnung Ratierlich 2%'!Q18) -> 64.32588096 | F10: =MAX(0,IF(Hilfe!$B$3=3,'Berechnung EB 4%'!K18-'Berechnung EB 4%'!P18,'Berechnung Ratierlich 4%'!K18-'Berechnung Ratierlich 4%'!P18)) -> 127.5903256 | G10: =IF(Hilfe!$B$3=3,'Berechnung EB 4%'!Q18,'Berechnung Ratierlich 4%'!Q18) -> 127.5903256
A11: 9 | B11: =MAX(0,IF(Hilfe!$B$3=3,'Berechnung EB heute%'!K19-'Berechnung EB heute%'!P19,'Berechnung Ratierlich heute%'!K19-'Berechnung Ratierlich heute%'!P19)) -> 0 | C11: =IF(Hilfe!$B$3=3,'Berechnung EB heute%'!Q19,'Berechnung Ratierlich heute%'!Q19) -> 1602.327923 | D11: =MAX(0,IF(Hilfe!$B$3=3,'Berechnung EB 2%'!K19-'Berechnung EB 2%'!P19,'Berechnung Ratierlich 2%'!K19-'Berechnung Ratierlich 2%'!P19)) -> 86.56738542 | E11: =IF(Hilfe!$B$3=3,'Berechnung EB 2%'!Q19,'Berechnung Ratierlich 2%'!Q19) -> 1970.176967 | F11: =MAX(0,IF(Hilfe!$B$3=3,'Berechnung EB 4%'!K19-'Berechnung EB 4%'!P19,'Berechnung Ratierlich 4%'!K19-'Berechnung Ratierlich 4%'!P19)) -> 171.4751502 | G11: =IF(Hilfe!$B$3=3,'Berechnung EB 4%'!Q19,'Berechnung Ratierlich 4%'!Q19) -> 2332.434722
A12: 10 | B12: =MAX(0,IF(Hilfe!$B$3=3,'Berechnung EB heute%'!K20-'Berechnung EB heute%'!P20,'Berechnung Ratierlich heute%'!K20-'Berechnung Ratierlich heute%'!P20)) -> 0 | C12: =IF(Hilfe!$B$3=3,'Berechnung EB heute%'!Q20,'Berechnung Ratierlich heute%'!Q20) -> 0 | D12: =MAX(0,IF(Hilfe!$B$3=3,'Berechnung EB 2%'!K20-'Berechnung EB 2%'!P20,'Berechnung Ratierlich 2%'!K20-'Berechnung Ratierlich 2%'!P20)) -> 92.71681473 | E12: =IF(Hilfe!$B$3=3,'Berechnung EB 2%'!Q20,'Berechnung Ratierlich 2%'!Q20) -> 92.71681473 | F12: =MAX(0,IF(Hilfe!$B$3=3,'Berechnung EB 4%'!K20-'Berechnung EB 4%'!P20,'Berechnung Ratierlich 4%'!K20-'Berechnung Ratierlich 4%'!P20)) -> 181.6187001 | G12: =IF(Hilfe!$B$3=3,'Berechnung EB 4%'!Q20,'Berechnung Ratierlich 4%'!Q20) -> 181.6187001
A13: 11 | B13: =MAX(0,IF(Hilfe!$B$3=3,'Berechnung EB heute%'!K21-'Berechnung EB heute%'!P21,'Berechnung Ratierlich heute%'!K21-'Berechnung Ratierlich heute%'!P21)) -> 0 | C13: =IF(Hilfe!$B$3=3,'Berechnung EB heute%'!Q21,'Berechnung Ratierlich heute%'!Q21) -> 0 | D13: =MAX(0,IF(Hilfe!$B$3=3,'Berechnung EB 2%'!K21-'Berechnung EB 2%'!P21,'Berechnung Ratierlich 2%'!K21-'Berechnung Ratierlich 2%'!P21)) -> 106.8942976 | E13: =IF(Hilfe!$B$3=3,'Berechnung EB 2%'!Q21,'Berechnung Ratierlich 2%'!Q21) -> 106.8942976 | F13: =MAX(0,IF(Hilfe!$B$3=3,'Berechnung EB 4%'!K21-'Berechnung EB 4%'!P21,'Berechnung Ratierlich 4%'!K21-'Berechnung Ratierlich 4%'!P21)) -> 209.2195378 | G13: =IF(Hilfe!$B$3=3,'Berechnung EB 4%'!Q21,'Berechnung Ratierlich 4%'!Q21) -> 209.2195378
A14: 12 | B14: =MAX(0,IF(Hilfe!$B$3=3,'Berechnung EB heute%'!K22-'Berechnung EB heute%'!P22,'Berechnung Ratierlich heute%'!K22-'Berechnung Ratierlich heute%'!P22)) -> 0 | C14: =IF(Hilfe!$B$3=3,'Berechnung EB heute%'!Q22,'Berechnung Ratierlich heute%'!Q22) -> 0 | D14: =MAX(0,IF(Hilfe!$B$3=3,'Berechnung EB 2%'!K22-'Berechnung EB 2%'!P22,'Berechnung Ratierlich 2%'!K22-'Berechnung Ratierlich 2%'!P22)) -> 121.8805492 | E14: =IF(Hilfe!$B$3=3,'Berechnung EB 2%'!Q22,'Berechnung Ratierlich 2%'!Q22) -> 121.8805492 | F14: =MAX(0,IF(Hilfe!$B$3=3,'Berechnung EB 4%'!K22-'Berechnung EB 4%'!P22,'Berechnung Ratierlich 4%'!K22-'Berechnung Ratierlich 4%'!P22)) -> 238.31336 | G14: =IF(Hilfe!$B$3=3,'Berechnung EB 4%'!Q22,'Berechnung Ratierlich 4%'!Q22) -> 238.31336
A15: 13 | B15: =MAX(0,IF(Hilfe!$B$3=3,'Berechnung EB heute%'!K23-'Berechnung EB heute%'!P23,'Berechnung Ratierlich heute%'!K23-'Berechnung Ratierlich heute%'!P23)) -> 0 | C15: =IF(Hilfe!$B$3=3,'Berechnung EB heute%'!Q23,'Berechnung Ratierlich heute%'!Q23) -> 0 | D15: =MAX(0,IF(Hilfe!$B$3=3,'Berechnung EB 2%'!K23-'Berechnung EB 2%'!P23,'Berechnung Ratierlich 2%'!K23-'Berechnung Ratierlich 2%'!P23)) -> 137.7217065 | E15: =IF(Hilfe!$B$3=3,'Berechnung EB 2%'!Q23,'Berechnung Ratierlich 2%'!Q23) -> 137.7217065 | F15: =MAX(0,IF(Hilfe!$B$3=3,'Berechnung EB 4%'!K23-'Berechnung EB 4%'!P23,'Berechnung Ratierlich 4%'!K23-'Berechnung Ratierlich 4%'!P23)) -> 268.9809253 | G15: =IF(Hilfe!$B$3=3,'Berechnung EB 4%'!Q23,'Berechnung Ratierlich 4%'!Q23) -> 268.9809253
A16: 14 | B16: =MAX(0,IF(Hilfe!$B$3=3,'Berechnung EB heute%'!K24-'Berechnung EB heute%'!P24,'Berechnung Ratierlich heute%'!K24-'Berechnung Ratierlich heute%'!P24)) -> 0 | C16: =IF(Hilfe!$B$3=3,'Berechnung EB heute%'!Q24,'Berechnung Ratierlich heute%'!Q24) -> 0 | D16: =MAX(0,IF(Hilfe!$B$3=3,'Berechnung EB 2%'!K24-'Berechnung EB 2%'!P24,'Berechnung Ratierlich 2%'!K24-'Berechnung Ratierlich 2%'!P24)) -> 154.4665385 | E16: =IF(Hilfe!$B$3=3,'Berechnung EB 2%'!Q24,'Berechnung Ratierlich 2%'!Q24) -> 154.4665385 | F16: =MAX(0,IF(Hilfe!$B$3=3,'Berechnung EB 4%'!K24-'Berechnung EB 4%'!P24,'Berechnung Ratierlich 4%'!K24-'Berechnung Ratierlich 4%'!P24)) -> 301.3073605 | G16: =IF(Hilfe!$B$3=3,'Berechnung EB 4%'!Q24,'Berechnung Ratierlich 4%'!Q24) -> 301.3073605
A17: 15 | B17: =MAX(0,IF(Hilfe!$B$3=3,'Berechnung EB heute%'!K25-'Berechnung EB heute%'!P25,'Berechnung Ratierlich heute%'!K25-'Berechnung Ratierlich heute%'!P25)) -> 0 | C17: =IF(Hilfe!$B$3=3,'Berechnung EB heute%'!Q25,'Berechnung Ratierlich heute%'!Q25) -> 0 | D17: =MAX(0,IF(Hilfe!$B$3=3,'Berechnung EB 2%'!K25-'Berechnung EB 2%'!P25,'Berechnung Ratierlich 2%'!K25-'Berechnung Ratierlich 2%'!P25)) -> 172.1665962 | E17: =IF(Hilfe!$B$3=3,'Berechnung EB 2%'!Q25,'Berechnung Ratierlich 2%'!Q25) -> 172.1665962 | F17: =MAX(0,IF(Hilfe!$B$3=3,'Berechnung EB 4%'!K25-'Berechnung EB 4%'!P25,'Berechnung Ratierlich 4%'!K25-'Berechnung Ratierlich 4%'!P25)) -> 335.3823972 | G17: =IF(Hilfe!$B$3=3,'Berechnung EB 4%'!Q25,'Berechnung Ratierlich 4%'!Q25) -> 335.3823972
A18: 16 | B18: =MAX(0,IF(Hilfe!$B$3=3,'Berechnung EB heute%'!K26-'Berechnung EB heute%'!P26,'Berechnung Ratierlich heute%'!K26-'Berechnung Ratierlich heute%'!P26)) -> 0 | C18: =IF(Hilfe!$B$3=3,'Berechnung EB heute%'!Q26,'Berechnung Ratierlich heute%'!Q26) -> 0 | D18: =MAX(0,IF(Hilfe!$B$3=3,'Berechnung EB 2%'!K26-'Berechnung EB 2%'!P26,'Berechnung Ratierlich 2%'!K26-'Berechnung Ratierlich 2%'!P26)) -> 190.8763713 | E18: =IF(Hilfe!$B$3=3,'Berechnung EB 2%'!Q26,'Berechnung Ratierlich 2%'!Q26) -> 190.8763713 | F18: =MAX(0,IF(Hilfe!$B$3=3,'Berechnung EB 4%'!K26-'Berechnung EB 4%'!P26,'Berechnung Ratierlich 4%'!K26-'Berechnung Ratierlich 4%'!P26)) -> 371.3006209 | G18: =IF(Hilfe!$B$3=3,'Berechnung EB 4%'!Q26,'Berechnung Ratierlich 4%'!Q26) -> 371.3006209
A19: 17 | B19: =MAX(0,IF(Hilfe!$B$3=3,'Berechnung EB heute%'!K27-'Berechnung EB heute%'!P27,'Berechnung Ratierlich heute%'!K27-'Berechnung Ratierlich heute%'!P27)) -> 0 | C19: =IF(Hilfe!$B$3=3,'Berechnung EB heute%'!Q27,'Berechnung Ratierlich heute%'!Q27) -> 0 | D19: =MAX(0,IF(Hilfe!$B$3=3,'Berechnung EB 2%'!K27-'Berechnung EB 2%'!P27,'Berechnung Ratierlich 2%'!K27-'Berechnung Ratierlich 2%'!P27)) -> 210.6534643 | E19: =IF(Hilfe!$B$3=3,'Berechnung EB 2%'!Q27,'Berechnung Ratierlich 2%'!Q27) -> 210.6534643 | F19: =MAX(0,IF(Hilfe!$B$3=3,'Berechnung EB 4%'!K27-'Berechnung EB 4%'!P27,'Berechnung Ratierlich 4%'!K27-'Berechnung Ratierlich 4%'!P27)) -> 409.161733 | G19: =IF(Hilfe!$B$3=3,'Berechnung EB 4%'!Q27,'Berechnung Ratierlich 4%'!Q27) -> 409.161733
A20: 18 | B20: =MAX(0,IF(Hilfe!$B$3=3,'Berechnung EB heute%'!K28-'Berechnung EB heute%'!P28,'Berechnung Ratierlich heute%'!K28-'Berechnung Ratierlich heute%'!P28)) -> 0 | C20: =IF(Hilfe!$B$3=3,'Berechnung EB heute%'!Q28,'Berechnung Ratierlich heute%'!Q28) -> 7111.566439 | D20: =MAX(0,IF(Hilfe!$B$3=3,'Berechnung EB 2%'!K28-'Berechnung EB 2%'!P28,'Berechnung Ratierlich 2%'!K28-'Berechnung Ratierlich 2%'!P28)) -> 260.5036065 | E20: =IF(Hilfe!$B$3=3,'Berechnung EB 2%'!Q28,'Berechnung Ratierlich 2%'!Q28) -> 8407.49784 | F20: =MAX(0,IF(Hilfe!$B$3=3,'Berechnung EB 4%'!K28-'Berechnung EB 4%'!P28,'Berechnung Ratierlich 4%'!K28-'Berechnung Ratierlich 4%'!P28)) -> 505.2046821 | G20: =IF(Hilfe!$B$3=3,'Berechnung EB 4%'!Q28,'Berechnung Ratierlich 4%'!Q28) -> 9629.28806
A21: 19 | B21: =MAX(0,IF(Hilfe!$B$3=3,'Berechnung EB heute%'!K29-'Berechnung EB heute%'!P29,'Berechnung Ratierlich heute%'!K29-'Berechnung Ratierlich heute%'!P29)) -> 0 | C21: =IF(Hilfe!$B$3=3,'Berechnung EB heute%'!Q29,'Berechnung Ratierlich heute%'!Q29) -> 0 | D21: =MAX(0,IF(Hilfe!$B$3=3,'Berechnung EB 2%'!K29-'Berechnung EB 2%'!P29,'Berechnung Ratierlich 2%'!K29-'Berechnung Ratierlich 2%'!P29)) -> 253.4570954 | E21: =IF(Hilfe!$B$3=3,'Berechnung EB 2%'!Q29,'Berechnung Ratierlich 2%'!Q29) -> 253.4570954 | F21: =MAX(0,IF(Hilfe!$B$3=3,'Berechnung EB 4%'!K29-'Berechnung EB 4%'!P29,'Berechnung Ratierlich 4%'!K29-'Berechnung Ratierlich 4%'!P29)) -> 482.4988535 | G21: =IF(Hilfe!$B$3=3,'Berechnung EB 4%'!Q29,'Berechnung Ratierlich 4%'!Q29) -> 482.4988535
A22: 20 | B22: =MAX(0,IF(Hilfe!$B$3=3,'Berechnung EB heute%'!K30-'Berechnung EB heute%'!P30,'Berechnung Ratierlich heute%'!K30-'Berechnung Ratierlich heute%'!P30)) -> 0 | C22: =IF(Hilfe!$B$3=3,'Berechnung EB heute%'!Q30,'Berechnung Ratierlich heute%'!Q30) -> 0 | D22: =MAX(0,IF(Hilfe!$B$3=3,'Berechnung EB 2%'!K30-'Berechnung EB 2%'!P30,'Berechnung Ratierlich 2%'!K30-'Berechnung Ratierlich 2%'!P30)) -> 277.8867626 | E22: =IF(Hilfe!$B$3=3,'Berechnung EB 2%'!Q30,'Berechnung Ratierlich 2%'!Q30) -> 277.8867626 | F22: =MAX(0,IF(Hilfe!$B$3=3,'Berechnung EB 4%'!K30-'Berechnung EB 4%'!P30,'Berechnung Ratierlich 4%'!K30-'Berechnung Ratierlich 4%'!P30)) -> 528.3709416 | G22: =IF(Hilfe!$B$3=3,'Berechnung EB 4%'!Q30,'Berechnung Ratierlich 4%'!Q30) -> 528.3709416
A23: 21 | B23: =MAX(0,IF(Hilfe!$B$3=3,'Berechnung EB heute%'!K31-'Berechnung EB heute%'!P31,'Berechnung Ratierlich heute%'!K31-'Berechnung Ratierlich heute%'!P31)) -> 0 | C23: =IF(Hilfe!$B$3=3,'Berechnung EB heute%'!Q31,'Berechnung Ratierlich heute%'!Q31) -> 0 | D23: =MAX(0,IF(Hilfe!$B$3=3,'Berechnung EB 2%'!K31-'Berechnung EB 2%'!P31,'Berechnung Ratierlich 2%'!K31-'Berechnung Ratierlich 2%'!P31)) -> 303.701024 | E23: =IF(Hilfe!$B$3=3,'Berechnung EB 2%'!Q31,'Berechnung Ratierlich 2%'!Q31) -> 303.701024 | F23: =MAX(0,IF(Hilfe!$B$3=3,'Berechnung EB 4%'!K31-'Berechnung EB 4%'!P31,'Berechnung Ratierlich 4%'!K31-'Berechnung Ratierlich 4%'!P31)) -> 576.6904662 | G23: =IF(Hilfe!$B$3=3,'Berechnung EB 4%'!Q31,'Berechnung Ratierlich 4%'!Q31) -> 576.6904662
A24: 22 | B24: =MAX(0,IF(Hilfe!$B$3=3,'Berechnung EB heute%'!K32-'Berechnung EB heute%'!P32,'Berechnung Ratierlich heute%'!K32-'Berechnung Ratierlich heute%'!P32)) -> 0 | C24: =IF(Hilfe!$B$3=3,'Berechnung EB heute%'!Q32,'Berechnung Ratierlich heute%'!Q32) -> 0 | D24: =MAX(0,IF(Hilfe!$B$3=3,'Berechnung EB 2%'!K32-'Berechnung EB 2%'!P32,'Berechnung Ratierlich 2%'!K32-'Berechnung Ratierlich 2%'!P32)) -> 330.9783538 | E24: =IF(Hilfe!$B$3=3,'Berechnung EB 2%'!Q32,'Berechnung Ratierlich 2%'!Q32) -> 330.9783538 | F24: =MAX(0,IF(Hilfe!$B$3=3,'Berechnung EB 4%'!K32-'Berechnung EB 4%'!P32,'Berechnung Ratierlich 4%'!K32-'Berechnung Ratierlich 4%'!P32)) -> 627.5880065 | G24: =IF(Hilfe!$B$3=3,'Berechnung EB 4%'!Q32,'Berechnung Ratierlich 4%'!Q32) -> 627.5880065
A25: 23 | B25: =MAX(0,IF(Hilfe!$B$3=3,'Berechnung EB heute%'!K33-'Berechnung EB heute%'!P33,'Berechnung Ratierlich heute%'!K33-'Berechnung Ratierlich heute%'!P33)) -> 0 | C25: =IF(Hilfe!$B$3=3,'Berechnung EB heute%'!Q33,'Berechnung Ratierlich heute%'!Q33) -> 0 | D25: =MAX(0,IF(Hilfe!$B$3=3,'Berechnung EB 2%'!K33-'Berechnung EB 2%'!P33,'Berechnung Ratierlich 2%'!K33-'Berechnung Ratierlich 2%'!P33)) -> 359.8016739 | E25: =IF(Hilfe!$B$3=3,'Berechnung EB 2%'!Q33,'Berechnung Ratierlich 2%'!Q33) -> 359.8016739 | F25: =MAX(0,IF(Hilfe!$B$3=3,'Berechnung EB 4%'!K33-'Berechnung EB 4%'!P33,'Berechnung Ratierlich 4%'!K33-'Berechnung Ratierlich 4%'!P33)) -> 681.2011088 | G25: =IF(Hilfe!$B$3=3,'Berechnung EB 4%'!Q33,'Berechnung Ratierlich 4%'!Q33) -> 681.2011088
A26: 24 | B26: =MAX(0,IF(Hilfe!$B$3=3,'Berechnung EB heute%'!K34-'Berechnung EB heute%'!P34,'Berechnung Ratierlich heute%'!K34-'Berechnung Ratierlich heute%'!P34)) -> 0 | C26: =IF(Hilfe!$B$3=3,'Berechnung EB heute%'!Q34,'Berechnung Ratierlich heute%'!Q34) -> 0 | D26: =MAX(0,IF(Hilfe!$B$3=3,'Berechnung EB 2%'!K34-'Berechnung EB 2%'!P34,'Berechnung Ratierlich 2%'!K34-'Berechnung Ratierlich 2%'!P34)) -> 390.2586062 | E26: =IF(Hilfe!$B$3=3,'Berechnung EB 2%'!Q34,'Berechnung Ratierlich 2%'!Q34) -> 390.2586062 | F26: =MAX(0,IF(Hilfe!$B$3=3,'Berechnung EB 4%'!K34-'Berechnung EB 4%'!P34,'Berechnung Ratierlich 4%'!K34-'Berechnung Ratierlich 4%'!P34)) -> 737.6746577 | G26: =IF(Hilfe!$B$3=3,'Berechnung EB 4%'!Q34,'Berechnung Ratierlich 4%'!Q34) -> 737.6746577
A27: 25 | B27: =MAX(0,IF(Hilfe!$B$3=3,'Berechnung EB heute%'!K35-'Berechnung EB heute%'!P35,'Berechnung Ratierlich heute%'!K35-'Berechnung Ratierlich heute%'!P35)) -> 0 | C27: =IF(Hilfe!$B$3=3,'Berechnung EB heute%'!Q35,'Berechnung Ratierlich heute%'!Q35) -> 0 | D27: =MAX(0,IF(Hilfe!$B$3=3,'Berechnung EB 2%'!K35-'Berechnung EB 2%'!P35,'Berechnung Ratierlich 2%'!K35-'Berechnung Ratierlich 2%'!P35)) -> 422.4417385 | E27: =IF(Hilfe!$B$3=3,'Berechnung EB 2%'!Q35,'Berechnung Ratierlich 2%'!Q35) -> 422.4417385 | F27: =MAX(0,IF(Hilfe!$B$3=3,'Berechnung EB 4%'!K35-'Berechnung EB 4%'!P35,'Berechnung Ratierlich 4%'!K35-'Berechnung Ratierlich 4%'!P35)) -> 797.161268 | G27: =IF(Hilfe!$B$3=3,'Berechnung EB 4%'!Q35,'Berechnung Ratierlich 4%'!Q35) -> 797.161268
A28: 26 | B28: =MAX(0,IF(Hilfe!$B$3=3,'Berechnung EB heute%'!K36-'Berechnung EB heute%'!P36,'Berechnung Ratierlich heute%'!K36-'Berechnung Ratierlich heute%'!P36)) -> 0 | C28: =IF(Hilfe!$B$3=3,'Berechnung EB heute%'!Q36,'Berechnung Ratierlich heute%'!Q36) -> 0 | D28: =MAX(0,IF(Hilfe!$B$3=3,'Berechnung EB 2%'!K36-'Berechnung EB 2%'!P36,'Berechnung Ratierlich 2%'!K36-'Berechnung Ratierlich 2%'!P36)) -> 456.448906 | E28: =IF(Hilfe!$B$3=3,'Berechnung EB 2%'!Q36,'Berechnung Ratierlich 2%'!Q36) -> 456.448906 | F28: =MAX(0,IF(Hilfe!$B$3=3,'Berechnung EB 4%'!K36-'Berechnung EB 4%'!P36,'Berechnung Ratierlich 4%'!K36-'Berechnung Ratierlich 4%'!P36)) -> 859.8216973 | G28: =IF(Hilfe!$B$3=3,'Berechnung EB 4%'!Q36,'Berechnung Ratierlich 4%'!Q36) -> 859.8216973
A29: 27 | B29: =MAX(0,IF(Hilfe!$B$3=3,'Berechnung EB heute%'!K37-'Berechnung EB heute%'!P37,'Berechnung Ratierlich heute%'!K37-'Berechnung Ratierlich heute%'!P37)) -> 0 | C29: =IF(Hilfe!$B$3=3,'Berechnung EB heute%'!Q37,'Berechnung Ratierlich heute%'!Q37) -> 15884.61558 | D29: =MAX(0,IF(Hilfe!$B$3=3,'Berechnung EB 2%'!K37-'Berechnung EB 2%'!P37,'Berechnung Ratierlich 2%'!K37-'Berechnung Ratierlich 2%'!P37)) -> 547.0927659 | E29: =IF(Hilfe!$B$3=3,'Berechnung EB 2%'!Q37,'Berechnung Ratierlich 2%'!Q37) -> 18298.20078 | F29: =MAX(0,IF(Hilfe!$B$3=3,'Berechnung EB 4%'!K37-'Berechnung EB 4%'!P37,'Berechnung Ratierlich 4%'!K37-'Berechnung Ratierlich 4%'!P37)) -> 1028.694755 | G29: =IF(Hilfe!$B$3=3,'Berechnung EB 4%'!Q37,'Berechnung Ratierlich 4%'!Q37) -> 20398.04962
A30: 28 | B30: =MAX(0,IF(Hilfe!$B$3=3,'Berechnung EB heute%'!K38-'Berechnung EB heute%'!P38,'Berechnung Ratierlich heute%'!K38-'Berechnung Ratierlich heute%'!P38)) -> 0 | C30: =IF(Hilfe!$B$3=3,'Berechnung EB heute%'!Q38,'Berechnung Ratierlich heute%'!Q38) -> 0 | D30: =MAX(0,IF(Hilfe!$B$3=3,'Berechnung EB 2%'!K38-'Berechnung EB 2%'!P38,'Berechnung Ratierlich 2%'!K38-'Berechnung Ratierlich 2%'!P38)) -> 515.6798649 | E30: =IF(Hilfe!$B$3=3,'Berechnung EB 2%'!Q38,'Berechnung Ratierlich 2%'!Q38) -> 515.6798649 | F30: =MAX(0,IF(Hilfe!$B$3=3,'Berechnung EB 4%'!K38-'Berechnung EB 4%'!P38,'Berechnung Ratierlich 4%'!K38-'Berechnung Ratierlich 4%'!P38)) -> 947.7060371 | G30: =IF(Hilfe!$B$3=3,'Berechnung EB 4%'!Q38,'Berechnung Ratierlich 4%'!Q38) -> 947.7060371
A31: 29 | B31: =MAX(0,IF(Hilfe!$B$3=3,'Berechnung EB heute%'!K39-'Berechnung EB heute%'!P39,'Berechnung Ratierlich heute%'!K39-'Berechnung Ratierlich heute%'!P39)) -> 0 | C31: =IF(Hilfe!$B$3=3,'Berechnung EB heute%'!Q39,'Berechnung Ratierlich heute%'!Q39) -> 0 | D31: =MAX(0,IF(Hilfe!$B$3=3,'Berechnung EB 2%'!K39-'Berechnung EB 2%'!P39,'Berechnung Ratierlich 2%'!K39-'Berechnung Ratierlich 2%'!P39)) -> 555.972647 | E31: =IF(Hilfe!$B$3=3,'Berechnung EB 2%'!Q39,'Berechnung Ratierlich 2%'!Q39) -> 555.972647 | F31: =MAX(0,IF(Hilfe!$B$3=3,'Berechnung EB 4%'!K39-'Berechnung EB 4%'!P39,'Berechnung Ratierlich 4%'!K39-'Berechnung Ratierlich 4%'!P39)) -> 1020.081867 | G31: =IF(Hilfe!$B$3=3,'Berechnung EB 4%'!Q39,'Berechnung Ratierlich 4%'!Q39) -> 1020.081867
A32: 30 | B32: =MAX(0,IF(Hilfe!$B$3=3,'Berechnung EB heute%'!K40-'Berechnung EB heute%'!P40,'Berechnung Ratierlich heute%'!K40-'Berechnung Ratierlich heute%'!P40)) -> 0 | C32: =IF(Hilfe!$B$3=3,'Berechnung EB heute%'!Q40,'Berechnung Ratierlich heute%'!Q40) -> 0 | D32: =MAX(0,IF(Hilfe!$B$3=3,'Berechnung EB 2%'!K40-'Berechnung EB 2%'!P40,'Berechnung Ratierlich 2%'!K40-'Berechnung Ratierlich 2%'!P40)) -> 598.534215 | E32: =IF(Hilfe!$B$3=3,'Berechnung EB 2%'!Q40,'Berechnung Ratierlich 2%'!Q40) -> 598.534215 | F32: =MAX(0,IF(Hilfe!$B$3=3,'Berechnung EB 4%'!K40-'Berechnung EB 4%'!P40,'Berechnung Ratierlich 4%'!K40-'Berechnung Ratierlich 4%'!P40)) -> 1096.26575 | G32: =IF(Hilfe!$B$3=3,'Berechnung EB 4%'!Q40,'Berechnung Ratierlich 4%'!Q40) -> 1096.26575
A33: 31 | B33: =MAX(0,IF(Hilfe!$B$3=3,'Berechnung EB heute%'!K41-'Berechnung EB heute%'!P41,'Berechnung Ratierlich heute%'!K41-'Berechnung Ratierlich heute%'!P41)) -> 0 | C33: =IF(Hilfe!$B$3=3,'Berechnung EB heute%'!Q41,'Berechnung Ratierlich heute%'!Q41) -> 0 | D33: =MAX(0,IF(Hilfe!$B$3=3,'Berechnung EB 2%'!K41-'Berechnung EB 2%'!P41,'Berechnung Ratierlich 2%'!K41-'Berechnung Ratierlich 2%'!P41)) -> 643.4923184 | E33: =IF(Hilfe!$B$3=3,'Berechnung EB 2%'!Q41,'Berechnung Ratierlich 2%'!Q41) -> 643.4923184 | F33: =MAX(0,IF(Hilfe!$B$3=3,'Berechnung EB 4%'!K41-'Berechnung EB 4%'!P41,'Berechnung Ratierlich 4%'!K41-'Berechnung Ratierlich 4%'!P41)) -> 1176.458049 | G33: =IF(Hilfe!$B$3=3,'Berechnung EB 4%'!Q41,'Berechnung Ratierlich 4%'!Q41) -> 1176.458049
A34: 32 | B34: =MAX(0,IF(Hilfe!$B$3=3,'Berechnung EB heute%'!K42-'Berechnung EB heute%'!P42,'Berechnung Ratierlich heute%'!K42-'Berechnung Ratierlich heute%'!P42)) -> 0 | C34: =IF(Hilfe!$B$3=3,'Berechnung EB heute%'!Q42,'Berechnung Ratierlich heute%'!Q42) -> 0 | D34: =MAX(0,IF(Hilfe!$B$3=3,'Berechnung EB 2%'!K42-'Berechnung EB 2%'!P42,'Berechnung Ratierlich 2%'!K42-'Berechnung Ratierlich 2%'!P42)) -> 690.9819003 | E34: =IF(Hilfe!$B$3=3,'Berechnung EB 2%'!Q42,'Berechnung Ratierlich 2%'!Q42) -> 690.9819003 | F34: =MAX(0,IF(Hilfe!$B$3=3,'Berechnung EB 4%'!K42-'Berechnung EB 4%'!P42,'Berechnung Ratierlich 4%'!K42-'Berechnung Ratierlich 4%'!P42)) -> 1260.869665 | G34: =IF(Hilfe!$B$3=3,'Berechnung EB 4%'!Q42,'Berechnung Ratierlich 4%'!Q42) -> 1260.869665
A35: 33 | B35: =MAX(0,IF(Hilfe!$B$3=3,'Berechnung EB heute%'!K43-'Berechnung EB heute%'!P43,'Berechnung Ratierlich heute%'!K43-'Berechnung Ratierlich heute%'!P43)) -> 0 | C35: =IF(Hilfe!$B$3=3,'Berechnung EB heute%'!Q43,'Berechnung Ratierlich heute%'!Q43) -> 0 | D35: =MAX(0,IF(Hilfe!$B$3=3,'Berechnung EB 2%'!K43-'Berechnung EB 2%'!P43,'Berechnung Ratierlich 2%'!K43-'Berechnung Ratierlich 2%'!P43)) -> 741.1455018 | E35: =IF(Hilfe!$B$3=3,'Berechnung EB 2%'!Q43,'Berechnung Ratierlich 2%'!Q43) -> 741.1455018 | F35: =MAX(0,IF(Hilfe!$B$3=3,'Berechnung EB 4%'!K43-'Berechnung EB 4%'!P43,'Berechnung Ratierlich 4%'!K43-'Berechnung Ratierlich 4%'!P43)) -> 1349.722599 | G35: =IF(Hilfe!$B$3=3,'Berechnung EB 4%'!Q43,'Berechnung Ratierlich 4%'!Q43) -> 1349.722599
A36: 34 | B36: =MAX(0,IF(Hilfe!$B$3=3,'Berechnung EB heute%'!K44-'Berechnung EB heute%'!P44,'Berechnung Ratierlich heute%'!K44-'Berechnung Ratierlich heute%'!P44)) -> 0 | C36: =IF(Hilfe!$B$3=3,'Berechnung EB heute%'!Q44,'Berechnung Ratierlich heute%'!Q44) -> 0 | D36: =MAX(0,IF(Hilfe!$B$3=3,'Berechnung EB 2%'!K44-'Berechnung EB 2%'!P44,'Berechnung Ratierlich 2%'!K44-'Berechnung Ratierlich 2%'!P44)) -> 794.1336902 | E36: =IF(Hilfe!$B$3=3,'Berechnung EB 2%'!Q44,'Berechnung Ratierlich 2%'!Q44) -> 794.1336902 | F36: =MAX(0,IF(Hilfe!$B$3=3,'Berechnung EB 4%'!K44-'Berechnung EB 4%'!P44,'Berechnung Ratierlich 4%'!K44-'Berechnung Ratierlich 4%'!P44)) -> 1443.25053 | G36: =IF(Hilfe!$B$3=3,'Berechnung EB 4%'!Q44,'Berechnung Ratierlich 4%'!Q44) -> 1443.25053
A37: 35 | B37: =MAX(0,IF(Hilfe!$B$3=3,'Berechnung EB heute%'!K45-'Berechnung EB heute%'!P45,'Berechnung Ratierlich heute%'!K45-'Berechnung Ratierlich heute%'!P45)) -> 0 | C37: =IF(Hilfe!$B$3=3,'Berechnung EB heute%'!Q45,'Berechnung Ratierlich heute%'!Q45) -> 0 | D37: =MAX(0,IF(Hilfe!$B$3=3,'Berechnung EB 2%'!K45-'Berechnung EB 2%'!P45,'Berechnung Ratierlich 2%'!K45-'Berechnung Ratierlich 2%'!P45)) -> 850.1055111 | E37: =IF(Hilfe!$B$3=3,'Berechnung EB 2%'!Q45,'Berechnung Ratierlich 2%'!Q45) -> 850.1055111 | F37: =MAX(0,IF(Hilfe!$B$3=3,'Berechnung EB 4%'!K45-'Berechnung EB 4%'!P45,'Berechnung Ratierlich 4%'!K45-'Berechnung Ratierlich 4%'!P45)) -> 1541.699433 | G37: =IF(Hilfe!$B$3=3,'Berechnung EB 4%'!Q45,'Berechnung Ratierlich 4%'!Q45) -> 1541.699433
A38: 36 | B38: =MAX(0,IF(Hilfe!$B$3=3,'Berechnung EB heute%'!K46-'Berechnung EB heute%'!P46,'Berechnung Ratierlich heute%'!K46-'Berechnung Ratierlich heute%'!P46)) -> 0 | C38: =IF(Hilfe!$B$3=3,'Berechnung EB heute%'!Q46,'Berechnung Ratierlich heute%'!Q46) -> 0 | D38: =MAX(0,IF(Hilfe!$B$3=3,'Berechnung EB 2%'!K46-'Berechnung EB 2%'!P46,'Berechnung Ratierlich 2%'!K46-'Berechnung Ratierlich 2%'!P46)) -> 909.2289653 | E38: =IF(Hilfe!$B$3=3,'Berechnung EB 2%'!Q46,'Berechnung Ratierlich 2%'!Q46) -> 909.2289653 | F38: =MAX(0,IF(Hilfe!$B$3=3,'Berechnung EB 4%'!K46-'Berechnung EB 4%'!P46,'Berechnung Ratierlich 4%'!K46-'Berechnung Ratierlich 4%'!P46)) -> 1645.328225 | G38: =IF(Hilfe!$B$3=3,'Berechnung EB 4%'!Q46,'Berechnung Ratierlich 4%'!Q46) -> 1645.328225
A39: 37 | B39: =MAX(0,IF(Hilfe!$B$3=3,'Berechnung EB heute%'!K47-'Berechnung EB heute%'!P47,'Berechnung Ratierlich heute%'!K47-'Berechnung Ratierlich heute%'!P47)) -> 0 | C39: =IF(Hilfe!$B$3=3,'Berechnung EB heute%'!Q47,'Berechnung Ratierlich heute%'!Q47) -> 0 | D39: =MAX(0,IF(Hilfe!$B$3=3,'Berechnung EB 2%'!K47-'Berechnung EB 2%'!P47,'Berechnung Ratierlich 2%'!K47-'Berechnung Ratierlich 2%'!P47)) -> 0 | E39: =IF(Hilfe!$B$3=3,'Berechnung EB 2%'!Q47,'Berechnung Ratierlich 2%'!Q47) -> 0 | F39: =MAX(0,IF(Hilfe!$B$3=3,'Berechnung EB 4%'!K47-'Berechnung EB 4%'!P47,'Berechnung Ratierlich 4%'!K47-'Berechnung Ratierlich 4%'!P47)) -> 0 | G39: =IF(Hilfe!$B$3=3,'Berechnung EB 4%'!Q47,'Berechnung Ratierlich 4%'!Q47) -> 0
A40: 38 | B40: =MAX(0,IF(Hilfe!$B$3=3,'Berechnung EB heute%'!K48-'Berechnung EB heute%'!P48,'Berechnung Ratierlich heute%'!K48-'Berechnung Ratierlich heute%'!P48)) -> 0 | C40: =IF(Hilfe!$B$3=3,'Berechnung EB heute%'!Q48,'Berechnung Ratierlich heute%'!Q48) -> 0 | D40: =MAX(0,IF(Hilfe!$B$3=3,'Berechnung EB 2%'!K48-'Berechnung EB 2%'!P48,'Berechnung Ratierlich 2%'!K48-'Berechnung Ratierlich 2%'!P48)) -> 0 | E40: =IF(Hilfe!$B$3=3,'Berechnung EB 2%'!Q48,'Berechnung Ratierlich 2%'!Q48) -> 0 | F40: =MAX(0,IF(Hilfe!$B$3=3,'Berechnung EB 4%'!K48-'Berechnung EB 4%'!P48,'Berechnung Ratierlich 4%'!K48-'Berechnung Ratierlich 4%'!P48)) -> 0 | G40: =IF(Hilfe!$B$3=3,'Berechnung EB 4%'!Q48,'Berechnung Ratierlich 4%'!Q48) -> 0
A41: 39 | B41: =MAX(0,IF(Hilfe!$B$3=3,'Berechnung EB heute%'!K49-'Berechnung EB heute%'!P49,'Berechnung Ratierlich heute%'!K49-'Berechnung Ratierlich heute%'!P49)) -> 0 | C41: =IF(Hilfe!$B$3=3,'Berechnung EB heute%'!Q49,'Berechnung Ratierlich heute%'!Q49) -> 0 | D41: =MAX(0,IF(Hilfe!$B$3=3,'Berechnung EB 2%'!K49-'Berechnung EB 2%'!P49,'Berechnung Ratierlich 2%'!K49-'Berechnung Ratierlich 2%'!P49)) -> 0 | E41: =IF(Hilfe!$B$3=3,'Berechnung EB 2%'!Q49,'Berechnung Ratierlich 2%'!Q49) -> 0 | F41: =MAX(0,IF(Hilfe!$B$3=3,'Berechnung EB 4%'!K49-'Berechnung EB 4%'!P49,'Berechnung Ratierlich 4%'!K49-'Berechnung Ratierlich 4%'!P49)) -> 0 | G41: =IF(Hilfe!$B$3=3,'Berechnung EB 4%'!Q49,'Berechnung Ratierlich 4%'!Q49) -> 0
A42: 40 | B42: =MAX(0,IF(Hilfe!$B$3=3,'Berechnung EB heute%'!K50-'Berechnung EB heute%'!P50,'Berechnung Ratierlich heute%'!K50-'Berechnung Ratierlich heute%'!P50)) -> 0 | C42: =IF(Hilfe!$B$3=3,'Berechnung EB heute%'!Q50,'Berechnung Ratierlich heute%'!Q50) -> 0 | D42: =MAX(0,IF(Hilfe!$B$3=3,'Berechnung EB 2%'!K50-'Berechnung EB 2%'!P50,'Berechnung Ratierlich 2%'!K50-'Berechnung Ratierlich 2%'!P50)) -> 0 | E42: =IF(Hilfe!$B$3=3,'Berechnung EB 2%'!Q50,'Berechnung Ratierlich 2%'!Q50) -> 0 | F42: =MAX(0,IF(Hilfe!$B$3=3,'Berechnung EB 4%'!K50-'Berechnung EB 4%'!P50,'Berechnung Ratierlich 4%'!K50-'Berechnung Ratierlich 4%'!P50)) -> 0 | G42: =IF(Hilfe!$B$3=3,'Berechnung EB 4%'!Q50,'Berechnung Ratierlich 4%'!Q50) -> 0
A43: 41 | B43: =MAX(0,IF(Hilfe!$B$3=3,'Berechnung EB heute%'!K51-'Berechnung EB heute%'!P51,'Berechnung Ratierlich heute%'!K51-'Berechnung Ratierlich heute%'!P51)) -> 0 | C43: =IF(Hilfe!$B$3=3,'Berechnung EB heute%'!Q51,'Berechnung Ratierlich heute%'!Q51) -> 0 | D43: =MAX(0,IF(Hilfe!$B$3=3,'Berechnung EB 2%'!K51-'Berechnung EB 2%'!P51,'Berechnung Ratierlich 2%'!K51-'Berechnung Ratierlich 2%'!P51)) -> 0 | E43: =IF(Hilfe!$B$3=3,'Berechnung EB 2%'!Q51,'Berechnung Ratierlich 2%'!Q51) -> 0 | F43: =MAX(0,IF(Hilfe!$B$3=3,'Berechnung EB 4%'!K51-'Berechnung EB 4%'!P51,'Berechnung Ratierlich 4%'!K51-'Berechnung Ratierlich 4%'!P51)) -> 0 | G43: =IF(Hilfe!$B$3=3,'Berechnung EB 4%'!Q51,'Berechnung Ratierlich 4%'!Q51) -> 0
A44: 42 | B44: =MAX(0,IF(Hilfe!$B$3=3,'Berechnung EB heute%'!K52-'Berechnung EB heute%'!P52,'Berechnung Ratierlich heute%'!K52-'Berechnung Ratierlich heute%'!P52)) -> 0 | C44: =IF(Hilfe!$B$3=3,'Berechnung EB heute%'!Q52,'Berechnung Ratierlich heute%'!Q52) -> 0 | D44: =MAX(0,IF(Hilfe!$B$3=3,'Berechnung EB 2%'!K52-'Berechnung EB 2%'!P52,'Berechnung Ratierlich 2%'!K52-'Berechnung Ratierlich 2%'!P52)) -> 0 | E44: =IF(Hilfe!$B$3=3,'Berechnung EB 2%'!Q52,'Berechnung Ratierlich 2%'!Q52) -> 0 | F44: =MAX(0,IF(Hilfe!$B$3=3,'Berechnung EB 4%'!K52-'Berechnung EB 4%'!P52,'Berechnung Ratierlich 4%'!K52-'Berechnung Ratierlich 4%'!P52)) -> 0 | G44: =IF(Hilfe!$B$3=3,'Berechnung EB 4%'!Q52,'Berechnung Ratierlich 4%'!Q52) -> 0
A45: 43 | B45: =MAX(0,IF(Hilfe!$B$3=3,'Berechnung EB heute%'!K53-'Berechnung EB heute%'!P53,'Berechnung Ratierlich heute%'!K53-'Berechnung Ratierlich heute%'!P53)) -> 0 | C45: =IF(Hilfe!$B$3=3,'Berechnung EB heute%'!Q53,'Berechnung Ratierlich heute%'!Q53) -> 0 | D45: =MAX(0,IF(Hilfe!$B$3=3,'Berechnung EB 2%'!K53-'Berechnung EB 2%'!P53,'Berechnung Ratierlich 2%'!K53-'Berechnung Ratierlich 2%'!P53)) -> 0 | E45: =IF(Hilfe!$B$3=3,'Berechnung EB 2%'!Q53,'Berechnung Ratierlich 2%'!Q53) -> 0 | F45: =MAX(0,IF(Hilfe!$B$3=3,'Berechnung EB 4%'!K53-'Berechnung EB 4%'!P53,'Berechnung Ratierlich 4%'!K53-'Berechnung Ratierlich 4%'!P53)) -> 0 | G45: =IF(Hilfe!$B$3=3,'Berechnung EB 4%'!Q53,'Berechnung Ratierlich 4%'!Q53) -> 0
A46: 44 | B46: =MAX(0,IF(Hilfe!$B$3=3,'Berechnung EB heute%'!K54-'Berechnung EB heute%'!P54,'Berechnung Ratierlich heute%'!K54-'Berechnung Ratierlich heute%'!P54)) -> 0 | C46: =IF(Hilfe!$B$3=3,'Berechnung EB heute%'!Q54,'Berechnung Ratierlich heute%'!Q54) -> 0 | D46: =MAX(0,IF(Hilfe!$B$3=3,'Berechnung EB 2%'!K54-'Berechnung EB 2%'!P54,'Berechnung Ratierlich 2%'!K54-'Berechnung Ratierlich 2%'!P54)) -> 0 | E46: =IF(Hilfe!$B$3=3,'Berechnung EB 2%'!Q54,'Berechnung Ratierlich 2%'!Q54) -> 0 | F46: =MAX(0,IF(Hilfe!$B$3=3,'Berechnung EB 4%'!K54-'Berechnung EB 4%'!P54,'Berechnung Ratierlich 4%'!K54-'Berechnung Ratierlich 4%'!P54)) -> 0 | G46: =IF(Hilfe!$B$3=3,'Berechnung EB 4%'!Q54,'Berechnung Ratierlich 4%'!Q54) -> 0
A47: 45 | B47: =MAX(0,IF(Hilfe!$B$3=3,'Berechnung EB heute%'!K55-'Berechnung EB heute%'!P55,'Berechnung Ratierlich heute%'!K55-'Berechnung Ratierlich heute%'!P55)) -> 0 | C47: =IF(Hilfe!$B$3=3,'Berechnung EB heute%'!Q55,'Berechnung Ratierlich heute%'!Q55) -> 0 | D47: =MAX(0,IF(Hilfe!$B$3=3,'Berechnung EB 2%'!K55-'Berechnung EB 2%'!P55,'Berechnung Ratierlich 2%'!K55-'Berechnung Ratierlich 2%'!P55)) -> 0 | E47: =IF(Hilfe!$B$3=3,'Berechnung EB 2%'!Q55,'Berechnung Ratierlich 2%'!Q55) -> 0 | F47: =MAX(0,IF(Hilfe!$B$3=3,'Berechnung EB 4%'!K55-'Berechnung EB 4%'!P55,'Berechnung Ratierlich 4%'!K55-'Berechnung Ratierlich 4%'!P55)) -> 0 | G47: =IF(Hilfe!$B$3=3,'Berechnung EB 4%'!Q55,'Berechnung Ratierlich 4%'!Q55) -> 0
A48: 46 | B48: =MAX(0,IF(Hilfe!$B$3=3,'Berechnung EB heute%'!K56-'Berechnung EB heute%'!P56,'Berechnung Ratierlich heute%'!K56-'Berechnung Ratierlich heute%'!P56)) -> 0 | C48: =IF(Hilfe!$B$3=3,'Berechnung EB heute%'!Q56,'Berechnung Ratierlich heute%'!Q56) -> 0 | D48: =MAX(0,IF(Hilfe!$B$3=3,'Berechnung EB 2%'!K56-'Berechnung EB 2%'!P56,'Berechnung Ratierlich 2%'!K56-'Berechnung Ratierlich 2%'!P56)) -> 0 | E48: =IF(Hilfe!$B$3=3,'Berechnung EB 2%'!Q56,'Berechnung Ratierlich 2%'!Q56) -> 0 | F48: =MAX(0,IF(Hilfe!$B$3=3,'Berechnung EB 4%'!K56-'Berechnung EB 4%'!P56,'Berechnung Ratierlich 4%'!K56-'Berechnung Ratierlich 4%'!P56)) -> 0 | G48: =IF(Hilfe!$B$3=3,'Berechnung EB 4%'!Q56,'Berechnung Ratierlich 4%'!Q56) -> 0
A49: 47 | B49: =MAX(0,IF(Hilfe!$B$3=3,'Berechnung EB heute%'!K57-'Berechnung EB heute%'!P57,'Berechnung Ratierlich heute%'!K57-'Berechnung Ratierlich heute%'!P57)) -> 0 | C49: =IF(Hilfe!$B$3=3,'Berechnung EB heute%'!Q57,'Berechnung Ratierlich heute%'!Q57) -> 0 | D49: =MAX(0,IF(Hilfe!$B$3=3,'Berechnung EB 2%'!K57-'Berechnung EB 2%'!P57,'Berechnung Ratierlich 2%'!K57-'Berechnung Ratierlich 2%'!P57)) -> 0 | E49: =IF(Hilfe!$B$3=3,'Berechnung EB 2%'!Q57,'Berechnung Ratierlich 2%'!Q57) -> 0 | F49: =MAX(0,IF(Hilfe!$B$3=3,'Berechnung EB 4%'!K57-'Berechnung EB 4%'!P57,'Berechnung Ratierlich 4%'!K57-'Berechnung Ratierlich 4%'!P57)) -> 0 | G49: =IF(Hilfe!$B$3=3,'Berechnung EB 4%'!Q57,'Berechnung Ratierlich 4%'!Q57) -> 0
A50: 48 | B50: =MAX(0,IF(Hilfe!$B$3=3,'Berechnung EB heute%'!K58-'Berechnung EB heute%'!P58,'Berechnung Ratierlich heute%'!K58-'Berechnung Ratierlich heute%'!P58)) -> 0 | C50: =IF(Hilfe!$B$3=3,'Berechnung EB heute%'!Q58,'Berechnung Ratierlich heute%'!Q58) -> 0 | D50: =MAX(0,IF(Hilfe!$B$3=3,'Berechnung EB 2%'!K58-'Berechnung EB 2%'!P58,'Berechnung Ratierlich 2%'!K58-'Berechnung Ratierlich 2%'!P58)) -> 0 | E50: =IF(Hilfe!$B$3=3,'Berechnung EB 2%'!Q58,'Berechnung Ratierlich 2%'!Q58) -> 0 | F50: =MAX(0,IF(Hilfe!$B$3=3,'Berechnung EB 4%'!K58-'Berechnung EB 4%'!P58,'Berechnung Ratierlich 4%'!K58-'Berechnung Ratierlich 4%'!P58)) -> 0 | G50: =IF(Hilfe!$B$3=3,'Berechnung EB 4%'!Q58,'Berechnung Ratierlich 4%'!Q58) -> 0
A51: 49 | B51: =MAX(0,IF(Hilfe!$B$3=3,'Berechnung EB heute%'!K59-'Berechnung EB heute%'!P59,'Berechnung Ratierlich heute%'!K59-'Berechnung Ratierlich heute%'!P59)) -> 0 | C51: =IF(Hilfe!$B$3=3,'Berechnung EB heute%'!Q59,'Berechnung Ratierlich heute%'!Q59) -> 0 | D51: =MAX(0,IF(Hilfe!$B$3=3,'Berechnung EB 2%'!K59-'Berechnung EB 2%'!P59,'Berechnung Ratierlich 2%'!K59-'Berechnung Ratierlich 2%'!P59)) -> 0 | E51: =IF(Hilfe!$B$3=3,'Berechnung EB 2%'!Q59,'Berechnung Ratierlich 2%'!Q59) -> 0 | F51: =MAX(0,IF(Hilfe!$B$3=3,'Berechnung EB 4%'!K59-'Berechnung EB 4%'!P59,'Berechnung Ratierlich 4%'!K59-'Berechnung Ratierlich 4%'!P59)) -> 0 | G51: =IF(Hilfe!$B$3=3,'Berechnung EB 4%'!Q59,'Berechnung Ratierlich 4%'!Q59) -> 0
A52: 50 | B52: =MAX(0,IF(Hilfe!$B$3=3,'Berechnung EB heute%'!K60-'Berechnung EB heute%'!P60,'Berechnung Ratierlich heute%'!K60-'Berechnung Ratierlich heute%'!P60)) -> 0 | C52: =IF(Hilfe!$B$3=3,'Berechnung EB heute%'!Q60,'Berechnung Ratierlich heute%'!Q60) -> 0 | D52: =MAX(0,IF(Hilfe!$B$3=3,'Berechnung EB 2%'!K60-'Berechnung EB 2%'!P60,'Berechnung Ratierlich 2%'!K60-'Berechnung Ratierlich 2%'!P60)) -> 0 | E52: =IF(Hilfe!$B$3=3,'Berechnung EB 2%'!Q60,'Berechnung Ratierlich 2%'!Q60) -> 0 | F52: =MAX(0,IF(Hilfe!$B$3=3,'Berechnung EB 4%'!K60-'Berechnung EB 4%'!P60,'Berechnung Ratierlich 4%'!K60-'Berechnung Ratierlich 4%'!P60)) -> 0 | G52: =IF(Hilfe!$B$3=3,'Berechnung EB 4%'!Q60,'Berechnung Ratierlich 4%'!Q60) -> 0
A53: 51 | B53: =MAX(0,IF(Hilfe!$B$3=3,'Berechnung EB heute%'!K61-'Berechnung EB heute%'!P61,'Berechnung Ratierlich heute%'!K61-'Berechnung Ratierlich heute%'!P61)) -> 0 | C53: =IF(Hilfe!$B$3=3,'Berechnung EB heute%'!Q61,'Berechnung Ratierlich heute%'!Q61) -> 0 | D53: =MAX(0,IF(Hilfe!$B$3=3,'Berechnung EB 2%'!K61-'Berechnung EB 2%'!P61,'Berechnung Ratierlich 2%'!K61-'Berechnung Ratierlich 2%'!P61)) -> 0 | E53: =IF(Hilfe!$B$3=3,'Berechnung EB 2%'!Q61,'Berechnung Ratierlich 2%'!Q61) -> 0 | F53: =MAX(0,IF(Hilfe!$B$3=3,'Berechnung EB 4%'!K61-'Berechnung EB 4%'!P61,'Berechnung Ratierlich 4%'!K61-'Berechnung Ratierlich 4%'!P61)) -> 0 | G53: =IF(Hilfe!$B$3=3,'Berechnung EB 4%'!Q61,'Berechnung Ratierlich 4%'!Q61) -> 0
A54: 52 | B54: =MAX(0,IF(Hilfe!$B$3=3,'Berechnung EB heute%'!K62-'Berechnung EB heute%'!P62,'Berechnung Ratierlich heute%'!K62-'Berechnung Ratierlich heute%'!P62)) -> 0 | C54: =IF(Hilfe!$B$3=3,'Berechnung EB heute%'!Q62,'Berechnung Ratierlich heute%'!Q62) -> 0 | D54: =MAX(0,IF(Hilfe!$B$3=3,'Berechnung EB 2%'!K62-'Berechnung EB 2%'!P62,'Berechnung Ratierlich 2%'!K62-'Berechnung Ratierlich 2%'!P62)) -> 0 | E54: =IF(Hilfe!$B$3=3,'Berechnung EB 2%'!Q62,'Berechnung Ratierlich 2%'!Q62) -> 0 | F54: =MAX(0,IF(Hilfe!$B$3=3,'Berechnung EB 4%'!K62-'Berechnung EB 4%'!P62,'Berechnung Ratierlich 4%'!K62-'Berechnung Ratierlich 4%'!P62)) -> 0 | G54: =IF(Hilfe!$B$3=3,'Berechnung EB 4%'!Q62,'Berechnung Ratierlich 4%'!Q62) -> 0
A55: 53 | B55: =MAX(0,IF(Hilfe!$B$3=3,'Berechnung EB heute%'!K63-'Berechnung EB heute%'!P63,'Berechnung Ratierlich heute%'!K63-'Berechnung Ratierlich heute%'!P63)) -> 0 | C55: =IF(Hilfe!$B$3=3,'Berechnung EB heute%'!Q63,'Berechnung Ratierlich heute%'!Q63) -> 0 | D55: =MAX(0,IF(Hilfe!$B$3=3,'Berechnung EB 2%'!K63-'Berechnung EB 2%'!P63,'Berechnung Ratierlich 2%'!K63-'Berechnung Ratierlich 2%'!P63)) -> 0 | E55: =IF(Hilfe!$B$3=3,'Berechnung EB 2%'!Q63,'Berechnung Ratierlich 2%'!Q63) -> 0 | F55: =MAX(0,IF(Hilfe!$B$3=3,'Berechnung EB 4%'!K63-'Berechnung EB 4%'!P63,'Berechnung Ratierlich 4%'!K63-'Berechnung Ratierlich 4%'!P63)) -> 0 | G55: =IF(Hilfe!$B$3=3,'Berechnung EB 4%'!Q63,'Berechnung Ratierlich 4%'!Q63) -> 0
A56: 54 | B56: =MAX(0,IF(Hilfe!$B$3=3,'Berechnung EB heute%'!K64-'Berechnung EB heute%'!P64,'Berechnung Ratierlich heute%'!K64-'Berechnung Ratierlich heute%'!P64)) -> 0 | C56: =IF(Hilfe!$B$3=3,'Berechnung EB heute%'!Q64,'Berechnung Ratierlich heute%'!Q64) -> 0 | D56: =MAX(0,IF(Hilfe!$B$3=3,'Berechnung EB 2%'!K64-'Berechnung EB 2%'!P64,'Berechnung Ratierlich 2%'!K64-'Berechnung Ratierlich 2%'!P64)) -> 0 | E56: =IF(Hilfe!$B$3=3,'Berechnung EB 2%'!Q64,'Berechnung Ratierlich 2%'!Q64) -> 0 | F56: =MAX(0,IF(Hilfe!$B$3=3,'Berechnung EB 4%'!K64-'Berechnung EB 4%'!P64,'Berechnung Ratierlich 4%'!K64-'Berechnung Ratierlich 4%'!P64)) -> 0 | G56: =IF(Hilfe!$B$3=3,'Berechnung EB 4%'!Q64,'Berechnung Ratierlich 4%'!Q64) -> 0
A57: 55 | B57: =MAX(0,IF(Hilfe!$B$3=3,'Berechnung EB heute%'!K65-'Berechnung EB heute%'!P65,'Berechnung Ratierlich heute%'!K65-'Berechnung Ratierlich heute%'!P65)) -> 0 | C57: =IF(Hilfe!$B$3=3,'Berechnung EB heute%'!Q65,'Berechnung Ratierlich heute%'!Q65) -> 0 | D57: =MAX(0,IF(Hilfe!$B$3=3,'Berechnung EB 2%'!K65-'Berechnung EB 2%'!P65,'Berechnung Ratierlich 2%'!K65-'Berechnung Ratierlich 2%'!P65)) -> 0 | E57: =IF(Hilfe!$B$3=3,'Berechnung EB 2%'!Q65,'Berechnung Ratierlich 2%'!Q65) -> 0 | F57: =MAX(0,IF(Hilfe!$B$3=3,'Berechnung EB 4%'!K65-'Berechnung EB 4%'!P65,'Berechnung Ratierlich 4%'!K65-'Berechnung Ratierlich 4%'!P65)) -> 0 | G57: =IF(Hilfe!$B$3=3,'Berechnung EB 4%'!Q65,'Berechnung Ratierlich 4%'!Q65) -> 0
A58: 56 | B58: =MAX(0,IF(Hilfe!$B$3=3,'Berechnung EB heute%'!K66-'Berechnung EB heute%'!P66,'Berechnung Ratierlich heute%'!K66-'Berechnung Ratierlich heute%'!P66)) -> 0 | C58: =IF(Hilfe!$B$3=3,'Berechnung EB heute%'!Q66,'Berechnung Ratierlich heute%'!Q66) -> 0 | D58: =MAX(0,IF(Hilfe!$B$3=3,'Berechnung EB 2%'!K66-'Berechnung EB 2%'!P66,'Berechnung Ratierlich 2%'!K66-'Berechnung Ratierlich 2%'!P66)) -> 0 | E58: =IF(Hilfe!$B$3=3,'Berechnung EB 2%'!Q66,'Berechnung Ratierlich 2%'!Q66) -> 0 | F58: =MAX(0,IF(Hilfe!$B$3=3,'Berechnung EB 4%'!K66-'Berechnung EB 4%'!P66,'Berechnung Ratierlich 4%'!K66-'Berechnung Ratierlich 4%'!P66)) -> 0 | G58: =IF(Hilfe!$B$3=3,'Berechnung EB 4%'!Q66,'Berechnung Ratierlich 4%'!Q66) -> 0
A59: 57 | B59: =MAX(0,IF(Hilfe!$B$3=3,'Berechnung EB heute%'!K67-'Berechnung EB heute%'!P67,'Berechnung Ratierlich heute%'!K67-'Berechnung Ratierlich heute%'!P67)) -> 0 | C59: =IF(Hilfe!$B$3=3,'Berechnung EB heute%'!Q67,'Berechnung Ratierlich heute%'!Q67) -> 0 | D59: =MAX(0,IF(Hilfe!$B$3=3,'Berechnung EB 2%'!K67-'Berechnung EB 2%'!P67,'Berechnung Ratierlich 2%'!K67-'Berechnung Ratierlich 2%'!P67)) -> 0 | E59: =IF(Hilfe!$B$3=3,'Berechnung EB 2%'!Q67,'Berechnung Ratierlich 2%'!Q67) -> 0 | F59: =MAX(0,IF(Hilfe!$B$3=3,'Berechnung EB 4%'!K67-'Berechnung EB 4%'!P67,'Berechnung Ratierlich 4%'!K67-'Berechnung Ratierlich 4%'!P67)) -> 0 | G59: =IF(Hilfe!$B$3=3,'Berechnung EB 4%'!Q67,'Berechnung Ratierlich 4%'!Q67) -> 0
A60: 58 | B60: =MAX(0,IF(Hilfe!$B$3=3,'Berechnung EB heute%'!K68-'Berechnung EB heute%'!P68,'Berechnung Ratierlich heute%'!K68-'Berechnung Ratierlich heute%'!P68)) -> 0 | C60: =IF(Hilfe!$B$3=3,'Berechnung EB heute%'!Q68,'Berechnung Ratierlich heute%'!Q68) -> 0 | D60: =MAX(0,IF(Hilfe!$B$3=3,'Berechnung EB 2%'!K68-'Berechnung EB 2%'!P68,'Berechnung Ratierlich 2%'!K68-'Berechnung Ratierlich 2%'!P68)) -> 0 | E60: =IF(Hilfe!$B$3=3,'Berechnung EB 2%'!Q68,'Berechnung Ratierlich 2%'!Q68) -> 0 | F60: =MAX(0,IF(Hilfe!$B$3=3,'Berechnung EB 4%'!K68-'Berechnung EB 4%'!P68,'Berechnung Ratierlich 4%'!K68-'Berechnung Ratierlich 4%'!P68)) -> 0 | G60: =IF(Hilfe!$B$3=3,'Berechnung EB 4%'!Q68,'Berechnung Ratierlich 4%'!Q68) -> 0
A61: 59 | B61: =MAX(0,IF(Hilfe!$B$3=3,'Berechnung EB heute%'!K69-'Berechnung EB heute%'!P69,'Berechnung Ratierlich heute%'!K69-'Berechnung Ratierlich heute%'!P69)) -> 0 | C61: =IF(Hilfe!$B$3=3,'Berechnung EB heute%'!Q69,'Berechnung Ratierlich heute%'!Q69) -> 0 | D61: =MAX(0,IF(Hilfe!$B$3=3,'Berechnung EB 2%'!K69-'Berechnung EB 2%'!P69,'Berechnung Ratierlich 2%'!K69-'Berechnung Ratierlich 2%'!P69)) -> 0 | E61: =IF(Hilfe!$B$3=3,'Berechnung EB 2%'!Q69,'Berechnung Ratierlich 2%'!Q69) -> 0 | F61: =MAX(0,IF(Hilfe!$B$3=3,'Berechnung EB 4%'!K69-'Berechnung EB 4%'!P69,'Berechnung Ratierlich 4%'!K69-'Berechnung Ratierlich 4%'!P69)) -> 0 | G61: =IF(Hilfe!$B$3=3,'Berechnung EB 4%'!Q69,'Berechnung Ratierlich 4%'!Q69) -> 0
A62: 60 | B62: =MAX(0,IF(Hilfe!$B$3=3,'Berechnung EB heute%'!K70-'Berechnung EB heute%'!P70,'Berechnung Ratierlich heute%'!K70-'Berechnung Ratierlich heute%'!P70)) -> 0 | C62: =IF(Hilfe!$B$3=3,'Berechnung EB heute%'!Q70,'Berechnung Ratierlich heute%'!Q70) -> 0 | D62: =MAX(0,IF(Hilfe!$B$3=3,'Berechnung EB 2%'!K70-'Berechnung EB 2%'!P70,'Berechnung Ratierlich 2%'!K70-'Berechnung Ratierlich 2%'!P70)) -> 0 | E62: =IF(Hilfe!$B$3=3,'Berechnung EB 2%'!Q70,'Berechnung Ratierlich 2%'!Q70) -> 0 | F62: =MAX(0,IF(Hilfe!$B$3=3,'Berechnung EB 4%'!K70-'Berechnung EB 4%'!P70,'Berechnung Ratierlich 4%'!K70-'Berechnung Ratierlich 4%'!P70)) -> 0 | G62: =IF(Hilfe!$B$3=3,'Berechnung EB 4%'!Q70,'Berechnung Ratierlich 4%'!Q70) -> 0

Sheet Berechnung Ratierlich 2% (hidden)
A1: Rendite | B1: =Hilfe!E3-Hilfe!G16 -> 0.06 | F1: Ausgabeaufschlag | L1: Basiszins | M1: =MIN(2%,B1) -> 0.02
A2: Beitrag p.a. | B2: =Eingabe!C10*Hilfe!B4 -> 3000 | G2: Aktienfonds | H2: Mischfonds | I2: Rentenfonds / VVW | L2: Abgeltungssteuer | M2: ='Berechnung Ratierlich heute%'!M2 -> 0.26375
A3: Laufzeit | B3: =Eingabe!C9 -> 36 | F3: Ausgabeaufschlag | G3: =Eingabe!C21 -> 0.05 | H3: =Eingabe!E21 -> 0.04 | I3: =Eingabe!G21 -> 0.03
F4: Wechselgebühr | G4: =Eingabe!C22 -> 0.025 | H4: =Eingabe!E22 -> 0.02 | I4: =Eingabe!G22 -> 0.015 | J4: Ausgabe
F5: Freistellung | G5: 0.3 | H5: 0.15 | I5: 0 | J5: Jahr | K5: Jahresabschluss | L5: Beitragssumme | M5: zu versteuern % | N5: zu versteuern | O5: kumulierte Vorabpauschale | P5: Freistellungsauftrag | Q5: Auszahlung
J6: =B3 -> 36 | K6: =MAX(VLOOKUP(J6,A11:AD70,20,FALSE),0) -> 263150.0375 | L6: =MAX(VLOOKUP(J6,A11:AD70,13,FALSE),0) -> 162956.9939 | M6: =VLOOKUP(J6,A11:AD70,14,FALSE) -> 1 | N6: =(K6-L6)*M6 -> 100193.0436 | O6: =VLOOKUP(J6,A11:AD70,12,FALSE) -> 6299.274614 | P6: =VLOOKUP(J6,A11:AD70,16,FALSE) -> 0 | Q6: =K6-(N6-P6-O6)*M2 -> 238385.5559
A9: Jahr | B9: Ausgabeaufschlag | C9: Beitrag | D9: Vermögen Jahresanfang | E9: Rendite | F9: Gesamtvermögen | G9: Wechsel | H9: Anteil Aktienfonds | I9: Anteil Mischfonds | J9: Rentenfonds / VVW | K9: Vorabpauschale | L9: kumulierte Vorabpauschale | M9: Beitragssumme | N9: Freistellung | O9: Wechselbesteuerunganteil | P9: Freistellungsauftrag | Q9: Steuer | R9: Wechselkosten | S9: Depotkosten | T9: Jahresabschluss
A10: 0 | H10: =Eingabe!C18 -> 1 | I10: =Eingabe!E18 -> 0 | J10: =Eingabe!G18 -> 0
A11: 1 | B11: =$G$3*H10+$H$3*I10+$I$3*J10 -> 0.05 | C11: =IF($B$3>=A11,$B$2,0)/(1+B11) -> 2857.142857 | D11: =C11 -> 2857.142857 | E11: =C11*$B$1 -> 171.4285714 | F11: =C11+E11 -> 3028.571429 | G11: =VLOOKUP(A11,Wechsel!$A$11:$E$31,1) -> 0 | H11: =IF(G11>0,VLOOKUP(A11,Wechsel!$A$11:$E$31,3),H10) -> 1 | I11: =IF(G11>0,VLOOKUP(A11,Wechsel!$A$11:$E$31,4),I10) -> 0 | J11: =IF(G11>0,VLOOKUP(A11,Wechsel!$A$11:$E$31,5),J10) -> 0 | K11: =D11*$M$1*0.7*0.7*$M$2*H11+D11*$M$1*0.85*0.7*$M$2*I11+D11*$M$1*0.7*$M$2*J11 -> 7.385 | L11: =K11+L10 -> 7.385 | M11: =C11 -> 2857.142857 | N11: =1-(H11*$G$5+I11*$H$5+J11*$I$5) -> 0.7 | O11: =IF(G11>0,(F11-M11)*N11,0) -> 0 | P11: =MAX(Eingabe!C28,0) -> 0 | Q11: =MAX(0,K11+O11*$M$2-P11-IF(G11>0,-(L10+K11),0)) -> 7.385 | R11: =MAX(IF(G11>0,(H11*$G$4+I11*$H$4+J11*$I$4)*F11,0),0) -> 0 | S11: =Eingabe!$C$25+Eingabe!$E$25*'Berechnung Ratierlich 2%'!F11 -> 39 | T11: =F11-Q11-R11-S11 -> 2982.186429
A12: 2 | B12: =$G$3*H11+$H$3*I11+$I$3*J11 -> 0.05 | C12: 2857.142857 | D12: =MAX(IF(A12>$B$3,0,T11),0) -> 2982.186429 | E12: =(C12+D12)*$B$1 -> 350.3597571 | F12: =IF(A12>$B$3,0,C12+E12+D12) -> 6189.689043 | G12: =IF(VLOOKUP(A12,Wechsel!$A$11:$E$31,1)=A12,VLOOKUP(A12,Wechsel!$A$11:$E$31,1),0) -> 0 | H12: =IF(G12>0,VLOOKUP(A12,Wechsel!$A$11:$E$31,3),H11) -> 1 | I12: =IF(G12>0,VLOOKUP(A12,Wechsel!$A$11:$E$31,4),I11) -> 0 | J12: =IF(G12>0,VLOOKUP(A12,Wechsel!$A$11:$E$31,5),J11) -> 0 | K12: =D12*$M$1*0.7*0.7*$M$2*H12+D12*$M$1*0.85*0.7*$M$2*I12+D12*$M$1*0.7*$M$2*J12 -> 7.708206371 | L12: =IF(G11>0,K12,K12+L11) -> 15.09320637 | M12: =IF(A12>$B$3,0,IF(G11>0,T11,C12+M11)) -> 5714.285714 | N12: =1-(H12*$G$5+I12*$H$5+J12*$I$5) -> 0.7 | O12: =IF(G12>0,(F12-M12)*N11,0) -> 0 | P12: =MAX(P11-Eingabe!$E$28,0) -> 0 | Q12: =MAX(0,K12+O12*$M$2-P12-IF(G12>0,-(L11+K12),0)) -> 7.708206371 | R12: =MAX(IF(G12>0,(H12*$G$4+I12*$H$4+J12*$I$4)*(F12-Q12),0),0) -> 0 | S12: =Eingabe!$C$25+Eingabe!$E$25*'Berechnung Ratierlich 2%'!F12 -> 39 | T12: =F12-Q12-R12-S12 -> 6142.980836
A13: 3 | B13: 0.05 | C13: 2857.142857 | D13: 6142.980836 | E13: 540.0074216 | F13: 9540.131115 | G13: =IF(VLOOKUP(A13,Wechsel!$A$11:$E$31,1)=A13,VLOOKUP(A13,Wechsel!$A$11:$E$31,1),0) -> 0 | H13: =IF(G13>0,VLOOKUP(A13,Wechsel!$A$11:$E$31,3),H12) -> 1 | I13: =IF(G13>0,VLOOKUP(A13,Wechsel!$A$11:$E$31,4),I12) -> 0 | J13: =IF(G13>0,VLOOKUP(A13,Wechsel!$A$11:$E$31,5),J12) -> 0 | K13: =D13*$M$1*0.7*0.7*$M$2*H13+D13*$M$1*0.85*0.7*$M$2*I13+D13*$M$1*0.7*$M$2*J13 -> 15.87806972 | L13: =IF(G12>0,K13,K13+L12) -> 30.97127609 | M13: 8571.428571 | N13: 0.7 | O13: =IF(G13>0,(F13-M13)*N12,0) -> 0 | P13: =MAX(P12-Eingabe!$E$28,0) -> 0 | Q13: 15.87806972 | R13: 0 | S13: =Eingabe!$C$25+Eingabe!$E$25*'Berechnung Ratierlich 2%'!F13 -> 39 | T13: 9485.253046
A14: 4 | B14: 0.05 | C14: 2857.142857 | D14: 9485.253046 | E14: 740.5437542 | F14: 13082.93966 | G14: =IF(VLOOKUP(A14,Wechsel!$A$11:$E$31,1)=A14,VLOOKUP(A14,Wechsel!$A$11:$E$31,1),0) -> 0 | H14: =IF(G14>0,VLOOKUP(A14,Wechsel!$A$11:$E$31,3),H13) -> 1 | I14: =IF(G14>0,VLOOKUP(A14,Wechsel!$A$11:$E$31,4),I13) -> 0 | J14: =IF(G14>0,VLOOKUP(A14,Wechsel!$A$11:$E$31,5),J13) -> 0 | K14: 24.51700781 | L14: 55.4882839 | M14: 11428.57143 | N14: 0.7 | O14: 0 | P14: =MAX(P13-Eingabe!$E$28,0) -> 0 | Q14: 24.51700781 | R14: 0 | S14: =Eingabe!$C$25+Eingabe!$E$25*'Berechnung Ratierlich 2%'!F14 -> 39 | T14: 13019.42265
A15: 5 | B15: 0.05 | C15: 2857.142857 | D15: 13019.42265 | E15: 952.5939304 | F15: 16829.15944 | G15: =IF(VLOOKUP(A15,Wechsel!$A$11:$E$31,1)=A15,VLOOKUP(A15,Wechsel!$A$11:$E$31,1),0) -> 0 | H15: =IF(G15>0,VLOOKUP(A15,Wechsel!$A$11:$E$31,3),H14) -> 1 | I15: =IF(G15>0,VLOOKUP(A15,Wechsel!$A$11:$E$31,4),I14) -> 0 | J15: =IF(G15>0,VLOOKUP(A15,Wechsel!$A$11:$E$31,5),J14) -> 0 | K15: 33.65195269 | L15: 89.14023659 | M15: 14285.71429 | N15: 0.7 | O15: 0 | P15: =MAX(P14-Eingabe!$E$28,0) -> 0 | Q15: 33.65195269 | R15: 0 | S15: =Eingabe!$C$25+Eingabe!$E$25*'Berechnung Ratierlich 2%'!F15 -> 39 | T15: 16756.50748
A16: 6 | B16: 0.05 | C16: 2857.142857 | D16: 16756.50748 | E16: 1176.81902 | F16: 20790.46936 | G16: =IF(VLOOKUP(A16,Wechsel!$A$11:$E$31,1)=A16,VLOOKUP(A16,Wechsel!$A$11:$E$31,1),0) -> 0 | H16: =IF(G16>0,VLOOKUP(A16,Wechsel!$A$11:$E$31,3),H15) -> 1 | I16: =IF(G16>0,VLOOKUP(A16,Wechsel!$A$11:$E$31,4),I15) -> 0 | J16: =IF(G16>0,VLOOKUP(A16,Wechsel!$A$11:$E$31,5),J15) -> 0 | K16: 43.31138272 | L16: 132.4516193 | M16: 17142.85714 | N16: 0.7 | O16: 0 | P16: =MAX(P15-Eingabe!$E$28,0) -> 0 | Q16: 43.31138272 | R16: 0 | S16: =Eingabe!$C$25+Eingabe!$E$25*'Berechnung Ratierlich 2%'!F16 -> 39 | T16: 20708.15798
A17: 7 | B17: 0.05 | C17: 2857.142857 | D17: 20708.15798 | E17: 1413.91805 | F17: 24979.21889 | G17: =IF(VLOOKUP(A17,Wechsel!$A$11:$E$31,1)=A17,VLOOKUP(A17,Wechsel!$A$11:$E$31,1),0) -> 0 | H17: =IF(G17>0,VLOOKUP(A17,Wechsel!$A$11:$E$31,3),H16) -> 1 | I17: =IF(G17>0,VLOOKUP(A17,Wechsel!$A$11:$E$31,4),I16) -> 0 | J17: =IF(G17>0,VLOOKUP(A17,Wechsel!$A$11:$E$31,5),J16) -> 0 | K17: 53.52541134 | L17: 185.9770306 | M17: 20000 | N17: 0.7 | O17: 0 | P17: =MAX(P16-Eingabe!$E$28,0) -> 0 | Q17: 53.52541134 | R17: 0 | S17: =Eingabe!$C$25+Eingabe!$E$25*'Berechnung Ratierlich 2%'!F17 -> 39 | T17: 24886.69347
A18: 8 | B18: 0.05 | C18: 2857.142857 | D18: 24886.69347 | E18: 1664.63018 | F18: 29408.46651 | G18: =IF(VLOOKUP(A18,Wechsel!$A$11:$E$31,1)=A18,VLOOKUP(A18,Wechsel!$A$11:$E$31,1),0) -> 0 | H18: =IF(G18>0,VLOOKUP(A18,Wechsel!$A$11:$E$31,3),H17) -> 1 | I18: =IF(G18>0,VLOOKUP(A18,Wechsel!$A$11:$E$31,4),I17) -> 0 | J18: =IF(G18>0,VLOOKUP(A18,Wechsel!$A$11:$E$31,5),J17) -> 0 | K18: 64.32588096 | L18: 250.3029116 | M18: 22857.14286 | N18: 0.7 | O18: 0 | P18: =MAX(P17-Eingabe!$E$28,0) -> 0 | Q18: 64.32588096 | R18: 0 | S18: =Eingabe!$C$25+Eingabe!$E$25*'Berechnung Ratierlich 2%'!F18 -> 39 | T18: 29305.14063
A19: 9 | B19: 0.05 | C19: 2857.142857 | D19: 29305.14063 | E19: 1929.737009 | F19: 34092.0205 | G19: =IF(VLOOKUP(A19,Wechsel!$A$11:$E$31,1)=A19,VLOOKUP(A19,Wechsel!$A$11:$E$31,1),0) -> 9 | H19: =IF(G19>0,VLOOKUP(A19,Wechsel!$A$11:$E$31,3),H18) -> 0.6666666667 | I19: =IF(G19>0,VLOOKUP(A19,Wechsel!$A$11:$E$31,4),I18) -> 0 | J19: =IF(G19>0,VLOOKUP(A19,Wechsel!$A$11:$E$31,5),J18) -> 0.3333333333 | K19: 86.56738542 | L19: 336.870297 | M19: 25714.28571 | N19: 0.8 | O19: 5864.414348 | P19: =MAX(P18-Eingabe!$E$28,0) -> 0 | Q19: 1970.176967 | R19: =MAX(IF(G19>0,(H19*$G$4+I19*$H$4+J19*$I$4)*(F19-Q19),0),0) -> 695.9732765 | S19: =Eingabe!$C$25+Eingabe!$E$25*'Berechnung Ratierlich 2%'!F19 -> 39 | T19: 31386.87025
A20: 10 | B20: 0.04333333333 | C20: 2875.399361 | D20: 31386.87025 | E20: 2055.736177 | F20: 36318.00579 | G20: =IF(VLOOKUP(A20,Wechsel!$A$11:$E$31,1)=A20,VLOOKUP(A20,Wechsel!$A$11:$E$31,1),0) -> 0 | H20: =IF(G20>0,VLOOKUP(A20,Wechsel!$A$11:$E$31,3),H19) -> 0.6666666667 | I20: =IF(G20>0,VLOOKUP(A20,Wechsel!$A$11:$E$31,4),I19) -> 0 | J20: =IF(G20>0,VLOOKUP(A20,Wechsel!$A$11:$E$31,5),J19) -> 0.3333333333 | K20: 92.71681473 | L20: 92.71681473 | M20: 31386.87025 | N20: 0.8 | O20: 0 | P20: =MAX(P19-Eingabe!$E$28,0) -> 0 | Q20: 92.71681473 | R20: =MAX(IF(G20>0,(H20*$G$4+I20*$H$4+J20*$I$4)*(F20-Q20),0),0) -> 0 | S20: =Eingabe!$C$25+Eingabe!$E$25*'Berechnung Ratierlich 2%'!F20 -> 39 | T20: 36186.28898
A21: 11 | B21: 0.04333333333 | C21: 2875.399361 | D21: 36186.28898 | E21: 2343.7013 | F21: 41405.38964 | G21: =IF(VLOOKUP(A21,Wechsel!$A$11:$E$31,1)=A21,VLOOKUP(A21,Wechsel!$A$11:$E$31,1),0) -> 0 | H21: =IF(G21>0,VLOOKUP(A21,Wechsel!$A$11:$E$31,3),H20) -> 0.6666666667 | I21: =IF(G21>0,VLOOKUP(A21,Wechsel!$A$11:$E$31,4),I20) -> 0 | J21: =IF(G21>0,VLOOKUP(A21,Wechsel!$A$11:$E$31,5),J20) -> 0.3333333333 | K21: 106.8942976 | L21: 199.6111124 | M21: 34262.26961 | N21: 0.8 | O21: 0 | P21: =MAX(P20-Eingabe!$E$28,0) -> 0 | Q21: 106.8942976 | R21: 0 | S21: =Eingabe!$C$25+Eingabe!$E$25*'Berechnung Ratierlich 2%'!F21 -> 39 | T21: 41259.49534
A22: 12 | B22: 0.04333333333 | C22: 2875.399361 | D22: 41259.49534 | E22: 2648.093682 | F22: 46782.98838 | G22: =IF(VLOOKUP(A22,Wechsel!$A$11:$E$31,1)=A22,VLOOKUP(A22,Wechsel!$A$11:$E$31,1),0) -> 0 | H22: =IF(G22>0,VLOOKUP(A22,Wechsel!$A$11:$E$31,3),H21) -> 0.6666666667 | I22: =IF(G22>0,VLOOKUP(A22,Wechsel!$A$11:$E$31,4),I21) -> 0 | J22: =IF(G22>0,VLOOKUP(A22,Wechsel!$A$11:$E$31,5),J21) -> 0.3333333333 | K22: 121.8805492 | L22: 321.4916616 | M22: 37137.66898 | N22: 0.8 | O22: 0 | P22: =MAX(P21-Eingabe!$E$28,0) -> 0 | Q22: 121.8805492 | R22: 0 | S22: =Eingabe!$C$25+Eingabe!$E$25*'Berechnung Ratierlich 2%'!F22 -> 39 | T22: 46622.10783
A23: 13 | B23: 0.04333333333 | C23: 2875.399361 | D23: 46622.10783 | E23: 2969.850432 | F23: 52467.35763 | G23: =IF(VLOOKUP(A23,Wechsel!$A$11:$E$31,1)=A23,VLOOKUP(A23,Wechsel!$A$11:$E$31,1),0) -> 0 | H23: =IF(G23>0,VLOOKUP(A23,Wechsel!$A$11:$E$31,3),H22) -> 0.6666666667 | I23: =IF(G23>0,VLOOKUP(A23,Wechsel!$A$11:$E$31,4),I22) -> 0 | J23: =IF(G23>0,VLOOKUP(A23,Wechsel!$A$11:$E$31,5),J22) -> 0.3333333333 | K23: 137.7217065 | L23: 459.2133681 | M23: 40013.06834 | N23: 0.8 | O23: 0 | P23: =MAX(P22-Eingabe!$E$28,0) -> 0 | Q23: 137.7217065 | R23: 0 | S23: =Eingabe!$C$25+Eingabe!$E$25*'Berechnung Ratierlich 2%'!F23 -> 39 | T23: 52290.63592
A24: 14 | B24: 0.04333333333 | C24: 2875.399361 | D24: 52290.63592 | E24: 3309.962117 | F24: 58475.9974 | G24: =IF(VLOOKUP(A24,Wechsel!$A$11:$E$31,1)=A24,VLOOKUP(A24,Wechsel!$A$11:$E$31,1),0) -> 0 | H24: =IF(G24>0,VLOOKUP(A24,Wechsel!$A$11:$E$31,3),H23) -> 0.6666666667 | I24: =IF(G24>0,VLOOKUP(A24,Wechsel!$A$11:$E$31,4),I23) -> 0 | J24: =IF(G24>0,VLOOKUP(A24,Wechsel!$A$11:$E$31,5),J23) -> 0.3333333333 | K24: 154.4665385 | L24: 613.6799067 | M24: 42888.4677 | N24: 0.8 | O24: 0 | P24: =MAX(P23-Eingabe!$E$28,0) -> 0 | Q24: 154.4665385 | R24: 0 | S24: =Eingabe!$C$25+Eingabe!$E$25*'Berechnung Ratierlich 2%'!F24 -> 39 | T24: 58282.53086
A25: 15 | B25: 0.04333333333 | C25: 2875.399361 | D25: 58282.53086 | E25: 3669.475813 | F25: 64827.40603 | G25: =IF(VLOOKUP(A25,Wechsel!$A$11:$E$31,1)=A25,VLOOKUP(A25,Wechsel!$A$11:$E$31,1),0) -> 0 | H25: =IF(G25>0,VLOOKUP(A25,Wechsel!$A$11:$E$31,3),H24) -> 0.6666666667 | I25: =IF(G25>0,VLOOKUP(A25,Wechsel!$A$11:$E$31,4),I24) -> 0 | J25: =IF(G25>0,VLOOKUP(A25,Wechsel!$A$11:$E$31,5),J24) -> 0.3333333333 | K25: 172.1665962 | L25: 785.8465028 | M25: 45763.86706 | N25: 0.8 | O25: 0 | P25: =MAX(P24-Eingabe!$E$28,0) -> 0 | Q25: 172.1665962 | R25: 0 | S25: =Eingabe!$C$25+Eingabe!$E$25*'Berechnung Ratierlich 2%'!F25 -> 39 | T25: 64616.23944
A26: 16 | B26: 0.04333333333 | C26: 2875.399361 | D26: 64616.23944 | E26: 4049.498328 | F26: 71541.13713 | G26: =IF(VLOOKUP(A26,Wechsel!$A$11:$E$31,1)=A26,VLOOKUP(A26,Wechsel!$A$11:$E$31,1),0) -> 0 | H26: =IF(G26>0,VLOOKUP(A26,Wechsel!$A$11:$E$31,3),H25) -> 0.6666666667 | I26: =IF(G26>0,VLOOKUP(A26,Wechsel!$A$11:$E$31,4),I25) -> 0 | J26: =IF(G26>0,VLOOKUP(A26,Wechsel!$A$11:$E$31,5),J25) -> 0.3333333333 | K26: 190.8763713 | L26: 976.7228741 | M26: 48639.26642 | N26: 0.8 | O26: 0 | P26: =MAX(P25-Eingabe!$E$28,0) -> 0 | Q26: 190.8763713 | R26: 0 | S26: =Eingabe!$C$25+Eingabe!$E$25*'Berechnung Ratierlich 2%'!F26 -> 39 | T26: 71311.26076
A27: 17 | B27: 0.04333333333 | C27: 2875.399361 | D27: 71311.26076 | E27: 4451.199607 | F27: 78637.85972 | G27: =IF(VLOOKUP(A27,Wechsel!$A$11:$E$31,1)=A27,VLOOKUP(A27,Wechsel!$A$11:$E$31,1),0) -> 0 | H27: =IF(G27>0,VLOOKUP(A27,Wechsel!$A$11:$E$31,3),H26) -> 0.6666666667 | I27: =IF(G27>0,VLOOKUP(A27,Wechsel!$A$11:$E$31,4),I26) -> 0 | J27: =IF(G27>0,VLOOKUP(A27,Wechsel!$A$11:$E$31,5),J26) -> 0.3333333333 | K27: 210.6534643 | L27: 1187.376338 | M27: 51514.66578 | N27: 0.8 | O27: 0 | P27: =MAX(P26-Eingabe!$E$28,0) -> 0 | Q27: 210.6534643 | R27: 0 | S27: =Eingabe!$C$25+Eingabe!$E$25*'Berechnung Ratierlich 2%'!F27 -> 39 | T27: 78388.20626
A28: 18 | B28: 0.04333333333 | C28: 2875.399361 | D28: 78388.20626 | E28: 4875.816337 | F28: 86139.42196 | G28: =IF(VLOOKUP(A28,Wechsel!$A$11:$E$31,1)=A28,VLOOKUP(A28,Wechsel!$A$11:$E$31,1),0) -> 18 | H28: =IF(G28>0,VLOOKUP(A28,Wechsel!$A$11:$E$31,3),H27) -> 0.3333333333 | I28: =IF(G28>0,VLOOKUP(A28,Wechsel!$A$11:$E$31,4),I27) -> 0 | J28: =IF(G28>0,VLOOKUP(A28,Wechsel!$A$11:$E$31,5),J27) -> 0.6666666667 | K28: 260.5036065 | L28: 1447.879945 | M28: 54390.06514 | N28: 0.9 | O28: 25399.48545 | P28: =MAX(P27-Eingabe!$E$28,0) -> 0 | Q28: 8407.49784 | R28: 1425.085276 | S28: =Eingabe!$C$25+Eingabe!$E$25*'Berechnung Ratierlich 2%'!F28 -> 39 | T28: 76267.83884
A29: 19 | B29: 0.03666666667 | C29: 2893.890675 | D29: 76267.83884 | E29: 4749.703771 | F29: 83911.43329 | G29: =IF(VLOOKUP(A29,Wechsel!$A$11:$E$31,1)=A29,VLOOKUP(A29,Wechsel!$A$11:$E$31,1),0) -> 0 | H29: =IF(G29>0,VLOOKUP(A29,Wechsel!$A$11:$E$31,3),H28) -> 0.3333333333 | I29: =IF(G29>0,VLOOKUP(A29,Wechsel!$A$11:$E$31,4),I28) -> 0 | J29: =IF(G29>0,VLOOKUP(A29,Wechsel!$A$11:$E$31,5),J28) -> 0.6666666667 | K29: 253.4570954 | L29: 253.4570954 | M29: 76267.83884 | N29: 0.9 | O29: 0 | P29: =MAX(P28-Eingabe!$E$28,0) -> 0 | Q29: 253.4570954 | R29: 0 | S29: =Eingabe!$C$25+Eingabe!$E$25*'Berechnung Ratierlich 2%'!F29 -> 39 | T29: 83618.97619
A30: 20 | B30: 0.03666666667 | C30: 2893.890675 | D30: 83618.97619 | E30: 5190.772012 | F30: 91703.63888 | G30: =IF(VLOOKUP(A30,Wechsel!$A$11:$E$31,1)=A30,VLOOKUP(A30,Wechsel!$A$11:$E$31,1),0) -> 0 | H30: =IF(G30>0,VLOOKUP(A30,Wechsel!$A$11:$E$31,3),H29) -> 0.3333333333 | I30: =IF(G30>0,VLOOKUP(A30,Wechsel!$A$11:$E$31,4),I29) -> 0 | J30: =IF(G30>0,VLOOKUP(A30,Wechsel!$A$11:$E$31,5),J29) -> 0.6666666667 | K30: 277.8867626 | L30: 531.3438581 | M30: 79161.72952 | N30: 0.9 | O30: 0 | P30: =MAX(P29-Eingabe!$E$28,0) -> 0 | Q30: 277.8867626 | R30: 0 | S30: =Eingabe!$C$25+Eingabe!$E$25*'Berechnung Ratierlich 2%'!F30 -> 39 | T30: 91386.75212
A31: 21 | B31: 0.03666666667 | C31: 2893.890675 | D31: 91386.75212 | E31: 5656.838568 | F31: 99937.48136 | G31: =IF(VLOOKUP(A31,Wechsel!$A$11:$E$31,1)=A31,VLOOKUP(A31,Wechsel!$A$11:$E$31,1),0) -> 0 | H31: =IF(G31>0,VLOOKUP(A31,Wechsel!$A$11:$E$31,3),H30) -> 0.3333333333 | I31: =IF(G31>0,VLOOKUP(A31,Wechsel!$A$11:$E$31,4),I30) -> 0 | J31: =IF(G31>0,VLOOKUP(A31,Wechsel!$A$11:$E$31,5),J30) -> 0.6666666667 | K31: 303.701024 | L31: 835.0448821 | M31: 82055.62019 | N31: 0.9 | O31: 0 | P31: =MAX(P30-Eingabe!$E$28,0) -> 0 | Q31: 303.701024 | R31: 0 | S31: =Eingabe!$C$25+Eingabe!$E$25*'Berechnung Ratierlich 2%'!F31 -> 39 | T31: 99594.78034
A32: 22 | B32: 0.03666666667 | C32: 2893.890675 | D32: 99594.78034 | E32: 6149.320261 | F32: 108637.9913 | G32: =IF(VLOOKUP(A32,Wechsel!$A$11:$E$31,1)=A32,VLOOKUP(A32,Wechsel!$A$11:$E$31,1),0) -> 0 | H32: =IF(G32>0,VLOOKUP(A32,Wechsel!$A$11:$E$31,3),H31) -> 0.3333333333 | I32: =IF(G32>0,VLOOKUP(A32,Wechsel!$A$11:$E$31,4),I31) -> 0 | J32: =IF(G32>0,VLOOKUP(A32,Wechsel!$A$11:$E$31,5),J31) -> 0.6666666667 | K32: 330.9783538 | L32: 1166.023236 | M32: 84949.51087 | N32: 0.9 | O32: 0 | P32: =MAX(P31-Eingabe!$E$28,0) -> 0 | Q32: 330.9783538 | R32: 0 | S32: =Eingabe!$C$25+Eingabe!$E$25*'Berechnung Ratierlich 2%'!F32 -> 39 | T32: 108268.0129
A33: 23 | B33: 0.03666666667 | C33: 2893.890675 | D33: 108268.0129 | E33: 6669.714216 | F33: 117831.6178 | G33: =IF(VLOOKUP(A33,Wechsel!$A$11:$E$31,1)=A33,VLOOKUP(A33,Wechsel!$A$11:$E$31,1),0) -> 0 | H33: =IF(G33>0,VLOOKUP(A33,Wechsel!$A$11:$E$31,3),H32) -> 0.3333333333 | I33: =IF(G33>0,VLOOKUP(A33,Wechsel!$A$11:$E$31,4),I32) -> 0 | J33: =IF(G33>0,VLOOKUP(A33,Wechsel!$A$11:$E$31,5),J32) -> 0.6666666667 | K33: 359.8016739 | L33: 1525.82491 | M33: 87843.40154 | N33: 0.9 | O33: 0 | P33: =MAX(P32-Eingabe!$E$28,0) -> 0 | Q33: 359.8016739 | R33: 0 | S33: =Eingabe!$C$25+Eingabe!$E$25*'Berechnung Ratierlich 2%'!F33 -> 39 | T33: 117432.8161
A34: 24 | B34: 0.03666666667 | C34: 2893.890675 | D34: 117432.8161 | E34: 7219.602409 | F34: 127546.3092 | G34: =IF(VLOOKUP(A34,Wechsel!$A$11:$E$31,1)=A34,VLOOKUP(A34,Wechsel!$A$11:$E$31,1),0) -> 0 | H34: =IF(G34>0,VLOOKUP(A34,Wechsel!$A$11:$E$31,3),H33) -> 0.3333333333 | I34: =IF(G34>0,VLOOKUP(A34,Wechsel!$A$11:$E$31,4),I33) -> 0 | J34: =IF(G34>0,VLOOKUP(A34,Wechsel!$A$11:$E$31,5),J33) -> 0.6666666667 | K34: 390.2586062 | L34: 1916.083516 | M34: 90737.29222 | N34: 0.9 | O34: 0 | P34: =MAX(P33-Eingabe!$E$28,0) -> 0 | Q34: 390.2586062 | R34: 0 | S34: =Eingabe!$C$25+Eingabe!$E$25*'Berechnung Ratierlich 2%'!F34 -> 39 | T34: 127117.0506
A35: 25 | B35: 0.03666666667 | C35: 2893.890675 | D35: 127117.0506 | E35: 7800.656477 | F35: 137811.5978 | G35: =IF(VLOOKUP(A35,Wechsel!$A$11:$E$31,1)=A35,VLOOKUP(A35,Wechsel!$A$11:$E$31,1),0) -> 0 | H35: =IF(G35>0,VLOOKUP(A35,Wechsel!$A$11:$E$31,3),H34) -> 0.3333333333 | I35: =IF(G35>0,VLOOKUP(A35,Wechsel!$A$11:$E$31,4),I34) -> 0 | J35: =IF(G35>0,VLOOKUP(A35,Wechsel!$A$11:$E$31,5),J34) -> 0.6666666667 | K35: 422.4417385 | L35: 2338.525254 | M35: 93631.18289 | N35: 0.9 | O35: 0 | P35: =MAX(P34-Eingabe!$E$28,0) -> 0 | Q35: 422.4417385 | R35: 0 | S35: =Eingabe!$C$25+Eingabe!$E$25*'Berechnung Ratierlich 2%'!F35 -> 39 | T35: 137350.156
A36: 26 | B36: 0.03666666667 | C36: 2893.890675 | D36: 137350.156 | E36: 8414.642802 | F36: 148658.6895 | G36: =IF(VLOOKUP(A36,Wechsel!$A$11:$E$31,1)=A36,VLOOKUP(A36,Wechsel!$A$11:$E$31,1),0) -> 0 | H36: =IF(G36>0,VLOOKUP(A36,Wechsel!$A$11:$E$31,3),H35) -> 0.3333333333 | I36: =IF(G36>0,VLOOKUP(A36,Wechsel!$A$11:$E$31,4),I35) -> 0 | J36: =IF(G36>0,VLOOKUP(A36,Wechsel!$A$11:$E$31,5),J35) -> 0.6666666667 | K36: 456.448906 | L36: 2794.97416 | M36: 96525.07357 | N36: 0.9 | O36: 0 | P36: =MAX(P35-Eingabe!$E$28,0) -> 0 | Q36: 456.448906 | R36: 0 | S36: =Eingabe!$C$25+Eingabe!$E$25*'Berechnung Ratierlich 2%'!F36 -> 39 | T36: 148163.2406
A37: 27 | B37: 0.03666666667 | C37: 2893.890675 | D37: 148163.2406 | E37: 9063.427877 | F37: 160120.5592 | G37: =IF(VLOOKUP(A37,Wechsel!$A$11:$E$31,1)=A37,VLOOKUP(A37,Wechsel!$A$11:$E$31,1),0) -> 27 | H37: =IF(G37>0,VLOOKUP(A37,Wechsel!$A$11:$E$31,3),H36) -> 0 | I37: =IF(G37>0,VLOOKUP(A37,Wechsel!$A$11:$E$31,4),I36) -> 0 | J37: =IF(G37>0,VLOOKUP(A37,Wechsel!$A$11:$E$31,5),J36) -> 1 | K37: 547.0927659 | L37: 3342.066926 | M37: 99418.96425 | N37: 1 | O37: 54631.43542 | P37: =MAX(P36-Eingabe!$E$28,0) -> 0 | Q37: 18298.20078 | R37: 2127.335376 | S37: =Eingabe!$C$25+Eingabe!$E$25*'Berechnung Ratierlich 2%'!F37 -> 39 | T37: 139656.023
A38: 28 | B38: 0.03 | C38: 2912.621359 | D38: 139656.023 | E38: 8554.118661 | F38: 151122.763 | G38: =IF(VLOOKUP(A38,Wechsel!$A$11:$E$31,1)=A38,VLOOKUP(A38,Wechsel!$A$11:$E$31,1),0) -> 0 | H38: =IF(G38>0,VLOOKUP(A38,Wechsel!$A$11:$E$31,3),H37) -> 0 | I38: =IF(G38>0,VLOOKUP(A38,Wechsel!$A$11:$E$31,4),I37) -> 0 | J38: =IF(G38>0,VLOOKUP(A38,Wechsel!$A$11:$E$31,5),J37) -> 1 | K38: 515.6798649 | L38: 515.6798649 | M38: 139656.023 | N38: 1 | O38: 0 | P38: =MAX(P37-Eingabe!$E$28,0) -> 0 | Q38: 515.6798649 | R38: 0 | S38: =Eingabe!$C$25+Eingabe!$E$25*'Berechnung Ratierlich 2%'!F38 -> 39 | T38: 150568.0831
A39: 29 | B39: 0.03 | C39: 2912.621359 | D39: 150568.0831 | E39: 9208.84227 | F39: 162689.5468 | G39: =IF(VLOOKUP(A39,Wechsel!$A$11:$E$31,1)=A39,VLOOKUP(A39,Wechsel!$A$11:$E$31,1),0) -> 0 | H39: =IF(G39>0,VLOOKUP(A39,Wechsel!$A$11:$E$31,3),H38) -> 0 | I39: =IF(G39>0,VLOOKUP(A39,Wechsel!$A$11:$E$31,4),I38) -> 0 | J39: =IF(G39>0,VLOOKUP(A39,Wechsel!$A$11:$E$31,5),J38) -> 1 | K39: 555.972647 | L39: 1071.652512 | M39: 142568.6444 | N39: =1-(H39*$G$5+I39*$H$5+J39*$I$5) -> 1 | O39: 0 | P39: =MAX(P38-Eingabe!$E$28,0) -> 0 | Q39: 555.972647 | R39: 0 | S39: =Eingabe!$C$25+Eingabe!$E$25*'Berechnung Ratierlich 2%'!F39 -> 39 | T39: 162094.5741
A40: 30 | B40: 0.03 | C40: 2912.621359 | D40: 162094.5741 | E40: 9900.431729 | F40: 174907.6272 | G40: =IF(VLOOKUP(A40,Wechsel!$A$11:$E$31,1)=A40,VLOOKUP(A40,Wechsel!$A$11:$E$31,1),0) -> 0 | H40: =IF(G40>0,VLOOKUP(A40,Wechsel!$A$11:$E$31,3),H39) -> 0 | I40: =IF(G40>0,VLOOKUP(A40,Wechsel!$A$11:$E$31,4),I39) -> 0 | J40: =IF(G40>0,VLOOKUP(A40,Wechsel!$A$11:$E$31,5),J39) -> 1 | K40: 598.534215 | L40: 1670.186727 | M40: 145481.2657 | N40: 1 | O40: 0 | P40: =MAX(P39-Eingabe!$E$28,0) -> 0 | Q40: 598.534215 | R40: 0 | S40: =Eingabe!$C$25+Eingabe!$E$25*'Berechnung Ratierlich 2%'!F40 -> 39 | T40: 174270.093
A41: 31 | B41: 0.03 | C41: 2912.621359 | D41: 174270.093 | E41: 10630.96286 | F41: 187813.6772 | G41: =IF(VLOOKUP(A41,Wechsel!$A$11:$E$31,1)=A41,VLOOKUP(A41,Wechsel!$A$11:$E$31,1),0) -> 0 | H41: =IF(G41>0,VLOOKUP(A41,Wechsel!$A$11:$E$31,3),H40) -> 0 | I41: =IF(G41>0,VLOOKUP(A41,Wechsel!$A$11:$E$31,4),I40) -> 0 | J41: =IF(G41>0,VLOOKUP(A41,Wechsel!$A$11:$E$31,5),J40) -> 1 | K41: 643.4923184 | L41: 2313.679045 | M41: 148393.8871 | N41: 1 | O41: 0 | P41: =MAX(P40-Eingabe!$E$28,0) -> 0 | Q41: 643.4923184 | R41: 0 | S41: =Eingabe!$C$25+Eingabe!$E$25*'Berechnung Ratierlich 2%'!F41 -> 39 | T41: 187131.1849
A42: 32 | B42: 0.03 | C42: 2912.621359 | D42: 187131.1849 | E42: 11402.62838 | F42: 201446.4346 | G42: =IF(VLOOKUP(A42,Wechsel!$A$11:$E$31,1)=A42,VLOOKUP(A42,Wechsel!$A$11:$E$31,1),0) -> 0 | H42: =IF(G42>0,VLOOKUP(A42,Wechsel!$A$11:$E$31,3),H41) -> 0 | I42: =IF(G42>0,VLOOKUP(A42,Wechsel!$A$11:$E$31,4),I41) -> 0 | J42: =IF(G42>0,VLOOKUP(A42,Wechsel!$A$11:$E$31,5),J41) -> 1 | K42: 690.9819003 | L42: 3004.660946 | M42: 151306.5084 | N42: 1 | O42: 0 | P42: =MAX(P41-Eingabe!$E$28,0) -> 0 | Q42: 690.9819003 | R42: 0 | S42: =Eingabe!$C$25+Eingabe!$E$25*'Berechnung Ratierlich 2%'!F42 -> 39 | T42: 200716.4527
A43: 33 | B43: 0.03 | C43: =IF($B$3>=A43,$B$2,0)/(1+B43) -> 2912.621359 | D43: 200716.4527 | E43: 12217.74445 | F43: 215846.8185 | G43: =IF(VLOOKUP(A43,Wechsel!$A$11:$E$31,1)=A43,VLOOKUP(A43,Wechsel!$A$11:$E$31,1),0) -> 0 | H43: =IF(G43>0,VLOOKUP(A43,Wechsel!$A$11:$E$31,3),H42) -> 0 | I43: =IF(G43>0,VLOOKUP(A43,Wechsel!$A$11:$E$31,4),I42) -> 0 | J43: =IF(G43>0,VLOOKUP(A43,Wechsel!$A$11:$E$31,5),J42) -> 1 | K43: 741.1455018 | L43: 3745.806447 | M43: 154219.1298 | N43: 1 | O43: 0 | P43: =MAX(P42-Eingabe!$E$28,0) -> 0 | Q43: 741.1455018 | R43: 0 | S43: =Eingabe!$C$25+Eingabe!$E$25*'Berechnung Ratierlich 2%'!F43 -> 39 | T43: 215066.673
A44: 34 | B44: 0.03 | C44: 2912.621359 | D44: =MAX(IF(A44>$B$3,0,T43),0) -> 215066.673 | E44: =(C44+D44)*$B$1 -> 13078.75766 | F44: =IF(A44>$B$3,0,C44+E44+D44) -> 231058.0521 | G44: =IF(VLOOKUP(A44,Wechsel!$A$11:$E$31,1)=A44,VLOOKUP(A44,Wechsel!$A$11:$E$31,1),0) -> 0 | H44: =IF(G44>0,VLOOKUP(A44,Wechsel!$A$11:$E$31,3),H43) -> 0 | I44: =IF(G44>0,VLOOKUP(A44,Wechsel!$A$11:$E$31,4),I43) -> 0 | J44: =IF(G44>0,VLOOKUP(A44,Wechsel!$A$11:$E$31,5),J43) -> 1 | K44: 794.1336902 | L44: 4539.940138 | M44: =IF(A44>$B$3,0,IF(G43>0,T43,C44+M43)) -> 157131.7511 | N44: 1 | O44: 0 | P44: =MAX(P43-Eingabe!$E$28,0) -> 0 | Q44: 794.1336902 | R44: 0 | S44: =Eingabe!$C$25+Eingabe!$E$25*'Berechnung Ratierlich 2%'!F44 -> 39 | T44: 230224.9184
A45: 35 | B45: 0.03 | C45: 2912.621359 | D45: 230224.9184 | E45: 13988.25238 | F45: 247125.7921 | G45: =IF(VLOOKUP(A45,Wechsel!$A$11:$E$31,1)=A45,VLOOKUP(A45,Wechsel!$A$11:$E$31,1),0) -> 0 | H45: =IF(G45>0,VLOOKUP(A45,Wechsel!$A$11:$E$31,3),H44) -> 0 | I45: =IF(G45>0,VLOOKUP(A45,Wechsel!$A$11:$E$31,4),I44) -> 0 | J45: =IF(G45>0,VLOOKUP(A45,Wechsel!$A$11:$E$31,5),J44) -> 1 | K45: 850.1055111 | L45: 5390.045649 | M45: 160044.3725 | N45: 1 | O45: 0 | P45: =MAX(P44-Eingabe!$E$28,0) -> 0 | Q45: 850.1055111 | R45: 0 | S45: =Eingabe!$C$25+Eingabe!$E$25*'Berechnung Ratierlich 2%'!F45 -> 39 | T45: 246236.6866
A46: 36 | B46: 0.03 | C46: 2912.621359 | D46: 246236.6866 | E46: 14948.95848 | F46: 264098.2664 | G46: =IF(VLOOKUP(A46,Wechsel!$A$11:$E$31,1)=A46,VLOOKUP(A46,Wechsel!$A$11:$E$31,1),0) -> 0 | H46: =IF(G46>0,VLOOKUP(A46,Wechsel!$A$11:$E$31,3),H45) -> 0 | I46: =IF(G46>0,VLOOKUP(A46,Wechsel!$A$11:$E$31,4),I45) -> 0 | J46: =IF(G46>0,VLOOKUP(A46,Wechsel!$A$11:$E$31,5),J45) -> 1 | K46: 909.2289653 | L46: 6299.274614 | M46: 162956.9939 | N46: 1 | O46: 0 | P46: =MAX(P45-Eingabe!$E$28,0) -> 0 | Q46: 909.2289653 | R46: 0 | S46: =Eingabe!$C$25+Eingabe!$E$25*'Berechnung Ratierlich 2%'!F46 -> 39 | T46: 263150.0375
A47: 37 | B47: 0.03 | C47: 0 | D47: 0 | E47: 0 | F47: 0 | G47: =IF(VLOOKUP(A47,Wechsel!$A$11:$E$31,1)=A47,VLOOKUP(A47,Wechsel!$A$11:$E$31,1),0) -> 0 | H47: =IF(G47>0,VLOOKUP(A47,Wechsel!$A$11:$E$31,3),H46) -> 0 | I47: =IF(G47>0,VLOOKUP(A47,Wechsel!$A$11:$E$31,4),I46) -> 0 | J47: =IF(G47>0,VLOOKUP(A47,Wechsel!$A$11:$E$31,5),J46) -> 1 | K47: 0 | L47: 6299.274614 | M47: 0 | N47: 1 | O47: 0 | P47: =MAX(P46-Eingabe!$E$28,0) -> 0 | Q47: 0 | R47: 0 | S47: =Eingabe!$C$25+Eingabe!$E$25*'Berechnung Ratierlich 2%'!F47 -> 39 | T47: -39
A48: 38 | B48: 0.03 | C48: 0 | D48: 0 | E48: 0 | F48: 0 | G48: =IF(VLOOKUP(A48,Wechsel!$A$11:$E$31,1)=A48,VLOOKUP(A48,Wechsel!$A$11:$E$31,1),0) -> 0 | H48: =IF(G48>0,VLOOKUP(A48,Wechsel!$A$11:$E$31,3),H47) -> 0 | I48: =IF(G48>0,VLOOKUP(A48,Wechsel!$A$11:$E$31,4),I47) -> 0 | J48: =IF(G48>0,VLOOKUP(A48,Wechsel!$A$11:$E$31,5),J47) -> 1 | K48: 0 | L48: 6299.274614 | M48: 0 | N48: 1 | O48: 0 | P48: =MAX(P47-Eingabe!$E$28,0) -> 0 | Q48: 0 | R48: 0 | S48: =Eingabe!$C$25+Eingabe!$E$25*'Berechnung Ratierlich 2%'!F48 -> 39 | T48: -39
A49: 39 | B49: 0.03 | C49: 0 | D49: 0 | E49: 0 | F49: 0 | G49: =IF(VLOOKUP(A49,Wechsel!$A$11:$E$31,1)=A49,VLOOKUP(A49,Wechsel!$A$11:$E$31,1),0) -> 0 | H49: =IF(G49>0,VLOOKUP(A49,Wechsel!$A$11:$E$31,3),H48) -> 0 | I49: =IF(G49>0,VLOOKUP(A49,Wechsel!$A$11:$E$31,4),I48) -> 0 | J49: =IF(G49>0,VLOOKUP(A49,Wechsel!$A$11:$E$31,5),J48) -> 1 | K49: 0 | L49: 6299.274614 | M49: 0 | N49: 1 | O49: 0 | P49: =MAX(P48-Eingabe!$E$28,0) -> 0 | Q49: 0 | R49: 0 | S49: =Eingabe!$C$25+Eingabe!$E$25*'Berechnung Ratierlich 2%'!F49 -> 39 | T49: -39
A50: 40 | B50: 0.03 | C50: 0 | D50: 0 | E50: 0 | F50: 0 | G50: =IF(VLOOKUP(A50,Wechsel!$A$11:$E$31,1)=A50,VLOOKUP(A50,Wechsel!$A$11:$E$31,1),0) -> 0 | H50: =IF(G50>0,VLOOKUP(A50,Wechsel!$A$11:$E$31,3),H49) -> 0 | I50: =IF(G50>0,VLOOKUP(A50,Wechsel!$A$11:$E$31,4),I49) -> 0 | J50: =IF(G50>0,VLOOKUP(A50,Wechsel!$A$11:$E$31,5),J49) -> 1 | K50: 0 | L50: 6299.274614 | M50: 0 | N50: 1 | O50: 0 | P50: =MAX(P49-Eingabe!$E$28,0) -> 0 | Q50: 0 | R50: 0 | S50: =Eingabe!$C$25+Eingabe!$E$25*'Berechnung Ratierlich 2%'!F50 -> 39 | T50: -39
A51: 41 | B51: 0.03 | C51: 0 | D51: 0 | E51: 0 | F51: 0 | G51: =IF(VLOOKUP(A51,Wechsel!$A$11:$E$31,1)=A51,VLOOKUP(A51,Wechsel!$A$11:$E$31,1),0) -> 0 | H51: =IF(G51>0,VLOOKUP(A51,Wechsel!$A$11:$E$31,3),H50) -> 0 | I51: =IF(G51>0,VLOOKUP(A51,Wechsel!$A$11:$E$31,4),I50) -> 0 | J51: =IF(G51>0,VLOOKUP(A51,Wechsel!$A$11:$E$31,5),J50) -> 1 | K51: 0 | L51: 6299.274614 | M51: 0 | N51: 1 | O51: 0 | P51: =MAX(P50-Eingabe!$E$28,0) -> 0 | Q51: 0 | R51: 0 | S51: =Eingabe!$C$25+Eingabe!$E$25*'Berechnung Ratierlich 2%'!F51 -> 39 | T51: -39
A52: 42 | B52: 0.03 | C52: 0 | D52: 0 | E52: 0 | F52: 0 | G52: =IF(VLOOKUP(A52,Wechsel!$A$11:$E$31,1)=A52,VLOOKUP(A52,Wechsel!$A$11:$E$31,1),0) -> 0 | H52: =IF(G52>0,VLOOKUP(A52,Wechsel!$A$11:$E$31,3),H51) -> 0 | I52: =IF(G52>0,VLOOKUP(A52,Wechsel!$A$11:$E$31,4),I51) -> 0 | J52: =IF(G52>0,VLOOKUP(A52,Wechsel!$A$11:$E$31,5),J51) -> 1 | K52: 0 | L52: 6299.274614 | M52: 0 | N52: 1 | O52: 0 | P52: =MAX(P51-Eingabe!$E$28,0) -> 0 | Q52: 0 | R52: 0 | S52: =Eingabe!$C$25+Eingabe!$E$25*'Berechnung Ratierlich 2%'!F52 -> 39 | T52: -39
A53: 43 | B53: 0.03 | C53: 0 | D53: 0 | E53: 0 | F53: 0 | G53: =IF(VLOOKUP(A53,Wechsel!$A$11:$E$31,1)=A53,VLOOKUP(A53,Wechsel!$A$11:$E$31,1),0) -> 0 | H53: =IF(G53>0,VLOOKUP(A53,Wechsel!$A$11:$E$31,3),H52) -> 0 | I53: =IF(G53>0,VLOOKUP(A53,Wechsel!$A$11:$E$31,4),I52) -> 0 | J53: =IF(G53>0,VLOOKUP(A53,Wechsel!$A$11:$E$31,5),J52) -> 1 | K53: 0 | L53: 6299.274614 | M53: 0 | N53: 1 | O53: 0 | P53: =MAX(P52-Eingabe!$E$28,0) -> 0 | Q53: 0 | R53: 0 | S53: =Eingabe!$C$25+Eingabe!$E$25*'Berechnung Ratierlich 2%'!F53 -> 39 | T53: -39
A54: 44 | B54: 0.03 | C54: 0 | D54: 0 | E54: 0 | F54: 0 | G54: =IF(VLOOKUP(A54,Wechsel!$A$11:$E$31,1)=A54,VLOOKUP(A54,Wechsel!$A$11:$E$31,1),0) -> 0 | H54: =IF(G54>0,VLOOKUP(A54,Wechsel!$A$11:$E$31,3),H53) -> 0 | I54: =IF(G54>0,VLOOKUP(A54,Wechsel!$A$11:$E$31,4),I53) -> 0 | J54: =IF(G54>0,VLOOKUP(A54,Wechsel!$A$11:$E$31,5),J53) -> 1 | K54: 0 | L54: 6299.274614 | M54: 0 | N54: 1 | O54: 0 | P54: =MAX(P53-Eingabe!$E$28,0) -> 0 | Q54: 0 | R54: 0 | S54: =Eingabe!$C$25+Eingabe!$E$25*'Berechnung Ratierlich 2%'!F54 -> 39 | T54: -39
A55: 45 | B55: 0.03 | C55: 0 | D55: 0 | E55: 0 | F55: 0 | G55: =IF(VLOOKUP(A55,Wechsel!$A$11:$E$31,1)=A55,VLOOKUP(A55,Wechsel!$A$11:$E$31,1),0) -> 0 | H55: =IF(G55>0,VLOOKUP(A55,Wechsel!$A$11:$E$31,3),H54) -> 0 | I55: =IF(G55>0,VLOOKUP(A55,Wechsel!$A$11:$E$31,4),I54) -> 0 | J55: =IF(G55>0,VLOOKUP(A55,Wechsel!$A$11:$E$31,5),J54) -> 1 | K55: 0 | L55: 6299.274614 | M55: 0 | N55: 1 | O55: 0 | P55: =MAX(P54-Eingabe!$E$28,0) -> 0 | Q55: 0 | R55: 0 | S55: =Eingabe!$C$25+Eingabe!$E$25*'Berechnung Ratierlich 2%'!F55 -> 39 | T55: -39
A56: 46 | B56: 0.03 | C56: 0 | D56: 0 | E56: 0 | F56: 0 | G56: =IF(VLOOKUP(A56,Wechsel!$A$11:$E$31,1)=A56,VLOOKUP(A56,Wechsel!$A$11:$E$31,1),0) -> 0 | H56: =IF(G56>0,VLOOKUP(A56,Wechsel!$A$11:$E$31,3),H55) -> 0 | I56: =IF(G56>0,VLOOKUP(A56,Wechsel!$A$11:$E$31,4),I55) -> 0 | J56: =IF(G56>0,VLOOKUP(A56,Wechsel!$A$11:$E$31,5),J55) -> 1 | K56: 0 | L56: 6299.274614 | M56: 0 | N56: 1 | O56: 0 | P56: =MAX(P55-Eingabe!$E$28,0) -> 0 | Q56: 0 | R56: 0 | S56: =Eingabe!$C$25+Eingabe!$E$25*'Berechnung Ratierlich 2%'!F56 -> 39 | T56: -39
A57: 47 | B57: 0.03 | C57: 0 | D57: 0 | E57: 0 | F57: 0 | G57: =IF(VLOOKUP(A57,Wechsel!$A$11:$E$31,1)=A57,VLOOKUP(A57,Wechsel!$A$11:$E$31,1),0) -> 0 | H57: =IF(G57>0,VLOOKUP(A57,Wechsel!$A$11:$E$31,3),H56) -> 0 | I57: =IF(G57>0,VLOOKUP(A57,Wechsel!$A$11:$E$31,4),I56) -> 0 | J57: =IF(G57>0,VLOOKUP(A57,Wechsel!$A$11:$E$31,5),J56) -> 1 | K57: 0 | L57: 6299.274614 | M57: 0 | N57: 1 | O57: 0 | P57: =MAX(P56-Eingabe!$E$28,0) -> 0 | Q57: 0 | R57: 0 | S57: =Eingabe!$C$25+Eingabe!$E$25*'Berechnung Ratierlich 2%'!F57 -> 39 | T57: -39
A58: 48 | B58: 0.03 | C58: 0 | D58: 0 | E58: 0 | F58: 0 | G58: =IF(VLOOKUP(A58,Wechsel!$A$11:$E$31,1)=A58,VLOOKUP(A58,Wechsel!$A$11:$E$31,1),0) -> 0 | H58: =IF(G58>0,VLOOKUP(A58,Wechsel!$A$11:$E$31,3),H57) -> 0 | I58: =IF(G58>0,VLOOKUP(A58,Wechsel!$A$11:$E$31,4),I57) -> 0 | J58: =IF(G58>0,VLOOKUP(A58,Wechsel!$A$11:$E$31,5),J57) -> 1 | K58: 0 | L58: 6299.274614 | M58: 0 | N58: 1 | O58: 0 | P58: =MAX(P57-Eingabe!$E$28,0) -> 0 | Q58: 0 | R58: 0 | S58: =Eingabe!$C$25+Eingabe!$E$25*'Berechnung Ratierlich 2%'!F58 -> 39 | T58: -39
A59: 49 | B59: 0.03 | C59: 0 | D59: 0 | E59: 0 | F59: 0 | G59: =IF(VLOOKUP(A59,Wechsel!$A$11:$E$31,1)=A59,VLOOKUP(A59,Wechsel!$A$11:$E$31,1),0) -> 0 | H59: =IF(G59>0,VLOOKUP(A59,Wechsel!$A$11:$E$31,3),H58) -> 0 | I59: =IF(G59>0,VLOOKUP(A59,Wechsel!$A$11:$E$31,4),I58) -> 0 | J59: =IF(G59>0,VLOOKUP(A59,Wechsel!$A$11:$E$31,5),J58) -> 1 | K59: 0 | L59: 6299.274614 | M59: 0 | N59: 1 | O59: 0 | P59: =MAX(P58-Eingabe!$E$28,0) -> 0 | Q59: 0 | R59: 0 | S59: =Eingabe!$C$25+Eingabe!$E$25*'Berechnung Ratierlich 2%'!F59 -> 39 | T59: -39
A60: 50 | B60: 0.03 | C60: 0 | D60: 0 | E60: 0 | F60: 0 | G60: =IF(VLOOKUP(A60,Wechsel!$A$11:$E$31,1)=A60,VLOOKUP(A60,Wechsel!$A$11:$E$31,1),0) -> 0 | H60: =IF(G60>0,VLOOKUP(A60,Wechsel!$A$11:$E$31,3),H59) -> 0 | I60: =IF(G60>0,VLOOKUP(A60,Wechsel!$A$11:$E$31,4),I59) -> 0 | J60: =IF(G60>0,VLOOKUP(A60,Wechsel!$A$11:$E$31,5),J59) -> 1 | K60: 0 | L60: 6299.274614 | M60: 0 | N60: 1 | O60: 0 | P60: =MAX(P59-Eingabe!$E$28,0) -> 0 | Q60: 0 | R60: 0 | S60: =Eingabe!$C$25+Eingabe!$E$25*'Berechnung Ratierlich 2%'!F60 -> 39 | T60: -39
A61: 51 | B61: =$G$3*H60+$H$3*I60+$I$3*J60 -> 0.03 | C61: =IF($B$3>=A61,$B$2,0)/(1+B61) -> 0 | D61: =MAX(IF(A61>$B$3,0,T60),0) -> 0 | E61: =(C61+D61)*$B$1 -> 0 | F61: =IF(A61>$B$3,0,C61+E61+D61) -> 0 | G61: =IF(VLOOKUP(A61,Wechsel!$A$11:$E$31,1)=A61,VLOOKUP(A61,Wechsel!$A$11:$E$31,1),0) -> 0 | H61: =IF(G61>0,VLOOKUP(A61,Wechsel!$A$11:$E$31,3),H60) -> 0 | I61: =IF(G61>0,VLOOKUP(A61,Wechsel!$A$11:$E$31,4),I60) -> 0 | J61: =IF(G61>0,VLOOKUP(A61,Wechsel!$A$11:$E$31,5),J60) -> 1 | K61: =D61*$M$1*0.7*0.7*$M$2*H61+D61*$M$1*0.85*0.7*$M$2*I61+D61*$M$1*0.7*$M$2*J61 -> 0 | L61: =IF(G60>0,K61,K61+L60) -> 6299.274614 | M61: =IF(A61>$B$3,0,IF(G60>0,T60,C61+M60)) -> 0 | N61: =1-(H61*$G$5+I61*$H$5+J61*$I$5) -> 1 | O61: =IF(G61>0,(F61-M61)*N60,0) -> 0 | P61: =MAX(P60-Eingabe!$E$28,0) -> 0 | Q61: =MAX(0,K61+O61*$M$2-P61-IF(G61>0,-(L60+K61),0)) -> 0 | R61: =MAX(IF(G61>0,(H61*$G$4+I61*$H$4+J61*$I$4)*(F61-Q61),0),0) -> 0 | S61: =Eingabe!$C$25+Eingabe!$E$25*'Berechnung Ratierlich 2%'!F61 -> 39 | T61: =F61-Q61-R61-S61 -> -39
A62: 52 | B62: 0.03 | C62: 0 | D62: 0 | E62: 0 | F62: 0 | G62: =IF(VLOOKUP(A62,Wechsel!$A$11:$E$31,1)=A62,VLOOKUP(A62,Wechsel!$A$11:$E$31,1),0) -> 0 | H62: =IF(G62>0,VLOOKUP(A62,Wechsel!$A$11:$E$31,3),H61) -> 0 | I62: =IF(G62>0,VLOOKUP(A62,Wechsel!$A$11:$E$31,4),I61) -> 0 | J62: =IF(G62>0,VLOOKUP(A62,Wechsel!$A$11:$E$31,5),J61) -> 1 | K62: 0 | L62: 6299.274614 | M62: 0 | N62: 1 | O62: 0 | P62: =MAX(P61-Eingabe!$E$28,0) -> 0 | Q62: 0 | R62: 0 | S62: =Eingabe!$C$25+Eingabe!$E$25*'Berechnung Ratierlich 2%'!F62 -> 39 | T62: -39
A63: 53 | B63: 0.03 | C63: 0 | D63: 0 | E63: 0 | F63: 0 | G63: =IF(VLOOKUP(A63,Wechsel!$A$11:$E$31,1)=A63,VLOOKUP(A63,Wechsel!$A$11:$E$31,1),0) -> 0 | H63: =IF(G63>0,VLOOKUP(A63,Wechsel!$A$11:$E$31,3),H62) -> 0 | I63: =IF(G63>0,VLOOKUP(A63,Wechsel!$A$11:$E$31,4),I62) -> 0 | J63: =IF(G63>0,VLOOKUP(A63,Wechsel!$A$11:$E$31,5),J62) -> 1 | K63: 0 | L63: 6299.274614 | M63: 0 | N63: 1 | O63: 0 | P63: =MAX(P62-Eingabe!$E$28,0) -> 0 | Q63: 0 | R63: 0 | S63: =Eingabe!$C$25+Eingabe!$E$25*'Berechnung Ratierlich 2%'!F63 -> 39 | T63: -39
A64: 54 | B64: 0.03 | C64: 0 | D64: 0 | E64: 0 | F64: 0 | G64: =IF(VLOOKUP(A64,Wechsel!$A$11:$E$31,1)=A64,VLOOKUP(A64,Wechsel!$A$11:$E$31,1),0) -> 0 | H64: =IF(G64>0,VLOOKUP(A64,Wechsel!$A$11:$E$31,3),H63) -> 0 | I64: =IF(G64>0,VLOOKUP(A64,Wechsel!$A$11:$E$31,4),I63) -> 0 | J64: =IF(G64>0,VLOOKUP(A64,Wechsel!$A$11:$E$31,5),J63) -> 1 | K64: 0 | L64: 6299.274614 | M64: 0 | N64: 1 | O64: 0 | P64: =MAX(P63-Eingabe!$E$28,0) -> 0 | Q64: 0 | R64: 0 | S64: =Eingabe!$C$25+Eingabe!$E$25*'Berechnung Ratierlich 2%'!F64 -> 39 | T64: -39
A65: 55 | B65: 0.03 | C65: 0 | D65: 0 | E65: 0 | F65: 0 | G65: =IF(VLOOKUP(A65,Wechsel!$A$11:$E$31,1)=A65,VLOOKUP(A65,Wechsel!$A$11:$E$31,1),0) -> 0 | H65: =IF(G65>0,VLOOKUP(A65,Wechsel!$A$11:$E$31,3),H64) -> 0 | I65: =IF(G65>0,VLOOKUP(A65,Wechsel!$A$11:$E$31,4),I64) -> 0 | J65: =IF(G65>0,VLOOKUP(A65,Wechsel!$A$11:$E$31,5),J64) -> 1 | K65: 0 | L65: 6299.274614 | M65: 0 | N65: 1 | O65: 0 | P65: =MAX(P64-Eingabe!$E$28,0) -> 0 | Q65: 0 | R65: 0 | S65: =Eingabe!$C$25+Eingabe!$E$25*'Berechnung Ratierlich 2%'!F65 -> 39 | T65: -39
A66: 56 | B66: 0.03 | C66: 0 | D66: 0 | E66: 0 | F66: 0 | G66: =IF(VLOOKUP(A66,Wechsel!$A$11:$E$31,1)=A66,VLOOKUP(A66,Wechsel!$A$11:$E$31,1),0) -> 0 | H66: =IF(G66>0,VLOOKUP(A66,Wechsel!$A$11:$E$31,3),H65) -> 0 | I66: =IF(G66>0,VLOOKUP(A66,Wechsel!$A$11:$E$31,4),I65) -> 0 | J66: =IF(G66>0,VLOOKUP(A66,Wechsel!$A$11:$E$31,5),J65) -> 1 | K66: 0 | L66: 6299.274614 | M66: 0 | N66: 1 | O66: 0 | P66: =MAX(P65-Eingabe!$E$28,0) -> 0 | Q66: 0 | R66: 0 | S66: =Eingabe!$C$25+Eingabe!$E$25*'Berechnung Ratierlich 2%'!F66 -> 39 | T66: -39
A67: 57 | B67: 0.03 | C67: 0 | D67: 0 | E67: 0 | F67: 0 | G67: =IF(VLOOKUP(A67,Wechsel!$A$11:$E$31,1)=A67,VLOOKUP(A67,Wechsel!$A$11:$E$31,1),0) -> 0 | H67: =IF(G67>0,VLOOKUP(A67,Wechsel!$A$11:$E$31,3),H66) -> 0 | I67: =IF(G67>0,VLOOKUP(A67,Wechsel!$A$11:$E$31,4),I66) -> 0 | J67: =IF(G67>0,VLOOKUP(A67,Wechsel!$A$11:$E$31,5),J66) -> 1 | K67: 0 | L67: 6299.274614 | M67: 0 | N67: 1 | O67: 0 | P67: =MAX(P66-Eingabe!$E$28,0) -> 0 | Q67: 0 | R67: 0 | S67: =Eingabe!$C$25+Eingabe!$E$25*'Berechnung Ratierlich 2%'!F67 -> 39 | T67: -39
A68: 58 | B68: 0.03 | C68: 0 | D68: 0 | E68: 0 | F68: 0 | G68: =IF(VLOOKUP(A68,Wechsel!$A$11:$E$31,1)=A68,VLOOKUP(A68,Wechsel!$A$11:$E$31,1),0) -> 0 | H68: =IF(G68>0,VLOOKUP(A68,Wechsel!$A$11:$E$31,3),H67) -> 0 | I68: =IF(G68>0,VLOOKUP(A68,Wechsel!$A$11:$E$31,4),I67) -> 0 | J68: =IF(G68>0,VLOOKUP(A68,Wechsel!$A$11:$E$31,5),J67) -> 1 | K68: 0 | L68: 6299.274614 | M68: 0 | N68: 1 | O68: 0 | P68: =MAX(P67-Eingabe!$E$28,0) -> 0 | Q68: 0 | R68: 0 | S68: =Eingabe!$C$25+Eingabe!$E$25*'Berechnung Ratierlich 2%'!F68 -> 39 | T68: -39
A69: 59 | B69: 0.03 | C69: 0 | D69: 0 | E69: 0 | F69: 0 | G69: =IF(VLOOKUP(A69,Wechsel!$A$11:$E$31,1)=A69,VLOOKUP(A69,Wechsel!$A$11:$E$31,1),0) -> 0 | H69: =IF(G69>0,VLOOKUP(A69,Wechsel!$A$11:$E$31,3),H68) -> 0 | I69: =IF(G69>0,VLOOKUP(A69,Wechsel!$A$11:$E$31,4),I68) -> 0 | J69: =IF(G69>0,VLOOKUP(A69,Wechsel!$A$11:$E$31,5),J68) -> 1 | K69: 0 | L69: 6299.274614 | M69: 0 | N69: 1 | O69: 0 | P69: =MAX(P68-Eingabe!$E$28,0) -> 0 | Q69: 0 | R69: 0 | S69: =Eingabe!$C$25+Eingabe!$E$25*'Berechnung Ratierlich 2%'!F69 -> 39 | T69: -39
A70: 60 | B70: 0.03 | C70: 0 | D70: 0 | E70: 0 | F70: 0 | G70: =IF(VLOOKUP(A70,Wechsel!$A$11:$E$31,1)=A70,VLOOKUP(A70,Wechsel!$A$11:$E$31,1),0) -> 0 | H70: =IF(G70>0,VLOOKUP(A70,Wechsel!$A$11:$E$31,3),H69) -> 0 | I70: =IF(G70>0,VLOOKUP(A70,Wechsel!$A$11:$E$31,4),I69) -> 0 | J70: =IF(G70>0,VLOOKUP(A70,Wechsel!$A$11:$E$31,5),J69) -> 1 | K70: 0 | L70: 6299.274614 | M70: 0 | N70: 1 | O70: 0 | P70: =MAX(P69-Eingabe!$E$28,0) -> 0 | Q70: 0 | R70: 0 | S70: =Eingabe!$C$25+Eingabe!$E$25*'Berechnung Ratierlich 2%'!F70 -> 39 | T70: -39

Sheet Berechnung Ratierlich 4% (hidden)
A1: Rendite | B1: =Hilfe!E3-Hilfe!G16 -> 0.06 | F1: Ausgabeaufschlag | L1: Basiszins | M1: =MIN(4%,B1) -> 0.04
A2: Beitrag p.a. | B2: =Eingabe!C10*Hilfe!B4 -> 3000 | G2: Aktienfonds | H2: Mischfonds | I2: Rentenfonds / VVW | L2: Abgeltungssteuer | M2: ='Berechnung Ratierlich heute%'!M2 -> 0.26375
A3: Laufzeit | B3: =Eingabe!C9 -> 36 | F3: Ausgabeaufschlag | G3: =Eingabe!C21 -> 0.05 | H3: =Eingabe!E21 -> 0.04 | I3: =Eingabe!G21 -> 0.03
F4: Wechselgebühr | G4: =Eingabe!C22 -> 0.025 | H4: =Eingabe!E22 -> 0.02 | I4: =Eingabe!G22 -> 0.015 | J4: Ausgabe
F5: Freistellung | G5: 0.3 | H5: 0.15 | I5: 0 | J5: Jahr | K5: Jahresabschluss | L5: Beitragssumme | M5: zu versteuern % | N5: zu versteuern | O5: kumulierte Vorabpauschale | P5: Freistellungsauftrag | Q5: Auszahlung
J6: =B3 -> 36 | K6: =MAX(VLOOKUP(J6,A11:AD70,20,FALSE),0) -> 237563.906 | L6: =MAX(VLOOKUP(J6,A11:AD70,13,FALSE),0) -> 151629.4796 | M6: =VLOOKUP(J6,A11:AD70,14,FALSE) -> 1 | N6: =(K6-L6)*M6 -> 85934.42634 | O6: =VLOOKUP(J6,A11:AD70,12,FALSE) -> 11481.38215 | P6: =VLOOKUP(J6,A11:AD70,16,FALSE) -> 0 | Q6: =K6-(N6-P6-O6)*M2 -> 217926.9156
A9: Jahr | B9: Ausgabeaufschlag | C9: Beitrag | D9: Vermögen Jahresanfang | E9: Rendite | F9: Gesamtvermögen | G9: Wechsel | H9: Anteil Aktienfonds | I9: Anteil Mischfonds | J9: Rentenfonds / VVW | K9: Vorabpauschale | L9: kumulierte Vorabpauschale | M9: Beitragssumme | N9: Freistellung | O9: Wechselbesteuerunganteil | P9: Freistellungsauftrag | Q9: Steuer | R9: Wechselkosten | S9: Depotkosten | T9: Jahresabschluss
A10: 0 | H10: =Eingabe!C18 -> 1 | I10: =Eingabe!E18 -> 0 | J10: =Eingabe!G18 -> 0
A11: 1 | B11: =$G$3*H10+$H$3*I10+$I$3*J10 -> 0.05 | C11: =IF($B$3>=A11,$B$2,0)/(1+B11) -> 2857.142857 | D11: =C11 -> 2857.142857 | E11: =C11*$B$1 -> 171.4285714 | F11: =C11+E11 -> 3028.571429 | G11: =VLOOKUP(A11,Wechsel!$A$11:$E$31,1) -> 0 | H11: =IF(G11>0,VLOOKUP(A11,Wechsel!$A$11:$E$31,3),H10) -> 1 | I11: =IF(G11>0,VLOOKUP(A11,Wechsel!$A$11:$E$31,4),I10) -> 0 | J11: =IF(G11>0,VLOOKUP(A11,Wechsel!$A$11:$E$31,5),J10) -> 0 | K11: =D11*$M$1*0.7*0.7*$M$2*H11+D11*$M$1*0.85*0.7*$M$2*I11+D11*$M$1*0.7*$M$2*J11 -> 14.77 | L11: =K11+L10 -> 14.77 | M11: =C11 -> 2857.142857 | N11: =1-(H11*$G$5+I11*$H$5+J11*$I$5) -> 0.7 | O11: =IF(G11>0,(F11-M11)*N11,0) -> 0 | P11: =MAX(Eingabe!C28,0) -> 0 | Q11: =MAX(0,K11+O11*$M$2-P11-IF(G11>0,-(L10+K11),0)) -> 14.77 | R11: =MAX(IF(G11>0,(H11*$G$4+I11*$H$4+J11*$I$4)*F11,0),0) -> 0 | S11: =Eingabe!$C$25+Eingabe!$E$25*'Berechnung Ratierlich 4%'!F11 -> 39 | T11: =F11-Q11-R11-S11 -> 2974.801429
A12: 2 | B12: =$G$3*H11+$H$3*I11+$I$3*J11 -> 0.05 | C12: 2857.142857 | D12: =MAX(IF(A12>$B$3,0,T11),0) -> 2974.801429 | E12: =(C12+D12)*$B$1 -> 349.9166571 | F12: =IF(A12>$B$3,0,C12+E12+D12) -> 6181.860943 | G12: =IF(VLOOKUP(A12,Wechsel!$A$11:$E$31,1)=A12,VLOOKUP(A12,Wechsel!$A$11:$E$31,1),0) -> 0 | H12: =IF(G12>0,VLOOKUP(A12,Wechsel!$A$11:$E$31,3),H11) -> 1 | I12: =IF(G12>0,VLOOKUP(A12,Wechsel!$A$11:$E$31,4),I11) -> 0 | J12: =IF(G12>0,VLOOKUP(A12,Wechsel!$A$11:$E$31,5),J11) -> 0 | K12: =D12*$M$1*0.7*0.7*$M$2*H12+D12*$M$1*0.85*0.7*$M$2*I12+D12*$M$1*0.7*$M$2*J12 -> 15.37823598 | L12: =IF(G11>0,K12,K12+L11) -> 30.14823598 | M12: =IF(A12>$B$3,0,IF(G11>0,T11,C12+M11)) -> 5714.285714 | N12: =1-(H12*$G$5+I12*$H$5+J12*$I$5) -> 0.7 | O12: =IF(G12>0,(F12-M12)*N11,0) -> 0 | P12: =MAX(P11-Eingabe!$E$28,0) -> 0 | Q12: =MAX(0,K12+O12*$M$2-P12-IF(G12>0,-(L11+K12),0)) -> 15.37823598 | R12: =MAX(IF(G12>0,(H12*$G$4+I12*$H$4+J12*$I$4)*(F12-Q12),0),0) -> 0 | S12: =Eingabe!$C$25+Eingabe!$E$25*'Berechnung Ratierlich 4%'!F12 -> 39 | T12: =F12-Q12-R12-S12 -> 6127.482707
A13: 3 | B13: 0.05 | C13: 2857.142857 | D13: 6127.482707 | E13: 539.0775338 | F13: 9523.703098 | G13: =IF(VLOOKUP(A13,Wechsel!$A$11:$E$31,1)=A13,VLOOKUP(A13,Wechsel!$A$11:$E$31,1),0) -> 0 | H13: =IF(G13>0,VLOOKUP(A13,Wechsel!$A$11:$E$31,3),H12) -> 1 | I13: =IF(G13>0,VLOOKUP(A13,Wechsel!$A$11:$E$31,4),I12) -> 0 | J13: =IF(G13>0,VLOOKUP(A13,Wechsel!$A$11:$E$31,5),J12) -> 0 | K13: =D13*$M$1*0.7*0.7*$M$2*H13+D13*$M$1*0.85*0.7*$M$2*I13+D13*$M$1*0.7*$M$2*J13 -> 31.67602185 | L13: =IF(G12>0,K13,K13+L12) -> 61.82425784 | M13: 8571.428571 | N13: 0.7 | O13: =IF(G13>0,(F13-M13)*N12,0) -> 0 | P13: =MAX(P12-Eingabe!$E$28,0) -> 0 | Q13: 31.67602185 | R13: 0 | S13: =Eingabe!$C$25+Eingabe!$E$25*'Berechnung Ratierlich 4%'!F13 -> 39 | T13: 9453.027076
A14: 4 | B14: 0.05 | C14: 2857.142857 | D14: 9453.027076 | E14: 738.610196 | F14: 13048.78013 | G14: =IF(VLOOKUP(A14,Wechsel!$A$11:$E$31,1)=A14,VLOOKUP(A14,Wechsel!$A$11:$E$31,1),0) -> 0 | H14: =IF(G14>0,VLOOKUP(A14,Wechsel!$A$11:$E$31,3),H13) -> 1 | I14: =IF(G14>0,VLOOKUP(A14,Wechsel!$A$11:$E$31,4),I13) -> 0 | J14: =IF(G14>0,VLOOKUP(A14,Wechsel!$A$11:$E$31,5),J13) -> 0 | K14: 48.86742347 | L14: 110.6916813 | M14: 11428.57143 | N14: 0.7 | O14: 0 | P14: =MAX(P13-Eingabe!$E$28,0) -> 0 | Q14: 48.86742347 | R14: 0 | S14: =Eingabe!$C$25+Eingabe!$E$25*'Berechnung Ratierlich 4%'!F14 -> 39 | T14: 12960.91271
A15: 5 | B15: 0.05 | C15: 2857.142857 | D15: 12960.91271 | E15: 949.0833338 | F15: 16767.1389 | G15: =IF(VLOOKUP(A15,Wechsel!$A$11:$E$31,1)=A15,VLOOKUP(A15,Wechsel!$A$11:$E$31,1),0) -> 0 | H15: =IF(G15>0,VLOOKUP(A15,Wechsel!$A$11:$E$31,3),H14) -> 1 | I15: =IF(G15>0,VLOOKUP(A15,Wechsel!$A$11:$E$31,4),I14) -> 0 | J15: =IF(G15>0,VLOOKUP(A15,Wechsel!$A$11:$E$31,5),J14) -> 0 | K15: 67.00143823 | L15: 177.6931195 | M15: 14285.71429 | N15: 0.7 | O15: 0 | P15: =MAX(P14-Eingabe!$E$28,0) -> 0 | Q15: 67.00143823 | R15: 0 | S15: =Eingabe!$C$25+Eingabe!$E$25*'Berechnung Ratierlich 4%'!F15 -> 39 | T15: 16661.13746
A16: 6 | B16: 0.05 | C16: 2857.142857 | D16: 16661.13746 | E16: 1171.096819 | F16: 20689.37713 | G16: =IF(VLOOKUP(A16,Wechsel!$A$11:$E$31,1)=A16,VLOOKUP(A16,Wechsel!$A$11:$E$31,1),0) -> 0 | H16: =IF(G16>0,VLOOKUP(A16,Wechsel!$A$11:$E$31,3),H15) -> 1 | I16: =IF(G16>0,VLOOKUP(A16,Wechsel!$A$11:$E$31,4),I15) -> 0 | J16: =IF(G16>0,VLOOKUP(A16,Wechsel!$A$11:$E$31,5),J15) -> 0 | K16: 86.12975009 | L16: 263.8228696 | M16: 17142.85714 | N16: 0.7 | O16: 0 | P16: =MAX(P15-Eingabe!$E$28,0) -> 0 | Q16: 86.12975009 | R16: 0 | S16: =Eingabe!$C$25+Eingabe!$E$25*'Berechnung Ratierlich 4%'!F16 -> 39 | T16: 20564.24738
A17: 7 | B17: 0.05 | C17: 2857.142857 | D17: 20564.24738 | E17: 1405.283414 | F17: 24826.67366 | G17: =IF(VLOOKUP(A17,Wechsel!$A$11:$E$31,1)=A17,VLOOKUP(A17,Wechsel!$A$11:$E$31,1),0) -> 0 | H17: =IF(G17>0,VLOOKUP(A17,Wechsel!$A$11:$E$31,3),H16) -> 1 | I17: =IF(G17>0,VLOOKUP(A17,Wechsel!$A$11:$E$31,4),I16) -> 0 | J17: =IF(G17>0,VLOOKUP(A17,Wechsel!$A$11:$E$31,5),J16) -> 0 | K17: 106.3068769 | L17: 370.1297465 | M17: 20000 | N17: 0.7 | O17: 0 | P17: =MAX(P16-Eingabe!$E$28,0) -> 0 | Q17: 106.3068769 | R17: 0 | S17: =Eingabe!$C$25+Eingabe!$E$25*'Berechnung Ratierlich 4%'!F17 -> 39 | T17: 24681.36678
A18: 8 | B18: 0.05 | C18: 2857.142857 | D18: 24681.36678 | E18: 1652.310578 | F18: 29190.82021 | G18: =IF(VLOOKUP(A18,Wechsel!$A$11:$E$31,1)=A18,VLOOKUP(A18,Wechsel!$A$11:$E$31,1),0) -> 0 | H18: =IF(G18>0,VLOOKUP(A18,Wechsel!$A$11:$E$31,3),H17) -> 1 | I18: =IF(G18>0,VLOOKUP(A18,Wechsel!$A$11:$E$31,4),I17) -> 0 | J18: =IF(G18>0,VLOOKUP(A18,Wechsel!$A$11:$E$31,5),J17) -> 0 | K18: 127.5903256 | L18: 497.720072 | M18: 22857.14286 | N18: 0.7 | O18: 0 | P18: =MAX(P17-Eingabe!$E$28,0) -> 0 | Q18: 127.5903256 | R18: 0 | S18: =Eingabe!$C$25+Eingabe!$E$25*'Berechnung Ratierlich 4%'!F18 -> 39 | T18: 29024.22989
A19: 9 | B19: 0.05 | C19: 2857.142857 | D19: 29024.22989 | E19: 1912.882365 | F19: 33794.25511 | G19: =IF(VLOOKUP(A19,Wechsel!$A$11:$E$31,1)=A19,VLOOKUP(A19,Wechsel!$A$11:$E$31,1),0) -> 9 | H19: =IF(G19>0,VLOOKUP(A19,Wechsel!$A$11:$E$31,3),H18) -> 0.6666666667 | I19: =IF(G19>0,VLOOKUP(A19,Wechsel!$A$11:$E$31,4),I18) -> 0 | J19: =IF(G19>0,VLOOKUP(A19,Wechsel!$A$11:$E$31,5),J18) -> 0.3333333333 | K19: 171.4751502 | L19: 669.1952222 | M19: 25714.28571 | N19: 0.8 | O19: 5655.978578 | P19: =MAX(P18-Eingabe!$E$28,0) -> 0 | Q19: 2332.434722 | R19: =MAX(IF(G19>0,(H19*$G$4+I19*$H$4+J19*$I$4)*(F19-Q19),0),0) -> 681.6727751 | S19: =Eingabe!$C$25+Eingabe!$E$25*'Berechnung Ratierlich 4%'!F19 -> 39 | T19: 30741.14761
A20: 10 | B20: 0.04333333333 | C20: 2875.399361 | D20: 30741.14761 | E20: 2016.992818 | F20: 35633.53979 | G20: =IF(VLOOKUP(A20,Wechsel!$A$11:$E$31,1)=A20,VLOOKUP(A20,Wechsel!$A$11:$E$31,1),0) -> 0 | H20: =IF(G20>0,VLOOKUP(A20,Wechsel!$A$11:$E$31,3),H19) -> 0.6666666667 | I20: =IF(G20>0,VLOOKUP(A20,Wechsel!$A$11:$E$31,4),I19) -> 0 | J20: =IF(G20>0,VLOOKUP(A20,Wechsel!$A$11:$E$31,5),J19) -> 0.3333333333 | K20: 181.6187001 | L20: 181.6187001 | M20: 30741.14761 | N20: 0.8 | O20: 0 | P20: =MAX(P19-Eingabe!$E$28,0) -> 0 | Q20: 181.6187001 | R20: =MAX(IF(G20>0,(H20*$G$4+I20*$H$4+J20*$I$4)*(F20-Q20),0),0) -> 0 | S20: =Eingabe!$C$25+Eingabe!$E$25*'Berechnung Ratierlich 4%'!F20 -> 39 | T20: 35412.92109
A21: 11 | B21: 0.04333333333 | C21: 2875.399361 | D21: 35412.92109 | E21: 2297.299227 | F21: 40585.61968 | G21: =IF(VLOOKUP(A21,Wechsel!$A$11:$E$31,1)=A21,VLOOKUP(A21,Wechsel!$A$11:$E$31,1),0) -> 0 | H21: =IF(G21>0,VLOOKUP(A21,Wechsel!$A$11:$E$31,3),H20) -> 0.6666666667 | I21: =IF(G21>0,VLOOKUP(A21,Wechsel!$A$11:$E$31,4),I20) -> 0 | J21: =IF(G21>0,VLOOKUP(A21,Wechsel!$A$11:$E$31,5),J20) -> 0.3333333333 | K21: 209.2195378 | L21: 390.8382379 | M21: 33616.54697 | N21: 0.8 | O21: 0 | P21: =MAX(P20-Eingabe!$E$28,0) -> 0 | Q21: 209.2195378 | R21: 0 | S21: =Eingabe!$C$25+Eingabe!$E$25*'Berechnung Ratierlich 4%'!F21 -> 39 | T21: 40337.40014
A22: 12 | B22: 0.04333333333 | C22: 2875.399361 | D22: 40337.40014 | E22: 2592.76797 | F22: 45805.56747 | G22: =IF(VLOOKUP(A22,Wechsel!$A$11:$E$31,1)=A22,VLOOKUP(A22,Wechsel!$A$11:$E$31,1),0) -> 0 | H22: =IF(G22>0,VLOOKUP(A22,Wechsel!$A$11:$E$31,3),H21) -> 0.6666666667 | I22: =IF(G22>0,VLOOKUP(A22,Wechsel!$A$11:$E$31,4),I21) -> 0 | J22: =IF(G22>0,VLOOKUP(A22,Wechsel!$A$11:$E$31,5),J21) -> 0.3333333333 | K22: 238.31336 | L22: 629.151598 | M22: 36491.94634 | N22: 0.8 | O22: 0 | P22: =MAX(P21-Eingabe!$E$28,0) -> 0 | Q22: 238.31336 | R22: 0 | S22: =Eingabe!$C$25+Eingabe!$E$25*'Berechnung Ratierlich 4%'!F22 -> 39 | T22: 45528.25411
A23: 13 | B23: 0.04333333333 | C23: 2875.399361 | D23: 45528.25411 | E23: 2904.219209 | F23: 51307.87268 | G23: =IF(VLOOKUP(A23,Wechsel!$A$11:$E$31,1)=A23,VLOOKUP(A23,Wechsel!$A$11:$E$31,1),0) -> 0 | H23: =IF(G23>0,VLOOKUP(A23,Wechsel!$A$11:$E$31,3),H22) -> 0.6666666667 | I23: =IF(G23>0,VLOOKUP(A23,Wechsel!$A$11:$E$31,4),I22) -> 0 | J23: =IF(G23>0,VLOOKUP(A23,Wechsel!$A$11:$E$31,5),J22) -> 0.3333333333 | K23: 268.9809253 | L23: 898.1325233 | M23: 39367.3457 | N23: 0.8 | O23: 0 | P23: =MAX(P22-Eingabe!$E$28,0) -> 0 | Q23: 268.9809253 | R23: 0 | S23: =Eingabe!$C$25+Eingabe!$E$25*'Berechnung Ratierlich 4%'!F23 -> 39 | T23: 50999.89176
A24: 14 | B24: 0.04333333333 | C24: 2875.399361 | D24: 50999.89176 | E24: 3232.517467 | F24: 57107.80859 | G24: =IF(VLOOKUP(A24,Wechsel!$A$11:$E$31,1)=A24,VLOOKUP(A24,Wechsel!$A$11:$E$31,1),0) -> 0 | H24: =IF(G24>0,VLOOKUP(A24,Wechsel!$A$11:$E$31,3),H23) -> 0.6666666667 | I24: =IF(G24>0,VLOOKUP(A24,Wechsel!$A$11:$E$31,4),I23) -> 0 | J24: =IF(G24>0,VLOOKUP(A24,Wechsel!$A$11:$E$31,5),J23) -> 0.3333333333 | K24: 301.3073605 | L24: 1199.439884 | M24: 42242.74506 | N24: 0.8 | O24: 0 | P24: =MAX(P23-Eingabe!$E$28,0) -> 0 | Q24: 301.3073605 | R24: 0 | S24: =Eingabe!$C$25+Eingabe!$E$25*'Berechnung Ratierlich 4%'!F24 -> 39 | T24: 56767.50123
A25: 15 | B25: 0.04333333333 | C25: 2875.399361 | D25: 56767.50123 | E25: 3578.574035 | F25: 63221.47462 | G25: =IF(VLOOKUP(A25,Wechsel!$A$11:$E$31,1)=A25,VLOOKUP(A25,Wechsel!$A$11:$E$31,1),0) -> 0 | H25: =IF(G25>0,VLOOKUP(A25,Wechsel!$A$11:$E$31,3),H24) -> 0.6666666667 | I25: =IF(G25>0,VLOOKUP(A25,Wechsel!$A$11:$E$31,4),I24) -> 0 | J25: =IF(G25>0,VLOOKUP(A25,Wechsel!$A$11:$E$31,5),J24) -> 0.3333333333 | K25: 335.3823972 | L25: 1534.822281 | M25: 45118.14442 | N25: 0.8 | O25: 0 | P25: =MAX(P24-Eingabe!$E$28,0) -> 0 | Q25: 335.3823972 | R25: 0 | S25: =Eingabe!$C$25+Eingabe!$E$25*'Berechnung Ratierlich 4%'!F25 -> 39 | T25: 62847.09223
A26: 16 | B26: 0.04333333333 | C26: 2875.399361 | D26: 62847.09223 | E26: 3943.349495 | F26: 69665.84108 | G26: =IF(VLOOKUP(A26,Wechsel!$A$11:$E$31,1)=A26,VLOOKUP(A26,Wechsel!$A$11:$E$31,1),0) -> 0 | H26: =IF(G26>0,VLOOKUP(A26,Wechsel!$A$11:$E$31,3),H25) -> 0.6666666667 | I26: =IF(G26>0,VLOOKUP(A26,Wechsel!$A$11:$E$31,4),I25) -> 0 | J26: =IF(G26>0,VLOOKUP(A26,Wechsel!$A$11:$E$31,5),J25) -> 0.3333333333 | K26: 371.3006209 | L26: 1906.122902 | M26: 47993.54378 | N26: 0.8 | O26: 0 | P26: =MAX(P25-Eingabe!$E$28,0) -> 0 | Q26: 371.3006209 | R26: 0 | S26: =Eingabe!$C$25+Eingabe!$E$25*'Berechnung Ratierlich 4%'!F26 -> 39 | T26: 69255.54046
A27: 17 | B27: 0.04333333333 | C27: 2875.399361 | D27: 69255.54046 | E27: 4327.856389 | F27: 76458.79621 | G27: =IF(VLOOKUP(A27,Wechsel!$A$11:$E$31,1)=A27,VLOOKUP(A27,Wechsel!$A$11:$E$31,1),0) -> 0 | H27: =IF(G27>0,VLOOKUP(A27,Wechsel!$A$11:$E$31,3),H26) -> 0.6666666667 | I27: =IF(G27>0,VLOOKUP(A27,Wechsel!$A$11:$E$31,4),I26) -> 0 | J27: =IF(G27>0,VLOOKUP(A27,Wechsel!$A$11:$E$31,5),J26) -> 0.3333333333 | K27: 409.161733 | L27: 2315.284635 | M27: 50868.94314 | N27: 0.8 | O27: 0 | P27: =MAX(P26-Eingabe!$E$28,0) -> 0 | Q27: 409.161733 | R27: 0 | S27: =Eingabe!$C$25+Eingabe!$E$25*'Berechnung Ratierlich 4%'!F27 -> 39 | T27: 76010.63448
A28: 18 | B28: 0.04333333333 | C28: 2875.399361 | D28: 76010.63448 | E28: 4733.16203 | F28: 83619.19587 | G28: =IF(VLOOKUP(A28,Wechsel!$A$11:$E$31,1)=A28,VLOOKUP(A28,Wechsel!$A$11:$E$31,1),0) -> 18 | H28: =IF(G28>0,VLOOKUP(A28,Wechsel!$A$11:$E$31,3),H27) -> 0.3333333333 | I28: =IF(G28>0,VLOOKUP(A28,Wechsel!$A$11:$E$31,4),I27) -> 0 | J28: =IF(G28>0,VLOOKUP(A28,Wechsel!$A$11:$E$31,5),J27) -> 0.6666666667 | K28: 505.2046821 | L28: 2820.489317 | M28: 53744.3425 | N28: 0.9 | O28: 23899.88269 | P28: =MAX(P27-Eingabe!$E$28,0) -> 0 | Q28: 9629.28806 | R28: 1356.481643 | S28: =Eingabe!$C$25+Eingabe!$E$25*'Berechnung Ratierlich 4%'!F28 -> 39 | T28: 72594.42617
A29: 19 | B29: 0.03666666667 | C29: 2893.890675 | D29: 72594.42617 | E29: 4529.299011 | F29: 80017.61585 | G29: =IF(VLOOKUP(A29,Wechsel!$A$11:$E$31,1)=A29,VLOOKUP(A29,Wechsel!$A$11:$E$31,1),0) -> 0 | H29: =IF(G29>0,VLOOKUP(A29,Wechsel!$A$11:$E$31,3),H28) -> 0.3333333333 | I29: =IF(G29>0,VLOOKUP(A29,Wechsel!$A$11:$E$31,4),I28) -> 0 | J29: =IF(G29>0,VLOOKUP(A29,Wechsel!$A$11:$E$31,5),J28) -> 0.6666666667 | K29: 482.4988535 | L29: 482.4988535 | M29: 72594.42617 | N29: 0.9 | O29: 0 | P29: =MAX(P28-Eingabe!$E$28,0) -> 0 | Q29: 482.4988535 | R29: 0 | S29: =Eingabe!$C$25+Eingabe!$E$25*'Berechnung Ratierlich 4%'!F29 -> 39 | T29: 79496.117
A30: 20 | B30: 0.03666666667 | C30: 2893.890675 | D30: 79496.117 | E30: 4943.40046 | F30: 87333.40813 | G30: =IF(VLOOKUP(A30,Wechsel!$A$11:$E$31,1)=A30,VLOOKUP(A30,Wechsel!$A$11:$E$31,1),0) -> 0 | H30: =IF(G30>0,VLOOKUP(A30,Wechsel!$A$11:$E$31,3),H29) -> 0.3333333333 | I30: =IF(G30>0,VLOOKUP(A30,Wechsel!$A$11:$E$31,4),I29) -> 0 | J30: =IF(G30>0,VLOOKUP(A30,Wechsel!$A$11:$E$31,5),J29) -> 0.6666666667 | K30: 528.3709416 | L30: 1010.869795 | M30: 75488.31684 | N30: 0.9 | O30: 0 | P30: =MAX(P29-Eingabe!$E$28,0) -> 0 | Q30: 528.3709416 | R30: 0 | S30: =Eingabe!$C$25+Eingabe!$E$25*'Berechnung Ratierlich 4%'!F30 -> 39 | T30: 86766.03719
A31: 21 | B31: 0.03666666667 | C31: 2893.890675 | D31: 86766.03719 | E31: 5379.595672 | F31: 95039.52354 | G31: =IF(VLOOKUP(A31,Wechsel!$A$11:$E$31,1)=A31,VLOOKUP(A31,Wechsel!$A$11:$E$31,1),0) -> 0 | H31: =IF(G31>0,VLOOKUP(A31,Wechsel!$A$11:$E$31,3),H30) -> 0.3333333333 | I31: =IF(G31>0,VLOOKUP(A31,Wechsel!$A$11:$E$31,4),I30) -> 0 | J31: =IF(G31>0,VLOOKUP(A31,Wechsel!$A$11:$E$31,5),J30) -> 0.6666666667 | K31: 576.6904662 | L31: 1587.560261 | M31: 78382.20752 | N31: 0.9 | O31: 0 | P31: =MAX(P30-Eingabe!$E$28,0) -> 0 | Q31: 576.6904662 | R31: 0 | S31: =Eingabe!$C$25+Eingabe!$E$25*'Berechnung Ratierlich 4%'!F31 -> 39 | T31: 94423.83307
A32: 22 | B32: 0.03666666667 | C32: 2893.890675 | D32: 94423.83307 | E32: 5839.063425 | F32: 103156.7872 | G32: =IF(VLOOKUP(A32,Wechsel!$A$11:$E$31,1)=A32,VLOOKUP(A32,Wechsel!$A$11:$E$31,1),0) -> 0 | H32: =IF(G32>0,VLOOKUP(A32,Wechsel!$A$11:$E$31,3),H31) -> 0.3333333333 | I32: =IF(G32>0,VLOOKUP(A32,Wechsel!$A$11:$E$31,4),I31) -> 0 | J32: =IF(G32>0,VLOOKUP(A32,Wechsel!$A$11:$E$31,5),J31) -> 0.6666666667 | K32: 627.5880065 | L32: 2215.148268 | M32: 81276.09819 | N32: 0.9 | O32: 0 | P32: =MAX(P31-Eingabe!$E$28,0) -> 0 | Q32: 627.5880065 | R32: 0 | S32: =Eingabe!$C$25+Eingabe!$E$25*'Berechnung Ratierlich 4%'!F32 -> 39 | T32: 102490.1992
A33: 23 | B33: 0.03666666667 | C33: 2893.890675 | D33: 102490.1992 | E33: 6323.045391 | F33: 111707.1352 | G33: =IF(VLOOKUP(A33,Wechsel!$A$11:$E$31,1)=A33,VLOOKUP(A33,Wechsel!$A$11:$E$31,1),0) -> 0 | H33: =IF(G33>0,VLOOKUP(A33,Wechsel!$A$11:$E$31,3),H32) -> 0.3333333333 | I33: =IF(G33>0,VLOOKUP(A33,Wechsel!$A$11:$E$31,4),I32) -> 0 | J33: =IF(G33>0,VLOOKUP(A33,Wechsel!$A$11:$E$31,5),J32) -> 0.6666666667 | K33: 681.2011088 | L33: 2896.349377 | M33: 84169.98887 | N33: 0.9 | O33: 0 | P33: =MAX(P32-Eingabe!$E$28,0) -> 0 | Q33: 681.2011088 | R33: 0 | S33: =Eingabe!$C$25+Eingabe!$E$25*'Berechnung Ratierlich 4%'!F33 -> 39 | T33: 110986.9341
A34: 24 | B34: 0.03666666667 | C34: 2893.890675 | D34: 110986.9341 | E34: 6832.849488 | F34: 120713.6743 | G34: =IF(VLOOKUP(A34,Wechsel!$A$11:$E$31,1)=A34,VLOOKUP(A34,Wechsel!$A$11:$E$31,1),0) -> 0 | H34: =IF(G34>0,VLOOKUP(A34,Wechsel!$A$11:$E$31,3),H33) -> 0.3333333333 | I34: =IF(G34>0,VLOOKUP(A34,Wechsel!$A$11:$E$31,4),I33) -> 0 | J34: =IF(G34>0,VLOOKUP(A34,Wechsel!$A$11:$E$31,5),J33) -> 0.6666666667 | K34: 737.6746577 | L34: 3634.024034 | M34: 87063.87954 | N34: 0.9 | O34: 0 | P34: =MAX(P33-Eingabe!$E$28,0) -> 0 | Q34: 737.6746577 | R34: 0 | S34: =Eingabe!$C$25+Eingabe!$E$25*'Berechnung Ratierlich 4%'!F34 -> 39 | T34: 119936.9996
A35: 25 | B35: 0.03666666667 | C35: 2893.890675 | D35: 119936.9996 | E35: 7369.853418 | F35: 130200.7437 | G35: =IF(VLOOKUP(A35,Wechsel!$A$11:$E$31,1)=A35,VLOOKUP(A35,Wechsel!$A$11:$E$31,1),0) -> 0 | H35: =IF(G35>0,VLOOKUP(A35,Wechsel!$A$11:$E$31,3),H34) -> 0.3333333333 | I35: =IF(G35>0,VLOOKUP(A35,Wechsel!$A$11:$E$31,4),I34) -> 0 | J35: =IF(G35>0,VLOOKUP(A35,Wechsel!$A$11:$E$31,5),J34) -> 0.6666666667 | K35: 797.161268 | L35: 4431.185302 | M35: 89957.77022 | N35: 0.9 | O35: 0 | P35: =MAX(P34-Eingabe!$E$28,0) -> 0 | Q35: 797.161268 | R35: 0 | S35: =Eingabe!$C$25+Eingabe!$E$25*'Berechnung Ratierlich 4%'!F35 -> 39 | T35: 129364.5825
A36: 26 | B36: 0.03666666667 | C36: 2893.890675 | D36: 129364.5825 | E36: 7935.508388 | F36: 140193.9815 | G36: =IF(VLOOKUP(A36,Wechsel!$A$11:$E$31,1)=A36,VLOOKUP(A36,Wechsel!$A$11:$E$31,1),0) -> 0 | H36: =IF(G36>0,VLOOKUP(A36,Wechsel!$A$11:$E$31,3),H35) -> 0.3333333333 | I36: =IF(G36>0,VLOOKUP(A36,Wechsel!$A$11:$E$31,4),I35) -> 0 | J36: =IF(G36>0,VLOOKUP(A36,Wechsel!$A$11:$E$31,5),J35) -> 0.6666666667 | K36: 859.8216973 | L36: 5291.007 | M36: 92851.66089 | N36: 0.9 | O36: 0 | P36: =MAX(P35-Eingabe!$E$28,0) -> 0 | Q36: 859.8216973 | R36: 0 | S36: =Eingabe!$C$25+Eingabe!$E$25*'Berechnung Ratierlich 4%'!F36 -> 39 | T36: 139295.1598
A37: 27 | B37: 0.03666666667 | C37: 2893.890675 | D37: 139295.1598 | E37: 8531.34303 | F37: 150720.3935 | G37: =IF(VLOOKUP(A37,Wechsel!$A$11:$E$31,1)=A37,VLOOKUP(A37,Wechsel!$A$11:$E$31,1),0) -> 27 | H37: =IF(G37>0,VLOOKUP(A37,Wechsel!$A$11:$E$31,3),H36) -> 0 | I37: =IF(G37>0,VLOOKUP(A37,Wechsel!$A$11:$E$31,4),I36) -> 0 | J37: =IF(G37>0,VLOOKUP(A37,Wechsel!$A$11:$E$31,5),J36) -> 1 | K37: 1028.694755 | L37: 6319.701755 | M37: 95745.55157 | N37: 1 | O37: 49477.35776 | P37: =MAX(P36-Eingabe!$E$28,0) -> 0 | Q37: 20398.04962 | R37: 1954.835159 | S37: =Eingabe!$C$25+Eingabe!$E$25*'Berechnung Ratierlich 4%'!F37 -> 39 | T37: 128328.5087
A38: 28 | B38: 0.03 | C38: 2912.621359 | D38: 128328.5087 | E38: 7874.467806 | F38: 139115.5979 | G38: =IF(VLOOKUP(A38,Wechsel!$A$11:$E$31,1)=A38,VLOOKUP(A38,Wechsel!$A$11:$E$31,1),0) -> 0 | H38: =IF(G38>0,VLOOKUP(A38,Wechsel!$A$11:$E$31,3),H37) -> 0 | I38: =IF(G38>0,VLOOKUP(A38,Wechsel!$A$11:$E$31,4),I37) -> 0 | J38: =IF(G38>0,VLOOKUP(A38,Wechsel!$A$11:$E$31,5),J37) -> 1 | K38: 947.7060371 | L38: 947.7060371 | M38: 128328.5087 | N38: 1 | O38: 0 | P38: =MAX(P37-Eingabe!$E$28,0) -> 0 | Q38: 947.7060371 | R38: 0 | S38: =Eingabe!$C$25+Eingabe!$E$25*'Berechnung Ratierlich 4%'!F38 -> 39 | T38: 138128.8919
A39: 29 | B39: 0.03 | C39: 2912.621359 | D39: 138128.8919 | E39: 8462.490794 | F39: 149504.004 | G39: =IF(VLOOKUP(A39,Wechsel!$A$11:$E$31,1)=A39,VLOOKUP(A39,Wechsel!$A$11:$E$31,1),0) -> 0 | H39: =IF(G39>0,VLOOKUP(A39,Wechsel!$A$11:$E$31,3),H38) -> 0 | I39: =IF(G39>0,VLOOKUP(A39,Wechsel!$A$11:$E$31,4),I38) -> 0 | J39: =IF(G39>0,VLOOKUP(A39,Wechsel!$A$11:$E$31,5),J38) -> 1 | K39: 1020.081867 | L39: 1967.787904 | M39: 131241.1301 | N39: =1-(H39*$G$5+I39*$H$5+J39*$I$5) -> 1 | O39: 0 | P39: =MAX(P38-Eingabe!$E$28,0) -> 0 | Q39: 1020.081867 | R39: 0 | S39: =Eingabe!$C$25+Eingabe!$E$25*'Berechnung Ratierlich 4%'!F39 -> 39 | T39: 148444.9222
A40: 30 | B40: 0.03 | C40: 2912.621359 | D40: 148444.9222 | E40: 9081.452611 | F40: 160438.9961 | G40: =IF(VLOOKUP(A40,Wechsel!$A$11:$E$31,1)=A40,VLOOKUP(A40,Wechsel!$A$11:$E$31,1),0) -> 0 | H40: =IF(G40>0,VLOOKUP(A40,Wechsel!$A$11:$E$31,3),H39) -> 0 | I40: =IF(G40>0,VLOOKUP(A40,Wechsel!$A$11:$E$31,4),I39) -> 0 | J40: =IF(G40>0,VLOOKUP(A40,Wechsel!$A$11:$E$31,5),J39) -> 1 | K40: 1096.26575 | L40: 3064.053654 | M40: 134153.7515 | N40: 1 | O40: 0 | P40: =MAX(P39-Eingabe!$E$28,0) -> 0 | Q40: 1096.26575 | R40: 0 | S40: =Eingabe!$C$25+Eingabe!$E$25*'Berechnung Ratierlich 4%'!F40 -> 39 | T40: 159303.7304
A41: 31 | B41: 0.03 | C41: 2912.621359 | D41: 159303.7304 | E41: 9732.981105 | F41: 171949.3328 | G41: =IF(VLOOKUP(A41,Wechsel!$A$11:$E$31,1)=A41,VLOOKUP(A41,Wechsel!$A$11:$E$31,1),0) -> 0 | H41: =IF(G41>0,VLOOKUP(A41,Wechsel!$A$11:$E$31,3),H40) -> 0 | I41: =IF(G41>0,VLOOKUP(A41,Wechsel!$A$11:$E$31,4),I40) -> 0 | J41: =IF(G41>0,VLOOKUP(A41,Wechsel!$A$11:$E$31,5),J40) -> 1 | K41: 1176.458049 | L41: 4240.511703 | M41: 137066.3728 | N41: 1 | O41: 0 | P41: =MAX(P40-Eingabe!$E$28,0) -> 0 | Q41: 1176.458049 | R41: 0 | S41: =Eingabe!$C$25+Eingabe!$E$25*'Berechnung Ratierlich 4%'!F41 -> 39 | T41: 170733.8748
A42: 32 | B42: 0.03 | C42: 2912.621359 | D42: 170733.8748 | E42: 10418.78977 | F42: 184065.2859 | G42: =IF(VLOOKUP(A42,Wechsel!$A$11:$E$31,1)=A42,VLOOKUP(A42,Wechsel!$A$11:$E$31,1),0) -> 0 | H42: =IF(G42>0,VLOOKUP(A42,Wechsel!$A$11:$E$31,3),H41) -> 0 | I42: =IF(G42>0,VLOOKUP(A42,Wechsel!$A$11:$E$31,4),I41) -> 0 | J42: =IF(G42>0,VLOOKUP(A42,Wechsel!$A$11:$E$31,5),J41) -> 1 | K42: 1260.869665 | L42: 5501.381368 | M42: 139978.9942 | N42: 1 | O42: 0 | P42: =MAX(P41-Eingabe!$E$28,0) -> 0 | Q42: 1260.869665 | R42: 0 | S42: =Eingabe!$C$25+Eingabe!$E$25*'Berechnung Ratierlich 4%'!F42 -> 39 | T42: 182765.4163
A43: 33 | B43: 0.03 | C43: =IF($B$3>=A43,$B$2,0)/(1+B43) -> 2912.621359 | D43: 182765.4163 | E43: 11140.68226 | F43: 196818.7199 | G43: =IF(VLOOKUP(A43,Wechsel!$A$11:$E$31,1)=A43,VLOOKUP(A43,Wechsel!$A$11:$E$31,1),0) -> 0 | H43: =IF(G43>0,VLOOKUP(A43,Wechsel!$A$11:$E$31,3),H42) -> 0 | I43: =IF(G43>0,VLOOKUP(A43,Wechsel!$A$11:$E$31,4),I42) -> 0 | J43: =IF(G43>0,VLOOKUP(A43,Wechsel!$A$11:$E$31,5),J42) -> 1 | K43: 1349.722599 | L43: 6851.103967 | M43: 142891.6155 | N43: 1 | O43: 0 | P43: =MAX(P42-Eingabe!$E$28,0) -> 0 | Q43: 1349.722599 | R43: 0 | S43: =Eingabe!$C$25+Eingabe!$E$25*'Berechnung Ratierlich 4%'!F43 -> 39 | T43: 195429.9973
A44: 34 | B44: 0.03 | C44: 2912.621359 | D44: =MAX(IF(A44>$B$3,0,T43),0) -> 195429.9973 | E44: =(C44+D44)*$B$1 -> 11900.55712 | F44: =IF(A44>$B$3,0,C44+E44+D44) -> 210243.1758 | G44: =IF(VLOOKUP(A44,Wechsel!$A$11:$E$31,1)=A44,VLOOKUP(A44,Wechsel!$A$11:$E$31,1),0) -> 0 | H44: =IF(G44>0,VLOOKUP(A44,Wechsel!$A$11:$E$31,3),H43) -> 0 | I44: =IF(G44>0,VLOOKUP(A44,Wechsel!$A$11:$E$31,4),I43) -> 0 | J44: =IF(G44>0,VLOOKUP(A44,Wechsel!$A$11:$E$31,5),J43) -> 1 | K44: 1443.25053 | L44: 8294.354497 | M44: =IF(A44>$B$3,0,IF(G43>0,T43,C44+M43)) -> 145804.2369 | N44: 1 | O44: 0 | P44: =MAX(P43-Eingabe!$E$28,0) -> 0 | Q44: 1443.25053 | R44: 0 | S44: =Eingabe!$C$25+Eingabe!$E$25*'Berechnung Ratierlich 4%'!F44 -> 39 | T44: 208760.9252
A45: 35 | B45: 0.03 | C45: 2912.621359 | D45: 208760.9252 | E45: 12700.4128 | F45: 224373.9594 | G45: =IF(VLOOKUP(A45,Wechsel!$A$11:$E$31,1)=A45,VLOOKUP(A45,Wechsel!$A$11:$E$31,1),0) -> 0 | H45: =IF(G45>0,VLOOKUP(A45,Wechsel!$A$11:$E$31,3),H44) -> 0 | I45: =IF(G45>0,VLOOKUP(A45,Wechsel!$A$11:$E$31,4),I44) -> 0 | J45: =IF(G45>0,VLOOKUP(A45,Wechsel!$A$11:$E$31,5),J44) -> 1 | K45: 1541.699433 | L45: 9836.05393 | M45: 148716.8583 | N45: 1 | O45: 0 | P45: =MAX(P44-Eingabe!$E$28,0) -> 0 | Q45: 1541.699433 | R45: 0 | S45: =Eingabe!$C$25+Eingabe!$E$25*'Berechnung Ratierlich 4%'!F45 -> 39 | T45: 222793.2599
A46: 36 | B46: 0.03 | C46: 2912.621359 | D46: 222793.2599 | E46: 13542.35288 | F46: 239248.2342 | G46: =IF(VLOOKUP(A46,Wechsel!$A$11:$E$31,1)=A46,VLOOKUP(A46,Wechsel!$A$11:$E$31,1),0) -> 0 | H46: =IF(G46>0,VLOOKUP(A46,Wechsel!$A$11:$E$31,3),H45) -> 0 | I46: =IF(G46>0,VLOOKUP(A46,Wechsel!$A$11:$E$31,4),I45) -> 0 | J46: =IF(G46>0,VLOOKUP(A46,Wechsel!$A$11:$E$31,5),J45) -> 1 | K46: 1645.328225 | L46: 11481.38215 | M46: 151629.4796 | N46: 1 | O46: 0 | P46: =MAX(P45-Eingabe!$E$28,0) -> 0 | Q46: 1645.328225 | R46: 0 | S46: =Eingabe!$C$25+Eingabe!$E$25*'Berechnung Ratierlich 4%'!F46 -> 39 | T46: 237563.906
A47: 37 | B47: 0.03 | C47: 0 | D47: 0 | E47: 0 | F47: 0 | G47: =IF(VLOOKUP(A47,Wechsel!$A$11:$E$31,1)=A47,VLOOKUP(A47,Wechsel!$A$11:$E$31,1),0) -> 0 | H47: =IF(G47>0,VLOOKUP(A47,Wechsel!$A$11:$E$31,3),H46) -> 0 | I47: =IF(G47>0,VLOOKUP(A47,Wechsel!$A$11:$E$31,4),I46) -> 0 | J47: =IF(G47>0,VLOOKUP(A47,Wechsel!$A$11:$E$31,5),J46) -> 1 | K47: 0 | L47: 11481.38215 | M47: 0 | N47: 1 | O47: 0 | P47: =MAX(P46-Eingabe!$E$28,0) -> 0 | Q47: 0 | R47: 0 | S47: =Eingabe!$C$25+Eingabe!$E$25*'Berechnung Ratierlich 4%'!F47 -> 39 | T47: -39
A48: 38 | B48: 0.03 | C48: 0 | D48: 0 | E48: 0 | F48: 0 | G48: =IF(VLOOKUP(A48,Wechsel!$A$11:$E$31,1)=A48,VLOOKUP(A48,Wechsel!$A$11:$E$31,1),0) -> 0 | H48: =IF(G48>0,VLOOKUP(A48,Wechsel!$A$11:$E$31,3),H47) -> 0 | I48: =IF(G48>0,VLOOKUP(A48,Wechsel!$A$11:$E$31,4),I47) -> 0 | J48: =IF(G48>0,VLOOKUP(A48,Wechsel!$A$11:$E$31,5),J47) -> 1 | K48: 0 | L48: 11481.38215 | M48: 0 | N48: 1 | O48: 0 | P48: =MAX(P47-Eingabe!$E$28,0) -> 0 | Q48: 0 | R48: 0 | S48: =Eingabe!$C$25+Eingabe!$E$25*'Berechnung Ratierlich 4%'!F48 -> 39 | T48: -39
A49: 39 | B49: 0.03 | C49: 0 | D49: 0 | E49: 0 | F49: 0 | G49: =IF(VLOOKUP(A49,Wechsel!$A$11:$E$31,1)=A49,VLOOKUP(A49,Wechsel!$A$11:$E$31,1),0) -> 0 | H49: =IF(G49>0,VLOOKUP(A49,Wechsel!$A$11:$E$31,3),H48) -> 0 | I49: =IF(G49>0,VLOOKUP(A49,Wechsel!$A$11:$E$31,4),I48) -> 0 | J49: =IF(G49>0,VLOOKUP(A49,Wechsel!$A$11:$E$31,5),J48) -> 1 | K49: 0 | L49: 11481.38215 | M49: 0 | N49: 1 | O49: 0 | P49: =MAX(P48-Eingabe!$E$28,0) -> 0 | Q49: 0 | R49: 0 | S49: =Eingabe!$C$25+Eingabe!$E$25*'Berechnung Ratierlich 4%'!F49 -> 39 | T49: -39
A50: 40 | B50: 0.03 | C50: 0 | D50: 0 | E50: 0 | F50: 0 | G50: =IF(VLOOKUP(A50,Wechsel!$A$11:$E$31,1)=A50,VLOOKUP(A50,Wechsel!$A$11:$E$31,1),0) -> 0 | H50: =IF(G50>0,VLOOKUP(A50,Wechsel!$A$11:$E$31,3),H49) -> 0 | I50: =IF(G50>0,VLOOKUP(A50,Wechsel!$A$11:$E$31,4),I49) -> 0 | J50: =IF(G50>0,VLOOKUP(A50,Wechsel!$A$11:$E$31,5),J49) -> 1 | K50: 0 | L50: 11481.38215 | M50: 0 | N50: 1 | O50: 0 | P50: =MAX(P49-Eingabe!$E$28,0) -> 0 | Q50: 0 | R50: 0 | S50: =Eingabe!$C$25+Eingabe!$E$25*'Berechnung Ratierlich 4%'!F50 -> 39 | T50: -39
A51: 41 | B51: 0.03 | C51: 0 | D51: 0 | E51: 0 | F51: 0 | G51: =IF(VLOOKUP(A51,Wechsel!$A$11:$E$31,1)=A51,VLOOKUP(A51,Wechsel!$A$11:$E$31,1),0) -> 0 | H51: =IF(G51>0,VLOOKUP(A51,Wechsel!$A$11:$E$31,3),H50) -> 0 | I51: =IF(G51>0,VLOOKUP(A51,Wechsel!$A$11:$E$31,4),I50) -> 0 | J51: =IF(G51>0,VLOOKUP(A51,Wechsel!$A$11:$E$31,5),J50) -> 1 | K51: 0 | L51: 11481.38215 | M51: 0 | N51: 1 | O51: 0 | P51: =MAX(P50-Eingabe!$E$28,0) -> 0 | Q51: 0 | R51: 0 | S51: =Eingabe!$C$25+Eingabe!$E$25*'Berechnung Ratierlich 4%'!F51 -> 39 | T51: -39
A52: 42 | B52: 0.03 | C52: 0 | D52: 0 | E52: 0 | F52: 0 | G52: =IF(VLOOKUP(A52,Wechsel!$A$11:$E$31,1)=A52,VLOOKUP(A52,Wechsel!$A$11:$E$31,1),0) -> 0 | H52: =IF(G52>0,VLOOKUP(A52,Wechsel!$A$11:$E$31,3),H51) -> 0 | I52: =IF(G52>0,VLOOKUP(A52,Wechsel!$A$11:$E$31,4),I51) -> 0 | J52: =IF(G52>0,VLOOKUP(A52,Wechsel!$A$11:$E$31,5),J51) -> 1 | K52: 0 | L52: 11481.38215 | M52: 0 | N52: 1 | O52: 0 | P52: =MAX(P51-Eingabe!$E$28,0) -> 0 | Q52: 0 | R52: 0 | S52: =Eingabe!$C$25+Eingabe!$E$25*'Berechnung Ratierlich 4%'!F52 -> 39 | T52: -39
A53: 43 | B53: 0.03 | C53: 0 | D53: 0 | E53: 0 | F53: 0 | G53: =IF(VLOOKUP(A53,Wechsel!$A$11:$E$31,1)=A53,VLOOKUP(A53,Wechsel!$A$11:$E$31,1),0) -> 0 | H53: =IF(G53>0,VLOOKUP(A53,Wechsel!$A$11:$E$31,3),H52) -> 0 | I53: =IF(G53>0,VLOOKUP(A53,Wechsel!$A$11:$E$31,4),I52) -> 0 | J53: =IF(G53>0,VLOOKUP(A53,Wechsel!$A$11:$E$31,5),J52) -> 1 | K53: 0 | L53: 11481.38215 | M53: 0 | N53: 1 | O53: 0 | P53: =MAX(P52-Eingabe!$E$28,0) -> 0 | Q53: 0 | R53: 0 | S53: =Eingabe!$C$25+Eingabe!$E$25*'Berechnung Ratierlich 4%'!F53 -> 39 | T53: -39
A54: 44 | B54: 0.03 | C54: 0 | D54: 0 | E54: 0 | F54: 0 | G54: =IF(VLOOKUP(A54,Wechsel!$A$11:$E$31,1)=A54,VLOOKUP(A54,Wechsel!$A$11:$E$31,1),0) -> 0 | H54: =IF(G54>0,VLOOKUP(A54,Wechsel!$A$11:$E$31,3),H53) -> 0 | I54: =IF(G54>0,VLOOKUP(A54,Wechsel!$A$11:$E$31,4),I53) -> 0 | J54: =IF(G54>0,VLOOKUP(A54,Wechsel!$A$11:$E$31,5),J53) -> 1 | K54: 0 | L54: 11481.38215 | M54: 0 | N54: 1 | O54: 0 | P54: =MAX(P53-Eingabe!$E$28,0) -> 0 | Q54: 0 | R54: 0 | S54: =Eingabe!$C$25+Eingabe!$E$25*'Berechnung Ratierlich 4%'!F54 -> 39 | T54: -39
A55: 45 | B55: 0.03 | C55: 0 | D55: 0 | E55: 0 | F55: 0 | G55: =IF(VLOOKUP(A55,Wechsel!$A$11:$E$31,1)=A55,VLOOKUP(A55,Wechsel!$A$11:$E$31,1),0) -> 0 | H55: =IF(G55>0,VLOOKUP(A55,Wechsel!$A$11:$E$31,3),H54) -> 0 | I55: =IF(G55>0,VLOOKUP(A55,Wechsel!$A$11:$E$31,4),I54) -> 0 | J55: =IF(G55>0,VLOOKUP(A55,Wechsel!$A$11:$E$31,5),J54) -> 1 | K55: 0 | L55: 11481.38215 | M55: 0 | N55: 1 | O55: 0 | P55: =MAX(P54-Eingabe!$E$28,0) -> 0 | Q55: 0 | R55: 0 | S55: =Eingabe!$C$25+Eingabe!$E$25*'Berechnung Ratierlich 4%'!F55 -> 39 | T55: -39
A56: 46 | B56: 0.03 | C56: 0 | D56: 0 | E56: 0 | F56: 0 | G56: =IF(VLOOKUP(A56,Wechsel!$A$11:$E$31,1)=A56,VLOOKUP(A56,Wechsel!$A$11:$E$31,1),0) -> 0 | H56: =IF(G56>0,VLOOKUP(A56,Wechsel!$A$11:$E$31,3),H55) -> 0 | I56: =IF(G56>0,VLOOKUP(A56,Wechsel!$A$11:$E$31,4),I55) -> 0 | J56: =IF(G56>0,VLOOKUP(A56,Wechsel!$A$11:$E$31,5),J55) -> 1 | K56: 0 | L56: 11481.38215 | M56: 0 | N56: 1 | O56: 0 | P56: =MAX(P55-Eingabe!$E$28,0) -> 0 | Q56: 0 | R56: 0 | S56: =Eingabe!$C$25+Eingabe!$E$25*'Berechnung Ratierlich 4%'!F56 -> 39 | T56: -39
A57: 47 | B57: 0.03 | C57: 0 | D57: 0 | E57: 0 | F57: 0 | G57: =IF(VLOOKUP(A57,Wechsel!$A$11:$E$31,1)=A57,VLOOKUP(A57,Wechsel!$A$11:$E$31,1),0) -> 0 | H57: =IF(G57>0,VLOOKUP(A57,Wechsel!$A$11:$E$31,3),H56) -> 0 | I57: =IF(G57>0,VLOOKUP(A57,Wechsel!$A$11:$E$31,4),I56) -> 0 | J57: =IF(G57>0,VLOOKUP(A57,Wechsel!$A$11:$E$31,5),J56) -> 1 | K57: 0 | L57: 11481.38215 | M57: 0 | N57: 1 | O57: 0 | P57: =MAX(P56-Eingabe!$E$28,0) -> 0 | Q57: 0 | R57: 0 | S57: =Eingabe!$C$25+Eingabe!$E$25*'Berechnung Ratierlich 4%'!F57 -> 39 | T57: -39
A58: 48 | B58: 0.03 | C58: 0 | D58: 0 | E58: 0 | F58: 0 | G58: =IF(VLOOKUP(A58,Wechsel!$A$11:$E$31,1)=A58,VLOOKUP(A58,Wechsel!$A$11:$E$31,1),0) -> 0 | H58: =IF(G58>0,VLOOKUP(A58,Wechsel!$A$11:$E$31,3),H57) -> 0 | I58: =IF(G58>0,VLOOKUP(A58,Wechsel!$A$11:$E$31,4),I57) -> 0 | J58: =IF(G58>0,VLOOKUP(A58,Wechsel!$A$11:$E$31,5),J57) -> 1 | K58: 0 | L58: 11481.38215 | M58: 0 | N58: 1 | O58: 0 | P58: =MAX(P57-Eingabe!$E$28,0) -> 0 | Q58: 0 | R58: 0 | S58: =Eingabe!$C$25+Eingabe!$E$25*'Berechnung Ratierlich 4%'!F58 -> 39 | T58: -39
A59: 49 | B59: 0.03 | C59: 0 | D59: 0 | E59: 0 | F59: 0 | G59: =IF(VLOOKUP(A59,Wechsel!$A$11:$E$31,1)=A59,VLOOKUP(A59,Wechsel!$A$11:$E$31,1),0) -> 0 | H59: =IF(G59>0,VLOOKUP(A59,Wechsel!$A$11:$E$31,3),H58) -> 0 | I59: =IF(G59>0,VLOOKUP(A59,Wechsel!$A$11:$E$31,4),I58) -> 0 | J59: =IF(G59>0,VLOOKUP(A59,Wechsel!$A$11:$E$31,5),J58) -> 1 | K59: 0 | L59: 11481.38215 | M59: 0 | N59: 1 | O59: 0 | P59: =MAX(P58-Eingabe!$E$28,0) -> 0 | Q59: 0 | R59: 0 | S59: =Eingabe!$C$25+Eingabe!$E$25*'Berechnung Ratierlich 4%'!F59 -> 39 | T59: -39
A60: 50 | B60: 0.03 | C60: 0 | D60: 0 | E60: 0 | F60: 0 | G60: =IF(VLOOKUP(A60,Wechsel!$A$11:$E$31,1)=A60,VLOOKUP(A60,Wechsel!$A$11:$E$31,1),0) -> 0 | H60: =IF(G60>0,VLOOKUP(A60,Wechsel!$A$11:$E$31,3),H59) -> 0 | I60: =IF(G60>0,VLOOKUP(A60,Wechsel!$A$11:$E$31,4),I59) -> 0 | J60: =IF(G60>0,VLOOKUP(A60,Wechsel!$A$11:$E$31,5),J59) -> 1 | K60: 0 | L60: 11481.38215 | M60: 0 | N60: 1 | O60: 0 | P60: =MAX(P59-Eingabe!$E$28,0) -> 0 | Q60: 0 | R60: 0 | S60: =Eingabe!$C$25+Eingabe!$E$25*'Berechnung Ratierlich 4%'!F60 -> 39 | T60: -39
A61: 51 | B61: =$G$3*H60+$H$3*I60+$I$3*J60 -> 0.03 | C61: =IF($B$3>=A61,$B$2,0)/(1+B61) -> 0 | D61: =MAX(IF(A61>$B$3,0,T60),0) -> 0 | E61: =(C61+D61)*$B$1 -> 0 | F61: =IF(A61>$B$3,0,C61+E61+D61) -> 0 | G61: =IF(VLOOKUP(A61,Wechsel!$A$11:$E$31,1)=A61,VLOOKUP(A61,Wechsel!$A$11:$E$31,1),0) -> 0 | H61: =IF(G61>0,VLOOKUP(A61,Wechsel!$A$11:$E$31,3),H60) -> 0 | I61: =IF(G61>0,VLOOKUP(A61,Wechsel!$A$11:$E$31,4),I60) -> 0 | J61: =IF(G61>0,VLOOKUP(A61,Wechsel!$A$11:$E$31,5),J60) -> 1 | K61: =D61*$M$1*0.7*0.7*$M$2*H61+D61*$M$1*0.85*0.7*$M$2*I61+D61*$M$1*0.7*$M$2*J61 -> 0 | L61: =IF(G60>0,K61,K61+L60) -> 11481.38215 | M61: =IF(A61>$B$3,0,IF(G60>0,T60,C61+M60)) -> 0 | N61: =1-(H61*$G$5+I61*$H$5+J61*$I$5) -> 1 | O61: =IF(G61>0,(F61-M61)*N60,0) -> 0 | P61: =MAX(P60-Eingabe!$E$28,0) -> 0 | Q61: =MAX(0,K61+O61*$M$2-P61-IF(G61>0,-(L60+K61),0)) -> 0 | R61: =MAX(IF(G61>0,(H61*$G$4+I61*$H$4+J61*$I$4)*(F61-Q61),0),0) -> 0 | S61: =Eingabe!$C$25+Eingabe!$E$25*'Berechnung Ratierlich 4%'!F61 -> 39 | T61: =F61-Q61-R61-S61 -> -39
A62: 52 | B62: 0.03 | C62: 0 | D62: 0 | E62: 0 | F62: 0 | G62: =IF(VLOOKUP(A62,Wechsel!$A$11:$E$31,1)=A62,VLOOKUP(A62,Wechsel!$A$11:$E$31,1),0) -> 0 | H62: =IF(G62>0,VLOOKUP(A62,Wechsel!$A$11:$E$31,3),H61) -> 0 | I62: =IF(G62>0,VLOOKUP(A62,Wechsel!$A$11:$E$31,4),I61) -> 0 | J62: =IF(G62>0,VLOOKUP(A62,Wechsel!$A$11:$E$31,5),J61) -> 1 | K62: 0 | L62: 11481.38215 | M62: 0 | N62: 1 | O62: 0 | P62: =MAX(P61-Eingabe!$E$28,0) -> 0 | Q62: 0 | R62: 0 | S62: =Eingabe!$C$25+Eingabe!$E$25*'Berechnung Ratierlich 4%'!F62 -> 39 | T62: -39
A63: 53 | B63: 0.03 | C63: 0 | D63: 0 | E63: 0 | F63: 0 | G63: =IF(VLOOKUP(A63,Wechsel!$A$11:$E$31,1)=A63,VLOOKUP(A63,Wechsel!$A$11:$E$31,1),0) -> 0 | H63: =IF(G63>0,VLOOKUP(A63,Wechsel!$A$11:$E$31,3),H62) -> 0 | I63: =IF(G63>0,VLOOKUP(A63,Wechsel!$A$11:$E$31,4),I62) -> 0 | J63: =IF(G63>0,VLOOKUP(A63,Wechsel!$A$11:$E$31,5),J62) -> 1 | K63: 0 | L63: 11481.38215 | M63: 0 | N63: 1 | O63: 0 | P63: =MAX(P62-Eingabe!$E$28,0) -> 0 | Q63: 0 | R63: 0 | S63: =Eingabe!$C$25+Eingabe!$E$25*'Berechnung Ratierlich 4%'!F63 -> 39 | T63: -39
A64: 54 | B64: 0.03 | C64: 0 | D64: 0 | E64: 0 | F64: 0 | G64: =IF(VLOOKUP(A64,Wechsel!$A$11:$E$31,1)=A64,VLOOKUP(A64,Wechsel!$A$11:$E$31,1),0) -> 0 | H64: =IF(G64>0,VLOOKUP(A64,Wechsel!$A$11:$E$31,3),H63) -> 0 | I64: =IF(G64>0,VLOOKUP(A64,Wechsel!$A$11:$E$31,4),I63) -> 0 | J64: =IF(G64>0,VLOOKUP(A64,Wechsel!$A$11:$E$31,5),J63) -> 1 | K64: 0 | L64: 11481.38215 | M64: 0 | N64: 1 | O64: 0 | P64: =MAX(P63-Eingabe!$E$28,0) -> 0 | Q64: 0 | R64: 0 | S64: =Eingabe!$C$25+Eingabe!$E$25*'Berechnung Ratierlich 4%'!F64 -> 39 | T64: -39
A65: 55 | B65: 0.03 | C65: 0 | D65: 0 | E65: 0 | F65: 0 | G65: =IF(VLOOKUP(A65,Wechsel!$A$11:$E$31,1)=A65,VLOOKUP(A65,Wechsel!$A$11:$E$31,1),0) -> 0 | H65: =IF(G65>0,VLOOKUP(A65,Wechsel!$A$11:$E$31,3),H64) -> 0 | I65: =IF(G65>0,VLOOKUP(A65,Wechsel!$A$11:$E$31,4),I64) -> 0 | J65: =IF(G65>0,VLOOKUP(A65,Wechsel!$A$11:$E$31,5),J64) -> 1 | K65: 0 | L65: 11481.38215 | M65: 0 | N65: 1 | O65: 0 | P65: =MAX(P64-Eingabe!$E$28,0) -> 0 | Q65: 0 | R65: 0 | S65: =Eingabe!$C$25+Eingabe!$E$25*'Berechnung Ratierlich 4%'!F65 -> 39 | T65: -39
A66: 56 | B66: 0.03 | C66: 0 | D66: 0 | E66: 0 | F66: 0 | G66: =IF(VLOOKUP(A66,Wechsel!$A$11:$E$31,1)=A66,VLOOKUP(A66,Wechsel!$A$11:$E$31,1),0) -> 0 | H66: =IF(G66>0,VLOOKUP(A66,Wechsel!$A$11:$E$31,3),H65) -> 0 | I66: =IF(G66>0,VLOOKUP(A66,Wechsel!$A$11:$E$31,4),I65) -> 0 | J66: =IF(G66>0,VLOOKUP(A66,Wechsel!$A$11:$E$31,5),J65) -> 1 | K66: 0 | L66: 11481.38215 | M66: 0 | N66: 1 | O66: 0 | P66: =MAX(P65-Eingabe!$E$28,0) -> 0 | Q66: 0 | R66: 0 | S66: =Eingabe!$C$25+Eingabe!$E$25*'Berechnung Ratierlich 4%'!F66 -> 39 | T66: -39
A67: 57 | B67: 0.03 | C67: 0 | D67: 0 | E67: 0 | F67: 0 | G67: =IF(VLOOKUP(A67,Wechsel!$A$11:$E$31,1)=A67,VLOOKUP(A67,Wechsel!$A$11:$E$31,1),0) -> 0 | H67: =IF(G67>0,VLOOKUP(A67,Wechsel!$A$11:$E$31,3),H66) -> 0 | I67: =IF(G67>0,VLOOKUP(A67,Wechsel!$A$11:$E$31,4),I66) -> 0 | J67: =IF(G67>0,VLOOKUP(A67,Wechsel!$A$11:$E$31,5),J66) -> 1 | K67: 0 | L67: 11481.38215 | M67: 0 | N67: 1 | O67: 0 | P67: =MAX(P66-Eingabe!$E$28,0) -> 0 | Q67: 0 | R67: 0 | S67: =Eingabe!$C$25+Eingabe!$E$25*'Berechnung Ratierlich 4%'!F67 -> 39 | T67: -39
A68: 58 | B68: 0.03 | C68: 0 | D68: 0 | E68: 0 | F68: 0 | G68: =IF(VLOOKUP(A68,Wechsel!$A$11:$E$31,1)=A68,VLOOKUP(A68,Wechsel!$A$11:$E$31,1),0) -> 0 | H68: =IF(G68>0,VLOOKUP(A68,Wechsel!$A$11:$E$31,3),H67) -> 0 | I68: =IF(G68>0,VLOOKUP(A68,Wechsel!$A$11:$E$31,4),I67) -> 0 | J68: =IF(G68>0,VLOOKUP(A68,Wechsel!$A$11:$E$31,5),J67) -> 1 | K68: 0 | L68: 11481.38215 | M68: 0 | N68: 1 | O68: 0 | P68: =MAX(P67-Eingabe!$E$28,0) -> 0 | Q68: 0 | R68: 0 | S68: =Eingabe!$C$25+Eingabe!$E$25*'Berechnung Ratierlich 4%'!F68 -> 39 | T68: -39
A69: 59 | B69: 0.03 | C69: 0 | D69: 0 | E69: 0 | F69: 0 | G69: =IF(VLOOKUP(A69,Wechsel!$A$11:$E$31,1)=A69,VLOOKUP(A69,Wechsel!$A$11:$E$31,1),0) -> 0 | H69: =IF(G69>0,VLOOKUP(A69,Wechsel!$A$11:$E$31,3),H68) -> 0 | I69: =IF(G69>0,VLOOKUP(A69,Wechsel!$A$11:$E$31,4),I68) -> 0 | J69: =IF(G69>0,VLOOKUP(A69,Wechsel!$A$11:$E$31,5),J68) -> 1 | K69: 0 | L69: 11481.38215 | M69: 0 | N69: 1 | O69: 0 | P69: =MAX(P68-Eingabe!$E$28,0) -> 0 | Q69: 0 | R69: 0 | S69: =Eingabe!$C$25+Eingabe!$E$25*'Berechnung Ratierlich 4%'!F69 -> 39 | T69: -39
A70: 60 | B70: 0.03 | C70: 0 | D70: 0 | E70: 0 | F70: 0 | G70: =IF(VLOOKUP(A70,Wechsel!$A$11:$E$31,1)=A70,VLOOKUP(A70,Wechsel!$A$11:$E$31,1),0) -> 0 | H70: =IF(G70>0,VLOOKUP(A70,Wechsel!$A$11:$E$31,3),H69) -> 0 | I70: =IF(G70>0,VLOOKUP(A70,Wechsel!$A$11:$E$31,4),I69) -> 0 | J70: =IF(G70>0,VLOOKUP(A70,Wechsel!$A$11:$E$31,5),J69) -> 1 | K70: 0 | L70: 11481.38215 | M70: 0 | N70: 1 | O70: 0 | P70: =MAX(P69-Eingabe!$E$28,0) -> 0 | Q70: 0 | R70: 0 | S70: =Eingabe!$C$25+Eingabe!$E$25*'Berechnung Ratierlich 4%'!F70 -> 39 | T70: -39

Sheet Berechnung EB 2% (hidden)
A1: Rendite | B1: =Hilfe!E3-Hilfe!G16 -> 0.06 | F1: Ausgabeaufschlag | L1: Basiszins | M1: =MIN(2%,B1) -> 0.02
A2: Beitrag EB | B2: =Eingabe!C10 -> 250 | G2: Aktienfonds | H2: Mischfonds | I2: Rentenfonds / VVW | L2: Abgeltungssteuer | M2: ='Berechnung Ratierlich heute%'!M2 -> 0.26375
A3: Laufzeit | B3: =Eingabe!C9 -> 36 | F3: Ausgabeaufschlag | G3: =Eingabe!C21 -> 0.05 | H3: =Eingabe!E21 -> 0.04 | I3: =Eingabe!G21 -> 0.03
F4: Wechselgebühr | G4: =Eingabe!C22 -> 0.025 | H4: =Eingabe!E22 -> 0.02 | I4: =Eingabe!G22 -> 0.015 | J4: Ausgabe
F5: Freistellung | G5: 0.3 | H5: 0.15 | I5: 0 | J5: Jahr | K5: Jahresabschluss | L5: Beitragssumme | M5: zu versteuern % | N5: zu versteuern | O5: kumulierte Vorabpauschale | P5: Freistellungsauftrag | Q5: Auszahlung
J6: =B3 -> 36 | K6: =MAX(VLOOKUP(J6,A11:AD70,20,FALSE),0) -> 0 | L6: =MAX(VLOOKUP(J6,A11:AD70,13,FALSE),0) -> 0 | M6: =VLOOKUP(J6,A11:AD70,14,FALSE) -> 1 | N6: =(K6-L6)*M6 -> 0 | O6: =VLOOKUP(J6,A11:AD70,12,FALSE) -> -63.16782016 | P6: =VLOOKUP(J6,A11:AD70,16,FALSE) -> 0 | Q6: =K6-(N6-P6-O6)*M2 -> -16.66051257
A9: Jahr | B9: Ausgabeaufschlag | C9: Beitrag | D9: Vermögen Jahresanfang | E9: Rendite | F9: Gesamtvermögen | G9: Wechsel | H9: Anteil Aktienfonds | I9: Anteil Mischfonds | J9: Rentenfonds / VVW | K9: Vorabpauschale | L9: kumulierte Vorabpauschale | M9: Beitragssumme | N9: Freistellung | O9: Wechselbesteuerunganteil | P9: Freistellungsauftrag | Q9: Steuer | R9: Wechselkosten | S9: Depotkosten | T9: Jahresabschluss
A10: 0 | H10: =Eingabe!C18 -> 1 | I10: =Eingabe!E18 -> 0 | J10: =Eingabe!G18 -> 0
A11: 1 | B11: =$G$3*H10+$H$3*I10+$I$3*J10 -> 0.05 | C11: =IF($B$3>=A11,$B$2,0)/(1+B11) -> 238.0952381 | D11: =C11 -> 238.0952381 | E11: =C11*$B$1 -> 14.28571429 | F11: =C11+E11 -> 252.3809524 | G11: =VLOOKUP(A11,Wechsel!$A$11:$E$31,1) -> 0 | H11: =IF(G11>0,VLOOKUP(A11,Wechsel!$A$11:$E$31,3),H10) -> 1 | I11: =IF(G11>0,VLOOKUP(A11,Wechsel!$A$11:$E$31,4),I10) -> 0 | J11: =IF(G11>0,VLOOKUP(A11,Wechsel!$A$11:$E$31,5),J10) -> 0 | K11: =D11*$M$1*0.7*0.7*$M$2*H11+D11*$M$1*0.85*0.7*$M$2*I11+D11*$M$1*0.7*$M$2*J11 -> 0.6154166667 | L11: =K11+L10 -> 0.6154166667 | M11: =C11 -> 238.0952381 | N11: =1-(H11*$G$5+I11*$H$5+J11*$I$5) -> 0.7 | O11: =IF(G11>0,(F11-M11)*N11,0) -> 0 | P11: =MAX(Eingabe!C28,0) -> 0 | Q11: =MAX(0,K11+O11*$M$2-P11-IF(G11>0,-(L10+K11),0)) -> 0.6154166667 | R11: =MAX(IF(G11>0,(H11*$G$4+I11*$H$4+J11*$I$4)*F11,0),0) -> 0 | S11: =Eingabe!$C$25+Eingabe!$E$25*'Berechnung EB 2%'!F11 -> 39 | T11: =F11-Q11-R11-S11 -> 212.7655357
A12: 2 | B12: =$G$3*H11+$H$3*I11+$I$3*J11 -> 0.05 | C12: 0 | D12: =IF(A12>$B$3,0,T11) -> 212.7655357 | E12: =(C12+D12)*$B$1 -> 12.76593214 | F12: =IF(A12>$B$3,0,C12+E12+D12) -> 225.5314679 | G12: =IF(VLOOKUP(A12,Wechsel!$A$11:$E$31,1)=A12,VLOOKUP(A12,Wechsel!$A$11:$E$31,1),0) -> 0 | H12: =IF(G12>0,VLOOKUP(A12,Wechsel!$A$11:$E$31,3),H11) -> 1 | I12: =IF(G12>0,VLOOKUP(A12,Wechsel!$A$11:$E$31,4),I11) -> 0 | J12: =IF(G12>0,VLOOKUP(A12,Wechsel!$A$11:$E$31,5),J11) -> 0 | K12: =D12*$M$1*0.7*0.7*$M$2*H12+D12*$M$1*0.85*0.7*$M$2*I12+D12*$M$1*0.7*$M$2*J12 -> 0.5499457184 | L12: =IF(G11>0,K12,K12+L11) -> 1.165362385 | M12: =IF(A12>$B$3,0,IF(G11>0,T11,C12+M11)) -> 238.0952381 | N12: =1-(H12*$G$5+I12*$H$5+J12*$I$5) -> 0.7 | O12: =IF(G12>0,(F12-M12)*N11,0) -> 0 | P12: =MAX(P11-Eingabe!$E$28,0) -> 0 | Q12: =MAX(0,K12+O12*$M$2-P12-IF(G12>0,-(L11+K12),0)) -> 0.5499457184 | R12: =MAX(IF(G12>0,(H12*$G$4+I12*$H$4+J12*$I$4)*(F12-Q12),0),0) -> 0 | S12: =Eingabe!$C$25+Eingabe!$E$25*'Berechnung EB 2%'!F12 -> 39 | T12: =F12-Q12-R12-S12 -> 185.9815221
A13: 3 | B13: 0.05 | C13: 0 | D13: 185.9815221 | E13: 11.15889133 | F13: 197.1404135 | G13: =IF(VLOOKUP(A13,Wechsel!$A$11:$E$31,1)=A13,VLOOKUP(A13,Wechsel!$A$11:$E$31,1),0) -> 0 | H13: =IF(G13>0,VLOOKUP(A13,Wechsel!$A$11:$E$31,3),H12) -> 1 | I13: =IF(G13>0,VLOOKUP(A13,Wechsel!$A$11:$E$31,4),I12) -> 0 | J13: =IF(G13>0,VLOOKUP(A13,Wechsel!$A$11:$E$31,5),J12) -> 0 | K13: =D13*$M$1*0.7*0.7*$M$2*H13+D13*$M$1*0.85*0.7*$M$2*I13+D13*$M$1*0.7*$M$2*J13 -> 0.4807157393 | L13: =IF(G12>0,K13,K13+L12) -> 1.646078124 | M13: 238.0952381 | N13: 0.7 | O13: =IF(G13>0,(F13-M13)*N12,0) -> 0 | P13: =MAX(P12-Eingabe!$E$28,0) -> 0 | Q13: 0.4807157393 | R13: 0 | S13: =Eingabe!$C$25+Eingabe!$E$25*'Berechnung EB 2%'!F13 -> 39 | T13: 157.6596977
A14: 4 | B14: 0.05 | C14: 0 | D14: 157.6596977 | E14: 9.459581864 | F14: 167.1192796 | G14: =IF(VLOOKUP(A14,Wechsel!$A$11:$E$31,1)=A14,VLOOKUP(A14,Wechsel!$A$11:$E$31,1),0) -> 0 | H14: =IF(G14>0,VLOOKUP(A14,Wechsel!$A$11:$E$31,3),H13) -> 1 | I14: =IF(G14>0,VLOOKUP(A14,Wechsel!$A$11:$E$31,4),I13) -> 0 | J14: =IF(G14>0,VLOOKUP(A14,Wechsel!$A$11:$E$31,5),J13) -> 0 | K14: 0.4075109037 | L14: 2.053589028 | M14: 238.0952381 | N14: 0.7 | O14: 0 | P14: =MAX(P13-Eingabe!$E$28,0) -> 0 | Q14: 0.4075109037 | R14: 0 | S14: =Eingabe!$C$25+Eingabe!$E$25*'Berechnung EB 2%'!F14 -> 39 | T14: 127.7117687
A15: 5 | B15: 0.05 | C15: 0 | D15: 127.7117687 | E15: 7.662706121 | F15: 135.3744748 | G15: =IF(VLOOKUP(A15,Wechsel!$A$11:$E$31,1)=A15,VLOOKUP(A15,Wechsel!$A$11:$E$31,1),0) -> 0 | H15: =IF(G15>0,VLOOKUP(A15,Wechsel!$A$11:$E$31,3),H14) -> 1 | I15: =IF(G15>0,VLOOKUP(A15,Wechsel!$A$11:$E$31,4),I14) -> 0 | J15: =IF(G15>0,VLOOKUP(A15,Wechsel!$A$11:$E$31,5),J14) -> 0 | K15: 0.3301029941 | L15: 2.383692022 | M15: 238.0952381 | N15: 0.7 | O15: 0 | P15: =MAX(P14-Eingabe!$E$28,0) -> 0 | Q15: 0.3301029941 | R15: 0 | S15: =Eingabe!$C$25+Eingabe!$E$25*'Berechnung EB 2%'!F15 -> 39 | T15: 96.04437181
A16: 6 | B16: 0.05 | C16: 0 | D16: 96.04437181 | E16: 5.762662309 | F16: 101.8070341 | G16: =IF(VLOOKUP(A16,Wechsel!$A$11:$E$31,1)=A16,VLOOKUP(A16,Wechsel!$A$11:$E$31,1),0) -> 0 | H16: =IF(G16>0,VLOOKUP(A16,Wechsel!$A$11:$E$31,3),H15) -> 1 | I16: =IF(G16>0,VLOOKUP(A16,Wechsel!$A$11:$E$31,4),I15) -> 0 | J16: =IF(G16>0,VLOOKUP(A16,Wechsel!$A$11:$E$31,5),J15) -> 0 | K16: 0.24825069 | L16: 2.631942712 | M16: 238.0952381 | N16: 0.7 | O16: 0 | P16: =MAX(P15-Eingabe!$E$28,0) -> 0 | Q16: 0.24825069 | R16: 0 | S16: =Eingabe!$C$25+Eingabe!$E$25*'Berechnung EB 2%'!F16 -> 39 | T16: 62.55878343
A17: 7 | B17: 0.05 | C17: 0 | D17: 62.55878343 | E17: 3.753527006 | F17: 66.31231044 | G17: =IF(VLOOKUP(A17,Wechsel!$A$11:$E$31,1)=A17,VLOOKUP(A17,Wechsel!$A$11:$E$31,1),0) -> 0 | H17: =IF(G17>0,VLOOKUP(A17,Wechsel!$A$11:$E$31,3),H16) -> 1 | I17: =IF(G17>0,VLOOKUP(A17,Wechsel!$A$11:$E$31,4),I16) -> 0 | J17: =IF(G17>0,VLOOKUP(A17,Wechsel!$A$11:$E$31,5),J16) -> 0 | K17: 0.1616988155 | L17: 2.793641528 | M17: 238.0952381 | N17: 0.7 | O17: 0 | P17: =MAX(P16-Eingabe!$E$28,0) -> 0 | Q17: 0.1616988155 | R17: 0 | S17: =Eingabe!$C$25+Eingabe!$E$25*'Berechnung EB 2%'!F17 -> 39 | T17: 27.15061162
A18: 8 | B18: 0.05 | C18: 0 | D18: 27.15061162 | E18: 1.629036697 | F18: 28.77964832 | G18: =IF(VLOOKUP(A18,Wechsel!$A$11:$E$31,1)=A18,VLOOKUP(A18,Wechsel!$A$11:$E$31,1),0) -> 0 | H18: =IF(G18>0,VLOOKUP(A18,Wechsel!$A$11:$E$31,3),H17) -> 1 | I18: =IF(G18>0,VLOOKUP(A18,Wechsel!$A$11:$E$31,4),I17) -> 0 | J18: =IF(G18>0,VLOOKUP(A18,Wechsel!$A$11:$E$31,5),J17) -> 0 | K18: 0.0701775434 | L18: 2.863819071 | M18: 238.0952381 | N18: 0.7 | O18: 0 | P18: =MAX(P17-Eingabe!$E$28,0) -> 0 | Q18: 0.0701775434 | R18: 0 | S18: =Eingabe!$C$25+Eingabe!$E$25*'Berechnung EB 2%'!F18 -> 39 | T18: -10.29052922
A19: 9 | B19: 0.05 | C19: 0 | D19: -10.29052922 | E19: -0.6174317533 | F19: -10.90796098 | G19: =IF(VLOOKUP(A19,Wechsel!$A$11:$E$31,1)=A19,VLOOKUP(A19,Wechsel!$A$11:$E$31,1),0) -> 9 | H19: =IF(G19>0,VLOOKUP(A19,Wechsel!$A$11:$E$31,3),H18) -> 0.6666666667 | I19: =IF(G19>0,VLOOKUP(A19,Wechsel!$A$11:$E$31,4),I18) -> 0 | J19: =IF(G19>0,VLOOKUP(A19,Wechsel!$A$11:$E$31,5),J18) -> 0.3333333333 | K19: -0.03039822332 | L19: 2.833420848 | M19: 238.0952381 | N19: 0.8 | O19: -174.3022393 | P19: =MAX(P18-Eingabe!$E$28,0) -> 0 | Q19: 0 | R19: =MAX(IF(G19>0,(H19*$G$4+I19*$H$4+J19*$I$4)*(F19-Q19),0),0) -> 0 | S19: =Eingabe!$C$25+Eingabe!$E$25*'Berechnung EB 2%'!F19 -> 39 | T19: -49.90796098
A20: 10 | B20: 0.04333333333 | C20: 0 | D20: -49.90796098 | E20: -2.994477659 | F20: -52.90243863 | G20: =IF(VLOOKUP(A20,Wechsel!$A$11:$E$31,1)=A20,VLOOKUP(A20,Wechsel!$A$11:$E$31,1),0) -> 0 | H20: =IF(G20>0,VLOOKUP(A20,Wechsel!$A$11:$E$31,3),H19) -> 0.6666666667 | I20: =IF(G20>0,VLOOKUP(A20,Wechsel!$A$11:$E$31,4),I19) -> 0 | J20: =IF(G20>0,VLOOKUP(A20,Wechsel!$A$11:$E$31,5),J19) -> 0.3333333333 | K20: -0.1474281167 | L20: -0.1474281167 | M20: -49.90796098 | N20: 0.8 | O20: 0 | P20: =MAX(P19-Eingabe!$E$28,0) -> 0 | Q20: 0 | R20: =MAX(IF(G20>0,(H20*$G$4+I20*$H$4+J20*$I$4)*(F20-Q20),0),0) -> 0 | S20: =Eingabe!$C$25+Eingabe!$E$25*'Berechnung EB 2%'!F20 -> 39 | T20: -91.90243863
A21: 11 | B21: 0.04333333333 | C21: 0 | D21: -91.90243863 | E21: -5.514146318 | F21: -97.41658495 | G21: =IF(VLOOKUP(A21,Wechsel!$A$11:$E$31,1)=A21,VLOOKUP(A21,Wechsel!$A$11:$E$31,1),0) -> 0 | H21: =IF(G21>0,VLOOKUP(A21,Wechsel!$A$11:$E$31,3),H20) -> 0.6666666667 | I21: =IF(G21>0,VLOOKUP(A21,Wechsel!$A$11:$E$31,4),I20) -> 0 | J21: =IF(G21>0,VLOOKUP(A21,Wechsel!$A$11:$E$31,5),J20) -> 0.3333333333 | K21: -0.2714798037 | L21: -0.4189079204 | M21: -49.90796098 | N21: 0.8 | O21: 0 | P21: =MAX(P20-Eingabe!$E$28,0) -> 0 | Q21: 0 | R21: 0 | S21: =Eingabe!$C$25+Eingabe!$E$25*'Berechnung EB 2%'!F21 -> 39 | T21: -136.416585
A22: 12 | B22: 0.04333333333 | C22: 0 | D22: -136.416585 | E22: -8.184995097 | F22: -144.60158 | G22: =IF(VLOOKUP(A22,Wechsel!$A$11:$E$31,1)=A22,VLOOKUP(A22,Wechsel!$A$11:$E$31,1),0) -> 0 | H22: =IF(G22>0,VLOOKUP(A22,Wechsel!$A$11:$E$31,3),H21) -> 0.6666666667 | I22: =IF(G22>0,VLOOKUP(A22,Wechsel!$A$11:$E$31,4),I21) -> 0 | J22: =IF(G22>0,VLOOKUP(A22,Wechsel!$A$11:$E$31,5),J21) -> 0.3333333333 | K22: -0.4029745919 | L22: -0.8218825124 | M22: -49.90796098 | N22: 0.8 | O22: 0 | P22: =MAX(P21-Eingabe!$E$28,0) -> 0 | Q22: 0 | R22: 0 | S22: =Eingabe!$C$25+Eingabe!$E$25*'Berechnung EB 2%'!F22 -> 39 | T22: -183.60158
A23: 13 | B23: 0.04333333333 | C23: 0 | D23: -183.60158 | E23: -11.0160948 | F23: -194.6176749 | G23: =IF(VLOOKUP(A23,Wechsel!$A$11:$E$31,1)=A23,VLOOKUP(A23,Wechsel!$A$11:$E$31,1),0) -> 0 | H23: =IF(G23>0,VLOOKUP(A23,Wechsel!$A$11:$E$31,3),H22) -> 0.6666666667 | I23: =IF(G23>0,VLOOKUP(A23,Wechsel!$A$11:$E$31,4),I22) -> 0 | J23: =IF(G23>0,VLOOKUP(A23,Wechsel!$A$11:$E$31,5),J22) -> 0.3333333333 | K23: -0.5423590675 | L23: -1.36424158 | M23: -49.90796098 | N23: 0.8 | O23: 0 | P23: =MAX(P22-Eingabe!$E$28,0) -> 0 | Q23: 0 | R23: 0 | S23: =Eingabe!$C$25+Eingabe!$E$25*'Berechnung EB 2%'!F23 -> 39 | T23: -233.6176749
A24: 14 | B24: 0.04333333333 | C24: 0 | D24: -233.6176749 | E24: -14.01706049 | F24: -247.6347353 | G24: =IF(VLOOKUP(A24,Wechsel!$A$11:$E$31,1)=A24,VLOOKUP(A24,Wechsel!$A$11:$E$31,1),0) -> 0 | H24: =IF(G24>0,VLOOKUP(A24,Wechsel!$A$11:$E$31,3),H23) -> 0.6666666667 | I24: =IF(G24>0,VLOOKUP(A24,Wechsel!$A$11:$E$31,4),I23) -> 0 | J24: =IF(G24>0,VLOOKUP(A24,Wechsel!$A$11:$E$31,5),J23) -> 0.3333333333 | K24: -0.6901066115 | L24: -2.054348191 | M24: -49.90796098 | N24: 0.8 | O24: 0 | P24: =MAX(P23-Eingabe!$E$28,0) -> 0 | Q24: 0 | R24: 0 | S24: =Eingabe!$C$25+Eingabe!$E$25*'Berechnung EB 2%'!F24 -> 39 | T24: -286.6347353
A25: 15 | B25: 0.04333333333 | C25: 0 | D25: -286.6347353 | E25: -17.19808412 | F25: -303.8328195 | G25: =IF(VLOOKUP(A25,Wechsel!$A$11:$E$31,1)=A25,VLOOKUP(A25,Wechsel!$A$11:$E$31,1),0) -> 0 | H25: =IF(G25>0,VLOOKUP(A25,Wechsel!$A$11:$E$31,3),H24) -> 0.6666666667 | I25: =IF(G25>0,VLOOKUP(A25,Wechsel!$A$11:$E$31,4),I24) -> 0 | J25: =IF(G25>0,VLOOKUP(A25,Wechsel!$A$11:$E$31,5),J24) -> 0.3333333333 | K25: -0.8467190082 | L25: -2.9010672 | M25: -49.90796098 | N25: 0.8 | O25: 0 | P25: =MAX(P24-Eingabe!$E$28,0) -> 0 | Q25: 0 | R25: 0 | S25: =Eingabe!$C$25+Eingabe!$E$25*'Berechnung EB 2%'!F25 -> 39 | T25: -342.8328195
A26: 16 | B26: 0.04333333333 | C26: 0 | D26: -342.8328195 | E26: -20.56996917 | F26: -363.4027886 | G26: =IF(VLOOKUP(A26,Wechsel!$A$11:$E$31,1)=A26,VLOOKUP(A26,Wechsel!$A$11:$E$31,1),0) -> 0 | H26: =IF(G26>0,VLOOKUP(A26,Wechsel!$A$11:$E$31,3),H25) -> 0.6666666667 | I26: =IF(G26>0,VLOOKUP(A26,Wechsel!$A$11:$E$31,4),I25) -> 0 | J26: =IF(G26>0,VLOOKUP(A26,Wechsel!$A$11:$E$31,5),J25) -> 0.3333333333 | K26: -1.012728149 | L26: -3.913795348 | M26: -49.90796098 | N26: 0.8 | O26: 0 | P26: =MAX(P25-Eingabe!$E$28,0) -> 0 | Q26: 0 | R26: 0 | S26: =Eingabe!$C$25+Eingabe!$E$25*'Berechnung EB 2%'!F26 -> 39 | T26: -402.4027886
A27: 17 | B27: 0.04333333333 | C27: 0 | D27: -402.4027886 | E27: -24.14416732 | F27: -426.5469559 | G27: =IF(VLOOKUP(A27,Wechsel!$A$11:$E$31,1)=A27,VLOOKUP(A27,Wechsel!$A$11:$E$31,1),0) -> 0 | H27: =IF(G27>0,VLOOKUP(A27,Wechsel!$A$11:$E$31,3),H26) -> 0.6666666667 | I27: =IF(G27>0,VLOOKUP(A27,Wechsel!$A$11:$E$31,4),I26) -> 0 | J27: =IF(G27>0,VLOOKUP(A27,Wechsel!$A$11:$E$31,5),J26) -> 0.3333333333 | K27: -1.188697838 | L27: -5.102493186 | M27: -49.90796098 | N27: 0.8 | O27: 0 | P27: =MAX(P26-Eingabe!$E$28,0) -> 0 | Q27: 0 | R27: 0 | S27: =Eingabe!$C$25+Eingabe!$E$25*'Berechnung EB 2%'!F27 -> 39 | T27: -465.5469559
A28: 18 | B28: 0.04333333333 | C28: 0 | D28: -465.5469559 | E28: -27.93281736 | F28: -493.4797733 | G28: =IF(VLOOKUP(A28,Wechsel!$A$11:$E$31,1)=A28,VLOOKUP(A28,Wechsel!$A$11:$E$31,1),0) -> 18 | H28: =IF(G28>0,VLOOKUP(A28,Wechsel!$A$11:$E$31,3),H27) -> 0.3333333333 | I28: =IF(G28>0,VLOOKUP(A28,Wechsel!$A$11:$E$31,4),I27) -> 0 | J28: =IF(G28>0,VLOOKUP(A28,Wechsel!$A$11:$E$31,5),J27) -> 0.6666666667 | K28: -1.547128921 | L28: -6.649622107 | M28: -49.90796098 | N28: 0.9 | O28: -354.8574499 | P28: =MAX(P27-Eingabe!$E$28,0) -> 0 | Q28: 0 | R28: 0 | S28: =Eingabe!$C$25+Eingabe!$E$25*'Berechnung EB 2%'!F28 -> 39 | T28: -532.4797733
A29: 19 | B29: 0.03666666667 | C29: 0 | D29: -532.4797733 | E29: -31.9487864 | F29: -564.4285597 | G29: =IF(VLOOKUP(A29,Wechsel!$A$11:$E$31,1)=A29,VLOOKUP(A29,Wechsel!$A$11:$E$31,1),0) -> 0 | H29: =IF(G29>0,VLOOKUP(A29,Wechsel!$A$11:$E$31,3),H28) -> 0.3333333333 | I29: =IF(G29>0,VLOOKUP(A29,Wechsel!$A$11:$E$31,4),I28) -> 0 | J29: =IF(G29>0,VLOOKUP(A29,Wechsel!$A$11:$E$31,5),J28) -> 0.6666666667 | K29: -1.769563407 | L29: -1.769563407 | M29: -532.4797733 | N29: 0.9 | O29: 0 | P29: =MAX(P28-Eingabe!$E$28,0) -> 0 | Q29: 0 | R29: 0 | S29: =Eingabe!$C$25+Eingabe!$E$25*'Berechnung EB 2%'!F29 -> 39 | T29: -603.4285597
A30: 20 | B30: 0.03666666667 | C30: 0 | D30: -603.4285597 | E30: -36.20571358 | F30: -639.6342733 | G30: =IF(VLOOKUP(A30,Wechsel!$A$11:$E$31,1)=A30,VLOOKUP(A30,Wechsel!$A$11:$E$31,1),0) -> 0 | H30: =IF(G30>0,VLOOKUP(A30,Wechsel!$A$11:$E$31,3),H29) -> 0.3333333333 | I30: =IF(G30>0,VLOOKUP(A30,Wechsel!$A$11:$E$31,4),I29) -> 0 | J30: =IF(G30>0,VLOOKUP(A30,Wechsel!$A$11:$E$31,5),J29) -> 0.6666666667 | K30: -2.005343961 | L30: -3.774907368 | M30: -532.4797733 | N30: 0.9 | O30: 0 | P30: =MAX(P29-Eingabe!$E$28,0) -> 0 | Q30: 0 | R30: 0 | S30: =Eingabe!$C$25+Eingabe!$E$25*'Berechnung EB 2%'!F30 -> 39 | T30: -678.6342733
A31: 21 | B31: 0.03666666667 | C31: 0 | D31: -678.6342733 | E31: -40.7180564 | F31: -719.3523297 | G31: =IF(VLOOKUP(A31,Wechsel!$A$11:$E$31,1)=A31,VLOOKUP(A31,Wechsel!$A$11:$E$31,1),0) -> 0 | H31: =IF(G31>0,VLOOKUP(A31,Wechsel!$A$11:$E$31,3),H30) -> 0.3333333333 | I31: =IF(G31>0,VLOOKUP(A31,Wechsel!$A$11:$E$31,4),I30) -> 0 | J31: =IF(G31>0,VLOOKUP(A31,Wechsel!$A$11:$E$31,5),J30) -> 0.6666666667 | K31: -2.255271349 | L31: -6.030178716 | M31: -532.4797733 | N31: 0.9 | O31: 0 | P31: =MAX(P30-Eingabe!$E$28,0) -> 0 | Q31: 0 | R31: 0 | S31: =Eingabe!$C$25+Eingabe!$E$25*'Berechnung EB 2%'!F31 -> 39 | T31: -758.3523297
A32: 22 | B32: 0.03666666667 | C32: 0 | D32: -758.3523297 | E32: -45.50113978 | F32: -803.8534695 | G32: =IF(VLOOKUP(A32,Wechsel!$A$11:$E$31,1)=A32,VLOOKUP(A32,Wechsel!$A$11:$E$31,1),0) -> 0 | H32: =IF(G32>0,VLOOKUP(A32,Wechsel!$A$11:$E$31,3),H31) -> 0.3333333333 | I32: =IF(G32>0,VLOOKUP(A32,Wechsel!$A$11:$E$31,4),I31) -> 0 | J32: =IF(G32>0,VLOOKUP(A32,Wechsel!$A$11:$E$31,5),J31) -> 0.6666666667 | K32: -2.52019438 | L32: -8.550373096 | M32: -532.4797733 | N32: 0.9 | O32: 0 | P32: =MAX(P31-Eingabe!$E$28,0) -> 0 | Q32: 0 | R32: 0 | S32: =Eingabe!$C$25+Eingabe!$E$25*'Berechnung EB 2%'!F32 -> 39 | T32: -842.8534695
A33: 23 | B33: 0.03666666667 | C33: 0 | D33: -842.8534695 | E33: -50.57120817 | F33: -893.4246776 | G33: =IF(VLOOKUP(A33,Wechsel!$A$11:$E$31,1)=A33,VLOOKUP(A33,Wechsel!$A$11:$E$31,1),0) -> 0 | H33: =IF(G33>0,VLOOKUP(A33,Wechsel!$A$11:$E$31,3),H32) -> 0.3333333333 | I33: =IF(G33>0,VLOOKUP(A33,Wechsel!$A$11:$E$31,4),I32) -> 0 | J33: =IF(G33>0,VLOOKUP(A33,Wechsel!$A$11:$E$31,5),J32) -> 0.6666666667 | K33: -2.801012792 | L33: -11.35138589 | M33: -532.4797733 | N33: 0.9 | O33: 0 | P33: =MAX(P32-Eingabe!$E$28,0) -> 0 | Q33: 0 | R33: 0 | S33: =Eingabe!$C$25+Eingabe!$E$25*'Berechnung EB 2%'!F33 -> 39 | T33: -932.4246776
A34: 24 | B34: 0.03666666667 | C34: 0 | D34: -932.4246776 | E34: -55.94548066 | F34: -988.3701583 | G34: =IF(VLOOKUP(A34,Wechsel!$A$11:$E$31,1)=A34,VLOOKUP(A34,Wechsel!$A$11:$E$31,1),0) -> 0 | H34: =IF(G34>0,VLOOKUP(A34,Wechsel!$A$11:$E$31,3),H33) -> 0.3333333333 | I34: =IF(G34>0,VLOOKUP(A34,Wechsel!$A$11:$E$31,4),I33) -> 0 | J34: =IF(G34>0,VLOOKUP(A34,Wechsel!$A$11:$E$31,5),J33) -> 0.6666666667 | K34: -3.09868031 | L34: -14.4500662 | M34: -532.4797733 | N34: 0.9 | O34: 0 | P34: =MAX(P33-Eingabe!$E$28,0) -> 0 | Q34: 0 | R34: 0 | S34: =Eingabe!$C$25+Eingabe!$E$25*'Berechnung EB 2%'!F34 -> 39 | T34: -1027.370158
A35: 25 | B35: 0.03666666667 | C35: 0 | D35: -1027.370158 | E35: -61.6422095 | F35: -1089.012368 | G35: =IF(VLOOKUP(A35,Wechsel!$A$11:$E$31,1)=A35,VLOOKUP(A35,Wechsel!$A$11:$E$31,1),0) -> 0 | H35: =IF(G35>0,VLOOKUP(A35,Wechsel!$A$11:$E$31,3),H34) -> 0.3333333333 | I35: =IF(G35>0,VLOOKUP(A35,Wechsel!$A$11:$E$31,4),I34) -> 0 | J35: =IF(G35>0,VLOOKUP(A35,Wechsel!$A$11:$E$31,5),J34) -> 0.6666666667 | K35: -3.414207879 | L35: -17.86427408 | M35: -532.4797733 | N35: 0.9 | O35: 0 | P35: =MAX(P34-Eingabe!$E$28,0) -> 0 | Q35: 0 | R35: 0 | S35: =Eingabe!$C$25+Eingabe!$E$25*'Berechnung EB 2%'!F35 -> 39 | T35: -1128.012368
A36: 26 | B36: 0.03666666667 | C36: 0 | D36: -1128.012368 | E36: -67.68074207 | F36: -1195.69311 | G36: =IF(VLOOKUP(A36,Wechsel!$A$11:$E$31,1)=A36,VLOOKUP(A36,Wechsel!$A$11:$E$31,1),0) -> 0 | H36: =IF(G36>0,VLOOKUP(A36,Wechsel!$A$11:$E$31,3),H35) -> 0.3333333333 | I36: =IF(G36>0,VLOOKUP(A36,Wechsel!$A$11:$E$31,4),I35) -> 0 | J36: =IF(G36>0,VLOOKUP(A36,Wechsel!$A$11:$E$31,5),J35) -> 0.6666666667 | K36: -3.748667101 | L36: -21.61294118 | M36: -532.4797733 | N36: 0.9 | O36: 0 | P36: =MAX(P35-Eingabe!$E$28,0) -> 0 | Q36: 0 | R36: 0 | S36: =Eingabe!$C$25+Eingabe!$E$25*'Berechnung EB 2%'!F36 -> 39 | T36: -1234.69311
A37: 27 | B37: 0.03666666667 | C37: 0 | D37: -1234.69311 | E37: -74.08158659 | F37: -1308.774696 | G37: =IF(VLOOKUP(A37,Wechsel!$A$11:$E$31,1)=A37,VLOOKUP(A37,Wechsel!$A$11:$E$31,1),0) -> 27 | H37: =IF(G37>0,VLOOKUP(A37,Wechsel!$A$11:$E$31,3),H36) -> 0 | I37: =IF(G37>0,VLOOKUP(A37,Wechsel!$A$11:$E$31,4),I36) -> 0 | J37: =IF(G37>0,VLOOKUP(A37,Wechsel!$A$11:$E$31,5),J36) -> 1 | K37: -4.559104308 | L37: -26.17204549 | M37: -532.4797733 | N37: 1 | O37: -698.6654308 | P37: =MAX(P36-Eingabe!$E$28,0) -> 0 | Q37: 0 | R37: 0 | S37: =Eingabe!$C$25+Eingabe!$E$25*'Berechnung EB 2%'!F37 -> 39 | T37: -1347.774696
A38: 28 | B38: 0.03 | C38: 0 | D38: -1347.774696 | E38: -80.86648179 | F38: -1428.641178 | G38: =IF(VLOOKUP(A38,Wechsel!$A$11:$E$31,1)=A38,VLOOKUP(A38,Wechsel!$A$11:$E$31,1),0) -> 0 | H38: =IF(G38>0,VLOOKUP(A38,Wechsel!$A$11:$E$31,3),H37) -> 0 | I38: =IF(G38>0,VLOOKUP(A38,Wechsel!$A$11:$E$31,4),I37) -> 0 | J38: =IF(G38>0,VLOOKUP(A38,Wechsel!$A$11:$E$31,5),J37) -> 1 | K38: -4.976658067 | L38: -4.976658067 | M38: -1347.774696 | N38: 1 | O38: 0 | P38: =MAX(P37-Eingabe!$E$28,0) -> 0 | Q38: 0 | R38: 0 | S38: =Eingabe!$C$25+Eingabe!$E$25*'Berechnung EB 2%'!F38 -> 39 | T38: -1467.641178
A39: 29 | B39: 0.03 | C39: 0 | D39: -1467.641178 | E39: -88.05847069 | F39: -1555.699649 | G39: =IF(VLOOKUP(A39,Wechsel!$A$11:$E$31,1)=A39,VLOOKUP(A39,Wechsel!$A$11:$E$31,1),0) -> 0 | H39: =IF(G39>0,VLOOKUP(A39,Wechsel!$A$11:$E$31,3),H38) -> 0 | I39: =IF(G39>0,VLOOKUP(A39,Wechsel!$A$11:$E$31,4),I38) -> 0 | J39: =IF(G39>0,VLOOKUP(A39,Wechsel!$A$11:$E$31,5),J38) -> 1 | K39: -5.419265051 | L39: -10.39592312 | M39: -1347.774696 | N39: =1-(H39*$G$5+I39*$H$5+J39*$I$5) -> 1 | O39: 0 | P39: =MAX(P38-Eingabe!$E$28,0) -> 0 | Q39: 0 | R39: 0 | S39: =Eingabe!$C$25+Eingabe!$E$25*'Berechnung EB 2%'!F39 -> 39 | T39: -1594.699649
A40: 30 | B40: 0.03 | C40: 0 | D40: -1594.699649 | E40: -95.68197894 | F40: -1690.381628 | G40: =IF(VLOOKUP(A40,Wechsel!$A$11:$E$31,1)=A40,VLOOKUP(A40,Wechsel!$A$11:$E$31,1),0) -> 0 | H40: =IF(G40>0,VLOOKUP(A40,Wechsel!$A$11:$E$31,3),H39) -> 0 | I40: =IF(G40>0,VLOOKUP(A40,Wechsel!$A$11:$E$31,4),I39) -> 0 | J40: =IF(G40>0,VLOOKUP(A40,Wechsel!$A$11:$E$31,5),J39) -> 1 | K40: -5.888428454 | L40: -16.28435157 | M40: -1347.774696 | N40: 1 | O40: 0 | P40: =MAX(P39-Eingabe!$E$28,0) -> 0 | Q40: 0 | R40: 0 | S40: =Eingabe!$C$25+Eingabe!$E$25*'Berechnung EB 2%'!F40 -> 39 | T40: -1729.381628
A41: 31 | B41: 0.03 | C41: 0 | D41: -1729.381628 | E41: -103.7628977 | F41: -1833.144526 | G41: =IF(VLOOKUP(A41,Wechsel!$A$11:$E$31,1)=A41,VLOOKUP(A41,Wechsel!$A$11:$E$31,1),0) -> 0 | H41: =IF(G41>0,VLOOKUP(A41,Wechsel!$A$11:$E$31,3),H40) -> 0 | I41: =IF(G41>0,VLOOKUP(A41,Wechsel!$A$11:$E$31,4),I40) -> 0 | J41: =IF(G41>0,VLOOKUP(A41,Wechsel!$A$11:$E$31,5),J40) -> 1 | K41: -6.385741661 | L41: -22.67009323 | M41: -1347.774696 | N41: 1 | O41: 0 | P41: =MAX(P40-Eingabe!$E$28,0) -> 0 | Q41: 0 | R41: 0 | S41: =Eingabe!$C$25+Eingabe!$E$25*'Berechnung EB 2%'!F41 -> 39 | T41: -1872.144526
A42: 32 | B42: 0.03 | C42: 0 | D42: -1872.144526 | E42: -112.3286715 | F42: -1984.473197 | G42: =IF(VLOOKUP(A42,Wechsel!$A$11:$E$31,1)=A42,VLOOKUP(A42,Wechsel!$A$11:$E$31,1),0) -> 0 | H42: =IF(G42>0,VLOOKUP(A42,Wechsel!$A$11:$E$31,3),H41) -> 0 | I42: =IF(G42>0,VLOOKUP(A42,Wechsel!$A$11:$E$31,4),I41) -> 0 | J42: =IF(G42>0,VLOOKUP(A42,Wechsel!$A$11:$E$31,5),J41) -> 1 | K42: -6.912893661 | L42: -29.58298689 | M42: -1347.774696 | N42: 1 | O42: 0 | P42: =MAX(P41-Eingabe!$E$28,0) -> 0 | Q42: 0 | R42: 0 | S42: =Eingabe!$C$25+Eingabe!$E$25*'Berechnung EB 2%'!F42 -> 39 | T42: -2023.473197
A43: 33 | B43: 0.03 | C43: 0 | D43: -2023.473197 | E43: -121.4083918 | F43: -2144.881589 | G43: =IF(VLOOKUP(A43,Wechsel!$A$11:$E$31,1)=A43,VLOOKUP(A43,Wechsel!$A$11:$E$31,1),0) -> 0 | H43: =IF(G43>0,VLOOKUP(A43,Wechsel!$A$11:$E$31,3),H42) -> 0 | I43: =IF(G43>0,VLOOKUP(A43,Wechsel!$A$11:$E$31,4),I42) -> 0 | J43: =IF(G43>0,VLOOKUP(A43,Wechsel!$A$11:$E$31,5),J42) -> 1 | K43: -7.47167478 | L43: -37.05466167 | M43: -1347.774696 | N43: 1 | O43: 0 | P43: =MAX(P42-Eingabe!$E$28,0) -> 0 | Q43: 0 | R43: 0 | S43: =Eingabe!$C$25+Eingabe!$E$25*'Berechnung EB 2%'!F43 -> 39 | T43: -2183.881589
A44: 34 | B44: 0.03 | C44: 0 | D44: =IF(A44>$B$3,0,T43) -> -2183.881589 | E44: =(C44+D44)*$B$1 -> -131.0328953 | F44: =IF(A44>$B$3,0,C44+E44+D44) -> -2314.914484 | G44: =IF(VLOOKUP(A44,Wechsel!$A$11:$E$31,1)=A44,VLOOKUP(A44,Wechsel!$A$11:$E$31,1),0) -> 0 | H44: =IF(G44>0,VLOOKUP(A44,Wechsel!$A$11:$E$31,3),H43) -> 0 | I44: =IF(G44>0,VLOOKUP(A44,Wechsel!$A$11:$E$31,4),I43) -> 0 | J44: =IF(G44>0,VLOOKUP(A44,Wechsel!$A$11:$E$31,5),J43) -> 1 | K44: -8.063982767 | L44: -45.11864444 | M44: =IF(A44>$B$3,0,IF(G43>0,T43,C44+M43)) -> -1347.774696 | N44: 1 | O44: 0 | P44: =MAX(P43-Eingabe!$E$28,0) -> 0 | Q44: 0 | R44: 0 | S44: =Eingabe!$C$25+Eingabe!$E$25*'Berechnung EB 2%'!F44 -> 39 | T44: -2353.914484
A45: 35 | B45: 0.03 | C45: 0 | D45: -2353.914484 | E45: -141.2348691 | F45: -2495.149353 | G45: =IF(VLOOKUP(A45,Wechsel!$A$11:$E$31,1)=A45,VLOOKUP(A45,Wechsel!$A$11:$E$31,1),0) -> 0 | H45: =IF(G45>0,VLOOKUP(A45,Wechsel!$A$11:$E$31,3),H44) -> 0 | I45: =IF(G45>0,VLOOKUP(A45,Wechsel!$A$11:$E$31,4),I44) -> 0 | J45: =IF(G45>0,VLOOKUP(A45,Wechsel!$A$11:$E$31,5),J44) -> 1 | K45: -8.691829233 | L45: -53.81047367 | M45: -1347.774696 | N45: 1 | O45: 0 | P45: =MAX(P44-Eingabe!$E$28,0) -> 0 | Q45: 0 | R45: 0 | S45: =Eingabe!$C$25+Eingabe!$E$25*'Berechnung EB 2%'!F45 -> 39 | T45: -2534.149353
A46: 36 | B46: 0.03 | C46: 0 | D46: -2534.149353 | E46: -152.0489612 | F46: -2686.198314 | G46: =IF(VLOOKUP(A46,Wechsel!$A$11:$E$31,1)=A46,VLOOKUP(A46,Wechsel!$A$11:$E$31,1),0) -> 0 | H46: =IF(G46>0,VLOOKUP(A46,Wechsel!$A$11:$E$31,3),H45) -> 0 | I46: =IF(G46>0,VLOOKUP(A46,Wechsel!$A$11:$E$31,4),I45) -> 0 | J46: =IF(G46>0,VLOOKUP(A46,Wechsel!$A$11:$E$31,5),J45) -> 1 | K46: -9.357346487 | L46: -63.16782016 | M46: -1347.774696 | N46: 1 | O46: 0 | P46: =MAX(P45-Eingabe!$E$28,0) -> 0 | Q46: 0 | R46: 0 | S46: =Eingabe!$C$25+Eingabe!$E$25*'Berechnung EB 2%'!F46 -> 39 | T46: -2725.198314
A47: 37 | B47: 0.03 | C47: 0 | D47: 0 | E47: 0 | F47: 0 | G47: =IF(VLOOKUP(A47,Wechsel!$A$11:$E$31,1)=A47,VLOOKUP(A47,Wechsel!$A$11:$E$31,1),0) -> 0 | H47: =IF(G47>0,VLOOKUP(A47,Wechsel!$A$11:$E$31,3),H46) -> 0 | I47: =IF(G47>0,VLOOKUP(A47,Wechsel!$A$11:$E$31,4),I46) -> 0 | J47: =IF(G47>0,VLOOKUP(A47,Wechsel!$A$11:$E$31,5),J46) -> 1 | K47: 0 | L47: -63.16782016 | M47: 0 | N47: 1 | O47: 0 | P47: =MAX(P46-Eingabe!$E$28,0) -> 0 | Q47: 0 | R47: 0 | S47: =Eingabe!$C$25+Eingabe!$E$25*'Berechnung EB 2%'!F47 -> 39 | T47: -39
A48: 38 | B48: 0.03 | C48: 0 | D48: 0 | E48: 0 | F48: 0 | G48: =IF(VLOOKUP(A48,Wechsel!$A$11:$E$31,1)=A48,VLOOKUP(A48,Wechsel!$A$11:$E$31,1),0) -> 0 | H48: =IF(G48>0,VLOOKUP(A48,Wechsel!$A$11:$E$31,3),H47) -> 0 | I48: =IF(G48>0,VLOOKUP(A48,Wechsel!$A$11:$E$31,4),I47) -> 0 | J48: =IF(G48>0,VLOOKUP(A48,Wechsel!$A$11:$E$31,5),J47) -> 1 | K48: 0 | L48: -63.16782016 | M48: 0 | N48: 1 | O48: 0 | P48: =MAX(P47-Eingabe!$E$28,0) -> 0 | Q48: 0 | R48: 0 | S48: =Eingabe!$C$25+Eingabe!$E$25*'Berechnung EB 2%'!F48 -> 39 | T48: -39
A49: 39 | B49: 0.03 | C49: 0 | D49: 0 | E49: 0 | F49: 0 | G49: =IF(VLOOKUP(A49,Wechsel!$A$11:$E$31,1)=A49,VLOOKUP(A49,Wechsel!$A$11:$E$31,1),0) -> 0 | H49: =IF(G49>0,VLOOKUP(A49,Wechsel!$A$11:$E$31,3),H48) -> 0 | I49: =IF(G49>0,VLOOKUP(A49,Wechsel!$A$11:$E$31,4),I48) -> 0 | J49: =IF(G49>0,VLOOKUP(A49,Wechsel!$A$11:$E$31,5),J48) -> 1 | K49: 0 | L49: -63.16782016 | M49: 0 | N49: 1 | O49: 0 | P49: =MAX(P48-Eingabe!$E$28,0) -> 0 | Q49: 0 | R49: 0 | S49: =Eingabe!$C$25+Eingabe!$E$25*'Berechnung EB 2%'!F49 -> 39 | T49: -39
A50: 40 | B50: 0.03 | C50: 0 | D50: 0 | E50: 0 | F50: 0 | G50: =IF(VLOOKUP(A50,Wechsel!$A$11:$E$31,1)=A50,VLOOKUP(A50,Wechsel!$A$11:$E$31,1),0) -> 0 | H50: =IF(G50>0,VLOOKUP(A50,Wechsel!$A$11:$E$31,3),H49) -> 0 | I50: =IF(G50>0,VLOOKUP(A50,Wechsel!$A$11:$E$31,4),I49) -> 0 | J50: =IF(G50>0,VLOOKUP(A50,Wechsel!$A$11:$E$31,5),J49) -> 1 | K50: 0 | L50: -63.16782016 | M50: 0 | N50: 1 | O50: 0 | P50: =MAX(P49-Eingabe!$E$28,0) -> 0 | Q50: 0 | R50: 0 | S50: =Eingabe!$C$25+Eingabe!$E$25*'Berechnung EB 2%'!F50 -> 39 | T50: -39
A51: 41 | B51: 0.03 | C51: 0 | D51: 0 | E51: 0 | F51: 0 | G51: =IF(VLOOKUP(A51,Wechsel!$A$11:$E$31,1)=A51,VLOOKUP(A51,Wechsel!$A$11:$E$31,1),0) -> 0 | H51: =IF(G51>0,VLOOKUP(A51,Wechsel!$A$11:$E$31,3),H50) -> 0 | I51: =IF(G51>0,VLOOKUP(A51,Wechsel!$A$11:$E$31,4),I50) -> 0 | J51: =IF(G51>0,VLOOKUP(A51,Wechsel!$A$11:$E$31,5),J50) -> 1 | K51: 0 | L51: -63.16782016 | M51: 0 | N51: 1 | O51: 0 | P51: =MAX(P50-Eingabe!$E$28,0) -> 0 | Q51: 0 | R51: 0 | S51: =Eingabe!$C$25+Eingabe!$E$25*'Berechnung EB 2%'!F51 -> 39 | T51: -39
A52: 42 | B52: 0.03 | C52: 0 | D52: 0 | E52: 0 | F52: 0 | G52: =IF(VLOOKUP(A52,Wechsel!$A$11:$E$31,1)=A52,VLOOKUP(A52,Wechsel!$A$11:$E$31,1),0) -> 0 | H52: =IF(G52>0,VLOOKUP(A52,Wechsel!$A$11:$E$31,3),H51) -> 0 | I52: =IF(G52>0,VLOOKUP(A52,Wechsel!$A$11:$E$31,4),I51) -> 0 | J52: =IF(G52>0,VLOOKUP(A52,Wechsel!$A$11:$E$31,5),J51) -> 1 | K52: 0 | L52: -63.16782016 | M52: 0 | N52: 1 | O52: 0 | P52: =MAX(P51-Eingabe!$E$28,0) -> 0 | Q52: 0 | R52: 0 | S52: =Eingabe!$C$25+Eingabe!$E$25*'Berechnung EB 2%'!F52 -> 39 | T52: -39
A53: 43 | B53: 0.03 | C53: 0 | D53: 0 | E53: 0 | F53: 0 | G53: =IF(VLOOKUP(A53,Wechsel!$A$11:$E$31,1)=A53,VLOOKUP(A53,Wechsel!$A$11:$E$31,1),0) -> 0 | H53: =IF(G53>0,VLOOKUP(A53,Wechsel!$A$11:$E$31,3),H52) -> 0 | I53: =IF(G53>0,VLOOKUP(A53,Wechsel!$A$11:$E$31,4),I52) -> 0 | J53: =IF(G53>0,VLOOKUP(A53,Wechsel!$A$11:$E$31,5),J52) -> 1 | K53: 0 | L53: -63.16782016 | M53: 0 | N53: 1 | O53: 0 | P53: =MAX(P52-Eingabe!$E$28,0) -> 0 | Q53: 0 | R53: 0 | S53: =Eingabe!$C$25+Eingabe!$E$25*'Berechnung EB 2%'!F53 -> 39 | T53: -39
A54: 44 | B54: 0.03 | C54: 0 | D54: 0 | E54: 0 | F54: 0 | G54: =IF(VLOOKUP(A54,Wechsel!$A$11:$E$31,1)=A54,VLOOKUP(A54,Wechsel!$A$11:$E$31,1),0) -> 0 | H54: =IF(G54>0,VLOOKUP(A54,Wechsel!$A$11:$E$31,3),H53) -> 0 | I54: =IF(G54>0,VLOOKUP(A54,Wechsel!$A$11:$E$31,4),I53) -> 0 | J54: =IF(G54>0,VLOOKUP(A54,Wechsel!$A$11:$E$31,5),J53) -> 1 | K54: 0 | L54: -63.16782016 | M54: 0 | N54: 1 | O54: 0 | P54: =MAX(P53-Eingabe!$E$28,0) -> 0 | Q54: 0 | R54: 0 | S54: =Eingabe!$C$25+Eingabe!$E$25*'Berechnung EB 2%'!F54 -> 39 | T54: -39
A55: 45 | B55: 0.03 | C55: 0 | D55: 0 | E55: 0 | F55: 0 | G55: =IF(VLOOKUP(A55,Wechsel!$A$11:$E$31,1)=A55,VLOOKUP(A55,Wechsel!$A$11:$E$31,1),0) -> 0 | H55: =IF(G55>0,VLOOKUP(A55,Wechsel!$A$11:$E$31,3),H54) -> 0 | I55: =IF(G55>0,VLOOKUP(A55,Wechsel!$A$11:$E$31,4),I54) -> 0 | J55: =IF(G55>0,VLOOKUP(A55,Wechsel!$A$11:$E$31,5),J54) -> 1 | K55: 0 | L55: -63.16782016 | M55: 0 | N55: 1 | O55: 0 | P55: =MAX(P54-Eingabe!$E$28,0) -> 0 | Q55: 0 | R55: 0 | S55: =Eingabe!$C$25+Eingabe!$E$25*'Berechnung EB 2%'!F55 -> 39 | T55: -39
A56: 46 | B56: 0.03 | C56: 0 | D56: 0 | E56: 0 | F56: 0 | G56: =IF(VLOOKUP(A56,Wechsel!$A$11:$E$31,1)=A56,VLOOKUP(A56,Wechsel!$A$11:$E$31,1),0) -> 0 | H56: =IF(G56>0,VLOOKUP(A56,Wechsel!$A$11:$E$31,3),H55) -> 0 | I56: =IF(G56>0,VLOOKUP(A56,Wechsel!$A$11:$E$31,4),I55) -> 0 | J56: =IF(G56>0,VLOOKUP(A56,Wechsel!$A$11:$E$31,5),J55) -> 1 | K56: 0 | L56: -63.16782016 | M56: 0 | N56: 1 | O56: 0 | P56: =MAX(P55-Eingabe!$E$28,0) -> 0 | Q56: 0 | R56: 0 | S56: =Eingabe!$C$25+Eingabe!$E$25*'Berechnung EB 2%'!F56 -> 39 | T56: -39
A57: 47 | B57: 0.03 | C57: 0 | D57: 0 | E57: 0 | F57: 0 | G57: =IF(VLOOKUP(A57,Wechsel!$A$11:$E$31,1)=A57,VLOOKUP(A57,Wechsel!$A$11:$E$31,1),0) -> 0 | H57: =IF(G57>0,VLOOKUP(A57,Wechsel!$A$11:$E$31,3),H56) -> 0 | I57: =IF(G57>0,VLOOKUP(A57,Wechsel!$A$11:$E$31,4),I56) -> 0 | J57: =IF(G57>0,VLOOKUP(A57,Wechsel!$A$11:$E$31,5),J56) -> 1 | K57: 0 | L57: -63.16782016 | M57: 0 | N57: 1 | O57: 0 | P57: =MAX(P56-Eingabe!$E$28,0) -> 0 | Q57: 0 | R57: 0 | S57: =Eingabe!$C$25+Eingabe!$E$25*'Berechnung EB 2%'!F57 -> 39 | T57: -39
A58: 48 | B58: 0.03 | C58: 0 | D58: 0 | E58: 0 | F58: 0 | G58: =IF(VLOOKUP(A58,Wechsel!$A$11:$E$31,1)=A58,VLOOKUP(A58,Wechsel!$A$11:$E$31,1),0) -> 0 | H58: =IF(G58>0,VLOOKUP(A58,Wechsel!$A$11:$E$31,3),H57) -> 0 | I58: =IF(G58>0,VLOOKUP(A58,Wechsel!$A$11:$E$31,4),I57) -> 0 | J58: =IF(G58>0,VLOOKUP(A58,Wechsel!$A$11:$E$31,5),J57) -> 1 | K58: 0 | L58: -63.16782016 | M58: 0 | N58: 1 | O58: 0 | P58: =MAX(P57-Eingabe!$E$28,0) -> 0 | Q58: 0 | R58: 0 | S58: =Eingabe!$C$25+Eingabe!$E$25*'Berechnung EB 2%'!F58 -> 39 | T58: -39
A59: 49 | B59: 0.03 | C59: 0 | D59: 0 | E59: 0 | F59: 0 | G59: =IF(VLOOKUP(A59,Wechsel!$A$11:$E$31,1)=A59,VLOOKUP(A59,Wechsel!$A$11:$E$31,1),0) -> 0 | H59: =IF(G59>0,VLOOKUP(A59,Wechsel!$A$11:$E$31,3),H58) -> 0 | I59: =IF(G59>0,VLOOKUP(A59,Wechsel!$A$11:$E$31,4),I58) -> 0 | J59: =IF(G59>0,VLOOKUP(A59,Wechsel!$A$11:$E$31,5),J58) -> 1 | K59: 0 | L59: -63.16782016 | M59: 0 | N59: 1 | O59: 0 | P59: =MAX(P58-Eingabe!$E$28,0) -> 0 | Q59: 0 | R59: 0 | S59: =Eingabe!$C$25+Eingabe!$E$25*'Berechnung EB 2%'!F59 -> 39 | T59: -39
A60: 50 | B60: 0.03 | C60: 0 | D60: 0 | E60: 0 | F60: 0 | G60: =IF(VLOOKUP(A60,Wechsel!$A$11:$E$31,1)=A60,VLOOKUP(A60,Wechsel!$A$11:$E$31,1),0) -> 0 | H60: =IF(G60>0,VLOOKUP(A60,Wechsel!$A$11:$E$31,3),H59) -> 0 | I60: =IF(G60>0,VLOOKUP(A60,Wechsel!$A$11:$E$31,4),I59) -> 0 | J60: =IF(G60>0,VLOOKUP(A60,Wechsel!$A$11:$E$31,5),J59) -> 1 | K60: 0 | L60: -63.16782016 | M60: 0 | N60: 1 | O60: 0 | P60: =MAX(P59-Eingabe!$E$28,0) -> 0 | Q60: 0 | R60: 0 | S60: =Eingabe!$C$25+Eingabe!$E$25*'Berechnung EB 2%'!F60 -> 39 | T60: -39
A61: 51 | B61: =$G$3*H60+$H$3*I60+$I$3*J60 -> 0.03 | C61: 1 | D61: =IF(A61>$B$3,0,T60) -> 0 | E61: =(C61+D61)*$B$1 -> 0.06 | F61: =IF(A61>$B$3,0,C61+E61+D61) -> 0 | G61: =IF(VLOOKUP(A61,Wechsel!$A$11:$E$31,1)=A61,VLOOKUP(A61,Wechsel!$A$11:$E$31,1),0) -> 0 | H61: =IF(G61>0,VLOOKUP(A61,Wechsel!$A$11:$E$31,3),H60) -> 0 | I61: =IF(G61>0,VLOOKUP(A61,Wechsel!$A$11:$E$31,4),I60) -> 0 | J61: =IF(G61>0,VLOOKUP(A61,Wechsel!$A$11:$E$31,5),J60) -> 1 | K61: =D61*$M$1*0.7*0.7*$M$2*H61+D61*$M$1*0.85*0.7*$M$2*I61+D61*$M$1*0.7*$M$2*J61 -> 0 | L61: =IF(G60>0,K61,K61+L60) -> -63.16782016 | M61: =IF(A61>$B$3,0,IF(G60>0,T60,C61+M60)) -> 0 | N61: =1-(H61*$G$5+I61*$H$5+J61*$I$5) -> 1 | O61: =IF(G61>0,(F61-M61)*N60,0) -> 0 | P61: =MAX(P60-Eingabe!$E$28,0) -> 0 | Q61: =MAX(0,K61+O61*$M$2-P61-IF(G61>0,-(L60+K61),0)) -> 0 | R61: =MAX(IF(G61>0,(H61*$G$4+I61*$H$4+J61*$I$4)*(F61-Q61),0),0) -> 0 | S61: =Eingabe!$C$25+Eingabe!$E$25*'Berechnung EB 2%'!F61 -> 39 | T61: =F61-Q61-R61-S61 -> -39
A62: 52 | B62: 0.03 | C62: 2 | D62: 0 | E62: 0.12 | F62: 0 | G62: =IF(VLOOKUP(A62,Wechsel!$A$11:$E$31,1)=A62,VLOOKUP(A62,Wechsel!$A$11:$E$31,1),0) -> 0 | H62: =IF(G62>0,VLOOKUP(A62,Wechsel!$A$11:$E$31,3),H61) -> 0 | I62: =IF(G62>0,VLOOKUP(A62,Wechsel!$A$11:$E$31,4),I61) -> 0 | J62: =IF(G62>0,VLOOKUP(A62,Wechsel!$A$11:$E$31,5),J61) -> 1 | K62: 0 | L62: -63.16782016 | M62: 0 | N62: 1 | O62: 0 | P62: =MAX(P61-Eingabe!$E$28,0) -> 0 | Q62: 0 | R62: 0 | S62: =Eingabe!$C$25+Eingabe!$E$25*'Berechnung EB 2%'!F62 -> 39 | T62: -39
A63: 53 | B63: 0.03 | C63: 3 | D63: 0 | E63: 0.18 | F63: 0 | G63: =IF(VLOOKUP(A63,Wechsel!$A$11:$E$31,1)=A63,VLOOKUP(A63,Wechsel!$A$11:$E$31,1),0) -> 0 | H63: =IF(G63>0,VLOOKUP(A63,Wechsel!$A$11:$E$31,3),H62) -> 0 | I63: =IF(G63>0,VLOOKUP(A63,Wechsel!$A$11:$E$31,4),I62) -> 0 | J63: =IF(G63>0,VLOOKUP(A63,Wechsel!$A$11:$E$31,5),J62) -> 1 | K63: 0 | L63: -63.16782016 | M63: 0 | N63: 1 | O63: 0 | P63: =MAX(P62-Eingabe!$E$28,0) -> 0 | Q63: 0 | R63: 0 | S63: =Eingabe!$C$25+Eingabe!$E$25*'Berechnung EB 2%'!F63 -> 39 | T63: -39
A64: 54 | B64: 0.03 | C64: 4 | D64: 0 | E64: 0.24 | F64: 0 | G64: =IF(VLOOKUP(A64,Wechsel!$A$11:$E$31,1)=A64,VLOOKUP(A64,Wechsel!$A$11:$E$31,1),0) -> 0 | H64: =IF(G64>0,VLOOKUP(A64,Wechsel!$A$11:$E$31,3),H63) -> 0 | I64: =IF(G64>0,VLOOKUP(A64,Wechsel!$A$11:$E$31,4),I63) -> 0 | J64: =IF(G64>0,VLOOKUP(A64,Wechsel!$A$11:$E$31,5),J63) -> 1 | K64: 0 | L64: -63.16782016 | M64: 0 | N64: 1 | O64: 0 | P64: =MAX(P63-Eingabe!$E$28,0) -> 0 | Q64: 0 | R64: 0 | S64: =Eingabe!$C$25+Eingabe!$E$25*'Berechnung EB 2%'!F64 -> 39 | T64: -39
A65: 55 | B65: 0.03 | C65: 5 | D65: 0 | E65: 0.3 | F65: 0 | G65: =IF(VLOOKUP(A65,Wechsel!$A$11:$E$31,1)=A65,VLOOKUP(A65,Wechsel!$A$11:$E$31,1),0) -> 0 | H65: =IF(G65>0,VLOOKUP(A65,Wechsel!$A$11:$E$31,3),H64) -> 0 | I65: =IF(G65>0,VLOOKUP(A65,Wechsel!$A$11:$E$31,4),I64) -> 0 | J65: =IF(G65>0,VLOOKUP(A65,Wechsel!$A$11:$E$31,5),J64) -> 1 | K65: 0 | L65: -63.16782016 | M65: 0 | N65: 1 | O65: 0 | P65: =MAX(P64-Eingabe!$E$28,0) -> 0 | Q65: 0 | R65: 0 | S65: =Eingabe!$C$25+Eingabe!$E$25*'Berechnung EB 2%'!F65 -> 39 | T65: -39
A66: 56 | B66: 0.03 | C66: 6 | D66: 0 | E66: 0.36 | F66: 0 | G66: =IF(VLOOKUP(A66,Wechsel!$A$11:$E$31,1)=A66,VLOOKUP(A66,Wechsel!$A$11:$E$31,1),0) -> 0 | H66: =IF(G66>0,VLOOKUP(A66,Wechsel!$A$11:$E$31,3),H65) -> 0 | I66: =IF(G66>0,VLOOKUP(A66,Wechsel!$A$11:$E$31,4),I65) -> 0 | J66: =IF(G66>0,VLOOKUP(A66,Wechsel!$A$11:$E$31,5),J65) -> 1 | K66: 0 | L66: -63.16782016 | M66: 0 | N66: 1 | O66: 0 | P66: =MAX(P65-Eingabe!$E$28,0) -> 0 | Q66: 0 | R66: 0 | S66: =Eingabe!$C$25+Eingabe!$E$25*'Berechnung EB 2%'!F66 -> 39 | T66: -39
A67: 57 | B67: 0.03 | C67: 7 | D67: 0 | E67: 0.42 | F67: 0 | G67: =IF(VLOOKUP(A67,Wechsel!$A$11:$E$31,1)=A67,VLOOKUP(A67,Wechsel!$A$11:$E$31,1),0) -> 0 | H67: =IF(G67>0,VLOOKUP(A67,Wechsel!$A$11:$E$31,3),H66) -> 0 | I67: =IF(G67>0,VLOOKUP(A67,Wechsel!$A$11:$E$31,4),I66) -> 0 | J67: =IF(G67>0,VLOOKUP(A67,Wechsel!$A$11:$E$31,5),J66) -> 1 | K67: 0 | L67: -63.16782016 | M67: 0 | N67: 1 | O67: 0 | P67: =MAX(P66-Eingabe!$E$28,0) -> 0 | Q67: 0 | R67: 0 | S67: =Eingabe!$C$25+Eingabe!$E$25*'Berechnung EB 2%'!F67 -> 39 | T67: -39
A68: 58 | B68: 0.03 | C68: 8 | D68: 0 | E68: 0.48 | F68: 0 | G68: =IF(VLOOKUP(A68,Wechsel!$A$11:$E$31,1)=A68,VLOOKUP(A68,Wechsel!$A$11:$E$31,1),0) -> 0 | H68: =IF(G68>0,VLOOKUP(A68,Wechsel!$A$11:$E$31,3),H67) -> 0 | I68: =IF(G68>0,VLOOKUP(A68,Wechsel!$A$11:$E$31,4),I67) -> 0 | J68: =IF(G68>0,VLOOKUP(A68,Wechsel!$A$11:$E$31,5),J67) -> 1 | K68: 0 | L68: -63.16782016 | M68: 0 | N68: 1 | O68: 0 | P68: =MAX(P67-Eingabe!$E$28,0) -> 0 | Q68: 0 | R68: 0 | S68: =Eingabe!$C$25+Eingabe!$E$25*'Berechnung EB 2%'!F68 -> 39 | T68: -39
A69: 59 | B69: 0.03 | C69: 9 | D69: 0 | E69: 0.54 | F69: 0 | G69: =IF(VLOOKUP(A69,Wechsel!$A$11:$E$31,1)=A69,VLOOKUP(A69,Wechsel!$A$11:$E$31,1),0) -> 0 | H69: =IF(G69>0,VLOOKUP(A69,Wechsel!$A$11:$E$31,3),H68) -> 0 | I69: =IF(G69>0,VLOOKUP(A69,Wechsel!$A$11:$E$31,4),I68) -> 0 | J69: =IF(G69>0,VLOOKUP(A69,Wechsel!$A$11:$E$31,5),J68) -> 1 | K69: 0 | L69: -63.16782016 | M69: 0 | N69: 1 | O69: 0 | P69: =MAX(P68-Eingabe!$E$28,0) -> 0 | Q69: 0 | R69: 0 | S69: =Eingabe!$C$25+Eingabe!$E$25*'Berechnung EB 2%'!F69 -> 39 | T69: -39
A70: 60 | B70: 0.03 | C70: 10 | D70: 0 | E70: 0.6 | F70: 0 | G70: =IF(VLOOKUP(A70,Wechsel!$A$11:$E$31,1)=A70,VLOOKUP(A70,Wechsel!$A$11:$E$31,1),0) -> 0 | H70: =IF(G70>0,VLOOKUP(A70,Wechsel!$A$11:$E$31,3),H69) -> 0 | I70: =IF(G70>0,VLOOKUP(A70,Wechsel!$A$11:$E$31,4),I69) -> 0 | J70: =IF(G70>0,VLOOKUP(A70,Wechsel!$A$11:$E$31,5),J69) -> 1 | K70: 0 | L70: -63.16782016 | M70: 0 | N70: 1 | O70: 0 | P70: =MAX(P69-Eingabe!$E$28,0) -> 0 | Q70: 0 | R70: 0 | S70: =Eingabe!$C$25+Eingabe!$E$25*'Berechnung EB 2%'!F70 -> 39 | T70: -39

Sheet Berechnung EB 4% (hidden)
A1: Rendite | B1: =Hilfe!E3-Hilfe!G16 -> 0.06 | F1: Ausgabeaufschlag | L1: Basiszins | M1: =MIN(4%,B1) -> 0.04
A2: Beitrag EB | B2: =Eingabe!C10 -> 250 | G2: Aktienfonds | H2: Mischfonds | I2: Rentenfonds / VVW | L2: Abgeltungssteuer | M2: ='Berechnung Ratierlich heute%'!M2 -> 0.26375
A3: Laufzeit | B3: =Eingabe!C9 -> 36 | F3: Ausgabeaufschlag | G3: =Eingabe!C21 -> 0.05 | H3: =Eingabe!E21 -> 0.04 | I3: =Eingabe!G21 -> 0.03
F4: Wechselgebühr | G4: =Eingabe!C22 -> 0.025 | H4: =Eingabe!E22 -> 0.02 | I4: =Eingabe!G22 -> 0.015 | J4: Ausgabe
F5: Freistellung | G5: 0.3 | H5: 0.15 | I5: 0 | J5: Jahr | K5: Jahresabschluss | L5: Beitragssumme | M5: zu versteuern % | N5: zu versteuern | O5: kumulierte Vorabpauschale | P5: Freistellungsauftrag | Q5: Auszahlung
J6: =B3 -> 36 | K6: =MAX(VLOOKUP(J6,A11:AD70,20,FALSE),0) -> 0 | L6: =MAX(VLOOKUP(J6,A11:AD70,13,FALSE),0) -> 0 | M6: =VLOOKUP(J6,A11:AD70,14,FALSE) -> 1 | N6: =(K6-L6)*M6 -> 0 | O6: =VLOOKUP(J6,A11:AD70,12,FALSE) -> -127.2826998 | P6: =VLOOKUP(J6,A11:AD70,16,FALSE) -> 0 | Q6: =K6-(N6-P6-O6)*M2 -> -33.57081207
A9: Jahr | B9: Ausgabeaufschlag | C9: Beitrag | D9: Vermögen Jahresanfang | E9: Rendite | F9: Gesamtvermögen | G9: Wechsel | H9: Anteil Aktienfonds | I9: Anteil Mischfonds | J9: Rentenfonds / VVW | K9: Vorabpauschale | L9: kumulierte Vorabpauschale | M9: Beitragssumme | N9: Freistellung | O9: Wechselbesteuerunganteil | P9: Freistellungsauftrag | Q9: Steuer | R9: Wechselkosten | S9: Depotkosten | T9: Jahresabschluss
A10: 0 | H10: =Eingabe!C18 -> 1 | I10: =Eingabe!E18 -> 0 | J10: =Eingabe!G18 -> 0
A11: 1 | B11: =$G$3*H10+$H$3*I10+$I$3*J10 -> 0.05 | C11: =IF($B$3>=A11,$B$2,0)/(1+B11) -> 238.0952381 | D11: =C11 -> 238.0952381 | E11: =C11*$B$1 -> 14.28571429 | F11: =C11+E11 -> 252.3809524 | G11: =VLOOKUP(A11,Wechsel!$A$11:$E$31,1) -> 0 | H11: =IF(G11>0,VLOOKUP(A11,Wechsel!$A$11:$E$31,3),H10) -> 1 | I11: =IF(G11>0,VLOOKUP(A11,Wechsel!$A$11:$E$31,4),I10) -> 0 | J11: =IF(G11>0,VLOOKUP(A11,Wechsel!$A$11:$E$31,5),J10) -> 0 | K11: =D11*$M$1*0.7*0.7*$M$2*H11+D11*$M$1*0.85*0.7*$M$2*I11+D11*$M$1*0.7*$M$2*J11 -> 1.230833333 | L11: =K11+L10 -> 1.230833333 | M11: =C11 -> 238.0952381 | N11: =1-(H11*$G$5+I11*$H$5+J11*$I$5) -> 0.7 | O11: =IF(G11>0,(F11-M11)*N11,0) -> 0 | P11: =MAX(Eingabe!C28,0) -> 0 | Q11: =MAX(0,K11+O11*$M$2-P11-IF(G11>0,-(L10+K11),0)) -> 1.230833333 | R11: =MAX(IF(G11>0,(H11*$G$4+I11*$H$4+J11*$I$4)*F11,0),0) -> 0 | S11: =Eingabe!$C$25+Eingabe!$E$25*'Berechnung EB 4%'!F11 -> 39 | T11: =F11-Q11-R11-S11 -> 212.150119
A12: 2 | B12: =$G$3*H11+$H$3*I11+$I$3*J11 -> 0.05 | C12: 0 | D12: =IF(A12>$B$3,0,T11) -> 212.150119 | E12: =(C12+D12)*$B$1 -> 12.72900714 | F12: =IF(A12>$B$3,0,C12+E12+D12) -> 224.8791262 | G12: =IF(VLOOKUP(A12,Wechsel!$A$11:$E$31,1)=A12,VLOOKUP(A12,Wechsel!$A$11:$E$31,1),0) -> 0 | H12: =IF(G12>0,VLOOKUP(A12,Wechsel!$A$11:$E$31,3),H11) -> 1 | I12: =IF(G12>0,VLOOKUP(A12,Wechsel!$A$11:$E$31,4),I11) -> 0 | J12: =IF(G12>0,VLOOKUP(A12,Wechsel!$A$11:$E$31,5),J11) -> 0 | K12: =D12*$M$1*0.7*0.7*$M$2*H12+D12*$M$1*0.85*0.7*$M$2*I12+D12*$M$1*0.7*$M$2*J12 -> 1.09671004 | L12: =IF(G11>0,K12,K12+L11) -> 2.327543374 | M12: =IF(A12>$B$3,0,IF(G11>0,T11,C12+M11)) -> 238.0952381 | N12: =1-(H12*$G$5+I12*$H$5+J12*$I$5) -> 0.7 | O12: =IF(G12>0,(F12-M12)*N11,0) -> 0 | P12: =MAX(P11-Eingabe!$E$28,0) -> 0 | Q12: =MAX(0,K12+O12*$M$2-P12-IF(G12>0,-(L11+K12),0)) -> 1.09671004 | R12: =MAX(IF(G12>0,(H12*$G$4+I12*$H$4+J12*$I$4)*(F12-Q12),0),0) -> 0 | S12: =Eingabe!$C$25+Eingabe!$E$25*'Berechnung EB 4%'!F12 -> 39 | T12: =F12-Q12-R12-S12 -> 184.7824162
A13: 3 | B13: 0.05 | C13: 0 | D13: 184.7824162 | E13: 11.08694497 | F13: 195.8693611 | G13: =IF(VLOOKUP(A13,Wechsel!$A$11:$E$31,1)=A13,VLOOKUP(A13,Wechsel!$A$11:$E$31,1),0) -> 0 | H13: =IF(G13>0,VLOOKUP(A13,Wechsel!$A$11:$E$31,3),H12) -> 1 | I13: =IF(G13>0,VLOOKUP(A13,Wechsel!$A$11:$E$31,4),I12) -> 0 | J13: =IF(G13>0,VLOOKUP(A13,Wechsel!$A$11:$E$31,5),J12) -> 0 | K13: =D13*$M$1*0.7*0.7*$M$2*H13+D13*$M$1*0.85*0.7*$M$2*I13+D13*$M$1*0.7*$M$2*J13 -> 0.9552327003 | L13: =IF(G12>0,K13,K13+L12) -> 3.282776074 | M13: 238.0952381 | N13: 0.7 | O13: =IF(G13>0,(F13-M13)*N12,0) -> 0 | P13: =MAX(P12-Eingabe!$E$28,0) -> 0 | Q13: 0.9552327003 | R13: 0 | S13: =Eingabe!$C$25+Eingabe!$E$25*'Berechnung EB 4%'!F13 -> 39 | T13: 155.9141284
